Workbook

Sheet Introduktion

Sheet Belysningssystemer
B1: TCO-værktøj til tilbudsevaluering
B2: Belysningssystemer
B3: Indendørs belysningssystem eller vej- og udendørsbelysning
B5: 4 Tilbudsgiver: Oplysninger om produktet
C7: Produktets navn | D7: Egen reference | E7: PRODUKT 1 | G7: PRODUKT 2 | I7: PRODUKT 3 | K7: PRODUKT 4 | M7: PRODUKT 5 | O7: PRODUKT 6 | Q7: PRODUKT 7 | S7: PRODUKT 8
C8: Produktbeskrivelse | D8: Egen reference
C9: Varenummer | D9: Egen reference
C11: Investeringsomkostninger
C12: Armaturpris inkl. forkobling / driver og lyskilde | D12: kr./stk.
C13: Antal armaturer, som er nødvendige ift. kravspecifikationen | D13: stk.
C14: Antal lyskilder pr. armatur | D14: stk.
C15: Samlet pris for kontrolsystem, hvis krævet af kravspecifikation | D15: kr.
C16: Installation, hvis krævet af kravspecifikation | D16: kr.
C17: Indkøring og tilpasning efter installation, hvis krævet af kravspecifikation | D17: kr.
C20: Driftsomkostninger
C21: Levetid for lyskilde (L70/B50) | D21: timer
C22: Levetid for forkobling / driver (L70F10) | D22: timer
C23: Pris for ny forkobling / driver (ved udskiftning) | D23: kr./stk.
C24: Effekt pr. lyskilde (inkl. drifttab) | D24: watt
C25: Systemeffekt (standby) for hele systemet (inkl. forkobling, sensor og lysstyring) | D25: watt
C26: Samlede årlige driftsudgifter til serviceaftale jf. kravspecifikation | D26: kr./år
C27: Lyskilde-pris (ved udskiftning) | D27: kr./stk.
C29: Lysstyringsmuligheder
C30: Manuel regulering | D30: Ja/nej | E30: Ja | G30: =$E$30 -> Ja | I30: =$E$30 -> Ja | K30: =$E$30 -> Ja | M30: =$E$30 -> Ja | O30: =$E$30 -> Ja | Q30: =$E$30 -> Ja | S30: =$E$30 -> Ja
C31: Tilstedeværelsessensor | D31: Ja/nej | E31: Ja | G31: =$E$31 -> Ja | I31: =$E$31 -> Ja | K31: =$E$31 -> Ja | M31: =$E$31 -> Ja | O31: =$E$31 -> Ja | Q31: =$E$31 -> Ja | S31: =$E$31 -> Ja
C32: Automatisk dagslysregulering | D32: Ja/nej | E32: Ja | G32: =$E$32 -> Ja | I32: =$E$32 -> Ja | K32: =$E$32 -> Ja | M32: =$E$32 -> Ja | O32: =$E$32 -> Ja | Q32: =$E$32 -> Ja | S32: =$E$32 -> Ja
C34: Service, vedligehold og løbende omkostninger
C35: Pris (serviceomkostning) på serviceaftale jf. kravspecifikation | D35: kr./år/lyskilde
C36: Evt. betaling for leje, leasing, licens eller abonnement jf. kravspecifikation | D36: kr./år/armatur
C38: Efterbrug
C39: Bliver produktet taget tilbage uden mulighed for gensalg og uden omkostninger? | D39: ja/nej | E39: Nej | G39: Nej | I39: =IF($E$39="","",$E$39) -> Nej | K39: =IF($E$39="","",$E$39) -> Nej | M39: =IF($E$39="","",$E$39) -> Nej | O39: =IF($E$39="","",$E$39) -> Nej | Q39: =IF($E$39="","",$E$39) -> Nej | S39: Nej
B42: 3 Ordregiver: Værdisætning af samfundsøkonomiske omkostninger ved eksterne virkninger på miljøet
C43: Skal de eksterne virkninger på miljøet inkluderes i denne TCO-beregning? | D43: Ja/nej | E43: Ja | G43: =$E$43 -> Ja | I43: =$E$43 -> Ja | K43: =$E$43 -> Ja | M43: =$E$43 -> Ja | O43: =$E$43 -> Ja | Q43: =$E$43 -> Ja | S43: =$E$43 -> Ja
C45: Anvendelse af standard-CO2-emissionsfaktor for elforbrug? | D45: Ja/nej | E45: Ja | G45: =$E45 -> Ja | I45: =$E45 -> Ja | K45: =$E45 -> Ja | M45: =$E45 -> Ja | O45: =$E45 -> Ja | Q45: =$E45 -> Ja | S45: =$E45 -> Ja
C46: Standard-CO2-emissionsfaktor for elforbrug | D46: kg CO2e/kWh | E46: =VLOOKUP(E68,Fremskrivninger!$A$9:$L$38,12) -> 0.089 | G46: =$E46 -> 0.089 | I46: =$E46 -> 0.089 | K46: =$E46 -> 0.089 | M46: =$E46 -> 0.089 | O46: =$E46 -> 0.089 | Q46: =$E46 -> 0.089 | S46: =$E46 -> 0.089
C47: Egen CO2-emissionsfaktor for elforbrug | D47: kg CO2e/kWh | G47: =$E47 -> 0 | I47: =$E47 -> 0 | K47: =$E47 -> 0 | M47: =$E47 -> 0 | O47: =$E47 -> 0 | Q47: =$E47 -> 0 | S47: =$E47 -> 0
C49: Anvendelse af standard-værdisætning af samfundsøkonomiske omkostninger? | E49: Ja | G49: =$E$49 -> Ja | I49: =$E$49 -> Ja | K49: =$E$49 -> Ja | M49: =$E$49 -> Ja | O49: =$E$49 -> Ja | Q49: =$E$49 -> Ja | S49: =$E$49 -> Ja
C50: Standardværdi | D50: kr./tons CO2e | E50: 1500 | G50: =E$50 -> 1500 | I50: =G$50 -> 1500 | K50: =I$50 -> 1500 | M50: =K$50 -> 1500 | O50: =M$50 -> 1500 | Q50: =O$50 -> 1500 | S50: =Q$50 -> 1500
C51: Egen værdi | D51: kr./tons CO2e | E51: 0 | G51: =E$40 -> 0 | I51: =G$40 -> 0 | K51: =I$40 -> 0 | M51: =K$40 -> 0 | O51: =M$40 -> 0 | Q51: =O$40 -> 0 | S51: =Q$40 -> 0
B55: 2 Ordregiver: Oplysninger om brugen
C56: Antal brugsdage pr. år | D56: dage/år | G56: =$E$56 -> 0 | I56: =$E$56 -> 0 | K56: =$E$56 -> 0 | M56: =$E$56 -> 0 | O56: =$E$56 -> 0 | Q56: =$E$56 -> 0 | S56: =$E$56 -> 0
C57: Antal brugstimer pr. dag | D57: timer/dag | G57: =$E$57 -> 0 | I57: =$E$57 -> 0 | K57: =$E$57 -> 0 | M57: =$E$57 -> 0 | O57: =$E$57 -> 0 | Q57: =$E$57 -> 0 | S57: =$E$57 -> 0
C59: Længde af serviceaftale-periode jf. kravsspecifikation (drifts- OG serviceomkostning) | D59: antal år
C60: Længde af leasingaftale-periode jf. kravspecifikation | D60: antal år
C62: Pris for udskiftning pr. lyskilde (arbejdsløn) | D62: kr. | G62: =IF($E62="","",$E62) -> 
C63: Pris for udskiftning pr. forkobling / driver (arbejdsløn) | D63: kr.
B67: 1 Ordregiver: Baggrundsdata
C68: 1. år for brugsperiode | D68: Årstal | E68: 2021 | G68: =$E$68 -> 2021 | I68: =$E$68 -> 2021 | K68: =$E$68 -> 2021 | M68: =$E$68 -> 2021 | O68: =$E$68 -> 2021 | Q68: =$E$68 -> 2021 | S68: =$E$68 -> 2021
C69: TCO-evalueringsperiode (standard gennemsnitlig forventet brugstid i organisationen) | D69: år | E69: 15 | G69: =$E$69 -> 15 | I69: =$E$69 -> 15 | K69: =$E$69 -> 15 | M69: =$E$69 -> 15 | O69: =$E$69 -> 15 | Q69: =$E$69 -> 15 | S69: =$E$69 -> 15
C71: Anvendelse af standardelpriser med gennemsnitlig fremskrivning? | E71: Ja | G71: =$E$71 -> Ja | I71: =$E$71 -> Ja | K71: =$E$71 -> Ja | M71: =$E$71 -> Ja | O71: =$E$71 -> Ja | Q71: =$E$71 -> Ja | S71: =$E$71 -> Ja
C72: Standard elpris | D72: kr./kWh | E72: =VLOOKUP(E68,Fremskrivninger!$A$9:$C$38,3) -> 1.851 | G72: =$E$72 -> 1.851 | I72: =$E$72 -> 1.851 | K72: =$E$72 -> 1.851 | M72: =$E$72 -> 1.851 | O72: =$E$72 -> 1.851 | Q72: =$E$72 -> 1.851 | S72: =$E$72 -> 1.851
C73: Standard elprisstigning (årligt, ud over inflation) | D73: %/år | E73: 0.0167 | G73: =$E$73 -> 0.0167 | I73: =$E$73 -> 0.0167 | K73: =$E$73 -> 0.0167 | M73: =$E$73 -> 0.0167 | O73: =$E$73 -> 0.0167 | Q73: =$E$73 -> 0.0167 | S73: =$E$73 -> 0.0167
C74: Egen elpris | D74: kr./kWh | G74: =$E$74 -> 0 | I74: =$E$74 -> 0 | K74: =$E$74 -> 0 | M74: =$E$74 -> 0 | O74: =$E$74 -> 0 | Q74: =$E$74 -> 0 | S74: =$E$74 -> 0
C75: Egen elprisstigning (årligt, ud over inflation) | D75: %/år | G75: =$E$75 -> 0 | I75: =$E$75 -> 0 | K75: =$E$75 -> 0 | M75: =$E$75 -> 0 | O75: =$E$75 -> 0 | Q75: =$E$75 -> 0 | S75: =$E$75 -> 0
C77: Diskonteringsrente | D77: %/år | E77: 0.035 | G77: =$E$77 -> 0.035 | I77: =$E$77 -> 0.035 | K77: =$E$77 -> 0.035 | M77: =$E$77 -> 0.035 | O77: =$E$77 -> 0.035 | Q77: =$E$77 -> 0.035 | S77: =$E$77 -> 0.035
C78: Intern serviceomkostning (service og support) | D78: kr./armatur/år
C80: Lysstyringens reduktionsfaktorer
C81: Reduktionsfaktor ved manuel regulering | E81: 0.9 | G81: 0.9 | I81: 0.9 | K81: 0.9 | M81: 0.9 | O81: 0.9 | Q81: 0.9 | S81: 0.9
C82: Reduktionsfaktor ved tilstedeværelsessensor | E82: 0.75 | G82: 0.75 | I82: 0.75 | K82: 0.75 | M82: 0.75 | O82: 0.75 | Q82: 0.75 | S82: 0.75
C83: Reduktionsfaktor ved automatisk dagslysregulering | E83: 0.9 | G83: 0.9 | I83: 0.9 | K83: 0.9 | M83: 0.9 | O83: 0.9 | Q83: 0.9 | S83: 0.9
C85: Efterbrug
C86: Efterbrugsindtægts (gensalgspris) andel af investering | D86: %
C87: Efterbrugsomkostninger (transport, lønomkostninger mv.) | D87: kr./armatur
B91: 5 Resultat
C93: Investeringsomkostning | D93: kr. | E93: =E12*E13+E15+E16+E17 -> 0 | G93: =G12*G13+G15+G16+G17 -> 0 | I93: =I12*I13+I15+I16+I17 -> 0 | K93: =K12*K13+K15+K16+K17 -> 0 | M93: =M12*M13+M15+M16+M17 -> 0 | O93: =O12*O13+O15+O16+O17 -> 0 | Q93: =Q12*Q13+Q15+Q16+Q17 -> 0 | S93: =S12*S13+S15+S16+S17 -> 0
C94: Driftsomkostning i alt | D94: kr. | E94: =SUMIFS('IB - Belysningssystemer'!E2:E21,'IB - Belysningssystemer'!$B$2:$B$21,"<="&E69) -> 0 | G94: =SUMIFS('IB - Belysningssystemer'!G2:G21,'IB - Belysningssystemer'!$B$2:$B$21,"<="&G69) -> 0 | I94: =SUMIFS('IB - Belysningssystemer'!I2:I21,'IB - Belysningssystemer'!$B$2:$B$21,"<="&I69) -> 0 | K94: =SUMIFS('IB - Belysningssystemer'!K2:K21,'IB - Belysningssystemer'!$B$2:$B$21,"<="&K69) -> 0 | M94: =SUMIFS('IB - Belysningssystemer'!M2:M21,'IB - Belysningssystemer'!$B$2:$B$21,"<="&M69) -> 0 | O94: =SUMIFS('IB - Belysningssystemer'!O2:O21,'IB - Belysningssystemer'!$B$2:$B$21,"<="&O69) -> 0 | Q94: =SUMIFS('IB - Belysningssystemer'!Q2:Q21,'IB - Belysningssystemer'!$B$2:$B$21,"<="&Q69) -> 0 | S94: =SUMIFS('IB - Belysningssystemer'!S2:S21,'IB - Belysningssystemer'!$B$2:$B$21,"<="&S69) -> 0
C95: Service, vedligehold og løbende omkostninger i alt | D95: kr. | E95: =SUMIFS('IB - Belysningssystemer'!E49:E68,'IB - Belysningssystemer'!$B$49:$B$68,"<="&E69) -> 0 | G95: =SUMIFS('IB - Belysningssystemer'!G49:G68,'IB - Belysningssystemer'!$B$49:$B$68,"<="&G69) -> 0 | I95: =SUMIFS('IB - Belysningssystemer'!I49:I68,'IB - Belysningssystemer'!$B$49:$B$68,"<="&I69) -> 0 | K95: =SUMIFS('IB - Belysningssystemer'!K49:K68,'IB - Belysningssystemer'!$B$49:$B$68,"<="&K69) -> 0 | M95: =SUMIFS('IB - Belysningssystemer'!M49:M68,'IB - Belysningssystemer'!$B$49:$B$68,"<="&M69) -> 0 | O95: =SUMIFS('IB - Belysningssystemer'!O49:O68,'IB - Belysningssystemer'!$B$49:$B$68,"<="&O69) -> 0 | Q95: =SUMIFS('IB - Belysningssystemer'!Q49:Q68,'IB - Belysningssystemer'!$B$49:$B$68,"<="&Q69) -> 0 | S95: =SUMIFS('IB - Belysningssystemer'!S49:S68,'IB - Belysningssystemer'!$B$49:$B$68,"<="&S69) -> 0
C96: =IF(AND(E39="ja",G39="ja",I39="ja",K39="ja",M39="ja",O39="ja",Q39="ja",S39="ja"),"",C85&", omkostninger og indtægter i alt") -> Efterbrug, omkostninger og indtægter i alt | D96: =IF(C96="","","kr.") -> kr. | E96: =IF(E39="ja",0,IF(E39="nej",(-E86*E12)+E87,0))*E13*(1+E77)^-E69 -> 0 | G96: =IF(G39="ja",0,IF(G39="nej",(-G86*G12)+G87,0))*G13*(1+G77)^-G69 -> 0 | I96: =IF(I39="ja",0,IF(I39="nej",(-I86*I12)+I87,0))*I13*(1+I77)^-I69 -> 0 | K96: =IF(K39="ja",0,IF(K39="nej",(-K86*K12)+K87,0))*K13*(1+K77)^-K69 -> 0 | M96: =IF(M39="ja",0,IF(M39="nej",(-M86*M12)+M87,0))*M13*(1+M77)^-M69 -> 0 | O96: =IF(O39="ja",0,IF(O39="nej",(-O86*O12)+O87,0))*O13*(1+O77)^-O69 -> 0 | Q96: =IF(Q39="ja",0,IF(Q39="nej",(-Q86*Q12)+Q87,0))*Q13*(1+Q77)^-Q69 -> 0 | S96: =IF(S39="ja",0,IF(S39="nej",(-S86*S12)+S87,0))*S13*(1+S77)^-S69 -> 0
C97: =IF(E43="nej","","Samfundsøkonomiske omkostninger af eksterne virkninger på miljøet") -> Samfundsøkonomiske omkostninger af eksterne virkninger på miljøet | D97: =IF(C97="","","kr.") -> kr. | E97: =IF($D$97="","",SUMIFS('IB - Belysningssystemer'!E143:E162,'IB - Belysningssystemer'!$C$143:$C$162,"<="&Belysningssystemer!E69)) -> 0 | G97: =IF($D$97="","",SUMIFS('IB - Belysningssystemer'!G143:G162,'IB - Belysningssystemer'!$C$143:$C$162,"<="&Belysningssystemer!G69)) -> 0 | I97: =IF($D$97="","",SUMIFS('IB - Belysningssystemer'!I143:I162,'IB - Belysningssystemer'!$C$143:$C$162,"<="&Belysningssystemer!I69)) -> 0 | K97: =IF($D$97="","",SUMIFS('IB - Belysningssystemer'!K143:K162,'IB - Belysningssystemer'!$C$143:$C$162,"<="&Belysningssystemer!K69)) -> 0 | M97: =IF($D$97="","",SUMIFS('IB - Belysningssystemer'!M143:M162,'IB - Belysningssystemer'!$C$143:$C$162,"<="&Belysningssystemer!M69)) -> 0 | O97: =IF($D$97="","",SUMIFS('IB - Belysningssystemer'!O143:O162,'IB - Belysningssystemer'!$C$143:$C$162,"<="&Belysningssystemer!O69)) -> 0 | Q97: =IF($D$97="","",SUMIFS('IB - Belysningssystemer'!Q143:Q162,'IB - Belysningssystemer'!$C$143:$C$162,"<="&Belysningssystemer!Q69)) -> 0 | S97: =IF($D$97="","",SUMIFS('IB - Belysningssystemer'!S143:S162,'IB - Belysningssystemer'!$C$143:$C$162,"<="&Belysningssystemer!S69)) -> 0
C99: =IF(C97="","TCO","TCO inkl. værdisætning af eksterne virkning på miljøet") -> TCO inkl. værdisætning af eksterne virkning på miljøet | D99: kr. | E99: =SUM(E93:E97) -> 0 | G99: =SUM(G93:G97) -> 0 | I99: =SUM(I93:I97) -> 0 | K99: =SUM(K93:K97) -> 0 | M99: =SUM(M93:M97) -> 0 | O99: =SUM(O93:O97) -> 0 | Q99: =SUM(Q93:Q97) -> 0 | S99: =SUM(S93:S97) -> 0
C100: Gennemsnitlige årlige omkostninger | D100: kr./år | E100: =PMT(E77,E69,-(E99)) -> 0 | G100: =PMT(G77,G69,-(G99)) -> 0 | I100: =PMT(I77,I69,-(I99)) -> 0 | K100: =PMT(K77,K69,-(K99)) -> 0 | M100: =PMT(M77,M69,-(M99)) -> 0 | O100: =PMT(O77,O69,-(O99)) -> 0 | Q100: =PMT(Q77,Q69,-(Q99)) -> 0 | S100: =PMT(S77,S69,-(S99)) -> 0
C102: =IF(E43="ja","Samlede eksterne virkninger på miljøet fra brugsfasen","") -> Samlede eksterne virkninger på miljøet fra brugsfasen | D102: =IF(C102="","","tons CO2e") -> tons CO2e | E102: =IF(E43="ja",SUMIFS('IB - Belysningssystemer'!E$120:E$139,'IB - Belysningssystemer'!$C$120:$C$139,"<="&Belysningssystemer!E$69),"") -> 0 | G102: =IF(G43="ja",SUMIFS('IB - Belysningssystemer'!G$120:G$139,'IB - Belysningssystemer'!$C$120:$C$139,"<="&Belysningssystemer!G$69),"") -> 0 | I102: =IF(I43="ja",SUMIFS('IB - Belysningssystemer'!I$120:I$139,'IB - Belysningssystemer'!$C$120:$C$139,"<="&Belysningssystemer!I$69),"") -> 0 | K102: =IF(K43="ja",SUMIFS('IB - Belysningssystemer'!K$120:K$139,'IB - Belysningssystemer'!$C$120:$C$139,"<="&Belysningssystemer!K$69),"") -> 0 | M102: =IF(M43="ja",SUMIFS('IB - Belysningssystemer'!M$120:M$139,'IB - Belysningssystemer'!$C$120:$C$139,"<="&Belysningssystemer!M$69),"") -> 0 | O102: =IF(O43="ja",SUMIFS('IB - Belysningssystemer'!O$120:O$139,'IB - Belysningssystemer'!$C$120:$C$139,"<="&Belysningssystemer!O$69),"") -> 0 | Q102: =IF(Q43="ja",SUMIFS('IB - Belysningssystemer'!Q$120:Q$139,'IB - Belysningssystemer'!$C$120:$C$139,"<="&Belysningssystemer!Q$69),"") -> 0 | S102: =IF(S43="ja",SUMIFS('IB - Belysningssystemer'!S$120:S$139,'IB - Belysningssystemer'!$C$120:$C$139,"<="&Belysningssystemer!S$69),"") -> 0
C146: ='IB - Belysningssystemer'!B25 -> Samlede akkumulerede omkostninger | E146: ='IB - Belysningssystemer'!E26 -> PRODUKT 1 | G146: ='IB - Belysningssystemer'!G26 -> PRODUKT 2 | I146: ='IB - Belysningssystemer'!I26 -> PRODUKT 3 | K146: ='IB - Belysningssystemer'!K26 -> PRODUKT 4 | M146: ='IB - Belysningssystemer'!M26 -> PRODUKT 5 | O146: ='IB - Belysningssystemer'!O26 -> PRODUKT 6 | Q146: ='IB - Belysningssystemer'!Q26 -> PRODUKT 7 | S146: ='IB - Belysningssystemer'!S26 -> PRODUKT 8
E147: ='IB - Belysningssystemer'!E27 -> 0 | G147: ='IB - Belysningssystemer'!G27 -> 0 | I147: ='IB - Belysningssystemer'!I27 -> 0 | K147: ='IB - Belysningssystemer'!K27 -> 0 | M147: ='IB - Belysningssystemer'!M27 -> 0 | O147: ='IB - Belysningssystemer'!O27 -> 0 | Q147: ='IB - Belysningssystemer'!Q27 -> 0 | S147: ='IB - Belysningssystemer'!S27 -> 0
E148: ='IB - Belysningssystemer'!E28 -> 0 | G148: ='IB - Belysningssystemer'!G28 -> 0 | I148: ='IB - Belysningssystemer'!I28 -> 0 | K148: ='IB - Belysningssystemer'!K28 -> 0 | M148: ='IB - Belysningssystemer'!M28 -> 0 | O148: ='IB - Belysningssystemer'!O28 -> 0 | Q148: ='IB - Belysningssystemer'!Q28 -> 0 | S148: ='IB - Belysningssystemer'!S28 -> 0
E149: ='IB - Belysningssystemer'!E29 -> 0 | G149: ='IB - Belysningssystemer'!G29 -> 0 | I149: ='IB - Belysningssystemer'!I29 -> 0 | K149: ='IB - Belysningssystemer'!K29 -> 0 | M149: ='IB - Belysningssystemer'!M29 -> 0 | O149: ='IB - Belysningssystemer'!O29 -> 0 | Q149: ='IB - Belysningssystemer'!Q29 -> 0 | S149: ='IB - Belysningssystemer'!S29 -> 0
E150: ='IB - Belysningssystemer'!E30 -> 0 | G150: ='IB - Belysningssystemer'!G30 -> 0 | I150: ='IB - Belysningssystemer'!I30 -> 0 | K150: ='IB - Belysningssystemer'!K30 -> 0 | M150: ='IB - Belysningssystemer'!M30 -> 0 | O150: ='IB - Belysningssystemer'!O30 -> 0 | Q150: ='IB - Belysningssystemer'!Q30 -> 0 | S150: ='IB - Belysningssystemer'!S30 -> 0
E151: ='IB - Belysningssystemer'!E31 -> 0 | G151: ='IB - Belysningssystemer'!G31 -> 0 | I151: ='IB - Belysningssystemer'!I31 -> 0 | K151: ='IB - Belysningssystemer'!K31 -> 0 | M151: ='IB - Belysningssystemer'!M31 -> 0 | O151: ='IB - Belysningssystemer'!O31 -> 0 | Q151: ='IB - Belysningssystemer'!Q31 -> 0 | S151: ='IB - Belysningssystemer'!S31 -> 0
E152: ='IB - Belysningssystemer'!E32 -> 0 | G152: ='IB - Belysningssystemer'!G32 -> 0 | I152: ='IB - Belysningssystemer'!I32 -> 0 | K152: ='IB - Belysningssystemer'!K32 -> 0 | M152: ='IB - Belysningssystemer'!M32 -> 0 | O152: ='IB - Belysningssystemer'!O32 -> 0 | Q152: ='IB - Belysningssystemer'!Q32 -> 0 | S152: ='IB - Belysningssystemer'!S32 -> 0
E153: ='IB - Belysningssystemer'!E33 -> 0 | G153: ='IB - Belysningssystemer'!G33 -> 0 | I153: ='IB - Belysningssystemer'!I33 -> 0 | K153: ='IB - Belysningssystemer'!K33 -> 0 | M153: ='IB - Belysningssystemer'!M33 -> 0 | O153: ='IB - Belysningssystemer'!O33 -> 0 | Q153: ='IB - Belysningssystemer'!Q33 -> 0 | S153: ='IB - Belysningssystemer'!S33 -> 0
E154: ='IB - Belysningssystemer'!E34 -> 0 | G154: ='IB - Belysningssystemer'!G34 -> 0 | I154: ='IB - Belysningssystemer'!I34 -> 0 | K154: ='IB - Belysningssystemer'!K34 -> 0 | M154: ='IB - Belysningssystemer'!M34 -> 0 | O154: ='IB - Belysningssystemer'!O34 -> 0 | Q154: ='IB - Belysningssystemer'!Q34 -> 0 | S154: ='IB - Belysningssystemer'!S34 -> 0
E155: ='IB - Belysningssystemer'!E35 -> 0 | G155: ='IB - Belysningssystemer'!G35 -> 0 | I155: ='IB - Belysningssystemer'!I35 -> 0 | K155: ='IB - Belysningssystemer'!K35 -> 0 | M155: ='IB - Belysningssystemer'!M35 -> 0 | O155: ='IB - Belysningssystemer'!O35 -> 0 | Q155: ='IB - Belysningssystemer'!Q35 -> 0 | S155: ='IB - Belysningssystemer'!S35 -> 0
E156: ='IB - Belysningssystemer'!E36 -> 0 | G156: ='IB - Belysningssystemer'!G36 -> 0 | I156: ='IB - Belysningssystemer'!I36 -> 0 | K156: ='IB - Belysningssystemer'!K36 -> 0 | M156: ='IB - Belysningssystemer'!M36 -> 0 | O156: ='IB - Belysningssystemer'!O36 -> 0 | Q156: ='IB - Belysningssystemer'!Q36 -> 0 | S156: ='IB - Belysningssystemer'!S36 -> 0
E157: ='IB - Belysningssystemer'!E37 -> 0 | G157: ='IB - Belysningssystemer'!G37 -> 0 | I157: ='IB - Belysningssystemer'!I37 -> 0 | K157: ='IB - Belysningssystemer'!K37 -> 0 | M157: ='IB - Belysningssystemer'!M37 -> 0 | O157: ='IB - Belysningssystemer'!O37 -> 0 | Q157: ='IB - Belysningssystemer'!Q37 -> 0 | S157: ='IB - Belysningssystemer'!S37 -> 0
E158: ='IB - Belysningssystemer'!E38 -> 0 | G158: ='IB - Belysningssystemer'!G38 -> 0 | I158: ='IB - Belysningssystemer'!I38 -> 0 | K158: ='IB - Belysningssystemer'!K38 -> 0 | M158: ='IB - Belysningssystemer'!M38 -> 0 | O158: ='IB - Belysningssystemer'!O38 -> 0 | Q158: ='IB - Belysningssystemer'!Q38 -> 0 | S158: ='IB - Belysningssystemer'!S38 -> 0
E159: ='IB - Belysningssystemer'!E39 -> 0 | G159: ='IB - Belysningssystemer'!G39 -> 0 | I159: ='IB - Belysningssystemer'!I39 -> 0 | K159: ='IB - Belysningssystemer'!K39 -> 0 | M159: ='IB - Belysningssystemer'!M39 -> 0 | O159: ='IB - Belysningssystemer'!O39 -> 0 | Q159: ='IB - Belysningssystemer'!Q39 -> 0 | S159: ='IB - Belysningssystemer'!S39 -> 0
E160: ='IB - Belysningssystemer'!E40 -> 0 | G160: ='IB - Belysningssystemer'!G40 -> 0 | I160: ='IB - Belysningssystemer'!I40 -> 0 | K160: ='IB - Belysningssystemer'!K40 -> 0 | M160: ='IB - Belysningssystemer'!M40 -> 0 | O160: ='IB - Belysningssystemer'!O40 -> 0 | Q160: ='IB - Belysningssystemer'!Q40 -> 0 | S160: ='IB - Belysningssystemer'!S40 -> 0
E161: ='IB - Belysningssystemer'!E41 -> 0 | G161: ='IB - Belysningssystemer'!G41 -> 0 | I161: ='IB - Belysningssystemer'!I41 -> 0 | K161: ='IB - Belysningssystemer'!K41 -> 0 | M161: ='IB - Belysningssystemer'!M41 -> 0 | O161: ='IB - Belysningssystemer'!O41 -> 0 | Q161: ='IB - Belysningssystemer'!Q41 -> 0 | S161: ='IB - Belysningssystemer'!S41 -> 0
E162: ='IB - Belysningssystemer'!E42 -> 0 | G162: ='IB - Belysningssystemer'!G42 -> 0 | I162: ='IB - Belysningssystemer'!I42 -> 0 | K162: ='IB - Belysningssystemer'!K42 -> 0 | M162: ='IB - Belysningssystemer'!M42 -> 0 | O162: ='IB - Belysningssystemer'!O42 -> 0 | Q162: ='IB - Belysningssystemer'!Q42 -> 0 | S162: ='IB - Belysningssystemer'!S42 -> 0
E163: ='IB - Belysningssystemer'!E43 -> 0 | G163: ='IB - Belysningssystemer'!G43 -> 0 | I163: ='IB - Belysningssystemer'!I43 -> 0 | K163: ='IB - Belysningssystemer'!K43 -> 0 | M163: ='IB - Belysningssystemer'!M43 -> 0 | O163: ='IB - Belysningssystemer'!O43 -> 0 | Q163: ='IB - Belysningssystemer'!Q43 -> 0 | S163: ='IB - Belysningssystemer'!S43 -> 0
E164: ='IB - Belysningssystemer'!E44 -> 0 | G164: ='IB - Belysningssystemer'!G44 -> 0 | I164: ='IB - Belysningssystemer'!I44 -> 0 | K164: ='IB - Belysningssystemer'!K44 -> 0 | M164: ='IB - Belysningssystemer'!M44 -> 0 | O164: ='IB - Belysningssystemer'!O44 -> 0 | Q164: ='IB - Belysningssystemer'!Q44 -> 0 | S164: ='IB - Belysningssystemer'!S44 -> 0
E165: ='IB - Belysningssystemer'!E45 -> 0 | G165: ='IB - Belysningssystemer'!G45 -> 0 | I165: ='IB - Belysningssystemer'!I45 -> 0 | K165: ='IB - Belysningssystemer'!K45 -> 0 | M165: ='IB - Belysningssystemer'!M45 -> 0 | O165: ='IB - Belysningssystemer'!O45 -> 0 | Q165: ='IB - Belysningssystemer'!Q45 -> 0 | S165: ='IB - Belysningssystemer'!S45 -> 0
E166: ='IB - Belysningssystemer'!E46 -> 0 | G166: ='IB - Belysningssystemer'!G46 -> 0 | I166: ='IB - Belysningssystemer'!I46 -> 0 | K166: ='IB - Belysningssystemer'!K46 -> 0 | M166: ='IB - Belysningssystemer'!M46 -> 0 | O166: ='IB - Belysningssystemer'!O46 -> 0 | Q166: ='IB - Belysningssystemer'!Q46 -> 0 | S166: ='IB - Belysningssystemer'!S46 -> 0
C168: ='IB - Belysningssystemer'!A95 -> Gennemsnitlige årlige omkostninger | E168: ='IB - Belysningssystemer'!E96 -> PRODUKT 1 | G168: ='IB - Belysningssystemer'!G96 -> PRODUKT 2 | I168: ='IB - Belysningssystemer'!I96 -> PRODUKT 3 | K168: ='IB - Belysningssystemer'!K96 -> PRODUKT 4 | M168: ='IB - Belysningssystemer'!M96 -> PRODUKT 5 | O168: ='IB - Belysningssystemer'!O96 -> PRODUKT 6 | Q168: ='IB - Belysningssystemer'!Q96 -> PRODUKT 7 | S168: ='IB - Belysningssystemer'!S96 -> PRODUKT 8
E169: ='IB - Belysningssystemer'!E97 -> 0 | G169: ='IB - Belysningssystemer'!G97 -> 0 | I169: ='IB - Belysningssystemer'!I97 -> 0 | K169: ='IB - Belysningssystemer'!K97 -> 0 | M169: ='IB - Belysningssystemer'!M97 -> 0 | O169: ='IB - Belysningssystemer'!O97 -> 0 | Q169: ='IB - Belysningssystemer'!Q97 -> 0 | S169: ='IB - Belysningssystemer'!S97 -> 0
E170: ='IB - Belysningssystemer'!E98 -> 0 | G170: ='IB - Belysningssystemer'!G98 -> 0 | I170: ='IB - Belysningssystemer'!I98 -> 0 | K170: ='IB - Belysningssystemer'!K98 -> 0 | M170: ='IB - Belysningssystemer'!M98 -> 0 | O170: ='IB - Belysningssystemer'!O98 -> 0 | Q170: ='IB - Belysningssystemer'!Q98 -> 0 | S170: ='IB - Belysningssystemer'!S98 -> 0
E171: ='IB - Belysningssystemer'!E99 -> 0 | G171: ='IB - Belysningssystemer'!G99 -> 0 | I171: ='IB - Belysningssystemer'!I99 -> 0 | K171: ='IB - Belysningssystemer'!K99 -> 0 | M171: ='IB - Belysningssystemer'!M99 -> 0 | O171: ='IB - Belysningssystemer'!O99 -> 0 | Q171: ='IB - Belysningssystemer'!Q99 -> 0 | S171: ='IB - Belysningssystemer'!S99 -> 0 | U171: =U7 -> 0
E172: ='IB - Belysningssystemer'!E100 -> 0 | G172: ='IB - Belysningssystemer'!G100 -> 0 | I172: ='IB - Belysningssystemer'!I100 -> 0 | K172: ='IB - Belysningssystemer'!K100 -> 0 | M172: ='IB - Belysningssystemer'!M100 -> 0 | O172: ='IB - Belysningssystemer'!O100 -> 0 | Q172: ='IB - Belysningssystemer'!Q100 -> 0 | S172: ='IB - Belysningssystemer'!S100 -> 0
E173: ='IB - Belysningssystemer'!E101 -> 0 | G173: ='IB - Belysningssystemer'!G101 -> 0 | I173: ='IB - Belysningssystemer'!I101 -> 0 | K173: ='IB - Belysningssystemer'!K101 -> 0 | M173: ='IB - Belysningssystemer'!M101 -> 0 | O173: ='IB - Belysningssystemer'!O101 -> 0 | Q173: ='IB - Belysningssystemer'!Q101 -> 0 | S173: ='IB - Belysningssystemer'!S101 -> 0
E174: ='IB - Belysningssystemer'!E102 -> 0 | G174: ='IB - Belysningssystemer'!G102 -> 0 | I174: ='IB - Belysningssystemer'!I102 -> 0 | K174: ='IB - Belysningssystemer'!K102 -> 0 | M174: ='IB - Belysningssystemer'!M102 -> 0 | O174: ='IB - Belysningssystemer'!O102 -> 0 | Q174: ='IB - Belysningssystemer'!Q102 -> 0 | S174: ='IB - Belysningssystemer'!S102 -> 0
E175: ='IB - Belysningssystemer'!E103 -> 0 | G175: ='IB - Belysningssystemer'!G103 -> 0 | I175: ='IB - Belysningssystemer'!I103 -> 0 | K175: ='IB - Belysningssystemer'!K103 -> 0 | M175: ='IB - Belysningssystemer'!M103 -> 0 | O175: ='IB - Belysningssystemer'!O103 -> 0 | Q175: ='IB - Belysningssystemer'!Q103 -> 0 | S175: ='IB - Belysningssystemer'!S103 -> 0
E176: ='IB - Belysningssystemer'!E104 -> 0 | G176: ='IB - Belysningssystemer'!G104 -> 0 | I176: ='IB - Belysningssystemer'!I104 -> 0 | K176: ='IB - Belysningssystemer'!K104 -> 0 | M176: ='IB - Belysningssystemer'!M104 -> 0 | O176: ='IB - Belysningssystemer'!O104 -> 0 | Q176: ='IB - Belysningssystemer'!Q104 -> 0 | S176: ='IB - Belysningssystemer'!S104 -> 0
E177: ='IB - Belysningssystemer'!E105 -> 0 | G177: ='IB - Belysningssystemer'!G105 -> 0 | I177: ='IB - Belysningssystemer'!I105 -> 0 | K177: ='IB - Belysningssystemer'!K105 -> 0 | M177: ='IB - Belysningssystemer'!M105 -> 0 | O177: ='IB - Belysningssystemer'!O105 -> 0 | Q177: ='IB - Belysningssystemer'!Q105 -> 0 | S177: ='IB - Belysningssystemer'!S105 -> 0
E178: ='IB - Belysningssystemer'!E106 -> 0 | G178: ='IB - Belysningssystemer'!G106 -> 0 | I178: ='IB - Belysningssystemer'!I106 -> 0 | K178: ='IB - Belysningssystemer'!K106 -> 0 | M178: ='IB - Belysningssystemer'!M106 -> 0 | O178: ='IB - Belysningssystemer'!O106 -> 0 | Q178: ='IB - Belysningssystemer'!Q106 -> 0 | S178: ='IB - Belysningssystemer'!S106 -> 0
E179: ='IB - Belysningssystemer'!E107 -> 0 | G179: ='IB - Belysningssystemer'!G107 -> 0 | I179: ='IB - Belysningssystemer'!I107 -> 0 | K179: ='IB - Belysningssystemer'!K107 -> 0 | M179: ='IB - Belysningssystemer'!M107 -> 0 | O179: ='IB - Belysningssystemer'!O107 -> 0 | Q179: ='IB - Belysningssystemer'!Q107 -> 0 | S179: ='IB - Belysningssystemer'!S107 -> 0
E180: ='IB - Belysningssystemer'!E108 -> 0 | G180: ='IB - Belysningssystemer'!G108 -> 0 | I180: ='IB - Belysningssystemer'!I108 -> 0 | K180: ='IB - Belysningssystemer'!K108 -> 0 | M180: ='IB - Belysningssystemer'!M108 -> 0 | O180: ='IB - Belysningssystemer'!O108 -> 0 | Q180: ='IB - Belysningssystemer'!Q108 -> 0 | S180: ='IB - Belysningssystemer'!S108 -> 0
E181: ='IB - Belysningssystemer'!E109 -> 0 | G181: ='IB - Belysningssystemer'!G109 -> 0 | I181: ='IB - Belysningssystemer'!I109 -> 0 | K181: ='IB - Belysningssystemer'!K109 -> 0 | M181: ='IB - Belysningssystemer'!M109 -> 0 | O181: ='IB - Belysningssystemer'!O109 -> 0 | Q181: ='IB - Belysningssystemer'!Q109 -> 0 | S181: ='IB - Belysningssystemer'!S109 -> 0
E182: ='IB - Belysningssystemer'!E110 -> 0 | G182: ='IB - Belysningssystemer'!G110 -> 0 | I182: ='IB - Belysningssystemer'!I110 -> 0 | K182: ='IB - Belysningssystemer'!K110 -> 0 | M182: ='IB - Belysningssystemer'!M110 -> 0 | O182: ='IB - Belysningssystemer'!O110 -> 0 | Q182: ='IB - Belysningssystemer'!Q110 -> 0 | S182: ='IB - Belysningssystemer'!S110 -> 0
E183: ='IB - Belysningssystemer'!E111 -> 0 | G183: ='IB - Belysningssystemer'!G111 -> 0 | I183: ='IB - Belysningssystemer'!I111 -> 0 | K183: ='IB - Belysningssystemer'!K111 -> 0 | M183: ='IB - Belysningssystemer'!M111 -> 0 | O183: ='IB - Belysningssystemer'!O111 -> 0 | Q183: ='IB - Belysningssystemer'!Q111 -> 0 | S183: ='IB - Belysningssystemer'!S111 -> 0
E184: ='IB - Belysningssystemer'!E112 -> 0 | G184: ='IB - Belysningssystemer'!G112 -> 0 | I184: ='IB - Belysningssystemer'!I112 -> 0 | K184: ='IB - Belysningssystemer'!K112 -> 0 | M184: ='IB - Belysningssystemer'!M112 -> 0 | O184: ='IB - Belysningssystemer'!O112 -> 0 | Q184: ='IB - Belysningssystemer'!Q112 -> 0 | S184: ='IB - Belysningssystemer'!S112 -> 0
E185: ='IB - Belysningssystemer'!E113 -> 0 | G185: ='IB - Belysningssystemer'!G113 -> 0 | I185: ='IB - Belysningssystemer'!I113 -> 0 | K185: ='IB - Belysningssystemer'!K113 -> 0 | M185: ='IB - Belysningssystemer'!M113 -> 0 | O185: ='IB - Belysningssystemer'!O113 -> 0 | Q185: ='IB - Belysningssystemer'!Q113 -> 0 | S185: ='IB - Belysningssystemer'!S113 -> 0
E186: ='IB - Belysningssystemer'!E114 -> 0 | G186: ='IB - Belysningssystemer'!G114 -> 0 | I186: ='IB - Belysningssystemer'!I114 -> 0 | K186: ='IB - Belysningssystemer'!K114 -> 0 | M186: ='IB - Belysningssystemer'!M114 -> 0 | O186: ='IB - Belysningssystemer'!O114 -> 0 | Q186: ='IB - Belysningssystemer'!Q114 -> 0 | S186: ='IB - Belysningssystemer'!S114 -> 0
E187: ='IB - Belysningssystemer'!E115 -> 0 | G187: ='IB - Belysningssystemer'!G115 -> 0 | I187: ='IB - Belysningssystemer'!I115 -> 0 | K187: ='IB - Belysningssystemer'!K115 -> 0 | M187: ='IB - Belysningssystemer'!M115 -> 0 | O187: ='IB - Belysningssystemer'!O115 -> 0 | Q187: ='IB - Belysningssystemer'!Q115 -> 0 | S187: ='IB - Belysningssystemer'!S115 -> 0
E188: ='IB - Belysningssystemer'!E116 -> 0 | G188: ='IB - Belysningssystemer'!G116 -> 0 | I188: ='IB - Belysningssystemer'!I116 -> 0 | K188: ='IB - Belysningssystemer'!K116 -> 0 | M188: ='IB - Belysningssystemer'!M116 -> 0 | O188: ='IB - Belysningssystemer'!O116 -> 0 | Q188: ='IB - Belysningssystemer'!Q116 -> 0 | S188: ='IB - Belysningssystemer'!S116 -> 0

Sheet IB - Belysningssystemer (hidden)
A1: Driftsomkostninger | C1: Elpris | E1: =Belysningssystemer!E7 -> PRODUKT 1 | G1: =Belysningssystemer!G7 -> PRODUKT 2 | I1: =Belysningssystemer!I7 -> PRODUKT 3 | K1: =Belysningssystemer!K7 -> PRODUKT 4 | M1: =Belysningssystemer!M7 -> PRODUKT 5 | O1: =Belysningssystemer!O7 -> PRODUKT 6 | Q1: =Belysningssystemer!Q7 -> PRODUKT 7 | S1: =Belysningssystemer!S7 -> PRODUKT 8 | X1: X-akse til akkumullerede omkostninger )år)
B2: 1 | C2: =IF(Belysningssystemer!E71="nej",Belysningssystemer!E74,Belysningssystemer!E72) -> 1.851 | E2: =IFERROR((((Belysningssystemer!E$27+Belysningssystemer!E$62)*Belysningssystemer!E$14*Belysningssystemer!E$13)*IF((Belysningssystemer!E$56*Belysningssystemer!E$57*Belysningssystemer!E$69/Belysningssystemer!E$21)<1,0,(Belysningssystemer!E$56*Belysningssystemer!E$57*Belysningssystemer!E$69/Belysningssystemer!E$21-1)/Belysningssystemer!E$69)+((Belysningssystemer!E$23+Belysningssystemer!E$63)*Belysningssystemer!E$13)*IF((Belysningssystemer!E$56*Belysningssystemer!E$57*Belysningssystemer!E$69/Belysningssystemer!E$22) <1,0,(Belysningssystemer!E$56*Belysningssystemer!E$57*Belysningssystemer!E$69/Belysningssystemer!E$22-1)/Belysningssystemer!E$69)+F120*Belysningssystemer!E$13*$C2+IF($B2<=Belysningssystemer!E$59,Belysningssystemer!E$26,0)+IF($B2<=Belysningssystemer!E$60,Belysningssystemer!E$36*Belysningssystemer!E$13*Belysningssystemer!E$14,0))*((1+Belysningssystemer!E$77)^-$B2),0) -> 0 | G2: =IFERROR((((Belysningssystemer!G$27+Belysningssystemer!G$62)*Belysningssystemer!G$14*Belysningssystemer!G$13)*IF((Belysningssystemer!G$56*Belysningssystemer!G$57*Belysningssystemer!G$69/Belysningssystemer!G$21)<1,0,(Belysningssystemer!G$56*Belysningssystemer!G$57*Belysningssystemer!G$69/Belysningssystemer!G$21-1)/Belysningssystemer!G$69)+((Belysningssystemer!G$23+Belysningssystemer!G$63)*Belysningssystemer!G$13)*IF((Belysningssystemer!G$56*Belysningssystemer!G$57*Belysningssystemer!G$69/Belysningssystemer!G$22) <1,0,(Belysningssystemer!G$56*Belysningssystemer!G$57*Belysningssystemer!G$69/Belysningssystemer!G$22-1)/Belysningssystemer!G$69)+H120*Belysningssystemer!G$13*$C2+IF($B2<=Belysningssystemer!G$59,Belysningssystemer!G$26,0)+IF($B2<=Belysningssystemer!G$60,Belysningssystemer!G$36*Belysningssystemer!G$13*Belysningssystemer!G$14,0))*((1+Belysningssystemer!G$77)^-$B2),0) -> 0 | I2: =IFERROR((((Belysningssystemer!I$27+Belysningssystemer!I$62)*Belysningssystemer!I$14*Belysningssystemer!I$13)*IF((Belysningssystemer!I$56*Belysningssystemer!I$57*Belysningssystemer!I$69/Belysningssystemer!I$21)<1,0,(Belysningssystemer!I$56*Belysningssystemer!I$57*Belysningssystemer!I$69/Belysningssystemer!I$21-1)/Belysningssystemer!I$69)+((Belysningssystemer!I$23+Belysningssystemer!I$63)*Belysningssystemer!I$13)*IF((Belysningssystemer!I$56*Belysningssystemer!I$57*Belysningssystemer!I$69/Belysningssystemer!I$22) <1,0,(Belysningssystemer!I$56*Belysningssystemer!I$57*Belysningssystemer!I$69/Belysningssystemer!I$22-1)/Belysningssystemer!I$69)+J120*Belysningssystemer!I$13*$C2+IF($B2<=Belysningssystemer!I$59,Belysningssystemer!I$26,0)+IF($B2<=Belysningssystemer!I$60,Belysningssystemer!I$36*Belysningssystemer!I$13*Belysningssystemer!I$14,0))*((1+Belysningssystemer!I$77)^-$B2),0) -> 0 | K2: =IFERROR((((Belysningssystemer!K$27+Belysningssystemer!K$62)*Belysningssystemer!K$14*Belysningssystemer!K$13)*IF((Belysningssystemer!K$56*Belysningssystemer!K$57*Belysningssystemer!K$69/Belysningssystemer!K$21)<1,0,(Belysningssystemer!K$56*Belysningssystemer!K$57*Belysningssystemer!K$69/Belysningssystemer!K$21-1)/Belysningssystemer!K$69)+((Belysningssystemer!K$23+Belysningssystemer!K$63)*Belysningssystemer!K$13)*IF((Belysningssystemer!K$56*Belysningssystemer!K$57*Belysningssystemer!K$69/Belysningssystemer!K$22) <1,0,(Belysningssystemer!K$56*Belysningssystemer!K$57*Belysningssystemer!K$69/Belysningssystemer!K$22-1)/Belysningssystemer!K$69)+L120*Belysningssystemer!K$13*$C2+IF($B3<=Belysningssystemer!K$59,Belysningssystemer!K$26,0)+IF($B3<=Belysningssystemer!K$60,Belysningssystemer!K$36*Belysningssystemer!K$13*Belysningssystemer!K$14,0))*((1+Belysningssystemer!K$77)^-$B2),0) -> 0 | M2: =IFERROR((((Belysningssystemer!M$27+Belysningssystemer!M$62)*Belysningssystemer!M$14*Belysningssystemer!M$13)*IF((Belysningssystemer!M$56*Belysningssystemer!M$57*Belysningssystemer!M$69/Belysningssystemer!M$21)<1,0,(Belysningssystemer!M$56*Belysningssystemer!M$57*Belysningssystemer!M$69/Belysningssystemer!M$21-1)/Belysningssystemer!M$69)+((Belysningssystemer!M$23+Belysningssystemer!M$63)*Belysningssystemer!M$13)*IF((Belysningssystemer!M$56*Belysningssystemer!M$57*Belysningssystemer!M$69/Belysningssystemer!M$22) <1,0,(Belysningssystemer!M$56*Belysningssystemer!M$57*Belysningssystemer!M$69/Belysningssystemer!M$22-1)/Belysningssystemer!M$69)+N120*Belysningssystemer!M$13*$C2+IF($B3<=Belysningssystemer!M$59,Belysningssystemer!M$26,0)+IF($B3<=Belysningssystemer!M$60,Belysningssystemer!M$36*Belysningssystemer!M$13*Belysningssystemer!M$14,0))*((1+Belysningssystemer!M$77)^-$B2),0) -> 0 | O2: =IFERROR((((Belysningssystemer!O$27+Belysningssystemer!O$62)*Belysningssystemer!O$14*Belysningssystemer!O$13)*IF((Belysningssystemer!O$56*Belysningssystemer!O$57*Belysningssystemer!O$69/Belysningssystemer!O$21)<1,0,(Belysningssystemer!O$56*Belysningssystemer!O$57*Belysningssystemer!O$69/Belysningssystemer!O$21-1)/Belysningssystemer!O$69)+((Belysningssystemer!O$23+Belysningssystemer!O$63)*Belysningssystemer!O$13)*IF((Belysningssystemer!O$56*Belysningssystemer!O$57*Belysningssystemer!O$69/Belysningssystemer!O$22) <1,0,(Belysningssystemer!O$56*Belysningssystemer!O$57*Belysningssystemer!O$69/Belysningssystemer!O$22-1)/Belysningssystemer!O$69)+P120*Belysningssystemer!O$13*$C2+IF($B3<=Belysningssystemer!O$59,Belysningssystemer!O$26,0)+IF($B3<=Belysningssystemer!O$60,Belysningssystemer!O$36*Belysningssystemer!O$13*Belysningssystemer!O$14,0))*((1+Belysningssystemer!O$77)^-$B2),0) -> 0 | Q2: =IFERROR((((Belysningssystemer!Q$27+Belysningssystemer!Q$62)*Belysningssystemer!Q$14*Belysningssystemer!Q$13)*IF((Belysningssystemer!Q$56*Belysningssystemer!Q$57*Belysningssystemer!Q$69/Belysningssystemer!Q$21)<1,0,(Belysningssystemer!Q$56*Belysningssystemer!Q$57*Belysningssystemer!Q$69/Belysningssystemer!Q$21-1)/Belysningssystemer!Q$69)+((Belysningssystemer!Q$23+Belysningssystemer!Q$63)*Belysningssystemer!Q$13)*IF((Belysningssystemer!Q$56*Belysningssystemer!Q$57*Belysningssystemer!Q$69/Belysningssystemer!Q$22) <1,0,(Belysningssystemer!Q$56*Belysningssystemer!Q$57*Belysningssystemer!Q$69/Belysningssystemer!Q$22-1)/Belysningssystemer!Q$69)+R120*Belysningssystemer!Q$13*$C2+IF($B3<=Belysningssystemer!Q$59,Belysningssystemer!Q$26,0)+IF($B3<=Belysningssystemer!Q$60,Belysningssystemer!Q$36*Belysningssystemer!Q$13*Belysningssystemer!Q$14,0))*((1+Belysningssystemer!Q$77)^-$B2),0) -> 0 | S2: =IFERROR((((Belysningssystemer!S$27+Belysningssystemer!S$62)*Belysningssystemer!S$14*Belysningssystemer!S$13)*IF((Belysningssystemer!S$56*Belysningssystemer!S$57*Belysningssystemer!S$69/Belysningssystemer!S$21)<1,0,(Belysningssystemer!S$56*Belysningssystemer!S$57*Belysningssystemer!S$69/Belysningssystemer!S$21-1)/Belysningssystemer!S$69)+((Belysningssystemer!S$23+Belysningssystemer!S$63)*Belysningssystemer!S$13)*IF((Belysningssystemer!S$56*Belysningssystemer!S$57*Belysningssystemer!S$69/Belysningssystemer!S$22) <1,0,(Belysningssystemer!S$56*Belysningssystemer!S$57*Belysningssystemer!S$69/Belysningssystemer!S$22-1)/Belysningssystemer!S$69)+T120*Belysningssystemer!S$13*$C2+IF($B3<=Belysningssystemer!S$59,Belysningssystemer!S$26,0)+IF($B3<=Belysningssystemer!S$60,Belysningssystemer!S$36*Belysningssystemer!S$13*Belysningssystemer!S$14,0))*((1+Belysningssystemer!S$77)^-$B2),0) -> 0 | V2: Ja | X2: 1
B3: =B2+1 -> 2 | C3: =((C2-Fremskrivninger!E9)*(1+IF(Belysningssystemer!$E$71="ja",Belysningssystemer!$E$73,Belysningssystemer!$E$75))+Fremskrivninger!E9) -> 1.8593834 | E3: =IFERROR((((Belysningssystemer!E$27+Belysningssystemer!E$62)*Belysningssystemer!E$14*Belysningssystemer!E$13)*IF((Belysningssystemer!E$56*Belysningssystemer!E$57*Belysningssystemer!E$69/Belysningssystemer!E$21)<1,0,(Belysningssystemer!E$56*Belysningssystemer!E$57*Belysningssystemer!E$69/Belysningssystemer!E$21-1)/Belysningssystemer!E$69)+((Belysningssystemer!E$23+Belysningssystemer!E$63)*Belysningssystemer!E$13)*IF((Belysningssystemer!E$56*Belysningssystemer!E$57*Belysningssystemer!E$69/Belysningssystemer!E$22) <1,0,(Belysningssystemer!E$56*Belysningssystemer!E$57*Belysningssystemer!E$69/Belysningssystemer!E$22-1)/Belysningssystemer!E$69)+F121*Belysningssystemer!E$13*$C3+IF($B3<=Belysningssystemer!E$59,Belysningssystemer!E$26,0)+IF($B3<=Belysningssystemer!E$60,Belysningssystemer!E$36*Belysningssystemer!E$13*Belysningssystemer!E$14,0))*((1+Belysningssystemer!E$77)^-$B3),0) -> 0 | G3: =IFERROR((((Belysningssystemer!G$27+Belysningssystemer!G$62)*Belysningssystemer!G$14*Belysningssystemer!G$13)*IF((Belysningssystemer!G$56*Belysningssystemer!G$57*Belysningssystemer!G$69/Belysningssystemer!G$21)<1,0,(Belysningssystemer!G$56*Belysningssystemer!G$57*Belysningssystemer!G$69/Belysningssystemer!G$21-1)/Belysningssystemer!G$69)+((Belysningssystemer!G$23+Belysningssystemer!G$63)*Belysningssystemer!G$13)*IF((Belysningssystemer!G$56*Belysningssystemer!G$57*Belysningssystemer!G$69/Belysningssystemer!G$22) <1,0,(Belysningssystemer!G$56*Belysningssystemer!G$57*Belysningssystemer!G$69/Belysningssystemer!G$22-1)/Belysningssystemer!G$69)+H121*Belysningssystemer!G$13*$C3+IF($B3<=Belysningssystemer!G$59,Belysningssystemer!G$26,0)+IF($B3<=Belysningssystemer!G$60,Belysningssystemer!G$36*Belysningssystemer!G$13*Belysningssystemer!G$14,0))*((1+Belysningssystemer!G$77)^-$B3),0) -> 0 | I3: =IFERROR((((Belysningssystemer!I$27+Belysningssystemer!I$62)*Belysningssystemer!I$14*Belysningssystemer!I$13)*IF((Belysningssystemer!I$56*Belysningssystemer!I$57*Belysningssystemer!I$69/Belysningssystemer!I$21)<1,0,(Belysningssystemer!I$56*Belysningssystemer!I$57*Belysningssystemer!I$69/Belysningssystemer!I$21-1)/Belysningssystemer!I$69)+((Belysningssystemer!I$23+Belysningssystemer!I$63)*Belysningssystemer!I$13)*IF((Belysningssystemer!I$56*Belysningssystemer!I$57*Belysningssystemer!I$69/Belysningssystemer!I$22) <1,0,(Belysningssystemer!I$56*Belysningssystemer!I$57*Belysningssystemer!I$69/Belysningssystemer!I$22-1)/Belysningssystemer!I$69)+J121*Belysningssystemer!I$13*$C3+IF($B3<=Belysningssystemer!I$59,Belysningssystemer!I$26,0)+IF($B3<=Belysningssystemer!I$60,Belysningssystemer!I$36*Belysningssystemer!I$13*Belysningssystemer!I$14,0))*((1+Belysningssystemer!I$77)^-$B3),0) -> 0 | K3: =IFERROR((((Belysningssystemer!K$27+Belysningssystemer!K$62)*Belysningssystemer!K$14*Belysningssystemer!K$13)*IF((Belysningssystemer!K$56*Belysningssystemer!K$57*Belysningssystemer!K$69/Belysningssystemer!K$21)<1,0,(Belysningssystemer!K$56*Belysningssystemer!K$57*Belysningssystemer!K$69/Belysningssystemer!K$21-1)/Belysningssystemer!K$69)+((Belysningssystemer!K$23+Belysningssystemer!K$63)*Belysningssystemer!K$13)*IF((Belysningssystemer!K$56*Belysningssystemer!K$57*Belysningssystemer!K$69/Belysningssystemer!K$22) <1,0,(Belysningssystemer!K$56*Belysningssystemer!K$57*Belysningssystemer!K$69/Belysningssystemer!K$22-1)/Belysningssystemer!K$69)+L121*Belysningssystemer!K$13*$C3+IF($B4<=Belysningssystemer!K$59,Belysningssystemer!K$26,0)+IF($B4<=Belysningssystemer!K$60,Belysningssystemer!K$36*Belysningssystemer!K$13*Belysningssystemer!K$14,0))*((1+Belysningssystemer!K$77)^-$B3),0) -> 0 | M3: =IFERROR((((Belysningssystemer!M$27+Belysningssystemer!M$62)*Belysningssystemer!M$14*Belysningssystemer!M$13)*IF((Belysningssystemer!M$56*Belysningssystemer!M$57*Belysningssystemer!M$69/Belysningssystemer!M$21)<1,0,(Belysningssystemer!M$56*Belysningssystemer!M$57*Belysningssystemer!M$69/Belysningssystemer!M$21-1)/Belysningssystemer!M$69)+((Belysningssystemer!M$23+Belysningssystemer!M$63)*Belysningssystemer!M$13)*IF((Belysningssystemer!M$56*Belysningssystemer!M$57*Belysningssystemer!M$69/Belysningssystemer!M$22) <1,0,(Belysningssystemer!M$56*Belysningssystemer!M$57*Belysningssystemer!M$69/Belysningssystemer!M$22-1)/Belysningssystemer!M$69)+N121*Belysningssystemer!M$13*$C3+IF($B4<=Belysningssystemer!M$59,Belysningssystemer!M$26,0)+IF($B4<=Belysningssystemer!M$60,Belysningssystemer!M$36*Belysningssystemer!M$13*Belysningssystemer!M$14,0))*((1+Belysningssystemer!M$77)^-$B3),0) -> 0 | O3: =IFERROR((((Belysningssystemer!O$27+Belysningssystemer!O$62)*Belysningssystemer!O$14*Belysningssystemer!O$13)*IF((Belysningssystemer!O$56*Belysningssystemer!O$57*Belysningssystemer!O$69/Belysningssystemer!O$21)<1,0,(Belysningssystemer!O$56*Belysningssystemer!O$57*Belysningssystemer!O$69/Belysningssystemer!O$21-1)/Belysningssystemer!O$69)+((Belysningssystemer!O$23+Belysningssystemer!O$63)*Belysningssystemer!O$13)*IF((Belysningssystemer!O$56*Belysningssystemer!O$57*Belysningssystemer!O$69/Belysningssystemer!O$22) <1,0,(Belysningssystemer!O$56*Belysningssystemer!O$57*Belysningssystemer!O$69/Belysningssystemer!O$22-1)/Belysningssystemer!O$69)+P121*Belysningssystemer!O$13*$C3+IF($B4<=Belysningssystemer!O$59,Belysningssystemer!O$26,0)+IF($B4<=Belysningssystemer!O$60,Belysningssystemer!O$36*Belysningssystemer!O$13*Belysningssystemer!O$14,0))*((1+Belysningssystemer!O$77)^-$B3),0) -> 0 | Q3: =IFERROR((((Belysningssystemer!Q$27+Belysningssystemer!Q$62)*Belysningssystemer!Q$14*Belysningssystemer!Q$13)*IF((Belysningssystemer!Q$56*Belysningssystemer!Q$57*Belysningssystemer!Q$69/Belysningssystemer!Q$21)<1,0,(Belysningssystemer!Q$56*Belysningssystemer!Q$57*Belysningssystemer!Q$69/Belysningssystemer!Q$21-1)/Belysningssystemer!Q$69)+((Belysningssystemer!Q$23+Belysningssystemer!Q$63)*Belysningssystemer!Q$13)*IF((Belysningssystemer!Q$56*Belysningssystemer!Q$57*Belysningssystemer!Q$69/Belysningssystemer!Q$22) <1,0,(Belysningssystemer!Q$56*Belysningssystemer!Q$57*Belysningssystemer!Q$69/Belysningssystemer!Q$22-1)/Belysningssystemer!Q$69)+R121*Belysningssystemer!Q$13*$C3+IF($B4<=Belysningssystemer!Q$59,Belysningssystemer!Q$26,0)+IF($B4<=Belysningssystemer!Q$60,Belysningssystemer!Q$36*Belysningssystemer!Q$13*Belysningssystemer!Q$14,0))*((1+Belysningssystemer!Q$77)^-$B3),0) -> 0 | S3: =IFERROR((((Belysningssystemer!S$27+Belysningssystemer!S$62)*Belysningssystemer!S$14*Belysningssystemer!S$13)*IF((Belysningssystemer!S$56*Belysningssystemer!S$57*Belysningssystemer!S$69/Belysningssystemer!S$21)<1,0,(Belysningssystemer!S$56*Belysningssystemer!S$57*Belysningssystemer!S$69/Belysningssystemer!S$21-1)/Belysningssystemer!S$69)+((Belysningssystemer!S$23+Belysningssystemer!S$63)*Belysningssystemer!S$13)*IF((Belysningssystemer!S$56*Belysningssystemer!S$57*Belysningssystemer!S$69/Belysningssystemer!S$22) <1,0,(Belysningssystemer!S$56*Belysningssystemer!S$57*Belysningssystemer!S$69/Belysningssystemer!S$22-1)/Belysningssystemer!S$69)+T121*Belysningssystemer!S$13*$C3+IF($B4<=Belysningssystemer!S$59,Belysningssystemer!S$26,0)+IF($B4<=Belysningssystemer!S$60,Belysningssystemer!S$36*Belysningssystemer!S$13*Belysningssystemer!S$14,0))*((1+Belysningssystemer!S$77)^-$B3),0) -> 0 | V3: Nej | X3: =IF(Belysningssystemer!$E$69>=B3,B3,"") -> 2
B4: 3 | C4: =((C3-Fremskrivninger!E10)*(1+IF(Belysningssystemer!$E$71="ja",Belysningssystemer!$E$73,Belysningssystemer!$E$75))+Fremskrivninger!E10) -> 1.868942203 | E4: =IFERROR((((Belysningssystemer!E$27+Belysningssystemer!E$62)*Belysningssystemer!E$14*Belysningssystemer!E$13)*IF((Belysningssystemer!E$56*Belysningssystemer!E$57*Belysningssystemer!E$69/Belysningssystemer!E$21)<1,0,(Belysningssystemer!E$56*Belysningssystemer!E$57*Belysningssystemer!E$69/Belysningssystemer!E$21-1)/Belysningssystemer!E$69)+((Belysningssystemer!E$23+Belysningssystemer!E$63)*Belysningssystemer!E$13)*IF((Belysningssystemer!E$56*Belysningssystemer!E$57*Belysningssystemer!E$69/Belysningssystemer!E$22) <1,0,(Belysningssystemer!E$56*Belysningssystemer!E$57*Belysningssystemer!E$69/Belysningssystemer!E$22-1)/Belysningssystemer!E$69)+F122*Belysningssystemer!E$13*$C4+IF($B4<=Belysningssystemer!E$59,Belysningssystemer!E$26,0)+IF($B4<=Belysningssystemer!E$60,Belysningssystemer!E$36*Belysningssystemer!E$13*Belysningssystemer!E$14,0))*((1+Belysningssystemer!E$77)^-$B4),0) -> 0 | G4: =IFERROR((((Belysningssystemer!G$27+Belysningssystemer!G$62)*Belysningssystemer!G$14*Belysningssystemer!G$13)*IF((Belysningssystemer!G$56*Belysningssystemer!G$57*Belysningssystemer!G$69/Belysningssystemer!G$21)<1,0,(Belysningssystemer!G$56*Belysningssystemer!G$57*Belysningssystemer!G$69/Belysningssystemer!G$21-1)/Belysningssystemer!G$69)+((Belysningssystemer!G$23+Belysningssystemer!G$63)*Belysningssystemer!G$13)*IF((Belysningssystemer!G$56*Belysningssystemer!G$57*Belysningssystemer!G$69/Belysningssystemer!G$22) <1,0,(Belysningssystemer!G$56*Belysningssystemer!G$57*Belysningssystemer!G$69/Belysningssystemer!G$22-1)/Belysningssystemer!G$69)+H122*Belysningssystemer!G$13*$C4+IF($B4<=Belysningssystemer!G$59,Belysningssystemer!G$26,0)+IF($B4<=Belysningssystemer!G$60,Belysningssystemer!G$36*Belysningssystemer!G$13*Belysningssystemer!G$14,0))*((1+Belysningssystemer!G$77)^-$B4),0) -> 0 | I4: =IFERROR((((Belysningssystemer!I$27+Belysningssystemer!I$62)*Belysningssystemer!I$14*Belysningssystemer!I$13)*IF((Belysningssystemer!I$56*Belysningssystemer!I$57*Belysningssystemer!I$69/Belysningssystemer!I$21)<1,0,(Belysningssystemer!I$56*Belysningssystemer!I$57*Belysningssystemer!I$69/Belysningssystemer!I$21-1)/Belysningssystemer!I$69)+((Belysningssystemer!I$23+Belysningssystemer!I$63)*Belysningssystemer!I$13)*IF((Belysningssystemer!I$56*Belysningssystemer!I$57*Belysningssystemer!I$69/Belysningssystemer!I$22) <1,0,(Belysningssystemer!I$56*Belysningssystemer!I$57*Belysningssystemer!I$69/Belysningssystemer!I$22-1)/Belysningssystemer!I$69)+J122*Belysningssystemer!I$13*$C4+IF($B4<=Belysningssystemer!I$59,Belysningssystemer!I$26,0)+IF($B4<=Belysningssystemer!I$60,Belysningssystemer!I$36*Belysningssystemer!I$13*Belysningssystemer!I$14,0))*((1+Belysningssystemer!I$77)^-$B4),0) -> 0 | K4: =IFERROR((((Belysningssystemer!K$27+Belysningssystemer!K$62)*Belysningssystemer!K$14*Belysningssystemer!K$13)*IF((Belysningssystemer!K$56*Belysningssystemer!K$57*Belysningssystemer!K$69/Belysningssystemer!K$21)<1,0,(Belysningssystemer!K$56*Belysningssystemer!K$57*Belysningssystemer!K$69/Belysningssystemer!K$21-1)/Belysningssystemer!K$69)+((Belysningssystemer!K$23+Belysningssystemer!K$63)*Belysningssystemer!K$13)*IF((Belysningssystemer!K$56*Belysningssystemer!K$57*Belysningssystemer!K$69/Belysningssystemer!K$22) <1,0,(Belysningssystemer!K$56*Belysningssystemer!K$57*Belysningssystemer!K$69/Belysningssystemer!K$22-1)/Belysningssystemer!K$69)+L122*Belysningssystemer!K$13*$C4+IF($B5<=Belysningssystemer!K$59,Belysningssystemer!K$26,0)+IF($B5<=Belysningssystemer!K$60,Belysningssystemer!K$36*Belysningssystemer!K$13*Belysningssystemer!K$14,0))*((1+Belysningssystemer!K$77)^-$B4),0) -> 0 | M4: =IFERROR((((Belysningssystemer!M$27+Belysningssystemer!M$62)*Belysningssystemer!M$14*Belysningssystemer!M$13)*IF((Belysningssystemer!M$56*Belysningssystemer!M$57*Belysningssystemer!M$69/Belysningssystemer!M$21)<1,0,(Belysningssystemer!M$56*Belysningssystemer!M$57*Belysningssystemer!M$69/Belysningssystemer!M$21-1)/Belysningssystemer!M$69)+((Belysningssystemer!M$23+Belysningssystemer!M$63)*Belysningssystemer!M$13)*IF((Belysningssystemer!M$56*Belysningssystemer!M$57*Belysningssystemer!M$69/Belysningssystemer!M$22) <1,0,(Belysningssystemer!M$56*Belysningssystemer!M$57*Belysningssystemer!M$69/Belysningssystemer!M$22-1)/Belysningssystemer!M$69)+N122*Belysningssystemer!M$13*$C4+IF($B5<=Belysningssystemer!M$59,Belysningssystemer!M$26,0)+IF($B5<=Belysningssystemer!M$60,Belysningssystemer!M$36*Belysningssystemer!M$13*Belysningssystemer!M$14,0))*((1+Belysningssystemer!M$77)^-$B4),0) -> 0 | O4: =IFERROR((((Belysningssystemer!O$27+Belysningssystemer!O$62)*Belysningssystemer!O$14*Belysningssystemer!O$13)*IF((Belysningssystemer!O$56*Belysningssystemer!O$57*Belysningssystemer!O$69/Belysningssystemer!O$21)<1,0,(Belysningssystemer!O$56*Belysningssystemer!O$57*Belysningssystemer!O$69/Belysningssystemer!O$21-1)/Belysningssystemer!O$69)+((Belysningssystemer!O$23+Belysningssystemer!O$63)*Belysningssystemer!O$13)*IF((Belysningssystemer!O$56*Belysningssystemer!O$57*Belysningssystemer!O$69/Belysningssystemer!O$22) <1,0,(Belysningssystemer!O$56*Belysningssystemer!O$57*Belysningssystemer!O$69/Belysningssystemer!O$22-1)/Belysningssystemer!O$69)+P122*Belysningssystemer!O$13*$C4+IF($B5<=Belysningssystemer!O$59,Belysningssystemer!O$26,0)+IF($B5<=Belysningssystemer!O$60,Belysningssystemer!O$36*Belysningssystemer!O$13*Belysningssystemer!O$14,0))*((1+Belysningssystemer!O$77)^-$B4),0) -> 0 | Q4: =IFERROR((((Belysningssystemer!Q$27+Belysningssystemer!Q$62)*Belysningssystemer!Q$14*Belysningssystemer!Q$13)*IF((Belysningssystemer!Q$56*Belysningssystemer!Q$57*Belysningssystemer!Q$69/Belysningssystemer!Q$21)<1,0,(Belysningssystemer!Q$56*Belysningssystemer!Q$57*Belysningssystemer!Q$69/Belysningssystemer!Q$21-1)/Belysningssystemer!Q$69)+((Belysningssystemer!Q$23+Belysningssystemer!Q$63)*Belysningssystemer!Q$13)*IF((Belysningssystemer!Q$56*Belysningssystemer!Q$57*Belysningssystemer!Q$69/Belysningssystemer!Q$22) <1,0,(Belysningssystemer!Q$56*Belysningssystemer!Q$57*Belysningssystemer!Q$69/Belysningssystemer!Q$22-1)/Belysningssystemer!Q$69)+R122*Belysningssystemer!Q$13*$C4+IF($B5<=Belysningssystemer!Q$59,Belysningssystemer!Q$26,0)+IF($B5<=Belysningssystemer!Q$60,Belysningssystemer!Q$36*Belysningssystemer!Q$13*Belysningssystemer!Q$14,0))*((1+Belysningssystemer!Q$77)^-$B4),0) -> 0 | S4: =IFERROR((((Belysningssystemer!S$27+Belysningssystemer!S$62)*Belysningssystemer!S$14*Belysningssystemer!S$13)*IF((Belysningssystemer!S$56*Belysningssystemer!S$57*Belysningssystemer!S$69/Belysningssystemer!S$21)<1,0,(Belysningssystemer!S$56*Belysningssystemer!S$57*Belysningssystemer!S$69/Belysningssystemer!S$21-1)/Belysningssystemer!S$69)+((Belysningssystemer!S$23+Belysningssystemer!S$63)*Belysningssystemer!S$13)*IF((Belysningssystemer!S$56*Belysningssystemer!S$57*Belysningssystemer!S$69/Belysningssystemer!S$22) <1,0,(Belysningssystemer!S$56*Belysningssystemer!S$57*Belysningssystemer!S$69/Belysningssystemer!S$22-1)/Belysningssystemer!S$69)+T122*Belysningssystemer!S$13*$C4+IF($B5<=Belysningssystemer!S$59,Belysningssystemer!S$26,0)+IF($B5<=Belysningssystemer!S$60,Belysningssystemer!S$36*Belysningssystemer!S$13*Belysningssystemer!S$14,0))*((1+Belysningssystemer!S$77)^-$B4),0) -> 0 | X4: =IF(Belysningssystemer!$E$69>=B4,B4,"") -> 3
B5: 4 | C5: =((C4-Fremskrivninger!E11)*(1+IF(Belysningssystemer!$E$71="ja",Belysningssystemer!$E$73,Belysningssystemer!$E$75))+Fremskrivninger!E11) -> 1.878660638 | E5: =IFERROR((((Belysningssystemer!E$27+Belysningssystemer!E$62)*Belysningssystemer!E$14*Belysningssystemer!E$13)*IF((Belysningssystemer!E$56*Belysningssystemer!E$57*Belysningssystemer!E$69/Belysningssystemer!E$21)<1,0,(Belysningssystemer!E$56*Belysningssystemer!E$57*Belysningssystemer!E$69/Belysningssystemer!E$21-1)/Belysningssystemer!E$69)+((Belysningssystemer!E$23+Belysningssystemer!E$63)*Belysningssystemer!E$13)*IF((Belysningssystemer!E$56*Belysningssystemer!E$57*Belysningssystemer!E$69/Belysningssystemer!E$22) <1,0,(Belysningssystemer!E$56*Belysningssystemer!E$57*Belysningssystemer!E$69/Belysningssystemer!E$22-1)/Belysningssystemer!E$69)+F123*Belysningssystemer!E$13*$C5+IF($B5<=Belysningssystemer!E$59,Belysningssystemer!E$26,0)+IF($B5<=Belysningssystemer!E$60,Belysningssystemer!E$36*Belysningssystemer!E$13*Belysningssystemer!E$14,0))*((1+Belysningssystemer!E$77)^-$B5),0) -> 0 | G5: =IFERROR((((Belysningssystemer!G$27+Belysningssystemer!G$62)*Belysningssystemer!G$14*Belysningssystemer!G$13)*IF((Belysningssystemer!G$56*Belysningssystemer!G$57*Belysningssystemer!G$69/Belysningssystemer!G$21)<1,0,(Belysningssystemer!G$56*Belysningssystemer!G$57*Belysningssystemer!G$69/Belysningssystemer!G$21-1)/Belysningssystemer!G$69)+((Belysningssystemer!G$23+Belysningssystemer!G$63)*Belysningssystemer!G$13)*IF((Belysningssystemer!G$56*Belysningssystemer!G$57*Belysningssystemer!G$69/Belysningssystemer!G$22) <1,0,(Belysningssystemer!G$56*Belysningssystemer!G$57*Belysningssystemer!G$69/Belysningssystemer!G$22-1)/Belysningssystemer!G$69)+H123*Belysningssystemer!G$13*$C5+IF($B5<=Belysningssystemer!G$59,Belysningssystemer!G$26,0)+IF($B5<=Belysningssystemer!G$60,Belysningssystemer!G$36*Belysningssystemer!G$13*Belysningssystemer!G$14,0))*((1+Belysningssystemer!G$77)^-$B5),0) -> 0 | I5: =IFERROR((((Belysningssystemer!I$27+Belysningssystemer!I$62)*Belysningssystemer!I$14*Belysningssystemer!I$13)*IF((Belysningssystemer!I$56*Belysningssystemer!I$57*Belysningssystemer!I$69/Belysningssystemer!I$21)<1,0,(Belysningssystemer!I$56*Belysningssystemer!I$57*Belysningssystemer!I$69/Belysningssystemer!I$21-1)/Belysningssystemer!I$69)+((Belysningssystemer!I$23+Belysningssystemer!I$63)*Belysningssystemer!I$13)*IF((Belysningssystemer!I$56*Belysningssystemer!I$57*Belysningssystemer!I$69/Belysningssystemer!I$22) <1,0,(Belysningssystemer!I$56*Belysningssystemer!I$57*Belysningssystemer!I$69/Belysningssystemer!I$22-1)/Belysningssystemer!I$69)+J123*Belysningssystemer!I$13*$C5+IF($B5<=Belysningssystemer!I$59,Belysningssystemer!I$26,0)+IF($B5<=Belysningssystemer!I$60,Belysningssystemer!I$36*Belysningssystemer!I$13*Belysningssystemer!I$14,0))*((1+Belysningssystemer!I$77)^-$B5),0) -> 0 | K5: =IFERROR((((Belysningssystemer!K$27+Belysningssystemer!K$62)*Belysningssystemer!K$14*Belysningssystemer!K$13)*IF((Belysningssystemer!K$56*Belysningssystemer!K$57*Belysningssystemer!K$69/Belysningssystemer!K$21)<1,0,(Belysningssystemer!K$56*Belysningssystemer!K$57*Belysningssystemer!K$69/Belysningssystemer!K$21-1)/Belysningssystemer!K$69)+((Belysningssystemer!K$23+Belysningssystemer!K$63)*Belysningssystemer!K$13)*IF((Belysningssystemer!K$56*Belysningssystemer!K$57*Belysningssystemer!K$69/Belysningssystemer!K$22) <1,0,(Belysningssystemer!K$56*Belysningssystemer!K$57*Belysningssystemer!K$69/Belysningssystemer!K$22-1)/Belysningssystemer!K$69)+L123*Belysningssystemer!K$13*$C5+IF($B6<=Belysningssystemer!K$59,Belysningssystemer!K$26,0)+IF($B6<=Belysningssystemer!K$60,Belysningssystemer!K$36*Belysningssystemer!K$13*Belysningssystemer!K$14,0))*((1+Belysningssystemer!K$77)^-$B5),0) -> 0 | M5: =IFERROR((((Belysningssystemer!M$27+Belysningssystemer!M$62)*Belysningssystemer!M$14*Belysningssystemer!M$13)*IF((Belysningssystemer!M$56*Belysningssystemer!M$57*Belysningssystemer!M$69/Belysningssystemer!M$21)<1,0,(Belysningssystemer!M$56*Belysningssystemer!M$57*Belysningssystemer!M$69/Belysningssystemer!M$21-1)/Belysningssystemer!M$69)+((Belysningssystemer!M$23+Belysningssystemer!M$63)*Belysningssystemer!M$13)*IF((Belysningssystemer!M$56*Belysningssystemer!M$57*Belysningssystemer!M$69/Belysningssystemer!M$22) <1,0,(Belysningssystemer!M$56*Belysningssystemer!M$57*Belysningssystemer!M$69/Belysningssystemer!M$22-1)/Belysningssystemer!M$69)+N123*Belysningssystemer!M$13*$C5+IF($B6<=Belysningssystemer!M$59,Belysningssystemer!M$26,0)+IF($B6<=Belysningssystemer!M$60,Belysningssystemer!M$36*Belysningssystemer!M$13*Belysningssystemer!M$14,0))*((1+Belysningssystemer!M$77)^-$B5),0) -> 0 | O5: =IFERROR((((Belysningssystemer!O$27+Belysningssystemer!O$62)*Belysningssystemer!O$14*Belysningssystemer!O$13)*IF((Belysningssystemer!O$56*Belysningssystemer!O$57*Belysningssystemer!O$69/Belysningssystemer!O$21)<1,0,(Belysningssystemer!O$56*Belysningssystemer!O$57*Belysningssystemer!O$69/Belysningssystemer!O$21-1)/Belysningssystemer!O$69)+((Belysningssystemer!O$23+Belysningssystemer!O$63)*Belysningssystemer!O$13)*IF((Belysningssystemer!O$56*Belysningssystemer!O$57*Belysningssystemer!O$69/Belysningssystemer!O$22) <1,0,(Belysningssystemer!O$56*Belysningssystemer!O$57*Belysningssystemer!O$69/Belysningssystemer!O$22-1)/Belysningssystemer!O$69)+P123*Belysningssystemer!O$13*$C5+IF($B6<=Belysningssystemer!O$59,Belysningssystemer!O$26,0)+IF($B6<=Belysningssystemer!O$60,Belysningssystemer!O$36*Belysningssystemer!O$13*Belysningssystemer!O$14,0))*((1+Belysningssystemer!O$77)^-$B5),0) -> 0 | Q5: =IFERROR((((Belysningssystemer!Q$27+Belysningssystemer!Q$62)*Belysningssystemer!Q$14*Belysningssystemer!Q$13)*IF((Belysningssystemer!Q$56*Belysningssystemer!Q$57*Belysningssystemer!Q$69/Belysningssystemer!Q$21)<1,0,(Belysningssystemer!Q$56*Belysningssystemer!Q$57*Belysningssystemer!Q$69/Belysningssystemer!Q$21-1)/Belysningssystemer!Q$69)+((Belysningssystemer!Q$23+Belysningssystemer!Q$63)*Belysningssystemer!Q$13)*IF((Belysningssystemer!Q$56*Belysningssystemer!Q$57*Belysningssystemer!Q$69/Belysningssystemer!Q$22) <1,0,(Belysningssystemer!Q$56*Belysningssystemer!Q$57*Belysningssystemer!Q$69/Belysningssystemer!Q$22-1)/Belysningssystemer!Q$69)+R123*Belysningssystemer!Q$13*$C5+IF($B6<=Belysningssystemer!Q$59,Belysningssystemer!Q$26,0)+IF($B6<=Belysningssystemer!Q$60,Belysningssystemer!Q$36*Belysningssystemer!Q$13*Belysningssystemer!Q$14,0))*((1+Belysningssystemer!Q$77)^-$B5),0) -> 0 | S5: =IFERROR((((Belysningssystemer!S$27+Belysningssystemer!S$62)*Belysningssystemer!S$14*Belysningssystemer!S$13)*IF((Belysningssystemer!S$56*Belysningssystemer!S$57*Belysningssystemer!S$69/Belysningssystemer!S$21)<1,0,(Belysningssystemer!S$56*Belysningssystemer!S$57*Belysningssystemer!S$69/Belysningssystemer!S$21-1)/Belysningssystemer!S$69)+((Belysningssystemer!S$23+Belysningssystemer!S$63)*Belysningssystemer!S$13)*IF((Belysningssystemer!S$56*Belysningssystemer!S$57*Belysningssystemer!S$69/Belysningssystemer!S$22) <1,0,(Belysningssystemer!S$56*Belysningssystemer!S$57*Belysningssystemer!S$69/Belysningssystemer!S$22-1)/Belysningssystemer!S$69)+T123*Belysningssystemer!S$13*$C5+IF($B6<=Belysningssystemer!S$59,Belysningssystemer!S$26,0)+IF($B6<=Belysningssystemer!S$60,Belysningssystemer!S$36*Belysningssystemer!S$13*Belysningssystemer!S$14,0))*((1+Belysningssystemer!S$77)^-$B5),0) -> 0 | X5: =IF(Belysningssystemer!$E$69>=B5,B5,"") -> 4
B6: 5 | C6: =((C5-Fremskrivninger!E12)*(1+IF(Belysningssystemer!$E$71="ja",Belysningssystemer!$E$73,Belysningssystemer!$E$75))+Fremskrivninger!E12) -> 1.88854137 | E6: =IFERROR((((Belysningssystemer!E$27+Belysningssystemer!E$62)*Belysningssystemer!E$14*Belysningssystemer!E$13)*IF((Belysningssystemer!E$56*Belysningssystemer!E$57*Belysningssystemer!E$69/Belysningssystemer!E$21)<1,0,(Belysningssystemer!E$56*Belysningssystemer!E$57*Belysningssystemer!E$69/Belysningssystemer!E$21-1)/Belysningssystemer!E$69)+((Belysningssystemer!E$23+Belysningssystemer!E$63)*Belysningssystemer!E$13)*IF((Belysningssystemer!E$56*Belysningssystemer!E$57*Belysningssystemer!E$69/Belysningssystemer!E$22) <1,0,(Belysningssystemer!E$56*Belysningssystemer!E$57*Belysningssystemer!E$69/Belysningssystemer!E$22-1)/Belysningssystemer!E$69)+F124*Belysningssystemer!E$13*$C6+IF($B6<=Belysningssystemer!E$59,Belysningssystemer!E$26,0)+IF($B6<=Belysningssystemer!E$60,Belysningssystemer!E$36*Belysningssystemer!E$13*Belysningssystemer!E$14,0))*((1+Belysningssystemer!E$77)^-$B6),0) -> 0 | G6: =IFERROR((((Belysningssystemer!G$27+Belysningssystemer!G$62)*Belysningssystemer!G$14*Belysningssystemer!G$13)*IF((Belysningssystemer!G$56*Belysningssystemer!G$57*Belysningssystemer!G$69/Belysningssystemer!G$21)<1,0,(Belysningssystemer!G$56*Belysningssystemer!G$57*Belysningssystemer!G$69/Belysningssystemer!G$21-1)/Belysningssystemer!G$69)+((Belysningssystemer!G$23+Belysningssystemer!G$63)*Belysningssystemer!G$13)*IF((Belysningssystemer!G$56*Belysningssystemer!G$57*Belysningssystemer!G$69/Belysningssystemer!G$22) <1,0,(Belysningssystemer!G$56*Belysningssystemer!G$57*Belysningssystemer!G$69/Belysningssystemer!G$22-1)/Belysningssystemer!G$69)+H124*Belysningssystemer!G$13*$C6+IF($B6<=Belysningssystemer!G$59,Belysningssystemer!G$26,0)+IF($B6<=Belysningssystemer!G$60,Belysningssystemer!G$36*Belysningssystemer!G$13*Belysningssystemer!G$14,0))*((1+Belysningssystemer!G$77)^-$B6),0) -> 0 | I6: =IFERROR((((Belysningssystemer!I$27+Belysningssystemer!I$62)*Belysningssystemer!I$14*Belysningssystemer!I$13)*IF((Belysningssystemer!I$56*Belysningssystemer!I$57*Belysningssystemer!I$69/Belysningssystemer!I$21)<1,0,(Belysningssystemer!I$56*Belysningssystemer!I$57*Belysningssystemer!I$69/Belysningssystemer!I$21-1)/Belysningssystemer!I$69)+((Belysningssystemer!I$23+Belysningssystemer!I$63)*Belysningssystemer!I$13)*IF((Belysningssystemer!I$56*Belysningssystemer!I$57*Belysningssystemer!I$69/Belysningssystemer!I$22) <1,0,(Belysningssystemer!I$56*Belysningssystemer!I$57*Belysningssystemer!I$69/Belysningssystemer!I$22-1)/Belysningssystemer!I$69)+J124*Belysningssystemer!I$13*$C6+IF($B6<=Belysningssystemer!I$59,Belysningssystemer!I$26,0)+IF($B6<=Belysningssystemer!I$60,Belysningssystemer!I$36*Belysningssystemer!I$13*Belysningssystemer!I$14,0))*((1+Belysningssystemer!I$77)^-$B6),0) -> 0 | K6: =IFERROR((((Belysningssystemer!K$27+Belysningssystemer!K$62)*Belysningssystemer!K$14*Belysningssystemer!K$13)*IF((Belysningssystemer!K$56*Belysningssystemer!K$57*Belysningssystemer!K$69/Belysningssystemer!K$21)<1,0,(Belysningssystemer!K$56*Belysningssystemer!K$57*Belysningssystemer!K$69/Belysningssystemer!K$21-1)/Belysningssystemer!K$69)+((Belysningssystemer!K$23+Belysningssystemer!K$63)*Belysningssystemer!K$13)*IF((Belysningssystemer!K$56*Belysningssystemer!K$57*Belysningssystemer!K$69/Belysningssystemer!K$22) <1,0,(Belysningssystemer!K$56*Belysningssystemer!K$57*Belysningssystemer!K$69/Belysningssystemer!K$22-1)/Belysningssystemer!K$69)+L124*Belysningssystemer!K$13*$C6+IF($B7<=Belysningssystemer!K$59,Belysningssystemer!K$26,0)+IF($B7<=Belysningssystemer!K$60,Belysningssystemer!K$36*Belysningssystemer!K$13*Belysningssystemer!K$14,0))*((1+Belysningssystemer!K$77)^-$B6),0) -> 0 | M6: =IFERROR((((Belysningssystemer!M$27+Belysningssystemer!M$62)*Belysningssystemer!M$14*Belysningssystemer!M$13)*IF((Belysningssystemer!M$56*Belysningssystemer!M$57*Belysningssystemer!M$69/Belysningssystemer!M$21)<1,0,(Belysningssystemer!M$56*Belysningssystemer!M$57*Belysningssystemer!M$69/Belysningssystemer!M$21-1)/Belysningssystemer!M$69)+((Belysningssystemer!M$23+Belysningssystemer!M$63)*Belysningssystemer!M$13)*IF((Belysningssystemer!M$56*Belysningssystemer!M$57*Belysningssystemer!M$69/Belysningssystemer!M$22) <1,0,(Belysningssystemer!M$56*Belysningssystemer!M$57*Belysningssystemer!M$69/Belysningssystemer!M$22-1)/Belysningssystemer!M$69)+N124*Belysningssystemer!M$13*$C6+IF($B7<=Belysningssystemer!M$59,Belysningssystemer!M$26,0)+IF($B7<=Belysningssystemer!M$60,Belysningssystemer!M$36*Belysningssystemer!M$13*Belysningssystemer!M$14,0))*((1+Belysningssystemer!M$77)^-$B6),0) -> 0 | O6: =IFERROR((((Belysningssystemer!O$27+Belysningssystemer!O$62)*Belysningssystemer!O$14*Belysningssystemer!O$13)*IF((Belysningssystemer!O$56*Belysningssystemer!O$57*Belysningssystemer!O$69/Belysningssystemer!O$21)<1,0,(Belysningssystemer!O$56*Belysningssystemer!O$57*Belysningssystemer!O$69/Belysningssystemer!O$21-1)/Belysningssystemer!O$69)+((Belysningssystemer!O$23+Belysningssystemer!O$63)*Belysningssystemer!O$13)*IF((Belysningssystemer!O$56*Belysningssystemer!O$57*Belysningssystemer!O$69/Belysningssystemer!O$22) <1,0,(Belysningssystemer!O$56*Belysningssystemer!O$57*Belysningssystemer!O$69/Belysningssystemer!O$22-1)/Belysningssystemer!O$69)+P124*Belysningssystemer!O$13*$C6+IF($B7<=Belysningssystemer!O$59,Belysningssystemer!O$26,0)+IF($B7<=Belysningssystemer!O$60,Belysningssystemer!O$36*Belysningssystemer!O$13*Belysningssystemer!O$14,0))*((1+Belysningssystemer!O$77)^-$B6),0) -> 0 | Q6: =IFERROR((((Belysningssystemer!Q$27+Belysningssystemer!Q$62)*Belysningssystemer!Q$14*Belysningssystemer!Q$13)*IF((Belysningssystemer!Q$56*Belysningssystemer!Q$57*Belysningssystemer!Q$69/Belysningssystemer!Q$21)<1,0,(Belysningssystemer!Q$56*Belysningssystemer!Q$57*Belysningssystemer!Q$69/Belysningssystemer!Q$21-1)/Belysningssystemer!Q$69)+((Belysningssystemer!Q$23+Belysningssystemer!Q$63)*Belysningssystemer!Q$13)*IF((Belysningssystemer!Q$56*Belysningssystemer!Q$57*Belysningssystemer!Q$69/Belysningssystemer!Q$22) <1,0,(Belysningssystemer!Q$56*Belysningssystemer!Q$57*Belysningssystemer!Q$69/Belysningssystemer!Q$22-1)/Belysningssystemer!Q$69)+R124*Belysningssystemer!Q$13*$C6+IF($B7<=Belysningssystemer!Q$59,Belysningssystemer!Q$26,0)+IF($B7<=Belysningssystemer!Q$60,Belysningssystemer!Q$36*Belysningssystemer!Q$13*Belysningssystemer!Q$14,0))*((1+Belysningssystemer!Q$77)^-$B6),0) -> 0 | S6: =IFERROR((((Belysningssystemer!S$27+Belysningssystemer!S$62)*Belysningssystemer!S$14*Belysningssystemer!S$13)*IF((Belysningssystemer!S$56*Belysningssystemer!S$57*Belysningssystemer!S$69/Belysningssystemer!S$21)<1,0,(Belysningssystemer!S$56*Belysningssystemer!S$57*Belysningssystemer!S$69/Belysningssystemer!S$21-1)/Belysningssystemer!S$69)+((Belysningssystemer!S$23+Belysningssystemer!S$63)*Belysningssystemer!S$13)*IF((Belysningssystemer!S$56*Belysningssystemer!S$57*Belysningssystemer!S$69/Belysningssystemer!S$22) <1,0,(Belysningssystemer!S$56*Belysningssystemer!S$57*Belysningssystemer!S$69/Belysningssystemer!S$22-1)/Belysningssystemer!S$69)+T124*Belysningssystemer!S$13*$C6+IF($B7<=Belysningssystemer!S$59,Belysningssystemer!S$26,0)+IF($B7<=Belysningssystemer!S$60,Belysningssystemer!S$36*Belysningssystemer!S$13*Belysningssystemer!S$14,0))*((1+Belysningssystemer!S$77)^-$B6),0) -> 0 | X6: =IF(Belysningssystemer!$E$69>=B6,B6,"") -> 5
B7: 6 | C7: =((C6-Fremskrivninger!E13)*(1+IF(Belysningssystemer!$E$71="ja",Belysningssystemer!$E$73,Belysningssystemer!$E$75))+Fremskrivninger!E13) -> 1.898587111 | E7: =IFERROR((((Belysningssystemer!E$27+Belysningssystemer!E$62)*Belysningssystemer!E$14*Belysningssystemer!E$13)*IF((Belysningssystemer!E$56*Belysningssystemer!E$57*Belysningssystemer!E$69/Belysningssystemer!E$21)<1,0,(Belysningssystemer!E$56*Belysningssystemer!E$57*Belysningssystemer!E$69/Belysningssystemer!E$21-1)/Belysningssystemer!E$69)+((Belysningssystemer!E$23+Belysningssystemer!E$63)*Belysningssystemer!E$13)*IF((Belysningssystemer!E$56*Belysningssystemer!E$57*Belysningssystemer!E$69/Belysningssystemer!E$22) <1,0,(Belysningssystemer!E$56*Belysningssystemer!E$57*Belysningssystemer!E$69/Belysningssystemer!E$22-1)/Belysningssystemer!E$69)+F125*Belysningssystemer!E$13*$C7+IF($B7<=Belysningssystemer!E$59,Belysningssystemer!E$26,0)+IF($B7<=Belysningssystemer!E$60,Belysningssystemer!E$36*Belysningssystemer!E$13*Belysningssystemer!E$14,0))*((1+Belysningssystemer!E$77)^-$B7),0) -> 0 | G7: =IFERROR((((Belysningssystemer!G$27+Belysningssystemer!G$62)*Belysningssystemer!G$14*Belysningssystemer!G$13)*IF((Belysningssystemer!G$56*Belysningssystemer!G$57*Belysningssystemer!G$69/Belysningssystemer!G$21)<1,0,(Belysningssystemer!G$56*Belysningssystemer!G$57*Belysningssystemer!G$69/Belysningssystemer!G$21-1)/Belysningssystemer!G$69)+((Belysningssystemer!G$23+Belysningssystemer!G$63)*Belysningssystemer!G$13)*IF((Belysningssystemer!G$56*Belysningssystemer!G$57*Belysningssystemer!G$69/Belysningssystemer!G$22) <1,0,(Belysningssystemer!G$56*Belysningssystemer!G$57*Belysningssystemer!G$69/Belysningssystemer!G$22-1)/Belysningssystemer!G$69)+H125*Belysningssystemer!G$13*$C7+IF($B7<=Belysningssystemer!G$59,Belysningssystemer!G$26,0)+IF($B7<=Belysningssystemer!G$60,Belysningssystemer!G$36*Belysningssystemer!G$13*Belysningssystemer!G$14,0))*((1+Belysningssystemer!G$77)^-$B7),0) -> 0 | I7: =IFERROR((((Belysningssystemer!I$27+Belysningssystemer!I$62)*Belysningssystemer!I$14*Belysningssystemer!I$13)*IF((Belysningssystemer!I$56*Belysningssystemer!I$57*Belysningssystemer!I$69/Belysningssystemer!I$21)<1,0,(Belysningssystemer!I$56*Belysningssystemer!I$57*Belysningssystemer!I$69/Belysningssystemer!I$21-1)/Belysningssystemer!I$69)+((Belysningssystemer!I$23+Belysningssystemer!I$63)*Belysningssystemer!I$13)*IF((Belysningssystemer!I$56*Belysningssystemer!I$57*Belysningssystemer!I$69/Belysningssystemer!I$22) <1,0,(Belysningssystemer!I$56*Belysningssystemer!I$57*Belysningssystemer!I$69/Belysningssystemer!I$22-1)/Belysningssystemer!I$69)+J125*Belysningssystemer!I$13*$C7+IF($B7<=Belysningssystemer!I$59,Belysningssystemer!I$26,0)+IF($B7<=Belysningssystemer!I$60,Belysningssystemer!I$36*Belysningssystemer!I$13*Belysningssystemer!I$14,0))*((1+Belysningssystemer!I$77)^-$B7),0) -> 0 | K7: =IFERROR((((Belysningssystemer!K$27+Belysningssystemer!K$62)*Belysningssystemer!K$14*Belysningssystemer!K$13)*IF((Belysningssystemer!K$56*Belysningssystemer!K$57*Belysningssystemer!K$69/Belysningssystemer!K$21)<1,0,(Belysningssystemer!K$56*Belysningssystemer!K$57*Belysningssystemer!K$69/Belysningssystemer!K$21-1)/Belysningssystemer!K$69)+((Belysningssystemer!K$23+Belysningssystemer!K$63)*Belysningssystemer!K$13)*IF((Belysningssystemer!K$56*Belysningssystemer!K$57*Belysningssystemer!K$69/Belysningssystemer!K$22) <1,0,(Belysningssystemer!K$56*Belysningssystemer!K$57*Belysningssystemer!K$69/Belysningssystemer!K$22-1)/Belysningssystemer!K$69)+L125*Belysningssystemer!K$13*$C7+IF($B8<=Belysningssystemer!K$59,Belysningssystemer!K$26,0)+IF($B8<=Belysningssystemer!K$60,Belysningssystemer!K$36*Belysningssystemer!K$13*Belysningssystemer!K$14,0))*((1+Belysningssystemer!K$77)^-$B7),0) -> 0 | M7: =IFERROR((((Belysningssystemer!M$27+Belysningssystemer!M$62)*Belysningssystemer!M$14*Belysningssystemer!M$13)*IF((Belysningssystemer!M$56*Belysningssystemer!M$57*Belysningssystemer!M$69/Belysningssystemer!M$21)<1,0,(Belysningssystemer!M$56*Belysningssystemer!M$57*Belysningssystemer!M$69/Belysningssystemer!M$21-1)/Belysningssystemer!M$69)+((Belysningssystemer!M$23+Belysningssystemer!M$63)*Belysningssystemer!M$13)*IF((Belysningssystemer!M$56*Belysningssystemer!M$57*Belysningssystemer!M$69/Belysningssystemer!M$22) <1,0,(Belysningssystemer!M$56*Belysningssystemer!M$57*Belysningssystemer!M$69/Belysningssystemer!M$22-1)/Belysningssystemer!M$69)+N125*Belysningssystemer!M$13*$C7+IF($B8<=Belysningssystemer!M$59,Belysningssystemer!M$26,0)+IF($B8<=Belysningssystemer!M$60,Belysningssystemer!M$36*Belysningssystemer!M$13*Belysningssystemer!M$14,0))*((1+Belysningssystemer!M$77)^-$B7),0) -> 0 | O7: =IFERROR((((Belysningssystemer!O$27+Belysningssystemer!O$62)*Belysningssystemer!O$14*Belysningssystemer!O$13)*IF((Belysningssystemer!O$56*Belysningssystemer!O$57*Belysningssystemer!O$69/Belysningssystemer!O$21)<1,0,(Belysningssystemer!O$56*Belysningssystemer!O$57*Belysningssystemer!O$69/Belysningssystemer!O$21-1)/Belysningssystemer!O$69)+((Belysningssystemer!O$23+Belysningssystemer!O$63)*Belysningssystemer!O$13)*IF((Belysningssystemer!O$56*Belysningssystemer!O$57*Belysningssystemer!O$69/Belysningssystemer!O$22) <1,0,(Belysningssystemer!O$56*Belysningssystemer!O$57*Belysningssystemer!O$69/Belysningssystemer!O$22-1)/Belysningssystemer!O$69)+P125*Belysningssystemer!O$13*$C7+IF($B8<=Belysningssystemer!O$59,Belysningssystemer!O$26,0)+IF($B8<=Belysningssystemer!O$60,Belysningssystemer!O$36*Belysningssystemer!O$13*Belysningssystemer!O$14,0))*((1+Belysningssystemer!O$77)^-$B7),0) -> 0 | Q7: =IFERROR((((Belysningssystemer!Q$27+Belysningssystemer!Q$62)*Belysningssystemer!Q$14*Belysningssystemer!Q$13)*IF((Belysningssystemer!Q$56*Belysningssystemer!Q$57*Belysningssystemer!Q$69/Belysningssystemer!Q$21)<1,0,(Belysningssystemer!Q$56*Belysningssystemer!Q$57*Belysningssystemer!Q$69/Belysningssystemer!Q$21-1)/Belysningssystemer!Q$69)+((Belysningssystemer!Q$23+Belysningssystemer!Q$63)*Belysningssystemer!Q$13)*IF((Belysningssystemer!Q$56*Belysningssystemer!Q$57*Belysningssystemer!Q$69/Belysningssystemer!Q$22) <1,0,(Belysningssystemer!Q$56*Belysningssystemer!Q$57*Belysningssystemer!Q$69/Belysningssystemer!Q$22-1)/Belysningssystemer!Q$69)+R125*Belysningssystemer!Q$13*$C7+IF($B8<=Belysningssystemer!Q$59,Belysningssystemer!Q$26,0)+IF($B8<=Belysningssystemer!Q$60,Belysningssystemer!Q$36*Belysningssystemer!Q$13*Belysningssystemer!Q$14,0))*((1+Belysningssystemer!Q$77)^-$B7),0) -> 0 | S7: =IFERROR((((Belysningssystemer!S$27+Belysningssystemer!S$62)*Belysningssystemer!S$14*Belysningssystemer!S$13)*IF((Belysningssystemer!S$56*Belysningssystemer!S$57*Belysningssystemer!S$69/Belysningssystemer!S$21)<1,0,(Belysningssystemer!S$56*Belysningssystemer!S$57*Belysningssystemer!S$69/Belysningssystemer!S$21-1)/Belysningssystemer!S$69)+((Belysningssystemer!S$23+Belysningssystemer!S$63)*Belysningssystemer!S$13)*IF((Belysningssystemer!S$56*Belysningssystemer!S$57*Belysningssystemer!S$69/Belysningssystemer!S$22) <1,0,(Belysningssystemer!S$56*Belysningssystemer!S$57*Belysningssystemer!S$69/Belysningssystemer!S$22-1)/Belysningssystemer!S$69)+T125*Belysningssystemer!S$13*$C7+IF($B8<=Belysningssystemer!S$59,Belysningssystemer!S$26,0)+IF($B8<=Belysningssystemer!S$60,Belysningssystemer!S$36*Belysningssystemer!S$13*Belysningssystemer!S$14,0))*((1+Belysningssystemer!S$77)^-$B7),0) -> 0 | X7: =IF(Belysningssystemer!$E$69>=B7,B7,"") -> 6
B8: 7 | C8: =((C7-Fremskrivninger!E14)*(1+IF(Belysningssystemer!$E$71="ja",Belysningssystemer!$E$73,Belysningssystemer!$E$75))+Fremskrivninger!E14) -> 1.908800616 | E8: =IFERROR((((Belysningssystemer!E$27+Belysningssystemer!E$62)*Belysningssystemer!E$14*Belysningssystemer!E$13)*IF((Belysningssystemer!E$56*Belysningssystemer!E$57*Belysningssystemer!E$69/Belysningssystemer!E$21)<1,0,(Belysningssystemer!E$56*Belysningssystemer!E$57*Belysningssystemer!E$69/Belysningssystemer!E$21-1)/Belysningssystemer!E$69)+((Belysningssystemer!E$23+Belysningssystemer!E$63)*Belysningssystemer!E$13)*IF((Belysningssystemer!E$56*Belysningssystemer!E$57*Belysningssystemer!E$69/Belysningssystemer!E$22) <1,0,(Belysningssystemer!E$56*Belysningssystemer!E$57*Belysningssystemer!E$69/Belysningssystemer!E$22-1)/Belysningssystemer!E$69)+F126*Belysningssystemer!E$13*$C8+IF($B8<=Belysningssystemer!E$59,Belysningssystemer!E$26,0)+IF($B8<=Belysningssystemer!E$60,Belysningssystemer!E$36*Belysningssystemer!E$13*Belysningssystemer!E$14,0))*((1+Belysningssystemer!E$77)^-$B8),0) -> 0 | G8: =IFERROR((((Belysningssystemer!G$27+Belysningssystemer!G$62)*Belysningssystemer!G$14*Belysningssystemer!G$13)*IF((Belysningssystemer!G$56*Belysningssystemer!G$57*Belysningssystemer!G$69/Belysningssystemer!G$21)<1,0,(Belysningssystemer!G$56*Belysningssystemer!G$57*Belysningssystemer!G$69/Belysningssystemer!G$21-1)/Belysningssystemer!G$69)+((Belysningssystemer!G$23+Belysningssystemer!G$63)*Belysningssystemer!G$13)*IF((Belysningssystemer!G$56*Belysningssystemer!G$57*Belysningssystemer!G$69/Belysningssystemer!G$22) <1,0,(Belysningssystemer!G$56*Belysningssystemer!G$57*Belysningssystemer!G$69/Belysningssystemer!G$22-1)/Belysningssystemer!G$69)+H126*Belysningssystemer!G$13*$C8+IF($B8<=Belysningssystemer!G$59,Belysningssystemer!G$26,0)+IF($B8<=Belysningssystemer!G$60,Belysningssystemer!G$36*Belysningssystemer!G$13*Belysningssystemer!G$14,0))*((1+Belysningssystemer!G$77)^-$B8),0) -> 0 | I8: =IFERROR((((Belysningssystemer!I$27+Belysningssystemer!I$62)*Belysningssystemer!I$14*Belysningssystemer!I$13)*IF((Belysningssystemer!I$56*Belysningssystemer!I$57*Belysningssystemer!I$69/Belysningssystemer!I$21)<1,0,(Belysningssystemer!I$56*Belysningssystemer!I$57*Belysningssystemer!I$69/Belysningssystemer!I$21-1)/Belysningssystemer!I$69)+((Belysningssystemer!I$23+Belysningssystemer!I$63)*Belysningssystemer!I$13)*IF((Belysningssystemer!I$56*Belysningssystemer!I$57*Belysningssystemer!I$69/Belysningssystemer!I$22) <1,0,(Belysningssystemer!I$56*Belysningssystemer!I$57*Belysningssystemer!I$69/Belysningssystemer!I$22-1)/Belysningssystemer!I$69)+J126*Belysningssystemer!I$13*$C8+IF($B8<=Belysningssystemer!I$59,Belysningssystemer!I$26,0)+IF($B8<=Belysningssystemer!I$60,Belysningssystemer!I$36*Belysningssystemer!I$13*Belysningssystemer!I$14,0))*((1+Belysningssystemer!I$77)^-$B8),0) -> 0 | K8: =IFERROR((((Belysningssystemer!K$27+Belysningssystemer!K$62)*Belysningssystemer!K$14*Belysningssystemer!K$13)*IF((Belysningssystemer!K$56*Belysningssystemer!K$57*Belysningssystemer!K$69/Belysningssystemer!K$21)<1,0,(Belysningssystemer!K$56*Belysningssystemer!K$57*Belysningssystemer!K$69/Belysningssystemer!K$21-1)/Belysningssystemer!K$69)+((Belysningssystemer!K$23+Belysningssystemer!K$63)*Belysningssystemer!K$13)*IF((Belysningssystemer!K$56*Belysningssystemer!K$57*Belysningssystemer!K$69/Belysningssystemer!K$22) <1,0,(Belysningssystemer!K$56*Belysningssystemer!K$57*Belysningssystemer!K$69/Belysningssystemer!K$22-1)/Belysningssystemer!K$69)+L126*Belysningssystemer!K$13*$C8+IF($B9<=Belysningssystemer!K$59,Belysningssystemer!K$26,0)+IF($B9<=Belysningssystemer!K$60,Belysningssystemer!K$36*Belysningssystemer!K$13*Belysningssystemer!K$14,0))*((1+Belysningssystemer!K$77)^-$B8),0) -> 0 | M8: =IFERROR((((Belysningssystemer!M$27+Belysningssystemer!M$62)*Belysningssystemer!M$14*Belysningssystemer!M$13)*IF((Belysningssystemer!M$56*Belysningssystemer!M$57*Belysningssystemer!M$69/Belysningssystemer!M$21)<1,0,(Belysningssystemer!M$56*Belysningssystemer!M$57*Belysningssystemer!M$69/Belysningssystemer!M$21-1)/Belysningssystemer!M$69)+((Belysningssystemer!M$23+Belysningssystemer!M$63)*Belysningssystemer!M$13)*IF((Belysningssystemer!M$56*Belysningssystemer!M$57*Belysningssystemer!M$69/Belysningssystemer!M$22) <1,0,(Belysningssystemer!M$56*Belysningssystemer!M$57*Belysningssystemer!M$69/Belysningssystemer!M$22-1)/Belysningssystemer!M$69)+N126*Belysningssystemer!M$13*$C8+IF($B9<=Belysningssystemer!M$59,Belysningssystemer!M$26,0)+IF($B9<=Belysningssystemer!M$60,Belysningssystemer!M$36*Belysningssystemer!M$13*Belysningssystemer!M$14,0))*((1+Belysningssystemer!M$77)^-$B8),0) -> 0 | O8: =IFERROR((((Belysningssystemer!O$27+Belysningssystemer!O$62)*Belysningssystemer!O$14*Belysningssystemer!O$13)*IF((Belysningssystemer!O$56*Belysningssystemer!O$57*Belysningssystemer!O$69/Belysningssystemer!O$21)<1,0,(Belysningssystemer!O$56*Belysningssystemer!O$57*Belysningssystemer!O$69/Belysningssystemer!O$21-1)/Belysningssystemer!O$69)+((Belysningssystemer!O$23+Belysningssystemer!O$63)*Belysningssystemer!O$13)*IF((Belysningssystemer!O$56*Belysningssystemer!O$57*Belysningssystemer!O$69/Belysningssystemer!O$22) <1,0,(Belysningssystemer!O$56*Belysningssystemer!O$57*Belysningssystemer!O$69/Belysningssystemer!O$22-1)/Belysningssystemer!O$69)+P126*Belysningssystemer!O$13*$C8+IF($B9<=Belysningssystemer!O$59,Belysningssystemer!O$26,0)+IF($B9<=Belysningssystemer!O$60,Belysningssystemer!O$36*Belysningssystemer!O$13*Belysningssystemer!O$14,0))*((1+Belysningssystemer!O$77)^-$B8),0) -> 0 | Q8: =IFERROR((((Belysningssystemer!Q$27+Belysningssystemer!Q$62)*Belysningssystemer!Q$14*Belysningssystemer!Q$13)*IF((Belysningssystemer!Q$56*Belysningssystemer!Q$57*Belysningssystemer!Q$69/Belysningssystemer!Q$21)<1,0,(Belysningssystemer!Q$56*Belysningssystemer!Q$57*Belysningssystemer!Q$69/Belysningssystemer!Q$21-1)/Belysningssystemer!Q$69)+((Belysningssystemer!Q$23+Belysningssystemer!Q$63)*Belysningssystemer!Q$13)*IF((Belysningssystemer!Q$56*Belysningssystemer!Q$57*Belysningssystemer!Q$69/Belysningssystemer!Q$22) <1,0,(Belysningssystemer!Q$56*Belysningssystemer!Q$57*Belysningssystemer!Q$69/Belysningssystemer!Q$22-1)/Belysningssystemer!Q$69)+R126*Belysningssystemer!Q$13*$C8+IF($B9<=Belysningssystemer!Q$59,Belysningssystemer!Q$26,0)+IF($B9<=Belysningssystemer!Q$60,Belysningssystemer!Q$36*Belysningssystemer!Q$13*Belysningssystemer!Q$14,0))*((1+Belysningssystemer!Q$77)^-$B8),0) -> 0 | S8: =IFERROR((((Belysningssystemer!S$27+Belysningssystemer!S$62)*Belysningssystemer!S$14*Belysningssystemer!S$13)*IF((Belysningssystemer!S$56*Belysningssystemer!S$57*Belysningssystemer!S$69/Belysningssystemer!S$21)<1,0,(Belysningssystemer!S$56*Belysningssystemer!S$57*Belysningssystemer!S$69/Belysningssystemer!S$21-1)/Belysningssystemer!S$69)+((Belysningssystemer!S$23+Belysningssystemer!S$63)*Belysningssystemer!S$13)*IF((Belysningssystemer!S$56*Belysningssystemer!S$57*Belysningssystemer!S$69/Belysningssystemer!S$22) <1,0,(Belysningssystemer!S$56*Belysningssystemer!S$57*Belysningssystemer!S$69/Belysningssystemer!S$22-1)/Belysningssystemer!S$69)+T126*Belysningssystemer!S$13*$C8+IF($B9<=Belysningssystemer!S$59,Belysningssystemer!S$26,0)+IF($B9<=Belysningssystemer!S$60,Belysningssystemer!S$36*Belysningssystemer!S$13*Belysningssystemer!S$14,0))*((1+Belysningssystemer!S$77)^-$B8),0) -> 0 | X8: =IF(Belysningssystemer!$E$69>=B8,B8,"") -> 7
B9: 8 | C9: =((C8-Fremskrivninger!E15)*(1+IF(Belysningssystemer!$E$71="ja",Belysningssystemer!$E$73,Belysningssystemer!$E$75))+Fremskrivninger!E15) -> 1.919184686 | E9: =IFERROR((((Belysningssystemer!E$27+Belysningssystemer!E$62)*Belysningssystemer!E$14*Belysningssystemer!E$13)*IF((Belysningssystemer!E$56*Belysningssystemer!E$57*Belysningssystemer!E$69/Belysningssystemer!E$21)<1,0,(Belysningssystemer!E$56*Belysningssystemer!E$57*Belysningssystemer!E$69/Belysningssystemer!E$21-1)/Belysningssystemer!E$69)+((Belysningssystemer!E$23+Belysningssystemer!E$63)*Belysningssystemer!E$13)*IF((Belysningssystemer!E$56*Belysningssystemer!E$57*Belysningssystemer!E$69/Belysningssystemer!E$22) <1,0,(Belysningssystemer!E$56*Belysningssystemer!E$57*Belysningssystemer!E$69/Belysningssystemer!E$22-1)/Belysningssystemer!E$69)+F127*Belysningssystemer!E$13*$C9+IF($B9<=Belysningssystemer!E$59,Belysningssystemer!E$26,0)+IF($B9<=Belysningssystemer!E$60,Belysningssystemer!E$36*Belysningssystemer!E$13*Belysningssystemer!E$14,0))*((1+Belysningssystemer!E$77)^-$B9),0) -> 0 | G9: =IFERROR((((Belysningssystemer!G$27+Belysningssystemer!G$62)*Belysningssystemer!G$14*Belysningssystemer!G$13)*IF((Belysningssystemer!G$56*Belysningssystemer!G$57*Belysningssystemer!G$69/Belysningssystemer!G$21)<1,0,(Belysningssystemer!G$56*Belysningssystemer!G$57*Belysningssystemer!G$69/Belysningssystemer!G$21-1)/Belysningssystemer!G$69)+((Belysningssystemer!G$23+Belysningssystemer!G$63)*Belysningssystemer!G$13)*IF((Belysningssystemer!G$56*Belysningssystemer!G$57*Belysningssystemer!G$69/Belysningssystemer!G$22) <1,0,(Belysningssystemer!G$56*Belysningssystemer!G$57*Belysningssystemer!G$69/Belysningssystemer!G$22-1)/Belysningssystemer!G$69)+H127*Belysningssystemer!G$13*$C9+IF($B9<=Belysningssystemer!G$59,Belysningssystemer!G$26,0)+IF($B9<=Belysningssystemer!G$60,Belysningssystemer!G$36*Belysningssystemer!G$13*Belysningssystemer!G$14,0))*((1+Belysningssystemer!G$77)^-$B9),0) -> 0 | I9: =IFERROR((((Belysningssystemer!I$27+Belysningssystemer!I$62)*Belysningssystemer!I$14*Belysningssystemer!I$13)*IF((Belysningssystemer!I$56*Belysningssystemer!I$57*Belysningssystemer!I$69/Belysningssystemer!I$21)<1,0,(Belysningssystemer!I$56*Belysningssystemer!I$57*Belysningssystemer!I$69/Belysningssystemer!I$21-1)/Belysningssystemer!I$69)+((Belysningssystemer!I$23+Belysningssystemer!I$63)*Belysningssystemer!I$13)*IF((Belysningssystemer!I$56*Belysningssystemer!I$57*Belysningssystemer!I$69/Belysningssystemer!I$22) <1,0,(Belysningssystemer!I$56*Belysningssystemer!I$57*Belysningssystemer!I$69/Belysningssystemer!I$22-1)/Belysningssystemer!I$69)+J127*Belysningssystemer!I$13*$C9+IF($B9<=Belysningssystemer!I$59,Belysningssystemer!I$26,0)+IF($B9<=Belysningssystemer!I$60,Belysningssystemer!I$36*Belysningssystemer!I$13*Belysningssystemer!I$14,0))*((1+Belysningssystemer!I$77)^-$B9),0) -> 0 | K9: =IFERROR((((Belysningssystemer!K$27+Belysningssystemer!K$62)*Belysningssystemer!K$14*Belysningssystemer!K$13)*IF((Belysningssystemer!K$56*Belysningssystemer!K$57*Belysningssystemer!K$69/Belysningssystemer!K$21)<1,0,(Belysningssystemer!K$56*Belysningssystemer!K$57*Belysningssystemer!K$69/Belysningssystemer!K$21-1)/Belysningssystemer!K$69)+((Belysningssystemer!K$23+Belysningssystemer!K$63)*Belysningssystemer!K$13)*IF((Belysningssystemer!K$56*Belysningssystemer!K$57*Belysningssystemer!K$69/Belysningssystemer!K$22) <1,0,(Belysningssystemer!K$56*Belysningssystemer!K$57*Belysningssystemer!K$69/Belysningssystemer!K$22-1)/Belysningssystemer!K$69)+L127*Belysningssystemer!K$13*$C9+IF($B10<=Belysningssystemer!K$59,Belysningssystemer!K$26,0)+IF($B10<=Belysningssystemer!K$60,Belysningssystemer!K$36*Belysningssystemer!K$13*Belysningssystemer!K$14,0))*((1+Belysningssystemer!K$77)^-$B9),0) -> 0 | M9: =IFERROR((((Belysningssystemer!M$27+Belysningssystemer!M$62)*Belysningssystemer!M$14*Belysningssystemer!M$13)*IF((Belysningssystemer!M$56*Belysningssystemer!M$57*Belysningssystemer!M$69/Belysningssystemer!M$21)<1,0,(Belysningssystemer!M$56*Belysningssystemer!M$57*Belysningssystemer!M$69/Belysningssystemer!M$21-1)/Belysningssystemer!M$69)+((Belysningssystemer!M$23+Belysningssystemer!M$63)*Belysningssystemer!M$13)*IF((Belysningssystemer!M$56*Belysningssystemer!M$57*Belysningssystemer!M$69/Belysningssystemer!M$22) <1,0,(Belysningssystemer!M$56*Belysningssystemer!M$57*Belysningssystemer!M$69/Belysningssystemer!M$22-1)/Belysningssystemer!M$69)+N127*Belysningssystemer!M$13*$C9+IF($B10<=Belysningssystemer!M$59,Belysningssystemer!M$26,0)+IF($B10<=Belysningssystemer!M$60,Belysningssystemer!M$36*Belysningssystemer!M$13*Belysningssystemer!M$14,0))*((1+Belysningssystemer!M$77)^-$B9),0) -> 0 | O9: =IFERROR((((Belysningssystemer!O$27+Belysningssystemer!O$62)*Belysningssystemer!O$14*Belysningssystemer!O$13)*IF((Belysningssystemer!O$56*Belysningssystemer!O$57*Belysningssystemer!O$69/Belysningssystemer!O$21)<1,0,(Belysningssystemer!O$56*Belysningssystemer!O$57*Belysningssystemer!O$69/Belysningssystemer!O$21-1)/Belysningssystemer!O$69)+((Belysningssystemer!O$23+Belysningssystemer!O$63)*Belysningssystemer!O$13)*IF((Belysningssystemer!O$56*Belysningssystemer!O$57*Belysningssystemer!O$69/Belysningssystemer!O$22) <1,0,(Belysningssystemer!O$56*Belysningssystemer!O$57*Belysningssystemer!O$69/Belysningssystemer!O$22-1)/Belysningssystemer!O$69)+P127*Belysningssystemer!O$13*$C9+IF($B10<=Belysningssystemer!O$59,Belysningssystemer!O$26,0)+IF($B10<=Belysningssystemer!O$60,Belysningssystemer!O$36*Belysningssystemer!O$13*Belysningssystemer!O$14,0))*((1+Belysningssystemer!O$77)^-$B9),0) -> 0 | Q9: =IFERROR((((Belysningssystemer!Q$27+Belysningssystemer!Q$62)*Belysningssystemer!Q$14*Belysningssystemer!Q$13)*IF((Belysningssystemer!Q$56*Belysningssystemer!Q$57*Belysningssystemer!Q$69/Belysningssystemer!Q$21)<1,0,(Belysningssystemer!Q$56*Belysningssystemer!Q$57*Belysningssystemer!Q$69/Belysningssystemer!Q$21-1)/Belysningssystemer!Q$69)+((Belysningssystemer!Q$23+Belysningssystemer!Q$63)*Belysningssystemer!Q$13)*IF((Belysningssystemer!Q$56*Belysningssystemer!Q$57*Belysningssystemer!Q$69/Belysningssystemer!Q$22) <1,0,(Belysningssystemer!Q$56*Belysningssystemer!Q$57*Belysningssystemer!Q$69/Belysningssystemer!Q$22-1)/Belysningssystemer!Q$69)+R127*Belysningssystemer!Q$13*$C9+IF($B10<=Belysningssystemer!Q$59,Belysningssystemer!Q$26,0)+IF($B10<=Belysningssystemer!Q$60,Belysningssystemer!Q$36*Belysningssystemer!Q$13*Belysningssystemer!Q$14,0))*((1+Belysningssystemer!Q$77)^-$B9),0) -> 0 | S9: =IFERROR((((Belysningssystemer!S$27+Belysningssystemer!S$62)*Belysningssystemer!S$14*Belysningssystemer!S$13)*IF((Belysningssystemer!S$56*Belysningssystemer!S$57*Belysningssystemer!S$69/Belysningssystemer!S$21)<1,0,(Belysningssystemer!S$56*Belysningssystemer!S$57*Belysningssystemer!S$69/Belysningssystemer!S$21-1)/Belysningssystemer!S$69)+((Belysningssystemer!S$23+Belysningssystemer!S$63)*Belysningssystemer!S$13)*IF((Belysningssystemer!S$56*Belysningssystemer!S$57*Belysningssystemer!S$69/Belysningssystemer!S$22) <1,0,(Belysningssystemer!S$56*Belysningssystemer!S$57*Belysningssystemer!S$69/Belysningssystemer!S$22-1)/Belysningssystemer!S$69)+T127*Belysningssystemer!S$13*$C9+IF($B10<=Belysningssystemer!S$59,Belysningssystemer!S$26,0)+IF($B10<=Belysningssystemer!S$60,Belysningssystemer!S$36*Belysningssystemer!S$13*Belysningssystemer!S$14,0))*((1+Belysningssystemer!S$77)^-$B9),0) -> 0 | X9: =IF(Belysningssystemer!$E$69>=B9,B9,"") -> 8
B10: 9 | C10: =((C9-Fremskrivninger!E16)*(1+IF(Belysningssystemer!$E$71="ja",Belysningssystemer!$E$73,Belysningssystemer!$E$75))+Fremskrivninger!E16) -> 1.92974217 | E10: =IFERROR((((Belysningssystemer!E$27+Belysningssystemer!E$62)*Belysningssystemer!E$14*Belysningssystemer!E$13)*IF((Belysningssystemer!E$56*Belysningssystemer!E$57*Belysningssystemer!E$69/Belysningssystemer!E$21)<1,0,(Belysningssystemer!E$56*Belysningssystemer!E$57*Belysningssystemer!E$69/Belysningssystemer!E$21-1)/Belysningssystemer!E$69)+((Belysningssystemer!E$23+Belysningssystemer!E$63)*Belysningssystemer!E$13)*IF((Belysningssystemer!E$56*Belysningssystemer!E$57*Belysningssystemer!E$69/Belysningssystemer!E$22) <1,0,(Belysningssystemer!E$56*Belysningssystemer!E$57*Belysningssystemer!E$69/Belysningssystemer!E$22-1)/Belysningssystemer!E$69)+F128*Belysningssystemer!E$13*$C10+IF($B10<=Belysningssystemer!E$59,Belysningssystemer!E$26,0)+IF($B10<=Belysningssystemer!E$60,Belysningssystemer!E$36*Belysningssystemer!E$13*Belysningssystemer!E$14,0))*((1+Belysningssystemer!E$77)^-$B10),0) -> 0 | G10: =IFERROR((((Belysningssystemer!G$27+Belysningssystemer!G$62)*Belysningssystemer!G$14*Belysningssystemer!G$13)*IF((Belysningssystemer!G$56*Belysningssystemer!G$57*Belysningssystemer!G$69/Belysningssystemer!G$21)<1,0,(Belysningssystemer!G$56*Belysningssystemer!G$57*Belysningssystemer!G$69/Belysningssystemer!G$21-1)/Belysningssystemer!G$69)+((Belysningssystemer!G$23+Belysningssystemer!G$63)*Belysningssystemer!G$13)*IF((Belysningssystemer!G$56*Belysningssystemer!G$57*Belysningssystemer!G$69/Belysningssystemer!G$22) <1,0,(Belysningssystemer!G$56*Belysningssystemer!G$57*Belysningssystemer!G$69/Belysningssystemer!G$22-1)/Belysningssystemer!G$69)+H128*Belysningssystemer!G$13*$C10+IF($B10<=Belysningssystemer!G$59,Belysningssystemer!G$26,0)+IF($B10<=Belysningssystemer!G$60,Belysningssystemer!G$36*Belysningssystemer!G$13*Belysningssystemer!G$14,0))*((1+Belysningssystemer!G$77)^-$B10),0) -> 0 | I10: =IFERROR((((Belysningssystemer!I$27+Belysningssystemer!I$62)*Belysningssystemer!I$14*Belysningssystemer!I$13)*IF((Belysningssystemer!I$56*Belysningssystemer!I$57*Belysningssystemer!I$69/Belysningssystemer!I$21)<1,0,(Belysningssystemer!I$56*Belysningssystemer!I$57*Belysningssystemer!I$69/Belysningssystemer!I$21-1)/Belysningssystemer!I$69)+((Belysningssystemer!I$23+Belysningssystemer!I$63)*Belysningssystemer!I$13)*IF((Belysningssystemer!I$56*Belysningssystemer!I$57*Belysningssystemer!I$69/Belysningssystemer!I$22) <1,0,(Belysningssystemer!I$56*Belysningssystemer!I$57*Belysningssystemer!I$69/Belysningssystemer!I$22-1)/Belysningssystemer!I$69)+J128*Belysningssystemer!I$13*$C10+IF($B10<=Belysningssystemer!I$59,Belysningssystemer!I$26,0)+IF($B10<=Belysningssystemer!I$60,Belysningssystemer!I$36*Belysningssystemer!I$13*Belysningssystemer!I$14,0))*((1+Belysningssystemer!I$77)^-$B10),0) -> 0 | K10: =IFERROR((((Belysningssystemer!K$27+Belysningssystemer!K$62)*Belysningssystemer!K$14*Belysningssystemer!K$13)*IF((Belysningssystemer!K$56*Belysningssystemer!K$57*Belysningssystemer!K$69/Belysningssystemer!K$21)<1,0,(Belysningssystemer!K$56*Belysningssystemer!K$57*Belysningssystemer!K$69/Belysningssystemer!K$21-1)/Belysningssystemer!K$69)+((Belysningssystemer!K$23+Belysningssystemer!K$63)*Belysningssystemer!K$13)*IF((Belysningssystemer!K$56*Belysningssystemer!K$57*Belysningssystemer!K$69/Belysningssystemer!K$22) <1,0,(Belysningssystemer!K$56*Belysningssystemer!K$57*Belysningssystemer!K$69/Belysningssystemer!K$22-1)/Belysningssystemer!K$69)+L128*Belysningssystemer!K$13*$C10+IF($B11<=Belysningssystemer!K$59,Belysningssystemer!K$26,0)+IF($B11<=Belysningssystemer!K$60,Belysningssystemer!K$36*Belysningssystemer!K$13*Belysningssystemer!K$14,0))*((1+Belysningssystemer!K$77)^-$B10),0) -> 0 | M10: =IFERROR((((Belysningssystemer!M$27+Belysningssystemer!M$62)*Belysningssystemer!M$14*Belysningssystemer!M$13)*IF((Belysningssystemer!M$56*Belysningssystemer!M$57*Belysningssystemer!M$69/Belysningssystemer!M$21)<1,0,(Belysningssystemer!M$56*Belysningssystemer!M$57*Belysningssystemer!M$69/Belysningssystemer!M$21-1)/Belysningssystemer!M$69)+((Belysningssystemer!M$23+Belysningssystemer!M$63)*Belysningssystemer!M$13)*IF((Belysningssystemer!M$56*Belysningssystemer!M$57*Belysningssystemer!M$69/Belysningssystemer!M$22) <1,0,(Belysningssystemer!M$56*Belysningssystemer!M$57*Belysningssystemer!M$69/Belysningssystemer!M$22-1)/Belysningssystemer!M$69)+N128*Belysningssystemer!M$13*$C10+IF($B11<=Belysningssystemer!M$59,Belysningssystemer!M$26,0)+IF($B11<=Belysningssystemer!M$60,Belysningssystemer!M$36*Belysningssystemer!M$13*Belysningssystemer!M$14,0))*((1+Belysningssystemer!M$77)^-$B10),0) -> 0 | O10: =IFERROR((((Belysningssystemer!O$27+Belysningssystemer!O$62)*Belysningssystemer!O$14*Belysningssystemer!O$13)*IF((Belysningssystemer!O$56*Belysningssystemer!O$57*Belysningssystemer!O$69/Belysningssystemer!O$21)<1,0,(Belysningssystemer!O$56*Belysningssystemer!O$57*Belysningssystemer!O$69/Belysningssystemer!O$21-1)/Belysningssystemer!O$69)+((Belysningssystemer!O$23+Belysningssystemer!O$63)*Belysningssystemer!O$13)*IF((Belysningssystemer!O$56*Belysningssystemer!O$57*Belysningssystemer!O$69/Belysningssystemer!O$22) <1,0,(Belysningssystemer!O$56*Belysningssystemer!O$57*Belysningssystemer!O$69/Belysningssystemer!O$22-1)/Belysningssystemer!O$69)+P128*Belysningssystemer!O$13*$C10+IF($B11<=Belysningssystemer!O$59,Belysningssystemer!O$26,0)+IF($B11<=Belysningssystemer!O$60,Belysningssystemer!O$36*Belysningssystemer!O$13*Belysningssystemer!O$14,0))*((1+Belysningssystemer!O$77)^-$B10),0) -> 0 | Q10: =IFERROR((((Belysningssystemer!Q$27+Belysningssystemer!Q$62)*Belysningssystemer!Q$14*Belysningssystemer!Q$13)*IF((Belysningssystemer!Q$56*Belysningssystemer!Q$57*Belysningssystemer!Q$69/Belysningssystemer!Q$21)<1,0,(Belysningssystemer!Q$56*Belysningssystemer!Q$57*Belysningssystemer!Q$69/Belysningssystemer!Q$21-1)/Belysningssystemer!Q$69)+((Belysningssystemer!Q$23+Belysningssystemer!Q$63)*Belysningssystemer!Q$13)*IF((Belysningssystemer!Q$56*Belysningssystemer!Q$57*Belysningssystemer!Q$69/Belysningssystemer!Q$22) <1,0,(Belysningssystemer!Q$56*Belysningssystemer!Q$57*Belysningssystemer!Q$69/Belysningssystemer!Q$22-1)/Belysningssystemer!Q$69)+R128*Belysningssystemer!Q$13*$C10+IF($B11<=Belysningssystemer!Q$59,Belysningssystemer!Q$26,0)+IF($B11<=Belysningssystemer!Q$60,Belysningssystemer!Q$36*Belysningssystemer!Q$13*Belysningssystemer!Q$14,0))*((1+Belysningssystemer!Q$77)^-$B10),0) -> 0 | S10: =IFERROR((((Belysningssystemer!S$27+Belysningssystemer!S$62)*Belysningssystemer!S$14*Belysningssystemer!S$13)*IF((Belysningssystemer!S$56*Belysningssystemer!S$57*Belysningssystemer!S$69/Belysningssystemer!S$21)<1,0,(Belysningssystemer!S$56*Belysningssystemer!S$57*Belysningssystemer!S$69/Belysningssystemer!S$21-1)/Belysningssystemer!S$69)+((Belysningssystemer!S$23+Belysningssystemer!S$63)*Belysningssystemer!S$13)*IF((Belysningssystemer!S$56*Belysningssystemer!S$57*Belysningssystemer!S$69/Belysningssystemer!S$22) <1,0,(Belysningssystemer!S$56*Belysningssystemer!S$57*Belysningssystemer!S$69/Belysningssystemer!S$22-1)/Belysningssystemer!S$69)+T128*Belysningssystemer!S$13*$C10+IF($B11<=Belysningssystemer!S$59,Belysningssystemer!S$26,0)+IF($B11<=Belysningssystemer!S$60,Belysningssystemer!S$36*Belysningssystemer!S$13*Belysningssystemer!S$14,0))*((1+Belysningssystemer!S$77)^-$B10),0) -> 0 | X10: =IF(Belysningssystemer!$E$69>=B10,B10,"") -> 9
B11: 10 | C11: =((C10-Fremskrivninger!E17)*(1+IF(Belysningssystemer!$E$71="ja",Belysningssystemer!$E$73,Belysningssystemer!$E$75))+Fremskrivninger!E17) -> 1.940475965 | E11: =IFERROR((((Belysningssystemer!E$27+Belysningssystemer!E$62)*Belysningssystemer!E$14*Belysningssystemer!E$13)*IF((Belysningssystemer!E$56*Belysningssystemer!E$57*Belysningssystemer!E$69/Belysningssystemer!E$21)<1,0,(Belysningssystemer!E$56*Belysningssystemer!E$57*Belysningssystemer!E$69/Belysningssystemer!E$21-1)/Belysningssystemer!E$69)+((Belysningssystemer!E$23+Belysningssystemer!E$63)*Belysningssystemer!E$13)*IF((Belysningssystemer!E$56*Belysningssystemer!E$57*Belysningssystemer!E$69/Belysningssystemer!E$22) <1,0,(Belysningssystemer!E$56*Belysningssystemer!E$57*Belysningssystemer!E$69/Belysningssystemer!E$22-1)/Belysningssystemer!E$69)+F129*Belysningssystemer!E$13*$C11+IF($B11<=Belysningssystemer!E$59,Belysningssystemer!E$26,0)+IF($B11<=Belysningssystemer!E$60,Belysningssystemer!E$36*Belysningssystemer!E$13*Belysningssystemer!E$14,0))*((1+Belysningssystemer!E$77)^-$B11),0) -> 0 | G11: =IFERROR((((Belysningssystemer!G$27+Belysningssystemer!G$62)*Belysningssystemer!G$14*Belysningssystemer!G$13)*IF((Belysningssystemer!G$56*Belysningssystemer!G$57*Belysningssystemer!G$69/Belysningssystemer!G$21)<1,0,(Belysningssystemer!G$56*Belysningssystemer!G$57*Belysningssystemer!G$69/Belysningssystemer!G$21-1)/Belysningssystemer!G$69)+((Belysningssystemer!G$23+Belysningssystemer!G$63)*Belysningssystemer!G$13)*IF((Belysningssystemer!G$56*Belysningssystemer!G$57*Belysningssystemer!G$69/Belysningssystemer!G$22) <1,0,(Belysningssystemer!G$56*Belysningssystemer!G$57*Belysningssystemer!G$69/Belysningssystemer!G$22-1)/Belysningssystemer!G$69)+H129*Belysningssystemer!G$13*$C11+IF($B11<=Belysningssystemer!G$59,Belysningssystemer!G$26,0)+IF($B11<=Belysningssystemer!G$60,Belysningssystemer!G$36*Belysningssystemer!G$13*Belysningssystemer!G$14,0))*((1+Belysningssystemer!G$77)^-$B11),0) -> 0 | I11: =IFERROR((((Belysningssystemer!I$27+Belysningssystemer!I$62)*Belysningssystemer!I$14*Belysningssystemer!I$13)*IF((Belysningssystemer!I$56*Belysningssystemer!I$57*Belysningssystemer!I$69/Belysningssystemer!I$21)<1,0,(Belysningssystemer!I$56*Belysningssystemer!I$57*Belysningssystemer!I$69/Belysningssystemer!I$21-1)/Belysningssystemer!I$69)+((Belysningssystemer!I$23+Belysningssystemer!I$63)*Belysningssystemer!I$13)*IF((Belysningssystemer!I$56*Belysningssystemer!I$57*Belysningssystemer!I$69/Belysningssystemer!I$22) <1,0,(Belysningssystemer!I$56*Belysningssystemer!I$57*Belysningssystemer!I$69/Belysningssystemer!I$22-1)/Belysningssystemer!I$69)+J129*Belysningssystemer!I$13*$C11+IF($B11<=Belysningssystemer!I$59,Belysningssystemer!I$26,0)+IF($B11<=Belysningssystemer!I$60,Belysningssystemer!I$36*Belysningssystemer!I$13*Belysningssystemer!I$14,0))*((1+Belysningssystemer!I$77)^-$B11),0) -> 0 | K11: =IFERROR((((Belysningssystemer!K$27+Belysningssystemer!K$62)*Belysningssystemer!K$14*Belysningssystemer!K$13)*IF((Belysningssystemer!K$56*Belysningssystemer!K$57*Belysningssystemer!K$69/Belysningssystemer!K$21)<1,0,(Belysningssystemer!K$56*Belysningssystemer!K$57*Belysningssystemer!K$69/Belysningssystemer!K$21-1)/Belysningssystemer!K$69)+((Belysningssystemer!K$23+Belysningssystemer!K$63)*Belysningssystemer!K$13)*IF((Belysningssystemer!K$56*Belysningssystemer!K$57*Belysningssystemer!K$69/Belysningssystemer!K$22) <1,0,(Belysningssystemer!K$56*Belysningssystemer!K$57*Belysningssystemer!K$69/Belysningssystemer!K$22-1)/Belysningssystemer!K$69)+L129*Belysningssystemer!K$13*$C11+IF($B12<=Belysningssystemer!K$59,Belysningssystemer!K$26,0)+IF($B12<=Belysningssystemer!K$60,Belysningssystemer!K$36*Belysningssystemer!K$13*Belysningssystemer!K$14,0))*((1+Belysningssystemer!K$77)^-$B11),0) -> 0 | M11: =IFERROR((((Belysningssystemer!M$27+Belysningssystemer!M$62)*Belysningssystemer!M$14*Belysningssystemer!M$13)*IF((Belysningssystemer!M$56*Belysningssystemer!M$57*Belysningssystemer!M$69/Belysningssystemer!M$21)<1,0,(Belysningssystemer!M$56*Belysningssystemer!M$57*Belysningssystemer!M$69/Belysningssystemer!M$21-1)/Belysningssystemer!M$69)+((Belysningssystemer!M$23+Belysningssystemer!M$63)*Belysningssystemer!M$13)*IF((Belysningssystemer!M$56*Belysningssystemer!M$57*Belysningssystemer!M$69/Belysningssystemer!M$22) <1,0,(Belysningssystemer!M$56*Belysningssystemer!M$57*Belysningssystemer!M$69/Belysningssystemer!M$22-1)/Belysningssystemer!M$69)+N129*Belysningssystemer!M$13*$C11+IF($B12<=Belysningssystemer!M$59,Belysningssystemer!M$26,0)+IF($B12<=Belysningssystemer!M$60,Belysningssystemer!M$36*Belysningssystemer!M$13*Belysningssystemer!M$14,0))*((1+Belysningssystemer!M$77)^-$B11),0) -> 0 | O11: =IFERROR((((Belysningssystemer!O$27+Belysningssystemer!O$62)*Belysningssystemer!O$14*Belysningssystemer!O$13)*IF((Belysningssystemer!O$56*Belysningssystemer!O$57*Belysningssystemer!O$69/Belysningssystemer!O$21)<1,0,(Belysningssystemer!O$56*Belysningssystemer!O$57*Belysningssystemer!O$69/Belysningssystemer!O$21-1)/Belysningssystemer!O$69)+((Belysningssystemer!O$23+Belysningssystemer!O$63)*Belysningssystemer!O$13)*IF((Belysningssystemer!O$56*Belysningssystemer!O$57*Belysningssystemer!O$69/Belysningssystemer!O$22) <1,0,(Belysningssystemer!O$56*Belysningssystemer!O$57*Belysningssystemer!O$69/Belysningssystemer!O$22-1)/Belysningssystemer!O$69)+P129*Belysningssystemer!O$13*$C11+IF($B12<=Belysningssystemer!O$59,Belysningssystemer!O$26,0)+IF($B12<=Belysningssystemer!O$60,Belysningssystemer!O$36*Belysningssystemer!O$13*Belysningssystemer!O$14,0))*((1+Belysningssystemer!O$77)^-$B11),0) -> 0 | Q11: =IFERROR((((Belysningssystemer!Q$27+Belysningssystemer!Q$62)*Belysningssystemer!Q$14*Belysningssystemer!Q$13)*IF((Belysningssystemer!Q$56*Belysningssystemer!Q$57*Belysningssystemer!Q$69/Belysningssystemer!Q$21)<1,0,(Belysningssystemer!Q$56*Belysningssystemer!Q$57*Belysningssystemer!Q$69/Belysningssystemer!Q$21-1)/Belysningssystemer!Q$69)+((Belysningssystemer!Q$23+Belysningssystemer!Q$63)*Belysningssystemer!Q$13)*IF((Belysningssystemer!Q$56*Belysningssystemer!Q$57*Belysningssystemer!Q$69/Belysningssystemer!Q$22) <1,0,(Belysningssystemer!Q$56*Belysningssystemer!Q$57*Belysningssystemer!Q$69/Belysningssystemer!Q$22-1)/Belysningssystemer!Q$69)+R129*Belysningssystemer!Q$13*$C11+IF($B12<=Belysningssystemer!Q$59,Belysningssystemer!Q$26,0)+IF($B12<=Belysningssystemer!Q$60,Belysningssystemer!Q$36*Belysningssystemer!Q$13*Belysningssystemer!Q$14,0))*((1+Belysningssystemer!Q$77)^-$B11),0) -> 0 | S11: =IFERROR((((Belysningssystemer!S$27+Belysningssystemer!S$62)*Belysningssystemer!S$14*Belysningssystemer!S$13)*IF((Belysningssystemer!S$56*Belysningssystemer!S$57*Belysningssystemer!S$69/Belysningssystemer!S$21)<1,0,(Belysningssystemer!S$56*Belysningssystemer!S$57*Belysningssystemer!S$69/Belysningssystemer!S$21-1)/Belysningssystemer!S$69)+((Belysningssystemer!S$23+Belysningssystemer!S$63)*Belysningssystemer!S$13)*IF((Belysningssystemer!S$56*Belysningssystemer!S$57*Belysningssystemer!S$69/Belysningssystemer!S$22) <1,0,(Belysningssystemer!S$56*Belysningssystemer!S$57*Belysningssystemer!S$69/Belysningssystemer!S$22-1)/Belysningssystemer!S$69)+T129*Belysningssystemer!S$13*$C11+IF($B12<=Belysningssystemer!S$59,Belysningssystemer!S$26,0)+IF($B12<=Belysningssystemer!S$60,Belysningssystemer!S$36*Belysningssystemer!S$13*Belysningssystemer!S$14,0))*((1+Belysningssystemer!S$77)^-$B11),0) -> 0 | X11: =IF(Belysningssystemer!$E$69>=B11,B11,"") -> 10
B12: 11 | C12: =((C11-Fremskrivninger!E18)*(1+IF(Belysningssystemer!$E$71="ja",Belysningssystemer!$E$73,Belysningssystemer!$E$75))+Fremskrivninger!E18) -> 1.951389013 | E12: =IFERROR((((Belysningssystemer!E$27+Belysningssystemer!E$62)*Belysningssystemer!E$14*Belysningssystemer!E$13)*IF((Belysningssystemer!E$56*Belysningssystemer!E$57*Belysningssystemer!E$69/Belysningssystemer!E$21)<1,0,(Belysningssystemer!E$56*Belysningssystemer!E$57*Belysningssystemer!E$69/Belysningssystemer!E$21-1)/Belysningssystemer!E$69)+((Belysningssystemer!E$23+Belysningssystemer!E$63)*Belysningssystemer!E$13)*IF((Belysningssystemer!E$56*Belysningssystemer!E$57*Belysningssystemer!E$69/Belysningssystemer!E$22) <1,0,(Belysningssystemer!E$56*Belysningssystemer!E$57*Belysningssystemer!E$69/Belysningssystemer!E$22-1)/Belysningssystemer!E$69)+F130*Belysningssystemer!E$13*$C12+IF($B12<=Belysningssystemer!E$59,Belysningssystemer!E$26,0)+IF($B12<=Belysningssystemer!E$60,Belysningssystemer!E$36*Belysningssystemer!E$13*Belysningssystemer!E$14,0))*((1+Belysningssystemer!E$77)^-$B12),0) -> 0 | G12: =IFERROR((((Belysningssystemer!G$27+Belysningssystemer!G$62)*Belysningssystemer!G$14*Belysningssystemer!G$13)*IF((Belysningssystemer!G$56*Belysningssystemer!G$57*Belysningssystemer!G$69/Belysningssystemer!G$21)<1,0,(Belysningssystemer!G$56*Belysningssystemer!G$57*Belysningssystemer!G$69/Belysningssystemer!G$21-1)/Belysningssystemer!G$69)+((Belysningssystemer!G$23+Belysningssystemer!G$63)*Belysningssystemer!G$13)*IF((Belysningssystemer!G$56*Belysningssystemer!G$57*Belysningssystemer!G$69/Belysningssystemer!G$22) <1,0,(Belysningssystemer!G$56*Belysningssystemer!G$57*Belysningssystemer!G$69/Belysningssystemer!G$22-1)/Belysningssystemer!G$69)+H130*Belysningssystemer!G$13*$C12+IF($B12<=Belysningssystemer!G$59,Belysningssystemer!G$26,0)+IF($B12<=Belysningssystemer!G$60,Belysningssystemer!G$36*Belysningssystemer!G$13*Belysningssystemer!G$14,0))*((1+Belysningssystemer!G$77)^-$B12),0) -> 0 | I12: =IFERROR((((Belysningssystemer!I$27+Belysningssystemer!I$62)*Belysningssystemer!I$14*Belysningssystemer!I$13)*IF((Belysningssystemer!I$56*Belysningssystemer!I$57*Belysningssystemer!I$69/Belysningssystemer!I$21)<1,0,(Belysningssystemer!I$56*Belysningssystemer!I$57*Belysningssystemer!I$69/Belysningssystemer!I$21-1)/Belysningssystemer!I$69)+((Belysningssystemer!I$23+Belysningssystemer!I$63)*Belysningssystemer!I$13)*IF((Belysningssystemer!I$56*Belysningssystemer!I$57*Belysningssystemer!I$69/Belysningssystemer!I$22) <1,0,(Belysningssystemer!I$56*Belysningssystemer!I$57*Belysningssystemer!I$69/Belysningssystemer!I$22-1)/Belysningssystemer!I$69)+J130*Belysningssystemer!I$13*$C12+IF($B12<=Belysningssystemer!I$59,Belysningssystemer!I$26,0)+IF($B12<=Belysningssystemer!I$60,Belysningssystemer!I$36*Belysningssystemer!I$13*Belysningssystemer!I$14,0))*((1+Belysningssystemer!I$77)^-$B12),0) -> 0 | K12: =IFERROR((((Belysningssystemer!K$27+Belysningssystemer!K$62)*Belysningssystemer!K$14*Belysningssystemer!K$13)*IF((Belysningssystemer!K$56*Belysningssystemer!K$57*Belysningssystemer!K$69/Belysningssystemer!K$21)<1,0,(Belysningssystemer!K$56*Belysningssystemer!K$57*Belysningssystemer!K$69/Belysningssystemer!K$21-1)/Belysningssystemer!K$69)+((Belysningssystemer!K$23+Belysningssystemer!K$63)*Belysningssystemer!K$13)*IF((Belysningssystemer!K$56*Belysningssystemer!K$57*Belysningssystemer!K$69/Belysningssystemer!K$22) <1,0,(Belysningssystemer!K$56*Belysningssystemer!K$57*Belysningssystemer!K$69/Belysningssystemer!K$22-1)/Belysningssystemer!K$69)+L130*Belysningssystemer!K$13*$C12+IF($B13<=Belysningssystemer!K$59,Belysningssystemer!K$26,0)+IF($B13<=Belysningssystemer!K$60,Belysningssystemer!K$36*Belysningssystemer!K$13*Belysningssystemer!K$14,0))*((1+Belysningssystemer!K$77)^-$B12),0) -> 0 | M12: =IFERROR((((Belysningssystemer!M$27+Belysningssystemer!M$62)*Belysningssystemer!M$14*Belysningssystemer!M$13)*IF((Belysningssystemer!M$56*Belysningssystemer!M$57*Belysningssystemer!M$69/Belysningssystemer!M$21)<1,0,(Belysningssystemer!M$56*Belysningssystemer!M$57*Belysningssystemer!M$69/Belysningssystemer!M$21-1)/Belysningssystemer!M$69)+((Belysningssystemer!M$23+Belysningssystemer!M$63)*Belysningssystemer!M$13)*IF((Belysningssystemer!M$56*Belysningssystemer!M$57*Belysningssystemer!M$69/Belysningssystemer!M$22) <1,0,(Belysningssystemer!M$56*Belysningssystemer!M$57*Belysningssystemer!M$69/Belysningssystemer!M$22-1)/Belysningssystemer!M$69)+N130*Belysningssystemer!M$13*$C12+IF($B13<=Belysningssystemer!M$59,Belysningssystemer!M$26,0)+IF($B13<=Belysningssystemer!M$60,Belysningssystemer!M$36*Belysningssystemer!M$13*Belysningssystemer!M$14,0))*((1+Belysningssystemer!M$77)^-$B12),0) -> 0 | O12: =IFERROR((((Belysningssystemer!O$27+Belysningssystemer!O$62)*Belysningssystemer!O$14*Belysningssystemer!O$13)*IF((Belysningssystemer!O$56*Belysningssystemer!O$57*Belysningssystemer!O$69/Belysningssystemer!O$21)<1,0,(Belysningssystemer!O$56*Belysningssystemer!O$57*Belysningssystemer!O$69/Belysningssystemer!O$21-1)/Belysningssystemer!O$69)+((Belysningssystemer!O$23+Belysningssystemer!O$63)*Belysningssystemer!O$13)*IF((Belysningssystemer!O$56*Belysningssystemer!O$57*Belysningssystemer!O$69/Belysningssystemer!O$22) <1,0,(Belysningssystemer!O$56*Belysningssystemer!O$57*Belysningssystemer!O$69/Belysningssystemer!O$22-1)/Belysningssystemer!O$69)+P130*Belysningssystemer!O$13*$C12+IF($B13<=Belysningssystemer!O$59,Belysningssystemer!O$26,0)+IF($B13<=Belysningssystemer!O$60,Belysningssystemer!O$36*Belysningssystemer!O$13*Belysningssystemer!O$14,0))*((1+Belysningssystemer!O$77)^-$B12),0) -> 0 | Q12: =IFERROR((((Belysningssystemer!Q$27+Belysningssystemer!Q$62)*Belysningssystemer!Q$14*Belysningssystemer!Q$13)*IF((Belysningssystemer!Q$56*Belysningssystemer!Q$57*Belysningssystemer!Q$69/Belysningssystemer!Q$21)<1,0,(Belysningssystemer!Q$56*Belysningssystemer!Q$57*Belysningssystemer!Q$69/Belysningssystemer!Q$21-1)/Belysningssystemer!Q$69)+((Belysningssystemer!Q$23+Belysningssystemer!Q$63)*Belysningssystemer!Q$13)*IF((Belysningssystemer!Q$56*Belysningssystemer!Q$57*Belysningssystemer!Q$69/Belysningssystemer!Q$22) <1,0,(Belysningssystemer!Q$56*Belysningssystemer!Q$57*Belysningssystemer!Q$69/Belysningssystemer!Q$22-1)/Belysningssystemer!Q$69)+R130*Belysningssystemer!Q$13*$C12+IF($B13<=Belysningssystemer!Q$59,Belysningssystemer!Q$26,0)+IF($B13<=Belysningssystemer!Q$60,Belysningssystemer!Q$36*Belysningssystemer!Q$13*Belysningssystemer!Q$14,0))*((1+Belysningssystemer!Q$77)^-$B12),0) -> 0 | S12: =IFERROR((((Belysningssystemer!S$27+Belysningssystemer!S$62)*Belysningssystemer!S$14*Belysningssystemer!S$13)*IF((Belysningssystemer!S$56*Belysningssystemer!S$57*Belysningssystemer!S$69/Belysningssystemer!S$21)<1,0,(Belysningssystemer!S$56*Belysningssystemer!S$57*Belysningssystemer!S$69/Belysningssystemer!S$21-1)/Belysningssystemer!S$69)+((Belysningssystemer!S$23+Belysningssystemer!S$63)*Belysningssystemer!S$13)*IF((Belysningssystemer!S$56*Belysningssystemer!S$57*Belysningssystemer!S$69/Belysningssystemer!S$22) <1,0,(Belysningssystemer!S$56*Belysningssystemer!S$57*Belysningssystemer!S$69/Belysningssystemer!S$22-1)/Belysningssystemer!S$69)+T130*Belysningssystemer!S$13*$C12+IF($B13<=Belysningssystemer!S$59,Belysningssystemer!S$26,0)+IF($B13<=Belysningssystemer!S$60,Belysningssystemer!S$36*Belysningssystemer!S$13*Belysningssystemer!S$14,0))*((1+Belysningssystemer!S$77)^-$B12),0) -> 0 | X12: =IF(Belysningssystemer!$E$69>=B12,B12,"") -> 11
B13: 12 | C13: =((C12-Fremskrivninger!E19)*(1+IF(Belysningssystemer!$E$71="ja",Belysningssystemer!$E$73,Belysningssystemer!$E$75))+Fremskrivninger!E19) -> 1.96248431 | E13: =IFERROR((((Belysningssystemer!E$27+Belysningssystemer!E$62)*Belysningssystemer!E$14*Belysningssystemer!E$13)*IF((Belysningssystemer!E$56*Belysningssystemer!E$57*Belysningssystemer!E$69/Belysningssystemer!E$21)<1,0,(Belysningssystemer!E$56*Belysningssystemer!E$57*Belysningssystemer!E$69/Belysningssystemer!E$21-1)/Belysningssystemer!E$69)+((Belysningssystemer!E$23+Belysningssystemer!E$63)*Belysningssystemer!E$13)*IF((Belysningssystemer!E$56*Belysningssystemer!E$57*Belysningssystemer!E$69/Belysningssystemer!E$22) <1,0,(Belysningssystemer!E$56*Belysningssystemer!E$57*Belysningssystemer!E$69/Belysningssystemer!E$22-1)/Belysningssystemer!E$69)+F131*Belysningssystemer!E$13*$C13+IF($B13<=Belysningssystemer!E$59,Belysningssystemer!E$26,0)+IF($B13<=Belysningssystemer!E$60,Belysningssystemer!E$36*Belysningssystemer!E$13*Belysningssystemer!E$14,0))*((1+Belysningssystemer!E$77)^-$B13),0) -> 0 | G13: =IFERROR((((Belysningssystemer!G$27+Belysningssystemer!G$62)*Belysningssystemer!G$14*Belysningssystemer!G$13)*IF((Belysningssystemer!G$56*Belysningssystemer!G$57*Belysningssystemer!G$69/Belysningssystemer!G$21)<1,0,(Belysningssystemer!G$56*Belysningssystemer!G$57*Belysningssystemer!G$69/Belysningssystemer!G$21-1)/Belysningssystemer!G$69)+((Belysningssystemer!G$23+Belysningssystemer!G$63)*Belysningssystemer!G$13)*IF((Belysningssystemer!G$56*Belysningssystemer!G$57*Belysningssystemer!G$69/Belysningssystemer!G$22) <1,0,(Belysningssystemer!G$56*Belysningssystemer!G$57*Belysningssystemer!G$69/Belysningssystemer!G$22-1)/Belysningssystemer!G$69)+H131*Belysningssystemer!G$13*$C13+IF($B13<=Belysningssystemer!G$59,Belysningssystemer!G$26,0)+IF($B13<=Belysningssystemer!G$60,Belysningssystemer!G$36*Belysningssystemer!G$13*Belysningssystemer!G$14,0))*((1+Belysningssystemer!G$77)^-$B13),0) -> 0 | I13: =IFERROR((((Belysningssystemer!I$27+Belysningssystemer!I$62)*Belysningssystemer!I$14*Belysningssystemer!I$13)*IF((Belysningssystemer!I$56*Belysningssystemer!I$57*Belysningssystemer!I$69/Belysningssystemer!I$21)<1,0,(Belysningssystemer!I$56*Belysningssystemer!I$57*Belysningssystemer!I$69/Belysningssystemer!I$21-1)/Belysningssystemer!I$69)+((Belysningssystemer!I$23+Belysningssystemer!I$63)*Belysningssystemer!I$13)*IF((Belysningssystemer!I$56*Belysningssystemer!I$57*Belysningssystemer!I$69/Belysningssystemer!I$22) <1,0,(Belysningssystemer!I$56*Belysningssystemer!I$57*Belysningssystemer!I$69/Belysningssystemer!I$22-1)/Belysningssystemer!I$69)+J131*Belysningssystemer!I$13*$C13+IF($B13<=Belysningssystemer!I$59,Belysningssystemer!I$26,0)+IF($B13<=Belysningssystemer!I$60,Belysningssystemer!I$36*Belysningssystemer!I$13*Belysningssystemer!I$14,0))*((1+Belysningssystemer!I$77)^-$B13),0) -> 0 | K13: =IFERROR((((Belysningssystemer!K$27+Belysningssystemer!K$62)*Belysningssystemer!K$14*Belysningssystemer!K$13)*IF((Belysningssystemer!K$56*Belysningssystemer!K$57*Belysningssystemer!K$69/Belysningssystemer!K$21)<1,0,(Belysningssystemer!K$56*Belysningssystemer!K$57*Belysningssystemer!K$69/Belysningssystemer!K$21-1)/Belysningssystemer!K$69)+((Belysningssystemer!K$23+Belysningssystemer!K$63)*Belysningssystemer!K$13)*IF((Belysningssystemer!K$56*Belysningssystemer!K$57*Belysningssystemer!K$69/Belysningssystemer!K$22) <1,0,(Belysningssystemer!K$56*Belysningssystemer!K$57*Belysningssystemer!K$69/Belysningssystemer!K$22-1)/Belysningssystemer!K$69)+L131*Belysningssystemer!K$13*$C13+IF($B14<=Belysningssystemer!K$59,Belysningssystemer!K$26,0)+IF($B14<=Belysningssystemer!K$60,Belysningssystemer!K$36*Belysningssystemer!K$13*Belysningssystemer!K$14,0))*((1+Belysningssystemer!K$77)^-$B13),0) -> 0 | M13: =IFERROR((((Belysningssystemer!M$27+Belysningssystemer!M$62)*Belysningssystemer!M$14*Belysningssystemer!M$13)*IF((Belysningssystemer!M$56*Belysningssystemer!M$57*Belysningssystemer!M$69/Belysningssystemer!M$21)<1,0,(Belysningssystemer!M$56*Belysningssystemer!M$57*Belysningssystemer!M$69/Belysningssystemer!M$21-1)/Belysningssystemer!M$69)+((Belysningssystemer!M$23+Belysningssystemer!M$63)*Belysningssystemer!M$13)*IF((Belysningssystemer!M$56*Belysningssystemer!M$57*Belysningssystemer!M$69/Belysningssystemer!M$22) <1,0,(Belysningssystemer!M$56*Belysningssystemer!M$57*Belysningssystemer!M$69/Belysningssystemer!M$22-1)/Belysningssystemer!M$69)+N131*Belysningssystemer!M$13*$C13+IF($B14<=Belysningssystemer!M$59,Belysningssystemer!M$26,0)+IF($B14<=Belysningssystemer!M$60,Belysningssystemer!M$36*Belysningssystemer!M$13*Belysningssystemer!M$14,0))*((1+Belysningssystemer!M$77)^-$B13),0) -> 0 | O13: =IFERROR((((Belysningssystemer!O$27+Belysningssystemer!O$62)*Belysningssystemer!O$14*Belysningssystemer!O$13)*IF((Belysningssystemer!O$56*Belysningssystemer!O$57*Belysningssystemer!O$69/Belysningssystemer!O$21)<1,0,(Belysningssystemer!O$56*Belysningssystemer!O$57*Belysningssystemer!O$69/Belysningssystemer!O$21-1)/Belysningssystemer!O$69)+((Belysningssystemer!O$23+Belysningssystemer!O$63)*Belysningssystemer!O$13)*IF((Belysningssystemer!O$56*Belysningssystemer!O$57*Belysningssystemer!O$69/Belysningssystemer!O$22) <1,0,(Belysningssystemer!O$56*Belysningssystemer!O$57*Belysningssystemer!O$69/Belysningssystemer!O$22-1)/Belysningssystemer!O$69)+P131*Belysningssystemer!O$13*$C13+IF($B14<=Belysningssystemer!O$59,Belysningssystemer!O$26,0)+IF($B14<=Belysningssystemer!O$60,Belysningssystemer!O$36*Belysningssystemer!O$13*Belysningssystemer!O$14,0))*((1+Belysningssystemer!O$77)^-$B13),0) -> 0 | Q13: =IFERROR((((Belysningssystemer!Q$27+Belysningssystemer!Q$62)*Belysningssystemer!Q$14*Belysningssystemer!Q$13)*IF((Belysningssystemer!Q$56*Belysningssystemer!Q$57*Belysningssystemer!Q$69/Belysningssystemer!Q$21)<1,0,(Belysningssystemer!Q$56*Belysningssystemer!Q$57*Belysningssystemer!Q$69/Belysningssystemer!Q$21-1)/Belysningssystemer!Q$69)+((Belysningssystemer!Q$23+Belysningssystemer!Q$63)*Belysningssystemer!Q$13)*IF((Belysningssystemer!Q$56*Belysningssystemer!Q$57*Belysningssystemer!Q$69/Belysningssystemer!Q$22) <1,0,(Belysningssystemer!Q$56*Belysningssystemer!Q$57*Belysningssystemer!Q$69/Belysningssystemer!Q$22-1)/Belysningssystemer!Q$69)+R131*Belysningssystemer!Q$13*$C13+IF($B14<=Belysningssystemer!Q$59,Belysningssystemer!Q$26,0)+IF($B14<=Belysningssystemer!Q$60,Belysningssystemer!Q$36*Belysningssystemer!Q$13*Belysningssystemer!Q$14,0))*((1+Belysningssystemer!Q$77)^-$B13),0) -> 0 | S13: =IFERROR((((Belysningssystemer!S$27+Belysningssystemer!S$62)*Belysningssystemer!S$14*Belysningssystemer!S$13)*IF((Belysningssystemer!S$56*Belysningssystemer!S$57*Belysningssystemer!S$69/Belysningssystemer!S$21)<1,0,(Belysningssystemer!S$56*Belysningssystemer!S$57*Belysningssystemer!S$69/Belysningssystemer!S$21-1)/Belysningssystemer!S$69)+((Belysningssystemer!S$23+Belysningssystemer!S$63)*Belysningssystemer!S$13)*IF((Belysningssystemer!S$56*Belysningssystemer!S$57*Belysningssystemer!S$69/Belysningssystemer!S$22) <1,0,(Belysningssystemer!S$56*Belysningssystemer!S$57*Belysningssystemer!S$69/Belysningssystemer!S$22-1)/Belysningssystemer!S$69)+T131*Belysningssystemer!S$13*$C13+IF($B14<=Belysningssystemer!S$59,Belysningssystemer!S$26,0)+IF($B14<=Belysningssystemer!S$60,Belysningssystemer!S$36*Belysningssystemer!S$13*Belysningssystemer!S$14,0))*((1+Belysningssystemer!S$77)^-$B13),0) -> 0 | X13: =IF(Belysningssystemer!$E$69>=B13,B13,"") -> 12
B14: 13 | C14: =((C13-Fremskrivninger!E20)*(1+IF(Belysningssystemer!$E$71="ja",Belysningssystemer!$E$73,Belysningssystemer!$E$75))+Fremskrivninger!E20) -> 1.973764898 | E14: =IFERROR((((Belysningssystemer!E$27+Belysningssystemer!E$62)*Belysningssystemer!E$14*Belysningssystemer!E$13)*IF((Belysningssystemer!E$56*Belysningssystemer!E$57*Belysningssystemer!E$69/Belysningssystemer!E$21)<1,0,(Belysningssystemer!E$56*Belysningssystemer!E$57*Belysningssystemer!E$69/Belysningssystemer!E$21-1)/Belysningssystemer!E$69)+((Belysningssystemer!E$23+Belysningssystemer!E$63)*Belysningssystemer!E$13)*IF((Belysningssystemer!E$56*Belysningssystemer!E$57*Belysningssystemer!E$69/Belysningssystemer!E$22) <1,0,(Belysningssystemer!E$56*Belysningssystemer!E$57*Belysningssystemer!E$69/Belysningssystemer!E$22-1)/Belysningssystemer!E$69)+F132*Belysningssystemer!E$13*$C14+IF($B14<=Belysningssystemer!E$59,Belysningssystemer!E$26,0)+IF($B14<=Belysningssystemer!E$60,Belysningssystemer!E$36*Belysningssystemer!E$13*Belysningssystemer!E$14,0))*((1+Belysningssystemer!E$77)^-$B14),0) -> 0 | G14: =IFERROR((((Belysningssystemer!G$27+Belysningssystemer!G$62)*Belysningssystemer!G$14*Belysningssystemer!G$13)*IF((Belysningssystemer!G$56*Belysningssystemer!G$57*Belysningssystemer!G$69/Belysningssystemer!G$21)<1,0,(Belysningssystemer!G$56*Belysningssystemer!G$57*Belysningssystemer!G$69/Belysningssystemer!G$21-1)/Belysningssystemer!G$69)+((Belysningssystemer!G$23+Belysningssystemer!G$63)*Belysningssystemer!G$13)*IF((Belysningssystemer!G$56*Belysningssystemer!G$57*Belysningssystemer!G$69/Belysningssystemer!G$22) <1,0,(Belysningssystemer!G$56*Belysningssystemer!G$57*Belysningssystemer!G$69/Belysningssystemer!G$22-1)/Belysningssystemer!G$69)+H132*Belysningssystemer!G$13*$C14+IF($B14<=Belysningssystemer!G$59,Belysningssystemer!G$26,0)+IF($B14<=Belysningssystemer!G$60,Belysningssystemer!G$36*Belysningssystemer!G$13*Belysningssystemer!G$14,0))*((1+Belysningssystemer!G$77)^-$B14),0) -> 0 | I14: =IFERROR((((Belysningssystemer!I$27+Belysningssystemer!I$62)*Belysningssystemer!I$14*Belysningssystemer!I$13)*IF((Belysningssystemer!I$56*Belysningssystemer!I$57*Belysningssystemer!I$69/Belysningssystemer!I$21)<1,0,(Belysningssystemer!I$56*Belysningssystemer!I$57*Belysningssystemer!I$69/Belysningssystemer!I$21-1)/Belysningssystemer!I$69)+((Belysningssystemer!I$23+Belysningssystemer!I$63)*Belysningssystemer!I$13)*IF((Belysningssystemer!I$56*Belysningssystemer!I$57*Belysningssystemer!I$69/Belysningssystemer!I$22) <1,0,(Belysningssystemer!I$56*Belysningssystemer!I$57*Belysningssystemer!I$69/Belysningssystemer!I$22-1)/Belysningssystemer!I$69)+J132*Belysningssystemer!I$13*$C14+IF($B14<=Belysningssystemer!I$59,Belysningssystemer!I$26,0)+IF($B14<=Belysningssystemer!I$60,Belysningssystemer!I$36*Belysningssystemer!I$13*Belysningssystemer!I$14,0))*((1+Belysningssystemer!I$77)^-$B14),0) -> 0 | K14: =IFERROR((((Belysningssystemer!K$27+Belysningssystemer!K$62)*Belysningssystemer!K$14*Belysningssystemer!K$13)*IF((Belysningssystemer!K$56*Belysningssystemer!K$57*Belysningssystemer!K$69/Belysningssystemer!K$21)<1,0,(Belysningssystemer!K$56*Belysningssystemer!K$57*Belysningssystemer!K$69/Belysningssystemer!K$21-1)/Belysningssystemer!K$69)+((Belysningssystemer!K$23+Belysningssystemer!K$63)*Belysningssystemer!K$13)*IF((Belysningssystemer!K$56*Belysningssystemer!K$57*Belysningssystemer!K$69/Belysningssystemer!K$22) <1,0,(Belysningssystemer!K$56*Belysningssystemer!K$57*Belysningssystemer!K$69/Belysningssystemer!K$22-1)/Belysningssystemer!K$69)+L132*Belysningssystemer!K$13*$C14+IF($B15<=Belysningssystemer!K$59,Belysningssystemer!K$26,0)+IF($B15<=Belysningssystemer!K$60,Belysningssystemer!K$36*Belysningssystemer!K$13*Belysningssystemer!K$14,0))*((1+Belysningssystemer!K$77)^-$B14),0) -> 0 | M14: =IFERROR((((Belysningssystemer!M$27+Belysningssystemer!M$62)*Belysningssystemer!M$14*Belysningssystemer!M$13)*IF((Belysningssystemer!M$56*Belysningssystemer!M$57*Belysningssystemer!M$69/Belysningssystemer!M$21)<1,0,(Belysningssystemer!M$56*Belysningssystemer!M$57*Belysningssystemer!M$69/Belysningssystemer!M$21-1)/Belysningssystemer!M$69)+((Belysningssystemer!M$23+Belysningssystemer!M$63)*Belysningssystemer!M$13)*IF((Belysningssystemer!M$56*Belysningssystemer!M$57*Belysningssystemer!M$69/Belysningssystemer!M$22) <1,0,(Belysningssystemer!M$56*Belysningssystemer!M$57*Belysningssystemer!M$69/Belysningssystemer!M$22-1)/Belysningssystemer!M$69)+N132*Belysningssystemer!M$13*$C14+IF($B15<=Belysningssystemer!M$59,Belysningssystemer!M$26,0)+IF($B15<=Belysningssystemer!M$60,Belysningssystemer!M$36*Belysningssystemer!M$13*Belysningssystemer!M$14,0))*((1+Belysningssystemer!M$77)^-$B14),0) -> 0 | O14: =IFERROR((((Belysningssystemer!O$27+Belysningssystemer!O$62)*Belysningssystemer!O$14*Belysningssystemer!O$13)*IF((Belysningssystemer!O$56*Belysningssystemer!O$57*Belysningssystemer!O$69/Belysningssystemer!O$21)<1,0,(Belysningssystemer!O$56*Belysningssystemer!O$57*Belysningssystemer!O$69/Belysningssystemer!O$21-1)/Belysningssystemer!O$69)+((Belysningssystemer!O$23+Belysningssystemer!O$63)*Belysningssystemer!O$13)*IF((Belysningssystemer!O$56*Belysningssystemer!O$57*Belysningssystemer!O$69/Belysningssystemer!O$22) <1,0,(Belysningssystemer!O$56*Belysningssystemer!O$57*Belysningssystemer!O$69/Belysningssystemer!O$22-1)/Belysningssystemer!O$69)+P132*Belysningssystemer!O$13*$C14+IF($B15<=Belysningssystemer!O$59,Belysningssystemer!O$26,0)+IF($B15<=Belysningssystemer!O$60,Belysningssystemer!O$36*Belysningssystemer!O$13*Belysningssystemer!O$14,0))*((1+Belysningssystemer!O$77)^-$B14),0) -> 0 | Q14: =IFERROR((((Belysningssystemer!Q$27+Belysningssystemer!Q$62)*Belysningssystemer!Q$14*Belysningssystemer!Q$13)*IF((Belysningssystemer!Q$56*Belysningssystemer!Q$57*Belysningssystemer!Q$69/Belysningssystemer!Q$21)<1,0,(Belysningssystemer!Q$56*Belysningssystemer!Q$57*Belysningssystemer!Q$69/Belysningssystemer!Q$21-1)/Belysningssystemer!Q$69)+((Belysningssystemer!Q$23+Belysningssystemer!Q$63)*Belysningssystemer!Q$13)*IF((Belysningssystemer!Q$56*Belysningssystemer!Q$57*Belysningssystemer!Q$69/Belysningssystemer!Q$22) <1,0,(Belysningssystemer!Q$56*Belysningssystemer!Q$57*Belysningssystemer!Q$69/Belysningssystemer!Q$22-1)/Belysningssystemer!Q$69)+R132*Belysningssystemer!Q$13*$C14+IF($B15<=Belysningssystemer!Q$59,Belysningssystemer!Q$26,0)+IF($B15<=Belysningssystemer!Q$60,Belysningssystemer!Q$36*Belysningssystemer!Q$13*Belysningssystemer!Q$14,0))*((1+Belysningssystemer!Q$77)^-$B14),0) -> 0 | S14: =IFERROR((((Belysningssystemer!S$27+Belysningssystemer!S$62)*Belysningssystemer!S$14*Belysningssystemer!S$13)*IF((Belysningssystemer!S$56*Belysningssystemer!S$57*Belysningssystemer!S$69/Belysningssystemer!S$21)<1,0,(Belysningssystemer!S$56*Belysningssystemer!S$57*Belysningssystemer!S$69/Belysningssystemer!S$21-1)/Belysningssystemer!S$69)+((Belysningssystemer!S$23+Belysningssystemer!S$63)*Belysningssystemer!S$13)*IF((Belysningssystemer!S$56*Belysningssystemer!S$57*Belysningssystemer!S$69/Belysningssystemer!S$22) <1,0,(Belysningssystemer!S$56*Belysningssystemer!S$57*Belysningssystemer!S$69/Belysningssystemer!S$22-1)/Belysningssystemer!S$69)+T132*Belysningssystemer!S$13*$C14+IF($B15<=Belysningssystemer!S$59,Belysningssystemer!S$26,0)+IF($B15<=Belysningssystemer!S$60,Belysningssystemer!S$36*Belysningssystemer!S$13*Belysningssystemer!S$14,0))*((1+Belysningssystemer!S$77)^-$B14),0) -> 0 | X14: =IF(Belysningssystemer!$E$69>=B14,B14,"") -> 13
B15: 14 | C15: =((C14-Fremskrivninger!E21)*(1+IF(Belysningssystemer!$E$71="ja",Belysningssystemer!$E$73,Belysningssystemer!$E$75))+Fremskrivninger!E21) -> 1.985233872 | E15: =IFERROR((((Belysningssystemer!E$27+Belysningssystemer!E$62)*Belysningssystemer!E$14*Belysningssystemer!E$13)*IF((Belysningssystemer!E$56*Belysningssystemer!E$57*Belysningssystemer!E$69/Belysningssystemer!E$21)<1,0,(Belysningssystemer!E$56*Belysningssystemer!E$57*Belysningssystemer!E$69/Belysningssystemer!E$21-1)/Belysningssystemer!E$69)+((Belysningssystemer!E$23+Belysningssystemer!E$63)*Belysningssystemer!E$13)*IF((Belysningssystemer!E$56*Belysningssystemer!E$57*Belysningssystemer!E$69/Belysningssystemer!E$22) <1,0,(Belysningssystemer!E$56*Belysningssystemer!E$57*Belysningssystemer!E$69/Belysningssystemer!E$22-1)/Belysningssystemer!E$69)+F133*Belysningssystemer!E$13*$C15+IF($B15<=Belysningssystemer!E$59,Belysningssystemer!E$26,0)+IF($B15<=Belysningssystemer!E$60,Belysningssystemer!E$36*Belysningssystemer!E$13*Belysningssystemer!E$14,0))*((1+Belysningssystemer!E$77)^-$B15),0) -> 0 | G15: =IFERROR((((Belysningssystemer!G$27+Belysningssystemer!G$62)*Belysningssystemer!G$14*Belysningssystemer!G$13)*IF((Belysningssystemer!G$56*Belysningssystemer!G$57*Belysningssystemer!G$69/Belysningssystemer!G$21)<1,0,(Belysningssystemer!G$56*Belysningssystemer!G$57*Belysningssystemer!G$69/Belysningssystemer!G$21-1)/Belysningssystemer!G$69)+((Belysningssystemer!G$23+Belysningssystemer!G$63)*Belysningssystemer!G$13)*IF((Belysningssystemer!G$56*Belysningssystemer!G$57*Belysningssystemer!G$69/Belysningssystemer!G$22) <1,0,(Belysningssystemer!G$56*Belysningssystemer!G$57*Belysningssystemer!G$69/Belysningssystemer!G$22-1)/Belysningssystemer!G$69)+H133*Belysningssystemer!G$13*$C15+IF($B15<=Belysningssystemer!G$59,Belysningssystemer!G$26,0)+IF($B15<=Belysningssystemer!G$60,Belysningssystemer!G$36*Belysningssystemer!G$13*Belysningssystemer!G$14,0))*((1+Belysningssystemer!G$77)^-$B15),0) -> 0 | I15: =IFERROR((((Belysningssystemer!I$27+Belysningssystemer!I$62)*Belysningssystemer!I$14*Belysningssystemer!I$13)*IF((Belysningssystemer!I$56*Belysningssystemer!I$57*Belysningssystemer!I$69/Belysningssystemer!I$21)<1,0,(Belysningssystemer!I$56*Belysningssystemer!I$57*Belysningssystemer!I$69/Belysningssystemer!I$21-1)/Belysningssystemer!I$69)+((Belysningssystemer!I$23+Belysningssystemer!I$63)*Belysningssystemer!I$13)*IF((Belysningssystemer!I$56*Belysningssystemer!I$57*Belysningssystemer!I$69/Belysningssystemer!I$22) <1,0,(Belysningssystemer!I$56*Belysningssystemer!I$57*Belysningssystemer!I$69/Belysningssystemer!I$22-1)/Belysningssystemer!I$69)+J133*Belysningssystemer!I$13*$C15+IF($B15<=Belysningssystemer!I$59,Belysningssystemer!I$26,0)+IF($B15<=Belysningssystemer!I$60,Belysningssystemer!I$36*Belysningssystemer!I$13*Belysningssystemer!I$14,0))*((1+Belysningssystemer!I$77)^-$B15),0) -> 0 | K15: =IFERROR((((Belysningssystemer!K$27+Belysningssystemer!K$62)*Belysningssystemer!K$14*Belysningssystemer!K$13)*IF((Belysningssystemer!K$56*Belysningssystemer!K$57*Belysningssystemer!K$69/Belysningssystemer!K$21)<1,0,(Belysningssystemer!K$56*Belysningssystemer!K$57*Belysningssystemer!K$69/Belysningssystemer!K$21-1)/Belysningssystemer!K$69)+((Belysningssystemer!K$23+Belysningssystemer!K$63)*Belysningssystemer!K$13)*IF((Belysningssystemer!K$56*Belysningssystemer!K$57*Belysningssystemer!K$69/Belysningssystemer!K$22) <1,0,(Belysningssystemer!K$56*Belysningssystemer!K$57*Belysningssystemer!K$69/Belysningssystemer!K$22-1)/Belysningssystemer!K$69)+L133*Belysningssystemer!K$13*$C15+IF($B16<=Belysningssystemer!K$59,Belysningssystemer!K$26,0)+IF($B16<=Belysningssystemer!K$60,Belysningssystemer!K$36*Belysningssystemer!K$13*Belysningssystemer!K$14,0))*((1+Belysningssystemer!K$77)^-$B15),0) -> 0 | M15: =IFERROR((((Belysningssystemer!M$27+Belysningssystemer!M$62)*Belysningssystemer!M$14*Belysningssystemer!M$13)*IF((Belysningssystemer!M$56*Belysningssystemer!M$57*Belysningssystemer!M$69/Belysningssystemer!M$21)<1,0,(Belysningssystemer!M$56*Belysningssystemer!M$57*Belysningssystemer!M$69/Belysningssystemer!M$21-1)/Belysningssystemer!M$69)+((Belysningssystemer!M$23+Belysningssystemer!M$63)*Belysningssystemer!M$13)*IF((Belysningssystemer!M$56*Belysningssystemer!M$57*Belysningssystemer!M$69/Belysningssystemer!M$22) <1,0,(Belysningssystemer!M$56*Belysningssystemer!M$57*Belysningssystemer!M$69/Belysningssystemer!M$22-1)/Belysningssystemer!M$69)+N133*Belysningssystemer!M$13*$C15+IF($B16<=Belysningssystemer!M$59,Belysningssystemer!M$26,0)+IF($B16<=Belysningssystemer!M$60,Belysningssystemer!M$36*Belysningssystemer!M$13*Belysningssystemer!M$14,0))*((1+Belysningssystemer!M$77)^-$B15),0) -> 0 | O15: =IFERROR((((Belysningssystemer!O$27+Belysningssystemer!O$62)*Belysningssystemer!O$14*Belysningssystemer!O$13)*IF((Belysningssystemer!O$56*Belysningssystemer!O$57*Belysningssystemer!O$69/Belysningssystemer!O$21)<1,0,(Belysningssystemer!O$56*Belysningssystemer!O$57*Belysningssystemer!O$69/Belysningssystemer!O$21-1)/Belysningssystemer!O$69)+((Belysningssystemer!O$23+Belysningssystemer!O$63)*Belysningssystemer!O$13)*IF((Belysningssystemer!O$56*Belysningssystemer!O$57*Belysningssystemer!O$69/Belysningssystemer!O$22) <1,0,(Belysningssystemer!O$56*Belysningssystemer!O$57*Belysningssystemer!O$69/Belysningssystemer!O$22-1)/Belysningssystemer!O$69)+P133*Belysningssystemer!O$13*$C15+IF($B16<=Belysningssystemer!O$59,Belysningssystemer!O$26,0)+IF($B16<=Belysningssystemer!O$60,Belysningssystemer!O$36*Belysningssystemer!O$13*Belysningssystemer!O$14,0))*((1+Belysningssystemer!O$77)^-$B15),0) -> 0 | Q15: =IFERROR((((Belysningssystemer!Q$27+Belysningssystemer!Q$62)*Belysningssystemer!Q$14*Belysningssystemer!Q$13)*IF((Belysningssystemer!Q$56*Belysningssystemer!Q$57*Belysningssystemer!Q$69/Belysningssystemer!Q$21)<1,0,(Belysningssystemer!Q$56*Belysningssystemer!Q$57*Belysningssystemer!Q$69/Belysningssystemer!Q$21-1)/Belysningssystemer!Q$69)+((Belysningssystemer!Q$23+Belysningssystemer!Q$63)*Belysningssystemer!Q$13)*IF((Belysningssystemer!Q$56*Belysningssystemer!Q$57*Belysningssystemer!Q$69/Belysningssystemer!Q$22) <1,0,(Belysningssystemer!Q$56*Belysningssystemer!Q$57*Belysningssystemer!Q$69/Belysningssystemer!Q$22-1)/Belysningssystemer!Q$69)+R133*Belysningssystemer!Q$13*$C15+IF($B16<=Belysningssystemer!Q$59,Belysningssystemer!Q$26,0)+IF($B16<=Belysningssystemer!Q$60,Belysningssystemer!Q$36*Belysningssystemer!Q$13*Belysningssystemer!Q$14,0))*((1+Belysningssystemer!Q$77)^-$B15),0) -> 0 | S15: =IFERROR((((Belysningssystemer!S$27+Belysningssystemer!S$62)*Belysningssystemer!S$14*Belysningssystemer!S$13)*IF((Belysningssystemer!S$56*Belysningssystemer!S$57*Belysningssystemer!S$69/Belysningssystemer!S$21)<1,0,(Belysningssystemer!S$56*Belysningssystemer!S$57*Belysningssystemer!S$69/Belysningssystemer!S$21-1)/Belysningssystemer!S$69)+((Belysningssystemer!S$23+Belysningssystemer!S$63)*Belysningssystemer!S$13)*IF((Belysningssystemer!S$56*Belysningssystemer!S$57*Belysningssystemer!S$69/Belysningssystemer!S$22) <1,0,(Belysningssystemer!S$56*Belysningssystemer!S$57*Belysningssystemer!S$69/Belysningssystemer!S$22-1)/Belysningssystemer!S$69)+T133*Belysningssystemer!S$13*$C15+IF($B16<=Belysningssystemer!S$59,Belysningssystemer!S$26,0)+IF($B16<=Belysningssystemer!S$60,Belysningssystemer!S$36*Belysningssystemer!S$13*Belysningssystemer!S$14,0))*((1+Belysningssystemer!S$77)^-$B15),0) -> 0 | X15: =IF(Belysningssystemer!$E$69>=B15,B15,"") -> 14
B16: 15 | C16: =((C15-Fremskrivninger!E22)*(1+IF(Belysningssystemer!$E$71="ja",Belysningssystemer!$E$73,Belysningssystemer!$E$75))+Fremskrivninger!E22) -> 1.996894377 | E16: =IFERROR((((Belysningssystemer!E$27+Belysningssystemer!E$62)*Belysningssystemer!E$14*Belysningssystemer!E$13)*IF((Belysningssystemer!E$56*Belysningssystemer!E$57*Belysningssystemer!E$69/Belysningssystemer!E$21)<1,0,(Belysningssystemer!E$56*Belysningssystemer!E$57*Belysningssystemer!E$69/Belysningssystemer!E$21-1)/Belysningssystemer!E$69)+((Belysningssystemer!E$23+Belysningssystemer!E$63)*Belysningssystemer!E$13)*IF((Belysningssystemer!E$56*Belysningssystemer!E$57*Belysningssystemer!E$69/Belysningssystemer!E$22) <1,0,(Belysningssystemer!E$56*Belysningssystemer!E$57*Belysningssystemer!E$69/Belysningssystemer!E$22-1)/Belysningssystemer!E$69)+F134*Belysningssystemer!E$13*$C16+IF($B16<=Belysningssystemer!E$59,Belysningssystemer!E$26,0)+IF($B16<=Belysningssystemer!E$60,Belysningssystemer!E$36*Belysningssystemer!E$13*Belysningssystemer!E$14,0))*((1+Belysningssystemer!E$77)^-$B16),0) -> 0 | G16: =IFERROR((((Belysningssystemer!G$27+Belysningssystemer!G$62)*Belysningssystemer!G$14*Belysningssystemer!G$13)*IF((Belysningssystemer!G$56*Belysningssystemer!G$57*Belysningssystemer!G$69/Belysningssystemer!G$21)<1,0,(Belysningssystemer!G$56*Belysningssystemer!G$57*Belysningssystemer!G$69/Belysningssystemer!G$21-1)/Belysningssystemer!G$69)+((Belysningssystemer!G$23+Belysningssystemer!G$63)*Belysningssystemer!G$13)*IF((Belysningssystemer!G$56*Belysningssystemer!G$57*Belysningssystemer!G$69/Belysningssystemer!G$22) <1,0,(Belysningssystemer!G$56*Belysningssystemer!G$57*Belysningssystemer!G$69/Belysningssystemer!G$22-1)/Belysningssystemer!G$69)+H134*Belysningssystemer!G$13*$C16+IF($B16<=Belysningssystemer!G$59,Belysningssystemer!G$26,0)+IF($B16<=Belysningssystemer!G$60,Belysningssystemer!G$36*Belysningssystemer!G$13*Belysningssystemer!G$14,0))*((1+Belysningssystemer!G$77)^-$B16),0) -> 0 | I16: =IFERROR((((Belysningssystemer!I$27+Belysningssystemer!I$62)*Belysningssystemer!I$14*Belysningssystemer!I$13)*IF((Belysningssystemer!I$56*Belysningssystemer!I$57*Belysningssystemer!I$69/Belysningssystemer!I$21)<1,0,(Belysningssystemer!I$56*Belysningssystemer!I$57*Belysningssystemer!I$69/Belysningssystemer!I$21-1)/Belysningssystemer!I$69)+((Belysningssystemer!I$23+Belysningssystemer!I$63)*Belysningssystemer!I$13)*IF((Belysningssystemer!I$56*Belysningssystemer!I$57*Belysningssystemer!I$69/Belysningssystemer!I$22) <1,0,(Belysningssystemer!I$56*Belysningssystemer!I$57*Belysningssystemer!I$69/Belysningssystemer!I$22-1)/Belysningssystemer!I$69)+J134*Belysningssystemer!I$13*$C16+IF($B16<=Belysningssystemer!I$59,Belysningssystemer!I$26,0)+IF($B16<=Belysningssystemer!I$60,Belysningssystemer!I$36*Belysningssystemer!I$13*Belysningssystemer!I$14,0))*((1+Belysningssystemer!I$77)^-$B16),0) -> 0 | K16: =IFERROR((((Belysningssystemer!K$27+Belysningssystemer!K$62)*Belysningssystemer!K$14*Belysningssystemer!K$13)*IF((Belysningssystemer!K$56*Belysningssystemer!K$57*Belysningssystemer!K$69/Belysningssystemer!K$21)<1,0,(Belysningssystemer!K$56*Belysningssystemer!K$57*Belysningssystemer!K$69/Belysningssystemer!K$21-1)/Belysningssystemer!K$69)+((Belysningssystemer!K$23+Belysningssystemer!K$63)*Belysningssystemer!K$13)*IF((Belysningssystemer!K$56*Belysningssystemer!K$57*Belysningssystemer!K$69/Belysningssystemer!K$22) <1,0,(Belysningssystemer!K$56*Belysningssystemer!K$57*Belysningssystemer!K$69/Belysningssystemer!K$22-1)/Belysningssystemer!K$69)+L134*Belysningssystemer!K$13*$C16+IF($B17<=Belysningssystemer!K$59,Belysningssystemer!K$26,0)+IF($B17<=Belysningssystemer!K$60,Belysningssystemer!K$36*Belysningssystemer!K$13*Belysningssystemer!K$14,0))*((1+Belysningssystemer!K$77)^-$B16),0) -> 0 | M16: =IFERROR((((Belysningssystemer!M$27+Belysningssystemer!M$62)*Belysningssystemer!M$14*Belysningssystemer!M$13)*IF((Belysningssystemer!M$56*Belysningssystemer!M$57*Belysningssystemer!M$69/Belysningssystemer!M$21)<1,0,(Belysningssystemer!M$56*Belysningssystemer!M$57*Belysningssystemer!M$69/Belysningssystemer!M$21-1)/Belysningssystemer!M$69)+((Belysningssystemer!M$23+Belysningssystemer!M$63)*Belysningssystemer!M$13)*IF((Belysningssystemer!M$56*Belysningssystemer!M$57*Belysningssystemer!M$69/Belysningssystemer!M$22) <1,0,(Belysningssystemer!M$56*Belysningssystemer!M$57*Belysningssystemer!M$69/Belysningssystemer!M$22-1)/Belysningssystemer!M$69)+N134*Belysningssystemer!M$13*$C16+IF($B17<=Belysningssystemer!M$59,Belysningssystemer!M$26,0)+IF($B17<=Belysningssystemer!M$60,Belysningssystemer!M$36*Belysningssystemer!M$13*Belysningssystemer!M$14,0))*((1+Belysningssystemer!M$77)^-$B16),0) -> 0 | O16: =IFERROR((((Belysningssystemer!O$27+Belysningssystemer!O$62)*Belysningssystemer!O$14*Belysningssystemer!O$13)*IF((Belysningssystemer!O$56*Belysningssystemer!O$57*Belysningssystemer!O$69/Belysningssystemer!O$21)<1,0,(Belysningssystemer!O$56*Belysningssystemer!O$57*Belysningssystemer!O$69/Belysningssystemer!O$21-1)/Belysningssystemer!O$69)+((Belysningssystemer!O$23+Belysningssystemer!O$63)*Belysningssystemer!O$13)*IF((Belysningssystemer!O$56*Belysningssystemer!O$57*Belysningssystemer!O$69/Belysningssystemer!O$22) <1,0,(Belysningssystemer!O$56*Belysningssystemer!O$57*Belysningssystemer!O$69/Belysningssystemer!O$22-1)/Belysningssystemer!O$69)+P134*Belysningssystemer!O$13*$C16+IF($B17<=Belysningssystemer!O$59,Belysningssystemer!O$26,0)+IF($B17<=Belysningssystemer!O$60,Belysningssystemer!O$36*Belysningssystemer!O$13*Belysningssystemer!O$14,0))*((1+Belysningssystemer!O$77)^-$B16),0) -> 0 | Q16: =IFERROR((((Belysningssystemer!Q$27+Belysningssystemer!Q$62)*Belysningssystemer!Q$14*Belysningssystemer!Q$13)*IF((Belysningssystemer!Q$56*Belysningssystemer!Q$57*Belysningssystemer!Q$69/Belysningssystemer!Q$21)<1,0,(Belysningssystemer!Q$56*Belysningssystemer!Q$57*Belysningssystemer!Q$69/Belysningssystemer!Q$21-1)/Belysningssystemer!Q$69)+((Belysningssystemer!Q$23+Belysningssystemer!Q$63)*Belysningssystemer!Q$13)*IF((Belysningssystemer!Q$56*Belysningssystemer!Q$57*Belysningssystemer!Q$69/Belysningssystemer!Q$22) <1,0,(Belysningssystemer!Q$56*Belysningssystemer!Q$57*Belysningssystemer!Q$69/Belysningssystemer!Q$22-1)/Belysningssystemer!Q$69)+R134*Belysningssystemer!Q$13*$C16+IF($B17<=Belysningssystemer!Q$59,Belysningssystemer!Q$26,0)+IF($B17<=Belysningssystemer!Q$60,Belysningssystemer!Q$36*Belysningssystemer!Q$13*Belysningssystemer!Q$14,0))*((1+Belysningssystemer!Q$77)^-$B16),0) -> 0 | S16: =IFERROR((((Belysningssystemer!S$27+Belysningssystemer!S$62)*Belysningssystemer!S$14*Belysningssystemer!S$13)*IF((Belysningssystemer!S$56*Belysningssystemer!S$57*Belysningssystemer!S$69/Belysningssystemer!S$21)<1,0,(Belysningssystemer!S$56*Belysningssystemer!S$57*Belysningssystemer!S$69/Belysningssystemer!S$21-1)/Belysningssystemer!S$69)+((Belysningssystemer!S$23+Belysningssystemer!S$63)*Belysningssystemer!S$13)*IF((Belysningssystemer!S$56*Belysningssystemer!S$57*Belysningssystemer!S$69/Belysningssystemer!S$22) <1,0,(Belysningssystemer!S$56*Belysningssystemer!S$57*Belysningssystemer!S$69/Belysningssystemer!S$22-1)/Belysningssystemer!S$69)+T134*Belysningssystemer!S$13*$C16+IF($B17<=Belysningssystemer!S$59,Belysningssystemer!S$26,0)+IF($B17<=Belysningssystemer!S$60,Belysningssystemer!S$36*Belysningssystemer!S$13*Belysningssystemer!S$14,0))*((1+Belysningssystemer!S$77)^-$B16),0) -> 0 | X16: =IF(Belysningssystemer!$E$69>=B16,B16,"") -> 15
B17: 16 | C17: =((C16-Fremskrivninger!E23)*(1+IF(Belysningssystemer!$E$71="ja",Belysningssystemer!$E$73,Belysningssystemer!$E$75))+Fremskrivninger!E23) -> 2.008749613 | E17: =IFERROR((((Belysningssystemer!E$27+Belysningssystemer!E$62)*Belysningssystemer!E$14*Belysningssystemer!E$13)*IF((Belysningssystemer!E$56*Belysningssystemer!E$57*Belysningssystemer!E$69/Belysningssystemer!E$21)<1,0,(Belysningssystemer!E$56*Belysningssystemer!E$57*Belysningssystemer!E$69/Belysningssystemer!E$21-1)/Belysningssystemer!E$69)+((Belysningssystemer!E$23+Belysningssystemer!E$63)*Belysningssystemer!E$13)*IF((Belysningssystemer!E$56*Belysningssystemer!E$57*Belysningssystemer!E$69/Belysningssystemer!E$22) <1,0,(Belysningssystemer!E$56*Belysningssystemer!E$57*Belysningssystemer!E$69/Belysningssystemer!E$22-1)/Belysningssystemer!E$69)+F135*Belysningssystemer!E$13*$C17+IF($B17<=Belysningssystemer!E$59,Belysningssystemer!E$26,0)+IF($B17<=Belysningssystemer!E$60,Belysningssystemer!E$36*Belysningssystemer!E$13*Belysningssystemer!E$14,0))*((1+Belysningssystemer!E$77)^-$B17),0) -> 0 | G17: =IFERROR((((Belysningssystemer!G$27+Belysningssystemer!G$62)*Belysningssystemer!G$14*Belysningssystemer!G$13)*IF((Belysningssystemer!G$56*Belysningssystemer!G$57*Belysningssystemer!G$69/Belysningssystemer!G$21)<1,0,(Belysningssystemer!G$56*Belysningssystemer!G$57*Belysningssystemer!G$69/Belysningssystemer!G$21-1)/Belysningssystemer!G$69)+((Belysningssystemer!G$23+Belysningssystemer!G$63)*Belysningssystemer!G$13)*IF((Belysningssystemer!G$56*Belysningssystemer!G$57*Belysningssystemer!G$69/Belysningssystemer!G$22) <1,0,(Belysningssystemer!G$56*Belysningssystemer!G$57*Belysningssystemer!G$69/Belysningssystemer!G$22-1)/Belysningssystemer!G$69)+H135*Belysningssystemer!G$13*$C17+IF($B17<=Belysningssystemer!G$59,Belysningssystemer!G$26,0)+IF($B17<=Belysningssystemer!G$60,Belysningssystemer!G$36*Belysningssystemer!G$13*Belysningssystemer!G$14,0))*((1+Belysningssystemer!G$77)^-$B17),0) -> 0 | I17: =IFERROR((((Belysningssystemer!I$27+Belysningssystemer!I$62)*Belysningssystemer!I$14*Belysningssystemer!I$13)*IF((Belysningssystemer!I$56*Belysningssystemer!I$57*Belysningssystemer!I$69/Belysningssystemer!I$21)<1,0,(Belysningssystemer!I$56*Belysningssystemer!I$57*Belysningssystemer!I$69/Belysningssystemer!I$21-1)/Belysningssystemer!I$69)+((Belysningssystemer!I$23+Belysningssystemer!I$63)*Belysningssystemer!I$13)*IF((Belysningssystemer!I$56*Belysningssystemer!I$57*Belysningssystemer!I$69/Belysningssystemer!I$22) <1,0,(Belysningssystemer!I$56*Belysningssystemer!I$57*Belysningssystemer!I$69/Belysningssystemer!I$22-1)/Belysningssystemer!I$69)+J135*Belysningssystemer!I$13*$C17+IF($B17<=Belysningssystemer!I$59,Belysningssystemer!I$26,0)+IF($B17<=Belysningssystemer!I$60,Belysningssystemer!I$36*Belysningssystemer!I$13*Belysningssystemer!I$14,0))*((1+Belysningssystemer!I$77)^-$B17),0) -> 0 | K17: =IFERROR((((Belysningssystemer!K$27+Belysningssystemer!K$62)*Belysningssystemer!K$14*Belysningssystemer!K$13)*IF((Belysningssystemer!K$56*Belysningssystemer!K$57*Belysningssystemer!K$69/Belysningssystemer!K$21)<1,0,(Belysningssystemer!K$56*Belysningssystemer!K$57*Belysningssystemer!K$69/Belysningssystemer!K$21-1)/Belysningssystemer!K$69)+((Belysningssystemer!K$23+Belysningssystemer!K$63)*Belysningssystemer!K$13)*IF((Belysningssystemer!K$56*Belysningssystemer!K$57*Belysningssystemer!K$69/Belysningssystemer!K$22) <1,0,(Belysningssystemer!K$56*Belysningssystemer!K$57*Belysningssystemer!K$69/Belysningssystemer!K$22-1)/Belysningssystemer!K$69)+L135*Belysningssystemer!K$13*$C17+IF($B18<=Belysningssystemer!K$59,Belysningssystemer!K$26,0)+IF($B18<=Belysningssystemer!K$60,Belysningssystemer!K$36*Belysningssystemer!K$13*Belysningssystemer!K$14,0))*((1+Belysningssystemer!K$77)^-$B17),0) -> 0 | M17: =IFERROR((((Belysningssystemer!M$27+Belysningssystemer!M$62)*Belysningssystemer!M$14*Belysningssystemer!M$13)*IF((Belysningssystemer!M$56*Belysningssystemer!M$57*Belysningssystemer!M$69/Belysningssystemer!M$21)<1,0,(Belysningssystemer!M$56*Belysningssystemer!M$57*Belysningssystemer!M$69/Belysningssystemer!M$21-1)/Belysningssystemer!M$69)+((Belysningssystemer!M$23+Belysningssystemer!M$63)*Belysningssystemer!M$13)*IF((Belysningssystemer!M$56*Belysningssystemer!M$57*Belysningssystemer!M$69/Belysningssystemer!M$22) <1,0,(Belysningssystemer!M$56*Belysningssystemer!M$57*Belysningssystemer!M$69/Belysningssystemer!M$22-1)/Belysningssystemer!M$69)+N135*Belysningssystemer!M$13*$C17+IF($B18<=Belysningssystemer!M$59,Belysningssystemer!M$26,0)+IF($B18<=Belysningssystemer!M$60,Belysningssystemer!M$36*Belysningssystemer!M$13*Belysningssystemer!M$14,0))*((1+Belysningssystemer!M$77)^-$B17),0) -> 0 | O17: =IFERROR((((Belysningssystemer!O$27+Belysningssystemer!O$62)*Belysningssystemer!O$14*Belysningssystemer!O$13)*IF((Belysningssystemer!O$56*Belysningssystemer!O$57*Belysningssystemer!O$69/Belysningssystemer!O$21)<1,0,(Belysningssystemer!O$56*Belysningssystemer!O$57*Belysningssystemer!O$69/Belysningssystemer!O$21-1)/Belysningssystemer!O$69)+((Belysningssystemer!O$23+Belysningssystemer!O$63)*Belysningssystemer!O$13)*IF((Belysningssystemer!O$56*Belysningssystemer!O$57*Belysningssystemer!O$69/Belysningssystemer!O$22) <1,0,(Belysningssystemer!O$56*Belysningssystemer!O$57*Belysningssystemer!O$69/Belysningssystemer!O$22-1)/Belysningssystemer!O$69)+P135*Belysningssystemer!O$13*$C17+IF($B18<=Belysningssystemer!O$59,Belysningssystemer!O$26,0)+IF($B18<=Belysningssystemer!O$60,Belysningssystemer!O$36*Belysningssystemer!O$13*Belysningssystemer!O$14,0))*((1+Belysningssystemer!O$77)^-$B17),0) -> 0 | Q17: =IFERROR((((Belysningssystemer!Q$27+Belysningssystemer!Q$62)*Belysningssystemer!Q$14*Belysningssystemer!Q$13)*IF((Belysningssystemer!Q$56*Belysningssystemer!Q$57*Belysningssystemer!Q$69/Belysningssystemer!Q$21)<1,0,(Belysningssystemer!Q$56*Belysningssystemer!Q$57*Belysningssystemer!Q$69/Belysningssystemer!Q$21-1)/Belysningssystemer!Q$69)+((Belysningssystemer!Q$23+Belysningssystemer!Q$63)*Belysningssystemer!Q$13)*IF((Belysningssystemer!Q$56*Belysningssystemer!Q$57*Belysningssystemer!Q$69/Belysningssystemer!Q$22) <1,0,(Belysningssystemer!Q$56*Belysningssystemer!Q$57*Belysningssystemer!Q$69/Belysningssystemer!Q$22-1)/Belysningssystemer!Q$69)+R135*Belysningssystemer!Q$13*$C17+IF($B18<=Belysningssystemer!Q$59,Belysningssystemer!Q$26,0)+IF($B18<=Belysningssystemer!Q$60,Belysningssystemer!Q$36*Belysningssystemer!Q$13*Belysningssystemer!Q$14,0))*((1+Belysningssystemer!Q$77)^-$B17),0) -> 0 | S17: =IFERROR((((Belysningssystemer!S$27+Belysningssystemer!S$62)*Belysningssystemer!S$14*Belysningssystemer!S$13)*IF((Belysningssystemer!S$56*Belysningssystemer!S$57*Belysningssystemer!S$69/Belysningssystemer!S$21)<1,0,(Belysningssystemer!S$56*Belysningssystemer!S$57*Belysningssystemer!S$69/Belysningssystemer!S$21-1)/Belysningssystemer!S$69)+((Belysningssystemer!S$23+Belysningssystemer!S$63)*Belysningssystemer!S$13)*IF((Belysningssystemer!S$56*Belysningssystemer!S$57*Belysningssystemer!S$69/Belysningssystemer!S$22) <1,0,(Belysningssystemer!S$56*Belysningssystemer!S$57*Belysningssystemer!S$69/Belysningssystemer!S$22-1)/Belysningssystemer!S$69)+T135*Belysningssystemer!S$13*$C17+IF($B18<=Belysningssystemer!S$59,Belysningssystemer!S$26,0)+IF($B18<=Belysningssystemer!S$60,Belysningssystemer!S$36*Belysningssystemer!S$13*Belysningssystemer!S$14,0))*((1+Belysningssystemer!S$77)^-$B17),0) -> 0 | X17: =IF(Belysningssystemer!$E$69>=B17,B17,"") -> 
B18: 17 | C18: =((C17-Fremskrivninger!E24)*(1+IF(Belysningssystemer!$E$71="ja",Belysningssystemer!$E$73,Belysningssystemer!$E$75))+Fremskrivninger!E24) -> 2.020802832 | E18: =IFERROR((((Belysningssystemer!E$27+Belysningssystemer!E$62)*Belysningssystemer!E$14*Belysningssystemer!E$13)*IF((Belysningssystemer!E$56*Belysningssystemer!E$57*Belysningssystemer!E$69/Belysningssystemer!E$21)<1,0,(Belysningssystemer!E$56*Belysningssystemer!E$57*Belysningssystemer!E$69/Belysningssystemer!E$21-1)/Belysningssystemer!E$69)+((Belysningssystemer!E$23+Belysningssystemer!E$63)*Belysningssystemer!E$13)*IF((Belysningssystemer!E$56*Belysningssystemer!E$57*Belysningssystemer!E$69/Belysningssystemer!E$22) <1,0,(Belysningssystemer!E$56*Belysningssystemer!E$57*Belysningssystemer!E$69/Belysningssystemer!E$22-1)/Belysningssystemer!E$69)+F136*Belysningssystemer!E$13*$C18+IF($B18<=Belysningssystemer!E$59,Belysningssystemer!E$26,0)+IF($B18<=Belysningssystemer!E$60,Belysningssystemer!E$36*Belysningssystemer!E$13*Belysningssystemer!E$14,0))*((1+Belysningssystemer!E$77)^-$B18),0) -> 0 | G18: =IFERROR((((Belysningssystemer!G$27+Belysningssystemer!G$62)*Belysningssystemer!G$14*Belysningssystemer!G$13)*IF((Belysningssystemer!G$56*Belysningssystemer!G$57*Belysningssystemer!G$69/Belysningssystemer!G$21)<1,0,(Belysningssystemer!G$56*Belysningssystemer!G$57*Belysningssystemer!G$69/Belysningssystemer!G$21-1)/Belysningssystemer!G$69)+((Belysningssystemer!G$23+Belysningssystemer!G$63)*Belysningssystemer!G$13)*IF((Belysningssystemer!G$56*Belysningssystemer!G$57*Belysningssystemer!G$69/Belysningssystemer!G$22) <1,0,(Belysningssystemer!G$56*Belysningssystemer!G$57*Belysningssystemer!G$69/Belysningssystemer!G$22-1)/Belysningssystemer!G$69)+H136*Belysningssystemer!G$13*$C18+IF($B18<=Belysningssystemer!G$59,Belysningssystemer!G$26,0)+IF($B18<=Belysningssystemer!G$60,Belysningssystemer!G$36*Belysningssystemer!G$13*Belysningssystemer!G$14,0))*((1+Belysningssystemer!G$77)^-$B18),0) -> 0 | I18: =IFERROR((((Belysningssystemer!I$27+Belysningssystemer!I$62)*Belysningssystemer!I$14*Belysningssystemer!I$13)*IF((Belysningssystemer!I$56*Belysningssystemer!I$57*Belysningssystemer!I$69/Belysningssystemer!I$21)<1,0,(Belysningssystemer!I$56*Belysningssystemer!I$57*Belysningssystemer!I$69/Belysningssystemer!I$21-1)/Belysningssystemer!I$69)+((Belysningssystemer!I$23+Belysningssystemer!I$63)*Belysningssystemer!I$13)*IF((Belysningssystemer!I$56*Belysningssystemer!I$57*Belysningssystemer!I$69/Belysningssystemer!I$22) <1,0,(Belysningssystemer!I$56*Belysningssystemer!I$57*Belysningssystemer!I$69/Belysningssystemer!I$22-1)/Belysningssystemer!I$69)+J136*Belysningssystemer!I$13*$C18+IF($B18<=Belysningssystemer!I$59,Belysningssystemer!I$26,0)+IF($B18<=Belysningssystemer!I$60,Belysningssystemer!I$36*Belysningssystemer!I$13*Belysningssystemer!I$14,0))*((1+Belysningssystemer!I$77)^-$B18),0) -> 0 | K18: =IFERROR((((Belysningssystemer!K$27+Belysningssystemer!K$62)*Belysningssystemer!K$14*Belysningssystemer!K$13)*IF((Belysningssystemer!K$56*Belysningssystemer!K$57*Belysningssystemer!K$69/Belysningssystemer!K$21)<1,0,(Belysningssystemer!K$56*Belysningssystemer!K$57*Belysningssystemer!K$69/Belysningssystemer!K$21-1)/Belysningssystemer!K$69)+((Belysningssystemer!K$23+Belysningssystemer!K$63)*Belysningssystemer!K$13)*IF((Belysningssystemer!K$56*Belysningssystemer!K$57*Belysningssystemer!K$69/Belysningssystemer!K$22) <1,0,(Belysningssystemer!K$56*Belysningssystemer!K$57*Belysningssystemer!K$69/Belysningssystemer!K$22-1)/Belysningssystemer!K$69)+L136*Belysningssystemer!K$13*$C18+IF($B19<=Belysningssystemer!K$59,Belysningssystemer!K$26,0)+IF($B19<=Belysningssystemer!K$60,Belysningssystemer!K$36*Belysningssystemer!K$13*Belysningssystemer!K$14,0))*((1+Belysningssystemer!K$77)^-$B18),0) -> 0 | M18: =IFERROR((((Belysningssystemer!M$27+Belysningssystemer!M$62)*Belysningssystemer!M$14*Belysningssystemer!M$13)*IF((Belysningssystemer!M$56*Belysningssystemer!M$57*Belysningssystemer!M$69/Belysningssystemer!M$21)<1,0,(Belysningssystemer!M$56*Belysningssystemer!M$57*Belysningssystemer!M$69/Belysningssystemer!M$21-1)/Belysningssystemer!M$69)+((Belysningssystemer!M$23+Belysningssystemer!M$63)*Belysningssystemer!M$13)*IF((Belysningssystemer!M$56*Belysningssystemer!M$57*Belysningssystemer!M$69/Belysningssystemer!M$22) <1,0,(Belysningssystemer!M$56*Belysningssystemer!M$57*Belysningssystemer!M$69/Belysningssystemer!M$22-1)/Belysningssystemer!M$69)+N136*Belysningssystemer!M$13*$C18+IF($B19<=Belysningssystemer!M$59,Belysningssystemer!M$26,0)+IF($B19<=Belysningssystemer!M$60,Belysningssystemer!M$36*Belysningssystemer!M$13*Belysningssystemer!M$14,0))*((1+Belysningssystemer!M$77)^-$B18),0) -> 0 | O18: =IFERROR((((Belysningssystemer!O$27+Belysningssystemer!O$62)*Belysningssystemer!O$14*Belysningssystemer!O$13)*IF((Belysningssystemer!O$56*Belysningssystemer!O$57*Belysningssystemer!O$69/Belysningssystemer!O$21)<1,0,(Belysningssystemer!O$56*Belysningssystemer!O$57*Belysningssystemer!O$69/Belysningssystemer!O$21-1)/Belysningssystemer!O$69)+((Belysningssystemer!O$23+Belysningssystemer!O$63)*Belysningssystemer!O$13)*IF((Belysningssystemer!O$56*Belysningssystemer!O$57*Belysningssystemer!O$69/Belysningssystemer!O$22) <1,0,(Belysningssystemer!O$56*Belysningssystemer!O$57*Belysningssystemer!O$69/Belysningssystemer!O$22-1)/Belysningssystemer!O$69)+P136*Belysningssystemer!O$13*$C18+IF($B19<=Belysningssystemer!O$59,Belysningssystemer!O$26,0)+IF($B19<=Belysningssystemer!O$60,Belysningssystemer!O$36*Belysningssystemer!O$13*Belysningssystemer!O$14,0))*((1+Belysningssystemer!O$77)^-$B18),0) -> 0 | Q18: =IFERROR((((Belysningssystemer!Q$27+Belysningssystemer!Q$62)*Belysningssystemer!Q$14*Belysningssystemer!Q$13)*IF((Belysningssystemer!Q$56*Belysningssystemer!Q$57*Belysningssystemer!Q$69/Belysningssystemer!Q$21)<1,0,(Belysningssystemer!Q$56*Belysningssystemer!Q$57*Belysningssystemer!Q$69/Belysningssystemer!Q$21-1)/Belysningssystemer!Q$69)+((Belysningssystemer!Q$23+Belysningssystemer!Q$63)*Belysningssystemer!Q$13)*IF((Belysningssystemer!Q$56*Belysningssystemer!Q$57*Belysningssystemer!Q$69/Belysningssystemer!Q$22) <1,0,(Belysningssystemer!Q$56*Belysningssystemer!Q$57*Belysningssystemer!Q$69/Belysningssystemer!Q$22-1)/Belysningssystemer!Q$69)+R136*Belysningssystemer!Q$13*$C18+IF($B19<=Belysningssystemer!Q$59,Belysningssystemer!Q$26,0)+IF($B19<=Belysningssystemer!Q$60,Belysningssystemer!Q$36*Belysningssystemer!Q$13*Belysningssystemer!Q$14,0))*((1+Belysningssystemer!Q$77)^-$B18),0) -> 0 | S18: =IFERROR((((Belysningssystemer!S$27+Belysningssystemer!S$62)*Belysningssystemer!S$14*Belysningssystemer!S$13)*IF((Belysningssystemer!S$56*Belysningssystemer!S$57*Belysningssystemer!S$69/Belysningssystemer!S$21)<1,0,(Belysningssystemer!S$56*Belysningssystemer!S$57*Belysningssystemer!S$69/Belysningssystemer!S$21-1)/Belysningssystemer!S$69)+((Belysningssystemer!S$23+Belysningssystemer!S$63)*Belysningssystemer!S$13)*IF((Belysningssystemer!S$56*Belysningssystemer!S$57*Belysningssystemer!S$69/Belysningssystemer!S$22) <1,0,(Belysningssystemer!S$56*Belysningssystemer!S$57*Belysningssystemer!S$69/Belysningssystemer!S$22-1)/Belysningssystemer!S$69)+T136*Belysningssystemer!S$13*$C18+IF($B19<=Belysningssystemer!S$59,Belysningssystemer!S$26,0)+IF($B19<=Belysningssystemer!S$60,Belysningssystemer!S$36*Belysningssystemer!S$13*Belysningssystemer!S$14,0))*((1+Belysningssystemer!S$77)^-$B18),0) -> 0 | X18: =IF(Belysningssystemer!$E$69>=B18,B18,"") -> 
B19: 18 | C19: =((C18-Fremskrivninger!E25)*(1+IF(Belysningssystemer!$E$71="ja",Belysningssystemer!$E$73,Belysningssystemer!$E$75))+Fremskrivninger!E25) -> 2.033057339 | E19: =IFERROR((((Belysningssystemer!E$27+Belysningssystemer!E$62)*Belysningssystemer!E$14*Belysningssystemer!E$13)*IF((Belysningssystemer!E$56*Belysningssystemer!E$57*Belysningssystemer!E$69/Belysningssystemer!E$21)<1,0,(Belysningssystemer!E$56*Belysningssystemer!E$57*Belysningssystemer!E$69/Belysningssystemer!E$21-1)/Belysningssystemer!E$69)+((Belysningssystemer!E$23+Belysningssystemer!E$63)*Belysningssystemer!E$13)*IF((Belysningssystemer!E$56*Belysningssystemer!E$57*Belysningssystemer!E$69/Belysningssystemer!E$22) <1,0,(Belysningssystemer!E$56*Belysningssystemer!E$57*Belysningssystemer!E$69/Belysningssystemer!E$22-1)/Belysningssystemer!E$69)+F137*Belysningssystemer!E$13*$C19+IF($B19<=Belysningssystemer!E$59,Belysningssystemer!E$26,0)+IF($B19<=Belysningssystemer!E$60,Belysningssystemer!E$36*Belysningssystemer!E$13*Belysningssystemer!E$14,0))*((1+Belysningssystemer!E$77)^-$B19),0) -> 0 | G19: =IFERROR((((Belysningssystemer!G$27+Belysningssystemer!G$62)*Belysningssystemer!G$14*Belysningssystemer!G$13)*IF((Belysningssystemer!G$56*Belysningssystemer!G$57*Belysningssystemer!G$69/Belysningssystemer!G$21)<1,0,(Belysningssystemer!G$56*Belysningssystemer!G$57*Belysningssystemer!G$69/Belysningssystemer!G$21-1)/Belysningssystemer!G$69)+((Belysningssystemer!G$23+Belysningssystemer!G$63)*Belysningssystemer!G$13)*IF((Belysningssystemer!G$56*Belysningssystemer!G$57*Belysningssystemer!G$69/Belysningssystemer!G$22) <1,0,(Belysningssystemer!G$56*Belysningssystemer!G$57*Belysningssystemer!G$69/Belysningssystemer!G$22-1)/Belysningssystemer!G$69)+H137*Belysningssystemer!G$13*$C19+IF($B19<=Belysningssystemer!G$59,Belysningssystemer!G$26,0)+IF($B19<=Belysningssystemer!G$60,Belysningssystemer!G$36*Belysningssystemer!G$13*Belysningssystemer!G$14,0))*((1+Belysningssystemer!G$77)^-$B19),0) -> 0 | I19: =IFERROR((((Belysningssystemer!I$27+Belysningssystemer!I$62)*Belysningssystemer!I$14*Belysningssystemer!I$13)*IF((Belysningssystemer!I$56*Belysningssystemer!I$57*Belysningssystemer!I$69/Belysningssystemer!I$21)<1,0,(Belysningssystemer!I$56*Belysningssystemer!I$57*Belysningssystemer!I$69/Belysningssystemer!I$21-1)/Belysningssystemer!I$69)+((Belysningssystemer!I$23+Belysningssystemer!I$63)*Belysningssystemer!I$13)*IF((Belysningssystemer!I$56*Belysningssystemer!I$57*Belysningssystemer!I$69/Belysningssystemer!I$22) <1,0,(Belysningssystemer!I$56*Belysningssystemer!I$57*Belysningssystemer!I$69/Belysningssystemer!I$22-1)/Belysningssystemer!I$69)+J137*Belysningssystemer!I$13*$C19+IF($B19<=Belysningssystemer!I$59,Belysningssystemer!I$26,0)+IF($B19<=Belysningssystemer!I$60,Belysningssystemer!I$36*Belysningssystemer!I$13*Belysningssystemer!I$14,0))*((1+Belysningssystemer!I$77)^-$B19),0) -> 0 | K19: =IFERROR((((Belysningssystemer!K$27+Belysningssystemer!K$62)*Belysningssystemer!K$14*Belysningssystemer!K$13)*IF((Belysningssystemer!K$56*Belysningssystemer!K$57*Belysningssystemer!K$69/Belysningssystemer!K$21)<1,0,(Belysningssystemer!K$56*Belysningssystemer!K$57*Belysningssystemer!K$69/Belysningssystemer!K$21-1)/Belysningssystemer!K$69)+((Belysningssystemer!K$23+Belysningssystemer!K$63)*Belysningssystemer!K$13)*IF((Belysningssystemer!K$56*Belysningssystemer!K$57*Belysningssystemer!K$69/Belysningssystemer!K$22) <1,0,(Belysningssystemer!K$56*Belysningssystemer!K$57*Belysningssystemer!K$69/Belysningssystemer!K$22-1)/Belysningssystemer!K$69)+L137*Belysningssystemer!K$13*$C19+IF($B20<=Belysningssystemer!K$59,Belysningssystemer!K$26,0)+IF($B20<=Belysningssystemer!K$60,Belysningssystemer!K$36*Belysningssystemer!K$13*Belysningssystemer!K$14,0))*((1+Belysningssystemer!K$77)^-$B19),0) -> 0 | M19: =IFERROR((((Belysningssystemer!M$27+Belysningssystemer!M$62)*Belysningssystemer!M$14*Belysningssystemer!M$13)*IF((Belysningssystemer!M$56*Belysningssystemer!M$57*Belysningssystemer!M$69/Belysningssystemer!M$21)<1,0,(Belysningssystemer!M$56*Belysningssystemer!M$57*Belysningssystemer!M$69/Belysningssystemer!M$21-1)/Belysningssystemer!M$69)+((Belysningssystemer!M$23+Belysningssystemer!M$63)*Belysningssystemer!M$13)*IF((Belysningssystemer!M$56*Belysningssystemer!M$57*Belysningssystemer!M$69/Belysningssystemer!M$22) <1,0,(Belysningssystemer!M$56*Belysningssystemer!M$57*Belysningssystemer!M$69/Belysningssystemer!M$22-1)/Belysningssystemer!M$69)+N137*Belysningssystemer!M$13*$C19+IF($B20<=Belysningssystemer!M$59,Belysningssystemer!M$26,0)+IF($B20<=Belysningssystemer!M$60,Belysningssystemer!M$36*Belysningssystemer!M$13*Belysningssystemer!M$14,0))*((1+Belysningssystemer!M$77)^-$B19),0) -> 0 | O19: =IFERROR((((Belysningssystemer!O$27+Belysningssystemer!O$62)*Belysningssystemer!O$14*Belysningssystemer!O$13)*IF((Belysningssystemer!O$56*Belysningssystemer!O$57*Belysningssystemer!O$69/Belysningssystemer!O$21)<1,0,(Belysningssystemer!O$56*Belysningssystemer!O$57*Belysningssystemer!O$69/Belysningssystemer!O$21-1)/Belysningssystemer!O$69)+((Belysningssystemer!O$23+Belysningssystemer!O$63)*Belysningssystemer!O$13)*IF((Belysningssystemer!O$56*Belysningssystemer!O$57*Belysningssystemer!O$69/Belysningssystemer!O$22) <1,0,(Belysningssystemer!O$56*Belysningssystemer!O$57*Belysningssystemer!O$69/Belysningssystemer!O$22-1)/Belysningssystemer!O$69)+P137*Belysningssystemer!O$13*$C19+IF($B20<=Belysningssystemer!O$59,Belysningssystemer!O$26,0)+IF($B20<=Belysningssystemer!O$60,Belysningssystemer!O$36*Belysningssystemer!O$13*Belysningssystemer!O$14,0))*((1+Belysningssystemer!O$77)^-$B19),0) -> 0 | Q19: =IFERROR((((Belysningssystemer!Q$27+Belysningssystemer!Q$62)*Belysningssystemer!Q$14*Belysningssystemer!Q$13)*IF((Belysningssystemer!Q$56*Belysningssystemer!Q$57*Belysningssystemer!Q$69/Belysningssystemer!Q$21)<1,0,(Belysningssystemer!Q$56*Belysningssystemer!Q$57*Belysningssystemer!Q$69/Belysningssystemer!Q$21-1)/Belysningssystemer!Q$69)+((Belysningssystemer!Q$23+Belysningssystemer!Q$63)*Belysningssystemer!Q$13)*IF((Belysningssystemer!Q$56*Belysningssystemer!Q$57*Belysningssystemer!Q$69/Belysningssystemer!Q$22) <1,0,(Belysningssystemer!Q$56*Belysningssystemer!Q$57*Belysningssystemer!Q$69/Belysningssystemer!Q$22-1)/Belysningssystemer!Q$69)+R137*Belysningssystemer!Q$13*$C19+IF($B20<=Belysningssystemer!Q$59,Belysningssystemer!Q$26,0)+IF($B20<=Belysningssystemer!Q$60,Belysningssystemer!Q$36*Belysningssystemer!Q$13*Belysningssystemer!Q$14,0))*((1+Belysningssystemer!Q$77)^-$B19),0) -> 0 | S19: =IFERROR((((Belysningssystemer!S$27+Belysningssystemer!S$62)*Belysningssystemer!S$14*Belysningssystemer!S$13)*IF((Belysningssystemer!S$56*Belysningssystemer!S$57*Belysningssystemer!S$69/Belysningssystemer!S$21)<1,0,(Belysningssystemer!S$56*Belysningssystemer!S$57*Belysningssystemer!S$69/Belysningssystemer!S$21-1)/Belysningssystemer!S$69)+((Belysningssystemer!S$23+Belysningssystemer!S$63)*Belysningssystemer!S$13)*IF((Belysningssystemer!S$56*Belysningssystemer!S$57*Belysningssystemer!S$69/Belysningssystemer!S$22) <1,0,(Belysningssystemer!S$56*Belysningssystemer!S$57*Belysningssystemer!S$69/Belysningssystemer!S$22-1)/Belysningssystemer!S$69)+T137*Belysningssystemer!S$13*$C19+IF($B20<=Belysningssystemer!S$59,Belysningssystemer!S$26,0)+IF($B20<=Belysningssystemer!S$60,Belysningssystemer!S$36*Belysningssystemer!S$13*Belysningssystemer!S$14,0))*((1+Belysningssystemer!S$77)^-$B19),0) -> 0 | X19: =IF(Belysningssystemer!$E$69>=B19,B19,"") -> 
B20: 19 | C20: =((C19-Fremskrivninger!E26)*(1+IF(Belysningssystemer!$E$71="ja",Belysningssystemer!$E$73,Belysningssystemer!$E$75))+Fremskrivninger!E26) -> 2.045516497 | E20: =IFERROR((((Belysningssystemer!E$27+Belysningssystemer!E$62)*Belysningssystemer!E$14*Belysningssystemer!E$13)*IF((Belysningssystemer!E$56*Belysningssystemer!E$57*Belysningssystemer!E$69/Belysningssystemer!E$21)<1,0,(Belysningssystemer!E$56*Belysningssystemer!E$57*Belysningssystemer!E$69/Belysningssystemer!E$21-1)/Belysningssystemer!E$69)+((Belysningssystemer!E$23+Belysningssystemer!E$63)*Belysningssystemer!E$13)*IF((Belysningssystemer!E$56*Belysningssystemer!E$57*Belysningssystemer!E$69/Belysningssystemer!E$22) <1,0,(Belysningssystemer!E$56*Belysningssystemer!E$57*Belysningssystemer!E$69/Belysningssystemer!E$22-1)/Belysningssystemer!E$69)+F138*Belysningssystemer!E$13*$C20+IF($B20<=Belysningssystemer!E$59,Belysningssystemer!E$26,0)+IF($B20<=Belysningssystemer!E$60,Belysningssystemer!E$36*Belysningssystemer!E$13*Belysningssystemer!E$14,0))*((1+Belysningssystemer!E$77)^-$B20),0) -> 0 | G20: =IFERROR((((Belysningssystemer!G$27+Belysningssystemer!G$62)*Belysningssystemer!G$14*Belysningssystemer!G$13)*IF((Belysningssystemer!G$56*Belysningssystemer!G$57*Belysningssystemer!G$69/Belysningssystemer!G$21)<1,0,(Belysningssystemer!G$56*Belysningssystemer!G$57*Belysningssystemer!G$69/Belysningssystemer!G$21-1)/Belysningssystemer!G$69)+((Belysningssystemer!G$23+Belysningssystemer!G$63)*Belysningssystemer!G$13)*IF((Belysningssystemer!G$56*Belysningssystemer!G$57*Belysningssystemer!G$69/Belysningssystemer!G$22) <1,0,(Belysningssystemer!G$56*Belysningssystemer!G$57*Belysningssystemer!G$69/Belysningssystemer!G$22-1)/Belysningssystemer!G$69)+H138*Belysningssystemer!G$13*$C20+IF($B20<=Belysningssystemer!G$59,Belysningssystemer!G$26,0)+IF($B20<=Belysningssystemer!G$60,Belysningssystemer!G$36*Belysningssystemer!G$13*Belysningssystemer!G$14,0))*((1+Belysningssystemer!G$77)^-$B20),0) -> 0 | I20: =IFERROR((((Belysningssystemer!I$27+Belysningssystemer!I$62)*Belysningssystemer!I$14*Belysningssystemer!I$13)*IF((Belysningssystemer!I$56*Belysningssystemer!I$57*Belysningssystemer!I$69/Belysningssystemer!I$21)<1,0,(Belysningssystemer!I$56*Belysningssystemer!I$57*Belysningssystemer!I$69/Belysningssystemer!I$21-1)/Belysningssystemer!I$69)+((Belysningssystemer!I$23+Belysningssystemer!I$63)*Belysningssystemer!I$13)*IF((Belysningssystemer!I$56*Belysningssystemer!I$57*Belysningssystemer!I$69/Belysningssystemer!I$22) <1,0,(Belysningssystemer!I$56*Belysningssystemer!I$57*Belysningssystemer!I$69/Belysningssystemer!I$22-1)/Belysningssystemer!I$69)+J138*Belysningssystemer!I$13*$C20+IF($B20<=Belysningssystemer!I$59,Belysningssystemer!I$26,0)+IF($B20<=Belysningssystemer!I$60,Belysningssystemer!I$36*Belysningssystemer!I$13*Belysningssystemer!I$14,0))*((1+Belysningssystemer!I$77)^-$B20),0) -> 0 | K20: =IFERROR((((Belysningssystemer!K$27+Belysningssystemer!K$62)*Belysningssystemer!K$14*Belysningssystemer!K$13)*IF((Belysningssystemer!K$56*Belysningssystemer!K$57*Belysningssystemer!K$69/Belysningssystemer!K$21)<1,0,(Belysningssystemer!K$56*Belysningssystemer!K$57*Belysningssystemer!K$69/Belysningssystemer!K$21-1)/Belysningssystemer!K$69)+((Belysningssystemer!K$23+Belysningssystemer!K$63)*Belysningssystemer!K$13)*IF((Belysningssystemer!K$56*Belysningssystemer!K$57*Belysningssystemer!K$69/Belysningssystemer!K$22) <1,0,(Belysningssystemer!K$56*Belysningssystemer!K$57*Belysningssystemer!K$69/Belysningssystemer!K$22-1)/Belysningssystemer!K$69)+L138*Belysningssystemer!K$13*$C20+IF($B21<=Belysningssystemer!K$59,Belysningssystemer!K$26,0)+IF($B21<=Belysningssystemer!K$60,Belysningssystemer!K$36*Belysningssystemer!K$13*Belysningssystemer!K$14,0))*((1+Belysningssystemer!K$77)^-$B20),0) -> 0 | M20: =IFERROR((((Belysningssystemer!M$27+Belysningssystemer!M$62)*Belysningssystemer!M$14*Belysningssystemer!M$13)*IF((Belysningssystemer!M$56*Belysningssystemer!M$57*Belysningssystemer!M$69/Belysningssystemer!M$21)<1,0,(Belysningssystemer!M$56*Belysningssystemer!M$57*Belysningssystemer!M$69/Belysningssystemer!M$21-1)/Belysningssystemer!M$69)+((Belysningssystemer!M$23+Belysningssystemer!M$63)*Belysningssystemer!M$13)*IF((Belysningssystemer!M$56*Belysningssystemer!M$57*Belysningssystemer!M$69/Belysningssystemer!M$22) <1,0,(Belysningssystemer!M$56*Belysningssystemer!M$57*Belysningssystemer!M$69/Belysningssystemer!M$22-1)/Belysningssystemer!M$69)+N138*Belysningssystemer!M$13*$C20+IF($B21<=Belysningssystemer!M$59,Belysningssystemer!M$26,0)+IF($B21<=Belysningssystemer!M$60,Belysningssystemer!M$36*Belysningssystemer!M$13*Belysningssystemer!M$14,0))*((1+Belysningssystemer!M$77)^-$B20),0) -> 0 | O20: =IFERROR((((Belysningssystemer!O$27+Belysningssystemer!O$62)*Belysningssystemer!O$14*Belysningssystemer!O$13)*IF((Belysningssystemer!O$56*Belysningssystemer!O$57*Belysningssystemer!O$69/Belysningssystemer!O$21)<1,0,(Belysningssystemer!O$56*Belysningssystemer!O$57*Belysningssystemer!O$69/Belysningssystemer!O$21-1)/Belysningssystemer!O$69)+((Belysningssystemer!O$23+Belysningssystemer!O$63)*Belysningssystemer!O$13)*IF((Belysningssystemer!O$56*Belysningssystemer!O$57*Belysningssystemer!O$69/Belysningssystemer!O$22) <1,0,(Belysningssystemer!O$56*Belysningssystemer!O$57*Belysningssystemer!O$69/Belysningssystemer!O$22-1)/Belysningssystemer!O$69)+P138*Belysningssystemer!O$13*$C20+IF($B21<=Belysningssystemer!O$59,Belysningssystemer!O$26,0)+IF($B21<=Belysningssystemer!O$60,Belysningssystemer!O$36*Belysningssystemer!O$13*Belysningssystemer!O$14,0))*((1+Belysningssystemer!O$77)^-$B20),0) -> 0 | Q20: =IFERROR((((Belysningssystemer!Q$27+Belysningssystemer!Q$62)*Belysningssystemer!Q$14*Belysningssystemer!Q$13)*IF((Belysningssystemer!Q$56*Belysningssystemer!Q$57*Belysningssystemer!Q$69/Belysningssystemer!Q$21)<1,0,(Belysningssystemer!Q$56*Belysningssystemer!Q$57*Belysningssystemer!Q$69/Belysningssystemer!Q$21-1)/Belysningssystemer!Q$69)+((Belysningssystemer!Q$23+Belysningssystemer!Q$63)*Belysningssystemer!Q$13)*IF((Belysningssystemer!Q$56*Belysningssystemer!Q$57*Belysningssystemer!Q$69/Belysningssystemer!Q$22) <1,0,(Belysningssystemer!Q$56*Belysningssystemer!Q$57*Belysningssystemer!Q$69/Belysningssystemer!Q$22-1)/Belysningssystemer!Q$69)+R138*Belysningssystemer!Q$13*$C20+IF($B21<=Belysningssystemer!Q$59,Belysningssystemer!Q$26,0)+IF($B21<=Belysningssystemer!Q$60,Belysningssystemer!Q$36*Belysningssystemer!Q$13*Belysningssystemer!Q$14,0))*((1+Belysningssystemer!Q$77)^-$B20),0) -> 0 | S20: =IFERROR((((Belysningssystemer!S$27+Belysningssystemer!S$62)*Belysningssystemer!S$14*Belysningssystemer!S$13)*IF((Belysningssystemer!S$56*Belysningssystemer!S$57*Belysningssystemer!S$69/Belysningssystemer!S$21)<1,0,(Belysningssystemer!S$56*Belysningssystemer!S$57*Belysningssystemer!S$69/Belysningssystemer!S$21-1)/Belysningssystemer!S$69)+((Belysningssystemer!S$23+Belysningssystemer!S$63)*Belysningssystemer!S$13)*IF((Belysningssystemer!S$56*Belysningssystemer!S$57*Belysningssystemer!S$69/Belysningssystemer!S$22) <1,0,(Belysningssystemer!S$56*Belysningssystemer!S$57*Belysningssystemer!S$69/Belysningssystemer!S$22-1)/Belysningssystemer!S$69)+T138*Belysningssystemer!S$13*$C20+IF($B21<=Belysningssystemer!S$59,Belysningssystemer!S$26,0)+IF($B21<=Belysningssystemer!S$60,Belysningssystemer!S$36*Belysningssystemer!S$13*Belysningssystemer!S$14,0))*((1+Belysningssystemer!S$77)^-$B20),0) -> 0 | X20: =IF(Belysningssystemer!$E$69>=B20,B20,"") -> 
B21: 20 | C21: =((C20-Fremskrivninger!E27)*(1+IF(Belysningssystemer!$E$71="ja",Belysningssystemer!$E$73,Belysningssystemer!$E$75))+Fremskrivninger!E27) -> 2.058183722 | E21: =IFERROR((((Belysningssystemer!E$27+Belysningssystemer!E$62)*Belysningssystemer!E$14*Belysningssystemer!E$13)*IF((Belysningssystemer!E$56*Belysningssystemer!E$57*Belysningssystemer!E$69/Belysningssystemer!E$21)<1,0,(Belysningssystemer!E$56*Belysningssystemer!E$57*Belysningssystemer!E$69/Belysningssystemer!E$21-1)/Belysningssystemer!E$69)+((Belysningssystemer!E$23+Belysningssystemer!E$63)*Belysningssystemer!E$13)*IF((Belysningssystemer!E$56*Belysningssystemer!E$57*Belysningssystemer!E$69/Belysningssystemer!E$22) <1,0,(Belysningssystemer!E$56*Belysningssystemer!E$57*Belysningssystemer!E$69/Belysningssystemer!E$22-1)/Belysningssystemer!E$69)+F139*Belysningssystemer!E$13*$C21+IF($B21<=Belysningssystemer!E$59,Belysningssystemer!E$26,0)+IF($B21<=Belysningssystemer!E$60,Belysningssystemer!E$36*Belysningssystemer!E$13*Belysningssystemer!E$14,0))*((1+Belysningssystemer!E$77)^-$B21),0) -> 0 | G21: =IFERROR((((Belysningssystemer!G$27+Belysningssystemer!G$62)*Belysningssystemer!G$14*Belysningssystemer!G$13)*IF((Belysningssystemer!G$56*Belysningssystemer!G$57*Belysningssystemer!G$69/Belysningssystemer!G$21)<1,0,(Belysningssystemer!G$56*Belysningssystemer!G$57*Belysningssystemer!G$69/Belysningssystemer!G$21-1)/Belysningssystemer!G$69)+((Belysningssystemer!G$23+Belysningssystemer!G$63)*Belysningssystemer!G$13)*IF((Belysningssystemer!G$56*Belysningssystemer!G$57*Belysningssystemer!G$69/Belysningssystemer!G$22) <1,0,(Belysningssystemer!G$56*Belysningssystemer!G$57*Belysningssystemer!G$69/Belysningssystemer!G$22-1)/Belysningssystemer!G$69)+H139*Belysningssystemer!G$13*$C21+IF($B21<=Belysningssystemer!G$59,Belysningssystemer!G$26,0)+IF($B21<=Belysningssystemer!G$60,Belysningssystemer!G$36*Belysningssystemer!G$13*Belysningssystemer!G$14,0))*((1+Belysningssystemer!G$77)^-$B21),0) -> 0 | I21: =IFERROR((((Belysningssystemer!I$27+Belysningssystemer!I$62)*Belysningssystemer!I$14*Belysningssystemer!I$13)*IF((Belysningssystemer!I$56*Belysningssystemer!I$57*Belysningssystemer!I$69/Belysningssystemer!I$21)<1,0,(Belysningssystemer!I$56*Belysningssystemer!I$57*Belysningssystemer!I$69/Belysningssystemer!I$21-1)/Belysningssystemer!I$69)+((Belysningssystemer!I$23+Belysningssystemer!I$63)*Belysningssystemer!I$13)*IF((Belysningssystemer!I$56*Belysningssystemer!I$57*Belysningssystemer!I$69/Belysningssystemer!I$22) <1,0,(Belysningssystemer!I$56*Belysningssystemer!I$57*Belysningssystemer!I$69/Belysningssystemer!I$22-1)/Belysningssystemer!I$69)+J139*Belysningssystemer!I$13*$C21+IF($B21<=Belysningssystemer!I$59,Belysningssystemer!I$26,0)+IF($B21<=Belysningssystemer!I$60,Belysningssystemer!I$36*Belysningssystemer!I$13*Belysningssystemer!I$14,0))*((1+Belysningssystemer!I$77)^-$B21),0) -> 0 | K21: =IFERROR((((Belysningssystemer!K$27+Belysningssystemer!K$62)*Belysningssystemer!K$14*Belysningssystemer!K$13)*IF((Belysningssystemer!K$56*Belysningssystemer!K$57*Belysningssystemer!K$69/Belysningssystemer!K$21)<1,0,(Belysningssystemer!K$56*Belysningssystemer!K$57*Belysningssystemer!K$69/Belysningssystemer!K$21-1)/Belysningssystemer!K$69)+((Belysningssystemer!K$23+Belysningssystemer!K$63)*Belysningssystemer!K$13)*IF((Belysningssystemer!K$56*Belysningssystemer!K$57*Belysningssystemer!K$69/Belysningssystemer!K$22) <1,0,(Belysningssystemer!K$56*Belysningssystemer!K$57*Belysningssystemer!K$69/Belysningssystemer!K$22-1)/Belysningssystemer!K$69)+L139*Belysningssystemer!K$13*$C21+IF($B22<=Belysningssystemer!K$59,Belysningssystemer!K$26,0)+IF($B22<=Belysningssystemer!K$60,Belysningssystemer!K$36*Belysningssystemer!K$13*Belysningssystemer!K$14,0))*((1+Belysningssystemer!K$77)^-$B21),0) -> 0 | M21: =IFERROR((((Belysningssystemer!M$27+Belysningssystemer!M$62)*Belysningssystemer!M$14*Belysningssystemer!M$13)*IF((Belysningssystemer!M$56*Belysningssystemer!M$57*Belysningssystemer!M$69/Belysningssystemer!M$21)<1,0,(Belysningssystemer!M$56*Belysningssystemer!M$57*Belysningssystemer!M$69/Belysningssystemer!M$21-1)/Belysningssystemer!M$69)+((Belysningssystemer!M$23+Belysningssystemer!M$63)*Belysningssystemer!M$13)*IF((Belysningssystemer!M$56*Belysningssystemer!M$57*Belysningssystemer!M$69/Belysningssystemer!M$22) <1,0,(Belysningssystemer!M$56*Belysningssystemer!M$57*Belysningssystemer!M$69/Belysningssystemer!M$22-1)/Belysningssystemer!M$69)+N139*Belysningssystemer!M$13*$C21+IF($B22<=Belysningssystemer!M$59,Belysningssystemer!M$26,0)+IF($B22<=Belysningssystemer!M$60,Belysningssystemer!M$36*Belysningssystemer!M$13*Belysningssystemer!M$14,0))*((1+Belysningssystemer!M$77)^-$B21),0) -> 0 | O21: =IFERROR((((Belysningssystemer!O$27+Belysningssystemer!O$62)*Belysningssystemer!O$14*Belysningssystemer!O$13)*IF((Belysningssystemer!O$56*Belysningssystemer!O$57*Belysningssystemer!O$69/Belysningssystemer!O$21)<1,0,(Belysningssystemer!O$56*Belysningssystemer!O$57*Belysningssystemer!O$69/Belysningssystemer!O$21-1)/Belysningssystemer!O$69)+((Belysningssystemer!O$23+Belysningssystemer!O$63)*Belysningssystemer!O$13)*IF((Belysningssystemer!O$56*Belysningssystemer!O$57*Belysningssystemer!O$69/Belysningssystemer!O$22) <1,0,(Belysningssystemer!O$56*Belysningssystemer!O$57*Belysningssystemer!O$69/Belysningssystemer!O$22-1)/Belysningssystemer!O$69)+P139*Belysningssystemer!O$13*$C21+IF($B22<=Belysningssystemer!O$59,Belysningssystemer!O$26,0)+IF($B22<=Belysningssystemer!O$60,Belysningssystemer!O$36*Belysningssystemer!O$13*Belysningssystemer!O$14,0))*((1+Belysningssystemer!O$77)^-$B21),0) -> 0 | Q21: =IFERROR((((Belysningssystemer!Q$27+Belysningssystemer!Q$62)*Belysningssystemer!Q$14*Belysningssystemer!Q$13)*IF((Belysningssystemer!Q$56*Belysningssystemer!Q$57*Belysningssystemer!Q$69/Belysningssystemer!Q$21)<1,0,(Belysningssystemer!Q$56*Belysningssystemer!Q$57*Belysningssystemer!Q$69/Belysningssystemer!Q$21-1)/Belysningssystemer!Q$69)+((Belysningssystemer!Q$23+Belysningssystemer!Q$63)*Belysningssystemer!Q$13)*IF((Belysningssystemer!Q$56*Belysningssystemer!Q$57*Belysningssystemer!Q$69/Belysningssystemer!Q$22) <1,0,(Belysningssystemer!Q$56*Belysningssystemer!Q$57*Belysningssystemer!Q$69/Belysningssystemer!Q$22-1)/Belysningssystemer!Q$69)+R139*Belysningssystemer!Q$13*$C21+IF($B22<=Belysningssystemer!Q$59,Belysningssystemer!Q$26,0)+IF($B22<=Belysningssystemer!Q$60,Belysningssystemer!Q$36*Belysningssystemer!Q$13*Belysningssystemer!Q$14,0))*((1+Belysningssystemer!Q$77)^-$B21),0) -> 0 | S21: =IFERROR((((Belysningssystemer!S$27+Belysningssystemer!S$62)*Belysningssystemer!S$14*Belysningssystemer!S$13)*IF((Belysningssystemer!S$56*Belysningssystemer!S$57*Belysningssystemer!S$69/Belysningssystemer!S$21)<1,0,(Belysningssystemer!S$56*Belysningssystemer!S$57*Belysningssystemer!S$69/Belysningssystemer!S$21-1)/Belysningssystemer!S$69)+((Belysningssystemer!S$23+Belysningssystemer!S$63)*Belysningssystemer!S$13)*IF((Belysningssystemer!S$56*Belysningssystemer!S$57*Belysningssystemer!S$69/Belysningssystemer!S$22) <1,0,(Belysningssystemer!S$56*Belysningssystemer!S$57*Belysningssystemer!S$69/Belysningssystemer!S$22-1)/Belysningssystemer!S$69)+T139*Belysningssystemer!S$13*$C21+IF($B22<=Belysningssystemer!S$59,Belysningssystemer!S$26,0)+IF($B22<=Belysningssystemer!S$60,Belysningssystemer!S$36*Belysningssystemer!S$13*Belysningssystemer!S$14,0))*((1+Belysningssystemer!S$77)^-$B21),0) -> 0 | X21: =IF(Belysningssystemer!$E$69>=B21,B21,"") -> 
B25: Samlede akkumulerede omkostninger
E26: =Belysningssystemer!E7 -> PRODUKT 1 | G26: =Belysningssystemer!G7 -> PRODUKT 2 | I26: =Belysningssystemer!I7 -> PRODUKT 3 | K26: =Belysningssystemer!K7 -> PRODUKT 4 | M26: =Belysningssystemer!M7 -> PRODUKT 5 | O26: =Belysningssystemer!O7 -> PRODUKT 6 | Q26: =Belysningssystemer!Q7 -> PRODUKT 7 | S26: =Belysningssystemer!S7 -> PRODUKT 8
D27: 1 | E27: =E2+Belysningssystemer!E$93+E49+IF($D27=Belysningssystemer!E69,Belysningssystemer!E96,0)+IF(Belysningssystemer!$E$43="ja",'IB - Belysningssystemer'!E143,0) -> 0 | G27: =G2+Belysningssystemer!G$93+G49+IF($D27=Belysningssystemer!G69,Belysningssystemer!G96,0)+IF(Belysningssystemer!$E$43="ja",'IB - Belysningssystemer'!G143,0) -> 0 | I27: =I2+Belysningssystemer!I$93+I49+IF($D27=Belysningssystemer!I69,Belysningssystemer!I96,0)+IF(Belysningssystemer!$E$43="ja",'IB - Belysningssystemer'!I143,0) -> 0 | K27: =K2+Belysningssystemer!K$93+K49+IF($D27=Belysningssystemer!K69,Belysningssystemer!K96,0)+IF(Belysningssystemer!$E$43="ja",'IB - Belysningssystemer'!K143,0) -> 0 | M27: =M2+Belysningssystemer!M$93+M49+IF($D27=Belysningssystemer!M69,Belysningssystemer!M96,0)+IF(Belysningssystemer!$E$43="ja",'IB - Belysningssystemer'!M143,0) -> 0 | O27: =O2+Belysningssystemer!O$93+O49+IF($D27=Belysningssystemer!O69,Belysningssystemer!O96,0)+IF(Belysningssystemer!$E$43="ja",'IB - Belysningssystemer'!O143,0) -> 0 | Q27: =Q2+Belysningssystemer!Q$93+Q49+IF($D27=Belysningssystemer!Q69,Belysningssystemer!Q96,0)+IF(Belysningssystemer!$E$43="ja",'IB - Belysningssystemer'!Q143,0) -> 0 | S27: =S2+Belysningssystemer!S$93+S49+IF($D27=Belysningssystemer!S69,Belysningssystemer!S96,0)+IF(Belysningssystemer!$E$43="ja",'IB - Belysningssystemer'!S143,0) -> 0
D28: 2 | E28: =E3+E27+E50+IF($D28=Belysningssystemer!E70,Belysningssystemer!E97,0)+IF(Belysningssystemer!$E$43="ja",'IB - Belysningssystemer'!E144,0) -> 0 | G28: =G3+G27+G50+IF($D28=Belysningssystemer!G70,Belysningssystemer!G97,0)+IF(Belysningssystemer!$E$43="ja",'IB - Belysningssystemer'!G144,0) -> 0 | I28: =I3+I27+I50+IF($D28=Belysningssystemer!I70,Belysningssystemer!I97,0)+IF(Belysningssystemer!$E$43="ja",'IB - Belysningssystemer'!I144,0) -> 0 | K28: =K3+K27+K50+IF($D28=Belysningssystemer!K70,Belysningssystemer!K97,0)+IF(Belysningssystemer!$E$43="ja",'IB - Belysningssystemer'!K144,0) -> 0 | M28: =M3+M27+M50+IF($D28=Belysningssystemer!M70,Belysningssystemer!M97,0)+IF(Belysningssystemer!$E$43="ja",'IB - Belysningssystemer'!M144,0) -> 0 | O28: =O3+O27+O50+IF($D28=Belysningssystemer!O70,Belysningssystemer!O97,0)+IF(Belysningssystemer!$E$43="ja",'IB - Belysningssystemer'!O144,0) -> 0 | Q28: =Q3+Q27+Q50+IF($D28=Belysningssystemer!Q70,Belysningssystemer!Q97,0)+IF(Belysningssystemer!$E$43="ja",'IB - Belysningssystemer'!Q144,0) -> 0 | S28: =S3+S27+S50+IF($D28=Belysningssystemer!S70,Belysningssystemer!S97,0)+IF(Belysningssystemer!$E$43="ja",'IB - Belysningssystemer'!S144,0) -> 0
D29: 3 | E29: =E4+E28+E51+IF($D29=Belysningssystemer!E71,Belysningssystemer!E98,0)+IF(Belysningssystemer!$E$43="ja",'IB - Belysningssystemer'!E145,0) -> 0 | G29: =G4+G28+G51+IF($D29=Belysningssystemer!G71,Belysningssystemer!G98,0)+IF(Belysningssystemer!$E$43="ja",'IB - Belysningssystemer'!G145,0) -> 0 | I29: =I4+I28+I51+IF($D29=Belysningssystemer!I71,Belysningssystemer!I98,0)+IF(Belysningssystemer!$E$43="ja",'IB - Belysningssystemer'!I145,0) -> 0 | K29: =K4+K28+K51+IF($D29=Belysningssystemer!K71,Belysningssystemer!K98,0)+IF(Belysningssystemer!$E$43="ja",'IB - Belysningssystemer'!K145,0) -> 0 | M29: =M4+M28+M51+IF($D29=Belysningssystemer!M71,Belysningssystemer!M98,0)+IF(Belysningssystemer!$E$43="ja",'IB - Belysningssystemer'!M145,0) -> 0 | O29: =O4+O28+O51+IF($D29=Belysningssystemer!O71,Belysningssystemer!O98,0)+IF(Belysningssystemer!$E$43="ja",'IB - Belysningssystemer'!O145,0) -> 0 | Q29: =Q4+Q28+Q51+IF($D29=Belysningssystemer!Q71,Belysningssystemer!Q98,0)+IF(Belysningssystemer!$E$43="ja",'IB - Belysningssystemer'!Q145,0) -> 0 | S29: =S4+S28+S51+IF($D29=Belysningssystemer!S71,Belysningssystemer!S98,0)+IF(Belysningssystemer!$E$43="ja",'IB - Belysningssystemer'!S145,0) -> 0
D30: 4 | E30: =E5+E29+E52+IF($D30=Belysningssystemer!E72,Belysningssystemer!E99,0)+IF(Belysningssystemer!$E$43="ja",'IB - Belysningssystemer'!E146,0) -> 0 | G30: =G5+G29+G52+IF($D30=Belysningssystemer!G72,Belysningssystemer!G99,0)+IF(Belysningssystemer!$E$43="ja",'IB - Belysningssystemer'!G146,0) -> 0 | I30: =I5+I29+I52+IF($D30=Belysningssystemer!I72,Belysningssystemer!I99,0)+IF(Belysningssystemer!$E$43="ja",'IB - Belysningssystemer'!I146,0) -> 0 | K30: =K5+K29+K52+IF($D30=Belysningssystemer!K72,Belysningssystemer!K99,0)+IF(Belysningssystemer!$E$43="ja",'IB - Belysningssystemer'!K146,0) -> 0 | M30: =M5+M29+M52+IF($D30=Belysningssystemer!M72,Belysningssystemer!M99,0)+IF(Belysningssystemer!$E$43="ja",'IB - Belysningssystemer'!M146,0) -> 0 | O30: =O5+O29+O52+IF($D30=Belysningssystemer!O72,Belysningssystemer!O99,0)+IF(Belysningssystemer!$E$43="ja",'IB - Belysningssystemer'!O146,0) -> 0 | Q30: =Q5+Q29+Q52+IF($D30=Belysningssystemer!Q72,Belysningssystemer!Q99,0)+IF(Belysningssystemer!$E$43="ja",'IB - Belysningssystemer'!Q146,0) -> 0 | S30: =S5+S29+S52+IF($D30=Belysningssystemer!S72,Belysningssystemer!S99,0)+IF(Belysningssystemer!$E$43="ja",'IB - Belysningssystemer'!S146,0) -> 0
D31: 5 | E31: =E6+E30+E53+IF($D31=Belysningssystemer!E73,Belysningssystemer!E100,0)+IF(Belysningssystemer!$E$43="ja",'IB - Belysningssystemer'!E147,0) -> 0 | G31: =G6+G30+G53+IF($D31=Belysningssystemer!G73,Belysningssystemer!G100,0)+IF(Belysningssystemer!$E$43="ja",'IB - Belysningssystemer'!G147,0) -> 0 | I31: =I6+I30+I53+IF($D31=Belysningssystemer!I73,Belysningssystemer!I100,0)+IF(Belysningssystemer!$E$43="ja",'IB - Belysningssystemer'!I147,0) -> 0 | K31: =K6+K30+K53+IF($D31=Belysningssystemer!K73,Belysningssystemer!K100,0)+IF(Belysningssystemer!$E$43="ja",'IB - Belysningssystemer'!K147,0) -> 0 | M31: =M6+M30+M53+IF($D31=Belysningssystemer!M73,Belysningssystemer!M100,0)+IF(Belysningssystemer!$E$43="ja",'IB - Belysningssystemer'!M147,0) -> 0 | O31: =O6+O30+O53+IF($D31=Belysningssystemer!O73,Belysningssystemer!O100,0)+IF(Belysningssystemer!$E$43="ja",'IB - Belysningssystemer'!O147,0) -> 0 | Q31: =Q6+Q30+Q53+IF($D31=Belysningssystemer!Q73,Belysningssystemer!Q100,0)+IF(Belysningssystemer!$E$43="ja",'IB - Belysningssystemer'!Q147,0) -> 0 | S31: =S6+S30+S53+IF($D31=Belysningssystemer!S73,Belysningssystemer!S100,0)+IF(Belysningssystemer!$E$43="ja",'IB - Belysningssystemer'!S147,0) -> 0
D32: 6 | E32: =E7+E31+E54+IF($D32=Belysningssystemer!E74,Belysningssystemer!E101,0)+IF(Belysningssystemer!$E$43="ja",'IB - Belysningssystemer'!E148,0) -> 0 | G32: =G7+G31+G54+IF($D32=Belysningssystemer!G74,Belysningssystemer!G101,0)+IF(Belysningssystemer!$E$43="ja",'IB - Belysningssystemer'!G148,0) -> 0 | I32: =I7+I31+I54+IF($D32=Belysningssystemer!I74,Belysningssystemer!I101,0)+IF(Belysningssystemer!$E$43="ja",'IB - Belysningssystemer'!I148,0) -> 0 | K32: =K7+K31+K54+IF($D32=Belysningssystemer!K74,Belysningssystemer!K101,0)+IF(Belysningssystemer!$E$43="ja",'IB - Belysningssystemer'!K148,0) -> 0 | M32: =M7+M31+M54+IF($D32=Belysningssystemer!M74,Belysningssystemer!M101,0)+IF(Belysningssystemer!$E$43="ja",'IB - Belysningssystemer'!M148,0) -> 0 | O32: =O7+O31+O54+IF($D32=Belysningssystemer!O74,Belysningssystemer!O101,0)+IF(Belysningssystemer!$E$43="ja",'IB - Belysningssystemer'!O148,0) -> 0 | Q32: =Q7+Q31+Q54+IF($D32=Belysningssystemer!Q74,Belysningssystemer!Q101,0)+IF(Belysningssystemer!$E$43="ja",'IB - Belysningssystemer'!Q148,0) -> 0 | S32: =S7+S31+S54+IF($D32=Belysningssystemer!S74,Belysningssystemer!S101,0)+IF(Belysningssystemer!$E$43="ja",'IB - Belysningssystemer'!S148,0) -> 0
D33: 7 | E33: =E8+E32+E55+IF($D33=Belysningssystemer!E75,Belysningssystemer!E102,0)+IF(Belysningssystemer!$E$43="ja",'IB - Belysningssystemer'!E149,0) -> 0 | G33: =G8+G32+G55+IF($D33=Belysningssystemer!G75,Belysningssystemer!G102,0)+IF(Belysningssystemer!$E$43="ja",'IB - Belysningssystemer'!G149,0) -> 0 | I33: =I8+I32+I55+IF($D33=Belysningssystemer!I75,Belysningssystemer!I102,0)+IF(Belysningssystemer!$E$43="ja",'IB - Belysningssystemer'!I149,0) -> 0 | K33: =K8+K32+K55+IF($D33=Belysningssystemer!K75,Belysningssystemer!K102,0)+IF(Belysningssystemer!$E$43="ja",'IB - Belysningssystemer'!K149,0) -> 0 | M33: =M8+M32+M55+IF($D33=Belysningssystemer!M75,Belysningssystemer!M102,0)+IF(Belysningssystemer!$E$43="ja",'IB - Belysningssystemer'!M149,0) -> 0 | O33: =O8+O32+O55+IF($D33=Belysningssystemer!O75,Belysningssystemer!O102,0)+IF(Belysningssystemer!$E$43="ja",'IB - Belysningssystemer'!O149,0) -> 0 | Q33: =Q8+Q32+Q55+IF($D33=Belysningssystemer!Q75,Belysningssystemer!Q102,0)+IF(Belysningssystemer!$E$43="ja",'IB - Belysningssystemer'!Q149,0) -> 0 | S33: =S8+S32+S55+IF($D33=Belysningssystemer!S75,Belysningssystemer!S102,0)+IF(Belysningssystemer!$E$43="ja",'IB - Belysningssystemer'!S149,0) -> 0
B34: =B33+1 -> 1 | D34: 8 | E34: =E9+E33+E56+IF($D34=Belysningssystemer!E76,Belysningssystemer!E103,0)+IF(Belysningssystemer!$E$43="ja",'IB - Belysningssystemer'!E150,0) -> 0 | G34: =G9+G33+G56+IF($D34=Belysningssystemer!G76,Belysningssystemer!G103,0)+IF(Belysningssystemer!$E$43="ja",'IB - Belysningssystemer'!G150,0) -> 0 | I34: =I9+I33+I56+IF($D34=Belysningssystemer!I76,Belysningssystemer!I103,0)+IF(Belysningssystemer!$E$43="ja",'IB - Belysningssystemer'!I150,0) -> 0 | K34: =K9+K33+K56+IF($D34=Belysningssystemer!K76,Belysningssystemer!K103,0)+IF(Belysningssystemer!$E$43="ja",'IB - Belysningssystemer'!K150,0) -> 0 | M34: =M9+M33+M56+IF($D34=Belysningssystemer!M76,Belysningssystemer!M103,0)+IF(Belysningssystemer!$E$43="ja",'IB - Belysningssystemer'!M150,0) -> 0 | O34: =O9+O33+O56+IF($D34=Belysningssystemer!O76,Belysningssystemer!O103,0)+IF(Belysningssystemer!$E$43="ja",'IB - Belysningssystemer'!O150,0) -> 0 | Q34: =Q9+Q33+Q56+IF($D34=Belysningssystemer!Q76,Belysningssystemer!Q103,0)+IF(Belysningssystemer!$E$43="ja",'IB - Belysningssystemer'!Q150,0) -> 0 | S34: =S9+S33+S56+IF($D34=Belysningssystemer!S76,Belysningssystemer!S103,0)+IF(Belysningssystemer!$E$43="ja",'IB - Belysningssystemer'!S150,0) -> 0
D35: 9 | E35: =E10+E34+E57+IF($D35=Belysningssystemer!E77,Belysningssystemer!E104,0)+IF(Belysningssystemer!$E$43="ja",'IB - Belysningssystemer'!E151,0) -> 0 | G35: =G10+G34+G57+IF($D35=Belysningssystemer!G77,Belysningssystemer!G104,0)+IF(Belysningssystemer!$E$43="ja",'IB - Belysningssystemer'!G151,0) -> 0 | I35: =I10+I34+I57+IF($D35=Belysningssystemer!I77,Belysningssystemer!I104,0)+IF(Belysningssystemer!$E$43="ja",'IB - Belysningssystemer'!I151,0) -> 0 | K35: =K10+K34+K57+IF($D35=Belysningssystemer!K77,Belysningssystemer!K104,0)+IF(Belysningssystemer!$E$43="ja",'IB - Belysningssystemer'!K151,0) -> 0 | M35: =M10+M34+M57+IF($D35=Belysningssystemer!M77,Belysningssystemer!M104,0)+IF(Belysningssystemer!$E$43="ja",'IB - Belysningssystemer'!M151,0) -> 0 | O35: =O10+O34+O57+IF($D35=Belysningssystemer!O77,Belysningssystemer!O104,0)+IF(Belysningssystemer!$E$43="ja",'IB - Belysningssystemer'!O151,0) -> 0 | Q35: =Q10+Q34+Q57+IF($D35=Belysningssystemer!Q77,Belysningssystemer!Q104,0)+IF(Belysningssystemer!$E$43="ja",'IB - Belysningssystemer'!Q151,0) -> 0 | S35: =S10+S34+S57+IF($D35=Belysningssystemer!S77,Belysningssystemer!S104,0)+IF(Belysningssystemer!$E$43="ja",'IB - Belysningssystemer'!S151,0) -> 0
D36: 10 | E36: =E11+E35+E58+IF($D36=Belysningssystemer!E78,Belysningssystemer!E105,0)+IF(Belysningssystemer!$E$43="ja",'IB - Belysningssystemer'!E152,0) -> 0 | G36: =G11+G35+G58+IF($D36=Belysningssystemer!G78,Belysningssystemer!G105,0)+IF(Belysningssystemer!$E$43="ja",'IB - Belysningssystemer'!G152,0) -> 0 | I36: =I11+I35+I58+IF($D36=Belysningssystemer!I78,Belysningssystemer!I105,0)+IF(Belysningssystemer!$E$43="ja",'IB - Belysningssystemer'!I152,0) -> 0 | K36: =K11+K35+K58+IF($D36=Belysningssystemer!K78,Belysningssystemer!K105,0)+IF(Belysningssystemer!$E$43="ja",'IB - Belysningssystemer'!K152,0) -> 0 | M36: =M11+M35+M58+IF($D36=Belysningssystemer!M78,Belysningssystemer!M105,0)+IF(Belysningssystemer!$E$43="ja",'IB - Belysningssystemer'!M152,0) -> 0 | O36: =O11+O35+O58+IF($D36=Belysningssystemer!O78,Belysningssystemer!O105,0)+IF(Belysningssystemer!$E$43="ja",'IB - Belysningssystemer'!O152,0) -> 0 | Q36: =Q11+Q35+Q58+IF($D36=Belysningssystemer!Q78,Belysningssystemer!Q105,0)+IF(Belysningssystemer!$E$43="ja",'IB - Belysningssystemer'!Q152,0) -> 0 | S36: =S11+S35+S58+IF($D36=Belysningssystemer!S78,Belysningssystemer!S105,0)+IF(Belysningssystemer!$E$43="ja",'IB - Belysningssystemer'!S152,0) -> 0
B37: Lysstyringsmuligheder (cellerne bruges i beregningerne) | D37: 11 | E37: =E12+E36+E59+IF($D37=Belysningssystemer!E79,Belysningssystemer!E106,0)+IF(Belysningssystemer!$E$43="ja",'IB - Belysningssystemer'!E153,0) -> 0 | G37: =G12+G36+G59+IF($D37=Belysningssystemer!G79,Belysningssystemer!G106,0)+IF(Belysningssystemer!$E$43="ja",'IB - Belysningssystemer'!G153,0) -> 0 | I37: =I12+I36+I59+IF($D37=Belysningssystemer!I79,Belysningssystemer!I106,0)+IF(Belysningssystemer!$E$43="ja",'IB - Belysningssystemer'!I153,0) -> 0 | K37: =K12+K36+K59+IF($D37=Belysningssystemer!K79,Belysningssystemer!K106,0)+IF(Belysningssystemer!$E$43="ja",'IB - Belysningssystemer'!K153,0) -> 0 | M37: =M12+M36+M59+IF($D37=Belysningssystemer!M79,Belysningssystemer!M106,0)+IF(Belysningssystemer!$E$43="ja",'IB - Belysningssystemer'!M153,0) -> 0 | O37: =O12+O36+O59+IF($D37=Belysningssystemer!O79,Belysningssystemer!O106,0)+IF(Belysningssystemer!$E$43="ja",'IB - Belysningssystemer'!O153,0) -> 0 | Q37: =Q12+Q36+Q59+IF($D37=Belysningssystemer!Q79,Belysningssystemer!Q106,0)+IF(Belysningssystemer!$E$43="ja",'IB - Belysningssystemer'!Q153,0) -> 0 | S37: =S12+S36+S59+IF($D37=Belysningssystemer!S79,Belysningssystemer!S106,0)+IF(Belysningssystemer!$E$43="ja",'IB - Belysningssystemer'!S153,0) -> 0
B38: Klik for valg | D38: 12 | E38: =E13+E37+E60+IF($D38=Belysningssystemer!E80,Belysningssystemer!E107,0)+IF(Belysningssystemer!$E$43="ja",'IB - Belysningssystemer'!E154,0) -> 0 | G38: =G13+G37+G60+IF($D38=Belysningssystemer!G80,Belysningssystemer!G107,0)+IF(Belysningssystemer!$E$43="ja",'IB - Belysningssystemer'!G154,0) -> 0 | I38: =I13+I37+I60+IF($D38=Belysningssystemer!I80,Belysningssystemer!I107,0)+IF(Belysningssystemer!$E$43="ja",'IB - Belysningssystemer'!I154,0) -> 0 | K38: =K13+K37+K60+IF($D38=Belysningssystemer!K80,Belysningssystemer!K107,0)+IF(Belysningssystemer!$E$43="ja",'IB - Belysningssystemer'!K154,0) -> 0 | M38: =M13+M37+M60+IF($D38=Belysningssystemer!M80,Belysningssystemer!M107,0)+IF(Belysningssystemer!$E$43="ja",'IB - Belysningssystemer'!M154,0) -> 0 | O38: =O13+O37+O60+IF($D38=Belysningssystemer!O80,Belysningssystemer!O107,0)+IF(Belysningssystemer!$E$43="ja",'IB - Belysningssystemer'!O154,0) -> 0 | Q38: =Q13+Q37+Q60+IF($D38=Belysningssystemer!Q80,Belysningssystemer!Q107,0)+IF(Belysningssystemer!$E$43="ja",'IB - Belysningssystemer'!Q154,0) -> 0 | S38: =S13+S37+S60+IF($D38=Belysningssystemer!S80,Belysningssystemer!S107,0)+IF(Belysningssystemer!$E$43="ja",'IB - Belysningssystemer'!S154,0) -> 0
B39: Ja | D39: 13 | E39: =E14+E38+E61+IF($D39=Belysningssystemer!E81,Belysningssystemer!E108,0)+IF(Belysningssystemer!$E$43="ja",'IB - Belysningssystemer'!E155,0) -> 0 | G39: =G14+G38+G61+IF($D39=Belysningssystemer!G81,Belysningssystemer!G108,0)+IF(Belysningssystemer!$E$43="ja",'IB - Belysningssystemer'!G155,0) -> 0 | I39: =I14+I38+I61+IF($D39=Belysningssystemer!I81,Belysningssystemer!I108,0)+IF(Belysningssystemer!$E$43="ja",'IB - Belysningssystemer'!I155,0) -> 0 | K39: =K14+K38+K61+IF($D39=Belysningssystemer!K81,Belysningssystemer!K108,0)+IF(Belysningssystemer!$E$43="ja",'IB - Belysningssystemer'!K155,0) -> 0 | M39: =M14+M38+M61+IF($D39=Belysningssystemer!M81,Belysningssystemer!M108,0)+IF(Belysningssystemer!$E$43="ja",'IB - Belysningssystemer'!M155,0) -> 0 | O39: =O14+O38+O61+IF($D39=Belysningssystemer!O81,Belysningssystemer!O108,0)+IF(Belysningssystemer!$E$43="ja",'IB - Belysningssystemer'!O155,0) -> 0 | Q39: =Q14+Q38+Q61+IF($D39=Belysningssystemer!Q81,Belysningssystemer!Q108,0)+IF(Belysningssystemer!$E$43="ja",'IB - Belysningssystemer'!Q155,0) -> 0 | S39: =S14+S38+S61+IF($D39=Belysningssystemer!S81,Belysningssystemer!S108,0)+IF(Belysningssystemer!$E$43="ja",'IB - Belysningssystemer'!S155,0) -> 0
B40: Nej | D40: 14 | E40: =E15+E39+E62+IF($D40=Belysningssystemer!E82,Belysningssystemer!E109,0)+IF(Belysningssystemer!$E$43="ja",'IB - Belysningssystemer'!E156,0) -> 0 | G40: =G15+G39+G62+IF($D40=Belysningssystemer!G82,Belysningssystemer!G109,0)+IF(Belysningssystemer!$E$43="ja",'IB - Belysningssystemer'!G156,0) -> 0 | I40: =I15+I39+I62+IF($D40=Belysningssystemer!I82,Belysningssystemer!I109,0)+IF(Belysningssystemer!$E$43="ja",'IB - Belysningssystemer'!I156,0) -> 0 | K40: =K15+K39+K62+IF($D40=Belysningssystemer!K82,Belysningssystemer!K109,0)+IF(Belysningssystemer!$E$43="ja",'IB - Belysningssystemer'!K156,0) -> 0 | M40: =M15+M39+M62+IF($D40=Belysningssystemer!M82,Belysningssystemer!M109,0)+IF(Belysningssystemer!$E$43="ja",'IB - Belysningssystemer'!M156,0) -> 0 | O40: =O15+O39+O62+IF($D40=Belysningssystemer!O82,Belysningssystemer!O109,0)+IF(Belysningssystemer!$E$43="ja",'IB - Belysningssystemer'!O156,0) -> 0 | Q40: =Q15+Q39+Q62+IF($D40=Belysningssystemer!Q82,Belysningssystemer!Q109,0)+IF(Belysningssystemer!$E$43="ja",'IB - Belysningssystemer'!Q156,0) -> 0 | S40: =S15+S39+S62+IF($D40=Belysningssystemer!S82,Belysningssystemer!S109,0)+IF(Belysningssystemer!$E$43="ja",'IB - Belysningssystemer'!S156,0) -> 0
D41: 15 | E41: =E16+E40+E63+IF($D41=Belysningssystemer!E83,Belysningssystemer!E110,0)+IF(Belysningssystemer!$E$43="ja",'IB - Belysningssystemer'!E157,0) -> 0 | G41: =G16+G40+G63+IF($D41=Belysningssystemer!G83,Belysningssystemer!G110,0)+IF(Belysningssystemer!$E$43="ja",'IB - Belysningssystemer'!G157,0) -> 0 | I41: =I16+I40+I63+IF($D41=Belysningssystemer!I83,Belysningssystemer!I110,0)+IF(Belysningssystemer!$E$43="ja",'IB - Belysningssystemer'!I157,0) -> 0 | K41: =K16+K40+K63+IF($D41=Belysningssystemer!K83,Belysningssystemer!K110,0)+IF(Belysningssystemer!$E$43="ja",'IB - Belysningssystemer'!K157,0) -> 0 | M41: =M16+M40+M63+IF($D41=Belysningssystemer!M83,Belysningssystemer!M110,0)+IF(Belysningssystemer!$E$43="ja",'IB - Belysningssystemer'!M157,0) -> 0 | O41: =O16+O40+O63+IF($D41=Belysningssystemer!O83,Belysningssystemer!O110,0)+IF(Belysningssystemer!$E$43="ja",'IB - Belysningssystemer'!O157,0) -> 0 | Q41: =Q16+Q40+Q63+IF($D41=Belysningssystemer!Q83,Belysningssystemer!Q110,0)+IF(Belysningssystemer!$E$43="ja",'IB - Belysningssystemer'!Q157,0) -> 0 | S41: =S16+S40+S63+IF($D41=Belysningssystemer!S83,Belysningssystemer!S110,0)+IF(Belysningssystemer!$E$43="ja",'IB - Belysningssystemer'!S157,0) -> 0
D42: 16 | E42: =E17+E41+E64+IF($D42=Belysningssystemer!E84,Belysningssystemer!E111,0)+IF(Belysningssystemer!$E$43="ja",'IB - Belysningssystemer'!E158,0) -> 0 | G42: =G17+G41+G64+IF($D42=Belysningssystemer!G84,Belysningssystemer!G111,0)+IF(Belysningssystemer!$E$43="ja",'IB - Belysningssystemer'!G158,0) -> 0 | I42: =I17+I41+I64+IF($D42=Belysningssystemer!I84,Belysningssystemer!I111,0)+IF(Belysningssystemer!$E$43="ja",'IB - Belysningssystemer'!I158,0) -> 0 | K42: =K17+K41+K64+IF($D42=Belysningssystemer!K84,Belysningssystemer!K111,0)+IF(Belysningssystemer!$E$43="ja",'IB - Belysningssystemer'!K158,0) -> 0 | M42: =M17+M41+M64+IF($D42=Belysningssystemer!M84,Belysningssystemer!M111,0)+IF(Belysningssystemer!$E$43="ja",'IB - Belysningssystemer'!M158,0) -> 0 | O42: =O17+O41+O64+IF($D42=Belysningssystemer!O84,Belysningssystemer!O111,0)+IF(Belysningssystemer!$E$43="ja",'IB - Belysningssystemer'!O158,0) -> 0 | Q42: =Q17+Q41+Q64+IF($D42=Belysningssystemer!Q84,Belysningssystemer!Q111,0)+IF(Belysningssystemer!$E$43="ja",'IB - Belysningssystemer'!Q158,0) -> 0 | S42: =S17+S41+S64+IF($D42=Belysningssystemer!S84,Belysningssystemer!S111,0)+IF(Belysningssystemer!$E$43="ja",'IB - Belysningssystemer'!S158,0) -> 0
D43: 17 | E43: =E18+E42+E65+IF($D43=Belysningssystemer!E85,Belysningssystemer!E112,0)+IF(Belysningssystemer!$E$43="ja",'IB - Belysningssystemer'!E159,0) -> 0 | G43: =G18+G42+G65+IF($D43=Belysningssystemer!G85,Belysningssystemer!G112,0)+IF(Belysningssystemer!$E$43="ja",'IB - Belysningssystemer'!G159,0) -> 0 | I43: =I18+I42+I65+IF($D43=Belysningssystemer!I85,Belysningssystemer!I112,0)+IF(Belysningssystemer!$E$43="ja",'IB - Belysningssystemer'!I159,0) -> 0 | K43: =K18+K42+K65+IF($D43=Belysningssystemer!K85,Belysningssystemer!K112,0)+IF(Belysningssystemer!$E$43="ja",'IB - Belysningssystemer'!K159,0) -> 0 | M43: =M18+M42+M65+IF($D43=Belysningssystemer!M85,Belysningssystemer!M112,0)+IF(Belysningssystemer!$E$43="ja",'IB - Belysningssystemer'!M159,0) -> 0 | O43: =O18+O42+O65+IF($D43=Belysningssystemer!O85,Belysningssystemer!O112,0)+IF(Belysningssystemer!$E$43="ja",'IB - Belysningssystemer'!O159,0) -> 0 | Q43: =Q18+Q42+Q65+IF($D43=Belysningssystemer!Q85,Belysningssystemer!Q112,0)+IF(Belysningssystemer!$E$43="ja",'IB - Belysningssystemer'!Q159,0) -> 0 | S43: =S18+S42+S65+IF($D43=Belysningssystemer!S85,Belysningssystemer!S112,0)+IF(Belysningssystemer!$E$43="ja",'IB - Belysningssystemer'!S159,0) -> 0
D44: 18 | E44: =E19+E43+E66+IF($D44=Belysningssystemer!E86,Belysningssystemer!E113,0)+IF(Belysningssystemer!$E$43="ja",'IB - Belysningssystemer'!E160,0) -> 0 | G44: =G19+G43+G66+IF($D44=Belysningssystemer!G86,Belysningssystemer!G113,0)+IF(Belysningssystemer!$E$43="ja",'IB - Belysningssystemer'!G160,0) -> 0 | I44: =I19+I43+I66+IF($D44=Belysningssystemer!I86,Belysningssystemer!I113,0)+IF(Belysningssystemer!$E$43="ja",'IB - Belysningssystemer'!I160,0) -> 0 | K44: =K19+K43+K66+IF($D44=Belysningssystemer!K86,Belysningssystemer!K113,0)+IF(Belysningssystemer!$E$43="ja",'IB - Belysningssystemer'!K160,0) -> 0 | M44: =M19+M43+M66+IF($D44=Belysningssystemer!M86,Belysningssystemer!M113,0)+IF(Belysningssystemer!$E$43="ja",'IB - Belysningssystemer'!M160,0) -> 0 | O44: =O19+O43+O66+IF($D44=Belysningssystemer!O86,Belysningssystemer!O113,0)+IF(Belysningssystemer!$E$43="ja",'IB - Belysningssystemer'!O160,0) -> 0 | Q44: =Q19+Q43+Q66+IF($D44=Belysningssystemer!Q86,Belysningssystemer!Q113,0)+IF(Belysningssystemer!$E$43="ja",'IB - Belysningssystemer'!Q160,0) -> 0 | S44: =S19+S43+S66+IF($D44=Belysningssystemer!S86,Belysningssystemer!S113,0)+IF(Belysningssystemer!$E$43="ja",'IB - Belysningssystemer'!S160,0) -> 0
D45: 19 | E45: =E20+E44+E67+IF($D45=Belysningssystemer!E87,Belysningssystemer!E114,0)+IF(Belysningssystemer!$E$43="ja",'IB - Belysningssystemer'!E161,0) -> 0 | G45: =G20+G44+G67+IF($D45=Belysningssystemer!G87,Belysningssystemer!G114,0)+IF(Belysningssystemer!$E$43="ja",'IB - Belysningssystemer'!G161,0) -> 0 | I45: =I20+I44+I67+IF($D45=Belysningssystemer!I87,Belysningssystemer!I114,0)+IF(Belysningssystemer!$E$43="ja",'IB - Belysningssystemer'!I161,0) -> 0 | K45: =K20+K44+K67+IF($D45=Belysningssystemer!K87,Belysningssystemer!K114,0)+IF(Belysningssystemer!$E$43="ja",'IB - Belysningssystemer'!K161,0) -> 0 | M45: =M20+M44+M67+IF($D45=Belysningssystemer!M87,Belysningssystemer!M114,0)+IF(Belysningssystemer!$E$43="ja",'IB - Belysningssystemer'!M161,0) -> 0 | O45: =O20+O44+O67+IF($D45=Belysningssystemer!O87,Belysningssystemer!O114,0)+IF(Belysningssystemer!$E$43="ja",'IB - Belysningssystemer'!O161,0) -> 0 | Q45: =Q20+Q44+Q67+IF($D45=Belysningssystemer!Q87,Belysningssystemer!Q114,0)+IF(Belysningssystemer!$E$43="ja",'IB - Belysningssystemer'!Q161,0) -> 0 | S45: =S20+S44+S67+IF($D45=Belysningssystemer!S87,Belysningssystemer!S114,0)+IF(Belysningssystemer!$E$43="ja",'IB - Belysningssystemer'!S161,0) -> 0
D46: 20 | E46: =E21+E45+E68+IF($D46=Belysningssystemer!E88,Belysningssystemer!E115,0)+IF(Belysningssystemer!$E$43="ja",'IB - Belysningssystemer'!E162,0) -> 0 | G46: =G21+G45+G68+IF($D46=Belysningssystemer!G88,Belysningssystemer!G115,0)+IF(Belysningssystemer!$E$43="ja",'IB - Belysningssystemer'!G162,0) -> 0 | I46: =I21+I45+I68+IF($D46=Belysningssystemer!I88,Belysningssystemer!I115,0)+IF(Belysningssystemer!$E$43="ja",'IB - Belysningssystemer'!I162,0) -> 0 | K46: =K21+K45+K68+IF($D46=Belysningssystemer!K88,Belysningssystemer!K115,0)+IF(Belysningssystemer!$E$43="ja",'IB - Belysningssystemer'!K162,0) -> 0 | M46: =M21+M45+M68+IF($D46=Belysningssystemer!M88,Belysningssystemer!M115,0)+IF(Belysningssystemer!$E$43="ja",'IB - Belysningssystemer'!M162,0) -> 0 | O46: =O21+O45+O68+IF($D46=Belysningssystemer!O88,Belysningssystemer!O115,0)+IF(Belysningssystemer!$E$43="ja",'IB - Belysningssystemer'!O162,0) -> 0 | Q46: =Q21+Q45+Q68+IF($D46=Belysningssystemer!Q88,Belysningssystemer!Q115,0)+IF(Belysningssystemer!$E$43="ja",'IB - Belysningssystemer'!Q162,0) -> 0 | S46: =S21+S45+S68+IF($D46=Belysningssystemer!S88,Belysningssystemer!S115,0)+IF(Belysningssystemer!$E$43="ja",'IB - Belysningssystemer'!S162,0) -> 0
B48: År indeks | C48: Pris på serviceaftale jf. kravspecifikation og Intern serviceomkostning - service & support | E48: PRODUKT 1 | G48: PRODUKT 2 | I48: PRODUKT 3 | K48: PRODUKT 4 | M48: PRODUKT 5 | O48: PRODUKT 6 | Q48: PRODUKT 7 | S48: PRODUKT 8
B49: 1 | C49: =B49 -> 1 | E49: =(IF($B49<=Belysningssystemer!E$59,Belysningssystemer!E$35,0)*Belysningssystemer!E$13*Belysningssystemer!E$14*(1+Belysningssystemer!E$77)^-$B49)+(Belysningssystemer!E$78*Belysningssystemer!E$13*(1+Belysningssystemer!E$77)^-$B49) -> 0 | G49: =(IF($B49<=Belysningssystemer!G$59,Belysningssystemer!G$35,0)*Belysningssystemer!G$13*Belysningssystemer!G$14*(1+Belysningssystemer!G$77)^-$B49)+(Belysningssystemer!G$78*Belysningssystemer!G$13*(1+Belysningssystemer!G$77)^-$B49) -> 0 | I49: =(IF($B49<=Belysningssystemer!I$59,Belysningssystemer!I$35,0)*Belysningssystemer!I$13*Belysningssystemer!I$14*(1+Belysningssystemer!I$77)^-$B49)+(Belysningssystemer!I$78*Belysningssystemer!I$13*(1+Belysningssystemer!I$77)^-$B49) -> 0 | K49: =(IF($B49<=Belysningssystemer!K$59,Belysningssystemer!K$35,0)*Belysningssystemer!K$13*Belysningssystemer!K$14*(1+Belysningssystemer!K$77)^-$B49)+(Belysningssystemer!K$78*Belysningssystemer!K$13*(1+Belysningssystemer!K$77)^-$B49) -> 0 | M49: =(IF($B49<=Belysningssystemer!M$59,Belysningssystemer!M$35,0)*Belysningssystemer!M$13*Belysningssystemer!M$14*(1+Belysningssystemer!M$77)^-$B49)+(Belysningssystemer!M$78*Belysningssystemer!M$13*(1+Belysningssystemer!M$77)^-$B49) -> 0 | O49: =(IF($B49<=Belysningssystemer!O$59,Belysningssystemer!O$35,0)*Belysningssystemer!O$13*Belysningssystemer!O$14*(1+Belysningssystemer!O$77)^-$B49)+(Belysningssystemer!O$78*Belysningssystemer!O$13*(1+Belysningssystemer!O$77)^-$B49) -> 0 | Q49: =(IF($B49<=Belysningssystemer!Q$59,Belysningssystemer!Q$35,0)*Belysningssystemer!Q$13*Belysningssystemer!Q$14*(1+Belysningssystemer!Q$77)^-$B49)+(Belysningssystemer!Q$78*Belysningssystemer!Q$13*(1+Belysningssystemer!Q$77)^-$B49) -> 0 | S49: =(IF($B49<=Belysningssystemer!S$59,Belysningssystemer!S$35,0)*Belysningssystemer!S$13*Belysningssystemer!S$14*(1+Belysningssystemer!S$77)^-$B49)+(Belysningssystemer!S$78*Belysningssystemer!S$13*(1+Belysningssystemer!S$77)^-$B49) -> 0
B50: 2 | C50: =B50 -> 2 | E50: =(IF($B50<=Belysningssystemer!E$59,Belysningssystemer!E$35,0)*Belysningssystemer!E$13*Belysningssystemer!E$14*(1+Belysningssystemer!E$77)^-$B50)+(Belysningssystemer!E$78*Belysningssystemer!E$13*(1+Belysningssystemer!E$77)^-$B50) -> 0 | G50: =(IF($B50<=Belysningssystemer!G$59,Belysningssystemer!G$35,0)*Belysningssystemer!G$13*Belysningssystemer!G$14*(1+Belysningssystemer!G$77)^-$B50)+(Belysningssystemer!G$78*Belysningssystemer!G$13*(1+Belysningssystemer!G$77)^-$B50) -> 0 | I50: =(IF($B50<=Belysningssystemer!I$59,Belysningssystemer!I$35,0)*Belysningssystemer!I$13*Belysningssystemer!I$14*(1+Belysningssystemer!I$77)^-$B50)+(Belysningssystemer!I$78*Belysningssystemer!I$13*(1+Belysningssystemer!I$77)^-$B50) -> 0 | K50: =(IF($B50<=Belysningssystemer!K$59,Belysningssystemer!K$35,0)*Belysningssystemer!K$13*Belysningssystemer!K$14*(1+Belysningssystemer!K$77)^-$B50)+(Belysningssystemer!K$78*Belysningssystemer!K$13*(1+Belysningssystemer!K$77)^-$B50) -> 0 | M50: =(IF($B50<=Belysningssystemer!M$59,Belysningssystemer!M$35,0)*Belysningssystemer!M$13*Belysningssystemer!M$14*(1+Belysningssystemer!M$77)^-$B50)+(Belysningssystemer!M$78*Belysningssystemer!M$13*(1+Belysningssystemer!M$77)^-$B50) -> 0 | O50: =(IF($B50<=Belysningssystemer!O$59,Belysningssystemer!O$35,0)*Belysningssystemer!O$13*Belysningssystemer!O$14*(1+Belysningssystemer!O$77)^-$B50)+(Belysningssystemer!O$78*Belysningssystemer!O$13*(1+Belysningssystemer!O$77)^-$B50) -> 0 | Q50: =(IF($B50<=Belysningssystemer!Q$59,Belysningssystemer!Q$35,0)*Belysningssystemer!Q$13*Belysningssystemer!Q$14*(1+Belysningssystemer!Q$77)^-$B50)+(Belysningssystemer!Q$78*Belysningssystemer!Q$13*(1+Belysningssystemer!Q$77)^-$B50) -> 0 | S50: =(IF($B50<=Belysningssystemer!S$59,Belysningssystemer!S$35,0)*Belysningssystemer!S$13*Belysningssystemer!S$14*(1+Belysningssystemer!S$77)^-$B50)+(Belysningssystemer!S$78*Belysningssystemer!S$13*(1+Belysningssystemer!S$77)^-$B50) -> 0
B51: 3 | C51: 3 | E51: =(IF($B51<=Belysningssystemer!E$59,Belysningssystemer!E$35,0)*Belysningssystemer!E$13*Belysningssystemer!E$14*(1+Belysningssystemer!E$77)^-$B51)+(Belysningssystemer!E$78*Belysningssystemer!E$13*(1+Belysningssystemer!E$77)^-$B51) -> 0 | G51: =(IF($B51<=Belysningssystemer!G$59,Belysningssystemer!G$35,0)*Belysningssystemer!G$13*Belysningssystemer!G$14*(1+Belysningssystemer!G$77)^-$B51)+(Belysningssystemer!G$78*Belysningssystemer!G$13*(1+Belysningssystemer!G$77)^-$B51) -> 0 | I51: =(IF($B51<=Belysningssystemer!I$59,Belysningssystemer!I$35,0)*Belysningssystemer!I$13*Belysningssystemer!I$14*(1+Belysningssystemer!I$77)^-$B51)+(Belysningssystemer!I$78*Belysningssystemer!I$13*(1+Belysningssystemer!I$77)^-$B51) -> 0 | K51: =(IF($B51<=Belysningssystemer!K$59,Belysningssystemer!K$35,0)*Belysningssystemer!K$13*Belysningssystemer!K$14*(1+Belysningssystemer!K$77)^-$B51)+(Belysningssystemer!K$78*Belysningssystemer!K$13*(1+Belysningssystemer!K$77)^-$B51) -> 0 | M51: =(IF($B51<=Belysningssystemer!M$59,Belysningssystemer!M$35,0)*Belysningssystemer!M$13*Belysningssystemer!M$14*(1+Belysningssystemer!M$77)^-$B51)+(Belysningssystemer!M$78*Belysningssystemer!M$13*(1+Belysningssystemer!M$77)^-$B51) -> 0 | O51: =(IF($B51<=Belysningssystemer!O$59,Belysningssystemer!O$35,0)*Belysningssystemer!O$13*Belysningssystemer!O$14*(1+Belysningssystemer!O$77)^-$B51)+(Belysningssystemer!O$78*Belysningssystemer!O$13*(1+Belysningssystemer!O$77)^-$B51) -> 0 | Q51: =(IF($B51<=Belysningssystemer!Q$59,Belysningssystemer!Q$35,0)*Belysningssystemer!Q$13*Belysningssystemer!Q$14*(1+Belysningssystemer!Q$77)^-$B51)+(Belysningssystemer!Q$78*Belysningssystemer!Q$13*(1+Belysningssystemer!Q$77)^-$B51) -> 0 | S51: =(IF($B51<=Belysningssystemer!S$59,Belysningssystemer!S$35,0)*Belysningssystemer!S$13*Belysningssystemer!S$14*(1+Belysningssystemer!S$77)^-$B51)+(Belysningssystemer!S$78*Belysningssystemer!S$13*(1+Belysningssystemer!S$77)^-$B51) -> 0
B52: 4 | C52: 4 | E52: =(IF($B52<=Belysningssystemer!E$59,Belysningssystemer!E$35,0)*Belysningssystemer!E$13*Belysningssystemer!E$14*(1+Belysningssystemer!E$77)^-$B52)+(Belysningssystemer!E$78*Belysningssystemer!E$13*(1+Belysningssystemer!E$77)^-$B52) -> 0 | G52: =(IF($B52<=Belysningssystemer!G$59,Belysningssystemer!G$35,0)*Belysningssystemer!G$13*Belysningssystemer!G$14*(1+Belysningssystemer!G$77)^-$B52)+(Belysningssystemer!G$78*Belysningssystemer!G$13*(1+Belysningssystemer!G$77)^-$B52) -> 0 | I52: =(IF($B52<=Belysningssystemer!I$59,Belysningssystemer!I$35,0)*Belysningssystemer!I$13*Belysningssystemer!I$14*(1+Belysningssystemer!I$77)^-$B52)+(Belysningssystemer!I$78*Belysningssystemer!I$13*(1+Belysningssystemer!I$77)^-$B52) -> 0 | K52: =(IF($B52<=Belysningssystemer!K$59,Belysningssystemer!K$35,0)*Belysningssystemer!K$13*Belysningssystemer!K$14*(1+Belysningssystemer!K$77)^-$B52)+(Belysningssystemer!K$78*Belysningssystemer!K$13*(1+Belysningssystemer!K$77)^-$B52) -> 0 | M52: =(IF($B52<=Belysningssystemer!M$59,Belysningssystemer!M$35,0)*Belysningssystemer!M$13*Belysningssystemer!M$14*(1+Belysningssystemer!M$77)^-$B52)+(Belysningssystemer!M$78*Belysningssystemer!M$13*(1+Belysningssystemer!M$77)^-$B52) -> 0 | O52: =(IF($B52<=Belysningssystemer!O$59,Belysningssystemer!O$35,0)*Belysningssystemer!O$13*Belysningssystemer!O$14*(1+Belysningssystemer!O$77)^-$B52)+(Belysningssystemer!O$78*Belysningssystemer!O$13*(1+Belysningssystemer!O$77)^-$B52) -> 0 | Q52: =(IF($B52<=Belysningssystemer!Q$59,Belysningssystemer!Q$35,0)*Belysningssystemer!Q$13*Belysningssystemer!Q$14*(1+Belysningssystemer!Q$77)^-$B52)+(Belysningssystemer!Q$78*Belysningssystemer!Q$13*(1+Belysningssystemer!Q$77)^-$B52) -> 0 | S52: =(IF($B52<=Belysningssystemer!S$59,Belysningssystemer!S$35,0)*Belysningssystemer!S$13*Belysningssystemer!S$14*(1+Belysningssystemer!S$77)^-$B52)+(Belysningssystemer!S$78*Belysningssystemer!S$13*(1+Belysningssystemer!S$77)^-$B52) -> 0
B53: 5 | C53: 5 | E53: =(IF($B53<=Belysningssystemer!E$59,Belysningssystemer!E$35,0)*Belysningssystemer!E$13*Belysningssystemer!E$14*(1+Belysningssystemer!E$77)^-$B53)+(Belysningssystemer!E$78*Belysningssystemer!E$13*(1+Belysningssystemer!E$77)^-$B53) -> 0 | G53: =(IF($B53<=Belysningssystemer!G$59,Belysningssystemer!G$35,0)*Belysningssystemer!G$13*Belysningssystemer!G$14*(1+Belysningssystemer!G$77)^-$B53)+(Belysningssystemer!G$78*Belysningssystemer!G$13*(1+Belysningssystemer!G$77)^-$B53) -> 0 | I53: =(IF($B53<=Belysningssystemer!I$59,Belysningssystemer!I$35,0)*Belysningssystemer!I$13*Belysningssystemer!I$14*(1+Belysningssystemer!I$77)^-$B53)+(Belysningssystemer!I$78*Belysningssystemer!I$13*(1+Belysningssystemer!I$77)^-$B53) -> 0 | K53: =(IF($B53<=Belysningssystemer!K$59,Belysningssystemer!K$35,0)*Belysningssystemer!K$13*Belysningssystemer!K$14*(1+Belysningssystemer!K$77)^-$B53)+(Belysningssystemer!K$78*Belysningssystemer!K$13*(1+Belysningssystemer!K$77)^-$B53) -> 0 | M53: =(IF($B53<=Belysningssystemer!M$59,Belysningssystemer!M$35,0)*Belysningssystemer!M$13*Belysningssystemer!M$14*(1+Belysningssystemer!M$77)^-$B53)+(Belysningssystemer!M$78*Belysningssystemer!M$13*(1+Belysningssystemer!M$77)^-$B53) -> 0 | O53: =(IF($B53<=Belysningssystemer!O$59,Belysningssystemer!O$35,0)*Belysningssystemer!O$13*Belysningssystemer!O$14*(1+Belysningssystemer!O$77)^-$B53)+(Belysningssystemer!O$78*Belysningssystemer!O$13*(1+Belysningssystemer!O$77)^-$B53) -> 0 | Q53: =(IF($B53<=Belysningssystemer!Q$59,Belysningssystemer!Q$35,0)*Belysningssystemer!Q$13*Belysningssystemer!Q$14*(1+Belysningssystemer!Q$77)^-$B53)+(Belysningssystemer!Q$78*Belysningssystemer!Q$13*(1+Belysningssystemer!Q$77)^-$B53) -> 0 | S53: =(IF($B53<=Belysningssystemer!S$59,Belysningssystemer!S$35,0)*Belysningssystemer!S$13*Belysningssystemer!S$14*(1+Belysningssystemer!S$77)^-$B53)+(Belysningssystemer!S$78*Belysningssystemer!S$13*(1+Belysningssystemer!S$77)^-$B53) -> 0
B54: 6 | C54: 6 | E54: =(IF($B54<=Belysningssystemer!E$59,Belysningssystemer!E$35,0)*Belysningssystemer!E$13*Belysningssystemer!E$14*(1+Belysningssystemer!E$77)^-$B54)+(Belysningssystemer!E$78*Belysningssystemer!E$13*(1+Belysningssystemer!E$77)^-$B54) -> 0 | G54: =(IF($B54<=Belysningssystemer!G$59,Belysningssystemer!G$35,0)*Belysningssystemer!G$13*Belysningssystemer!G$14*(1+Belysningssystemer!G$77)^-$B54)+(Belysningssystemer!G$78*Belysningssystemer!G$13*(1+Belysningssystemer!G$77)^-$B54) -> 0 | I54: =(IF($B54<=Belysningssystemer!I$59,Belysningssystemer!I$35,0)*Belysningssystemer!I$13*Belysningssystemer!I$14*(1+Belysningssystemer!I$77)^-$B54)+(Belysningssystemer!I$78*Belysningssystemer!I$13*(1+Belysningssystemer!I$77)^-$B54) -> 0 | K54: =(IF($B54<=Belysningssystemer!K$59,Belysningssystemer!K$35,0)*Belysningssystemer!K$13*Belysningssystemer!K$14*(1+Belysningssystemer!K$77)^-$B54)+(Belysningssystemer!K$78*Belysningssystemer!K$13*(1+Belysningssystemer!K$77)^-$B54) -> 0 | M54: =(IF($B54<=Belysningssystemer!M$59,Belysningssystemer!M$35,0)*Belysningssystemer!M$13*Belysningssystemer!M$14*(1+Belysningssystemer!M$77)^-$B54)+(Belysningssystemer!M$78*Belysningssystemer!M$13*(1+Belysningssystemer!M$77)^-$B54) -> 0 | O54: =(IF($B54<=Belysningssystemer!O$59,Belysningssystemer!O$35,0)*Belysningssystemer!O$13*Belysningssystemer!O$14*(1+Belysningssystemer!O$77)^-$B54)+(Belysningssystemer!O$78*Belysningssystemer!O$13*(1+Belysningssystemer!O$77)^-$B54) -> 0 | Q54: =(IF($B54<=Belysningssystemer!Q$59,Belysningssystemer!Q$35,0)*Belysningssystemer!Q$13*Belysningssystemer!Q$14*(1+Belysningssystemer!Q$77)^-$B54)+(Belysningssystemer!Q$78*Belysningssystemer!Q$13*(1+Belysningssystemer!Q$77)^-$B54) -> 0 | S54: =(IF($B54<=Belysningssystemer!S$59,Belysningssystemer!S$35,0)*Belysningssystemer!S$13*Belysningssystemer!S$14*(1+Belysningssystemer!S$77)^-$B54)+(Belysningssystemer!S$78*Belysningssystemer!S$13*(1+Belysningssystemer!S$77)^-$B54) -> 0
B55: 7 | C55: 7 | E55: =(IF($B55<=Belysningssystemer!E$59,Belysningssystemer!E$35,0)*Belysningssystemer!E$13*Belysningssystemer!E$14*(1+Belysningssystemer!E$77)^-$B55)+(Belysningssystemer!E$78*Belysningssystemer!E$13*(1+Belysningssystemer!E$77)^-$B55) -> 0 | G55: =(IF($B55<=Belysningssystemer!G$59,Belysningssystemer!G$35,0)*Belysningssystemer!G$13*Belysningssystemer!G$14*(1+Belysningssystemer!G$77)^-$B55)+(Belysningssystemer!G$78*Belysningssystemer!G$13*(1+Belysningssystemer!G$77)^-$B55) -> 0 | I55: =(IF($B55<=Belysningssystemer!I$59,Belysningssystemer!I$35,0)*Belysningssystemer!I$13*Belysningssystemer!I$14*(1+Belysningssystemer!I$77)^-$B55)+(Belysningssystemer!I$78*Belysningssystemer!I$13*(1+Belysningssystemer!I$77)^-$B55) -> 0 | K55: =(IF($B55<=Belysningssystemer!K$59,Belysningssystemer!K$35,0)*Belysningssystemer!K$13*Belysningssystemer!K$14*(1+Belysningssystemer!K$77)^-$B55)+(Belysningssystemer!K$78*Belysningssystemer!K$13*(1+Belysningssystemer!K$77)^-$B55) -> 0 | M55: =(IF($B55<=Belysningssystemer!M$59,Belysningssystemer!M$35,0)*Belysningssystemer!M$13*Belysningssystemer!M$14*(1+Belysningssystemer!M$77)^-$B55)+(Belysningssystemer!M$78*Belysningssystemer!M$13*(1+Belysningssystemer!M$77)^-$B55) -> 0 | O55: =(IF($B55<=Belysningssystemer!O$59,Belysningssystemer!O$35,0)*Belysningssystemer!O$13*Belysningssystemer!O$14*(1+Belysningssystemer!O$77)^-$B55)+(Belysningssystemer!O$78*Belysningssystemer!O$13*(1+Belysningssystemer!O$77)^-$B55) -> 0 | Q55: =(IF($B55<=Belysningssystemer!Q$59,Belysningssystemer!Q$35,0)*Belysningssystemer!Q$13*Belysningssystemer!Q$14*(1+Belysningssystemer!Q$77)^-$B55)+(Belysningssystemer!Q$78*Belysningssystemer!Q$13*(1+Belysningssystemer!Q$77)^-$B55) -> 0 | S55: =(IF($B55<=Belysningssystemer!S$59,Belysningssystemer!S$35,0)*Belysningssystemer!S$13*Belysningssystemer!S$14*(1+Belysningssystemer!S$77)^-$B55)+(Belysningssystemer!S$78*Belysningssystemer!S$13*(1+Belysningssystemer!S$77)^-$B55) -> 0
B56: 8 | C56: 8 | E56: =(IF($B56<=Belysningssystemer!E$59,Belysningssystemer!E$35,0)*Belysningssystemer!E$13*Belysningssystemer!E$14*(1+Belysningssystemer!E$77)^-$B56)+(Belysningssystemer!E$78*Belysningssystemer!E$13*(1+Belysningssystemer!E$77)^-$B56) -> 0 | G56: =(IF($B56<=Belysningssystemer!G$59,Belysningssystemer!G$35,0)*Belysningssystemer!G$13*Belysningssystemer!G$14*(1+Belysningssystemer!G$77)^-$B56)+(Belysningssystemer!G$78*Belysningssystemer!G$13*(1+Belysningssystemer!G$77)^-$B56) -> 0 | I56: =(IF($B56<=Belysningssystemer!I$59,Belysningssystemer!I$35,0)*Belysningssystemer!I$13*Belysningssystemer!I$14*(1+Belysningssystemer!I$77)^-$B56)+(Belysningssystemer!I$78*Belysningssystemer!I$13*(1+Belysningssystemer!I$77)^-$B56) -> 0 | K56: =(IF($B56<=Belysningssystemer!K$59,Belysningssystemer!K$35,0)*Belysningssystemer!K$13*Belysningssystemer!K$14*(1+Belysningssystemer!K$77)^-$B56)+(Belysningssystemer!K$78*Belysningssystemer!K$13*(1+Belysningssystemer!K$77)^-$B56) -> 0 | M56: =(IF($B56<=Belysningssystemer!M$59,Belysningssystemer!M$35,0)*Belysningssystemer!M$13*Belysningssystemer!M$14*(1+Belysningssystemer!M$77)^-$B56)+(Belysningssystemer!M$78*Belysningssystemer!M$13*(1+Belysningssystemer!M$77)^-$B56) -> 0 | O56: =(IF($B56<=Belysningssystemer!O$59,Belysningssystemer!O$35,0)*Belysningssystemer!O$13*Belysningssystemer!O$14*(1+Belysningssystemer!O$77)^-$B56)+(Belysningssystemer!O$78*Belysningssystemer!O$13*(1+Belysningssystemer!O$77)^-$B56) -> 0 | Q56: =(IF($B56<=Belysningssystemer!Q$59,Belysningssystemer!Q$35,0)*Belysningssystemer!Q$13*Belysningssystemer!Q$14*(1+Belysningssystemer!Q$77)^-$B56)+(Belysningssystemer!Q$78*Belysningssystemer!Q$13*(1+Belysningssystemer!Q$77)^-$B56) -> 0 | S56: =(IF($B56<=Belysningssystemer!S$59,Belysningssystemer!S$35,0)*Belysningssystemer!S$13*Belysningssystemer!S$14*(1+Belysningssystemer!S$77)^-$B56)+(Belysningssystemer!S$78*Belysningssystemer!S$13*(1+Belysningssystemer!S$77)^-$B56) -> 0
B57: 9 | C57: 9 | E57: =(IF($B57<=Belysningssystemer!E$59,Belysningssystemer!E$35,0)*Belysningssystemer!E$13*Belysningssystemer!E$14*(1+Belysningssystemer!E$77)^-$B57)+(Belysningssystemer!E$78*Belysningssystemer!E$13*(1+Belysningssystemer!E$77)^-$B57) -> 0 | G57: =(IF($B57<=Belysningssystemer!G$59,Belysningssystemer!G$35,0)*Belysningssystemer!G$13*Belysningssystemer!G$14*(1+Belysningssystemer!G$77)^-$B57)+(Belysningssystemer!G$78*Belysningssystemer!G$13*(1+Belysningssystemer!G$77)^-$B57) -> 0 | I57: =(IF($B57<=Belysningssystemer!I$59,Belysningssystemer!I$35,0)*Belysningssystemer!I$13*Belysningssystemer!I$14*(1+Belysningssystemer!I$77)^-$B57)+(Belysningssystemer!I$78*Belysningssystemer!I$13*(1+Belysningssystemer!I$77)^-$B57) -> 0 | K57: =(IF($B57<=Belysningssystemer!K$59,Belysningssystemer!K$35,0)*Belysningssystemer!K$13*Belysningssystemer!K$14*(1+Belysningssystemer!K$77)^-$B57)+(Belysningssystemer!K$78*Belysningssystemer!K$13*(1+Belysningssystemer!K$77)^-$B57) -> 0 | M57: =(IF($B57<=Belysningssystemer!M$59,Belysningssystemer!M$35,0)*Belysningssystemer!M$13*Belysningssystemer!M$14*(1+Belysningssystemer!M$77)^-$B57)+(Belysningssystemer!M$78*Belysningssystemer!M$13*(1+Belysningssystemer!M$77)^-$B57) -> 0 | O57: =(IF($B57<=Belysningssystemer!O$59,Belysningssystemer!O$35,0)*Belysningssystemer!O$13*Belysningssystemer!O$14*(1+Belysningssystemer!O$77)^-$B57)+(Belysningssystemer!O$78*Belysningssystemer!O$13*(1+Belysningssystemer!O$77)^-$B57) -> 0 | Q57: =(IF($B57<=Belysningssystemer!Q$59,Belysningssystemer!Q$35,0)*Belysningssystemer!Q$13*Belysningssystemer!Q$14*(1+Belysningssystemer!Q$77)^-$B57)+(Belysningssystemer!Q$78*Belysningssystemer!Q$13*(1+Belysningssystemer!Q$77)^-$B57) -> 0 | S57: =(IF($B57<=Belysningssystemer!S$59,Belysningssystemer!S$35,0)*Belysningssystemer!S$13*Belysningssystemer!S$14*(1+Belysningssystemer!S$77)^-$B57)+(Belysningssystemer!S$78*Belysningssystemer!S$13*(1+Belysningssystemer!S$77)^-$B57) -> 0
B58: 10 | C58: 10 | E58: =(IF($B58<=Belysningssystemer!E$59,Belysningssystemer!E$35,0)*Belysningssystemer!E$13*Belysningssystemer!E$14*(1+Belysningssystemer!E$77)^-$B58)+(Belysningssystemer!E$78*Belysningssystemer!E$13*(1+Belysningssystemer!E$77)^-$B58) -> 0 | G58: =(IF($B58<=Belysningssystemer!G$59,Belysningssystemer!G$35,0)*Belysningssystemer!G$13*Belysningssystemer!G$14*(1+Belysningssystemer!G$77)^-$B58)+(Belysningssystemer!G$78*Belysningssystemer!G$13*(1+Belysningssystemer!G$77)^-$B58) -> 0 | I58: =(IF($B58<=Belysningssystemer!I$59,Belysningssystemer!I$35,0)*Belysningssystemer!I$13*Belysningssystemer!I$14*(1+Belysningssystemer!I$77)^-$B58)+(Belysningssystemer!I$78*Belysningssystemer!I$13*(1+Belysningssystemer!I$77)^-$B58) -> 0 | K58: =(IF($B58<=Belysningssystemer!K$59,Belysningssystemer!K$35,0)*Belysningssystemer!K$13*Belysningssystemer!K$14*(1+Belysningssystemer!K$77)^-$B58)+(Belysningssystemer!K$78*Belysningssystemer!K$13*(1+Belysningssystemer!K$77)^-$B58) -> 0 | M58: =(IF($B58<=Belysningssystemer!M$59,Belysningssystemer!M$35,0)*Belysningssystemer!M$13*Belysningssystemer!M$14*(1+Belysningssystemer!M$77)^-$B58)+(Belysningssystemer!M$78*Belysningssystemer!M$13*(1+Belysningssystemer!M$77)^-$B58) -> 0 | O58: =(IF($B58<=Belysningssystemer!O$59,Belysningssystemer!O$35,0)*Belysningssystemer!O$13*Belysningssystemer!O$14*(1+Belysningssystemer!O$77)^-$B58)+(Belysningssystemer!O$78*Belysningssystemer!O$13*(1+Belysningssystemer!O$77)^-$B58) -> 0 | Q58: =(IF($B58<=Belysningssystemer!Q$59,Belysningssystemer!Q$35,0)*Belysningssystemer!Q$13*Belysningssystemer!Q$14*(1+Belysningssystemer!Q$77)^-$B58)+(Belysningssystemer!Q$78*Belysningssystemer!Q$13*(1+Belysningssystemer!Q$77)^-$B58) -> 0 | S58: =(IF($B58<=Belysningssystemer!S$59,Belysningssystemer!S$35,0)*Belysningssystemer!S$13*Belysningssystemer!S$14*(1+Belysningssystemer!S$77)^-$B58)+(Belysningssystemer!S$78*Belysningssystemer!S$13*(1+Belysningssystemer!S$77)^-$B58) -> 0
B59: 11 | C59: 11 | E59: =(IF($B59<=Belysningssystemer!E$59,Belysningssystemer!E$35,0)*Belysningssystemer!E$13*Belysningssystemer!E$14*(1+Belysningssystemer!E$77)^-$B59)+(Belysningssystemer!E$78*Belysningssystemer!E$13*(1+Belysningssystemer!E$77)^-$B59) -> 0 | G59: =(IF($B59<=Belysningssystemer!G$59,Belysningssystemer!G$35,0)*Belysningssystemer!G$13*Belysningssystemer!G$14*(1+Belysningssystemer!G$77)^-$B59)+(Belysningssystemer!G$78*Belysningssystemer!G$13*(1+Belysningssystemer!G$77)^-$B59) -> 0 | I59: =(IF($B59<=Belysningssystemer!I$59,Belysningssystemer!I$35,0)*Belysningssystemer!I$13*Belysningssystemer!I$14*(1+Belysningssystemer!I$77)^-$B59)+(Belysningssystemer!I$78*Belysningssystemer!I$13*(1+Belysningssystemer!I$77)^-$B59) -> 0 | K59: =(IF($B59<=Belysningssystemer!K$59,Belysningssystemer!K$35,0)*Belysningssystemer!K$13*Belysningssystemer!K$14*(1+Belysningssystemer!K$77)^-$B59)+(Belysningssystemer!K$78*Belysningssystemer!K$13*(1+Belysningssystemer!K$77)^-$B59) -> 0 | M59: =(IF($B59<=Belysningssystemer!M$59,Belysningssystemer!M$35,0)*Belysningssystemer!M$13*Belysningssystemer!M$14*(1+Belysningssystemer!M$77)^-$B59)+(Belysningssystemer!M$78*Belysningssystemer!M$13*(1+Belysningssystemer!M$77)^-$B59) -> 0 | O59: =(IF($B59<=Belysningssystemer!O$59,Belysningssystemer!O$35,0)*Belysningssystemer!O$13*Belysningssystemer!O$14*(1+Belysningssystemer!O$77)^-$B59)+(Belysningssystemer!O$78*Belysningssystemer!O$13*(1+Belysningssystemer!O$77)^-$B59) -> 0 | Q59: =(IF($B59<=Belysningssystemer!Q$59,Belysningssystemer!Q$35,0)*Belysningssystemer!Q$13*Belysningssystemer!Q$14*(1+Belysningssystemer!Q$77)^-$B59)+(Belysningssystemer!Q$78*Belysningssystemer!Q$13*(1+Belysningssystemer!Q$77)^-$B59) -> 0 | S59: =(IF($B59<=Belysningssystemer!S$59,Belysningssystemer!S$35,0)*Belysningssystemer!S$13*Belysningssystemer!S$14*(1+Belysningssystemer!S$77)^-$B59)+(Belysningssystemer!S$78*Belysningssystemer!S$13*(1+Belysningssystemer!S$77)^-$B59) -> 0
B60: 12 | C60: 12 | E60: =(IF($B60<=Belysningssystemer!E$59,Belysningssystemer!E$35,0)*Belysningssystemer!E$13*Belysningssystemer!E$14*(1+Belysningssystemer!E$77)^-$B60)+(Belysningssystemer!E$78*Belysningssystemer!E$13*(1+Belysningssystemer!E$77)^-$B60) -> 0 | G60: =(IF($B60<=Belysningssystemer!G$59,Belysningssystemer!G$35,0)*Belysningssystemer!G$13*Belysningssystemer!G$14*(1+Belysningssystemer!G$77)^-$B60)+(Belysningssystemer!G$78*Belysningssystemer!G$13*(1+Belysningssystemer!G$77)^-$B60) -> 0 | I60: =(IF($B60<=Belysningssystemer!I$59,Belysningssystemer!I$35,0)*Belysningssystemer!I$13*Belysningssystemer!I$14*(1+Belysningssystemer!I$77)^-$B60)+(Belysningssystemer!I$78*Belysningssystemer!I$13*(1+Belysningssystemer!I$77)^-$B60) -> 0 | K60: =(IF($B60<=Belysningssystemer!K$59,Belysningssystemer!K$35,0)*Belysningssystemer!K$13*Belysningssystemer!K$14*(1+Belysningssystemer!K$77)^-$B60)+(Belysningssystemer!K$78*Belysningssystemer!K$13*(1+Belysningssystemer!K$77)^-$B60) -> 0 | M60: =(IF($B60<=Belysningssystemer!M$59,Belysningssystemer!M$35,0)*Belysningssystemer!M$13*Belysningssystemer!M$14*(1+Belysningssystemer!M$77)^-$B60)+(Belysningssystemer!M$78*Belysningssystemer!M$13*(1+Belysningssystemer!M$77)^-$B60) -> 0 | O60: =(IF($B60<=Belysningssystemer!O$59,Belysningssystemer!O$35,0)*Belysningssystemer!O$13*Belysningssystemer!O$14*(1+Belysningssystemer!O$77)^-$B60)+(Belysningssystemer!O$78*Belysningssystemer!O$13*(1+Belysningssystemer!O$77)^-$B60) -> 0 | Q60: =(IF($B60<=Belysningssystemer!Q$59,Belysningssystemer!Q$35,0)*Belysningssystemer!Q$13*Belysningssystemer!Q$14*(1+Belysningssystemer!Q$77)^-$B60)+(Belysningssystemer!Q$78*Belysningssystemer!Q$13*(1+Belysningssystemer!Q$77)^-$B60) -> 0 | S60: =(IF($B60<=Belysningssystemer!S$59,Belysningssystemer!S$35,0)*Belysningssystemer!S$13*Belysningssystemer!S$14*(1+Belysningssystemer!S$77)^-$B60)+(Belysningssystemer!S$78*Belysningssystemer!S$13*(1+Belysningssystemer!S$77)^-$B60) -> 0
B61: 13 | C61: 13 | E61: =(IF($B61<=Belysningssystemer!E$59,Belysningssystemer!E$35,0)*Belysningssystemer!E$13*Belysningssystemer!E$14*(1+Belysningssystemer!E$77)^-$B61)+(Belysningssystemer!E$78*Belysningssystemer!E$13*(1+Belysningssystemer!E$77)^-$B61) -> 0 | G61: =(IF($B61<=Belysningssystemer!G$59,Belysningssystemer!G$35,0)*Belysningssystemer!G$13*Belysningssystemer!G$14*(1+Belysningssystemer!G$77)^-$B61)+(Belysningssystemer!G$78*Belysningssystemer!G$13*(1+Belysningssystemer!G$77)^-$B61) -> 0 | I61: =(IF($B61<=Belysningssystemer!I$59,Belysningssystemer!I$35,0)*Belysningssystemer!I$13*Belysningssystemer!I$14*(1+Belysningssystemer!I$77)^-$B61)+(Belysningssystemer!I$78*Belysningssystemer!I$13*(1+Belysningssystemer!I$77)^-$B61) -> 0 | K61: =(IF($B61<=Belysningssystemer!K$59,Belysningssystemer!K$35,0)*Belysningssystemer!K$13*Belysningssystemer!K$14*(1+Belysningssystemer!K$77)^-$B61)+(Belysningssystemer!K$78*Belysningssystemer!K$13*(1+Belysningssystemer!K$77)^-$B61) -> 0 | M61: =(IF($B61<=Belysningssystemer!M$59,Belysningssystemer!M$35,0)*Belysningssystemer!M$13*Belysningssystemer!M$14*(1+Belysningssystemer!M$77)^-$B61)+(Belysningssystemer!M$78*Belysningssystemer!M$13*(1+Belysningssystemer!M$77)^-$B61) -> 0 | O61: =(IF($B61<=Belysningssystemer!O$59,Belysningssystemer!O$35,0)*Belysningssystemer!O$13*Belysningssystemer!O$14*(1+Belysningssystemer!O$77)^-$B61)+(Belysningssystemer!O$78*Belysningssystemer!O$13*(1+Belysningssystemer!O$77)^-$B61) -> 0 | Q61: =(IF($B61<=Belysningssystemer!Q$59,Belysningssystemer!Q$35,0)*Belysningssystemer!Q$13*Belysningssystemer!Q$14*(1+Belysningssystemer!Q$77)^-$B61)+(Belysningssystemer!Q$78*Belysningssystemer!Q$13*(1+Belysningssystemer!Q$77)^-$B61) -> 0 | S61: =(IF($B61<=Belysningssystemer!S$59,Belysningssystemer!S$35,0)*Belysningssystemer!S$13*Belysningssystemer!S$14*(1+Belysningssystemer!S$77)^-$B61)+(Belysningssystemer!S$78*Belysningssystemer!S$13*(1+Belysningssystemer!S$77)^-$B61) -> 0
B62: 14 | C62: 14 | E62: =(IF($B62<=Belysningssystemer!E$59,Belysningssystemer!E$35,0)*Belysningssystemer!E$13*Belysningssystemer!E$14*(1+Belysningssystemer!E$77)^-$B62)+(Belysningssystemer!E$78*Belysningssystemer!E$13*(1+Belysningssystemer!E$77)^-$B62) -> 0 | G62: =(IF($B62<=Belysningssystemer!G$59,Belysningssystemer!G$35,0)*Belysningssystemer!G$13*Belysningssystemer!G$14*(1+Belysningssystemer!G$77)^-$B62)+(Belysningssystemer!G$78*Belysningssystemer!G$13*(1+Belysningssystemer!G$77)^-$B62) -> 0 | I62: =(IF($B62<=Belysningssystemer!I$59,Belysningssystemer!I$35,0)*Belysningssystemer!I$13*Belysningssystemer!I$14*(1+Belysningssystemer!I$77)^-$B62)+(Belysningssystemer!I$78*Belysningssystemer!I$13*(1+Belysningssystemer!I$77)^-$B62) -> 0 | K62: =(IF($B62<=Belysningssystemer!K$59,Belysningssystemer!K$35,0)*Belysningssystemer!K$13*Belysningssystemer!K$14*(1+Belysningssystemer!K$77)^-$B62)+(Belysningssystemer!K$78*Belysningssystemer!K$13*(1+Belysningssystemer!K$77)^-$B62) -> 0 | M62: =(IF($B62<=Belysningssystemer!M$59,Belysningssystemer!M$35,0)*Belysningssystemer!M$13*Belysningssystemer!M$14*(1+Belysningssystemer!M$77)^-$B62)+(Belysningssystemer!M$78*Belysningssystemer!M$13*(1+Belysningssystemer!M$77)^-$B62) -> 0 | O62: =(IF($B62<=Belysningssystemer!O$59,Belysningssystemer!O$35,0)*Belysningssystemer!O$13*Belysningssystemer!O$14*(1+Belysningssystemer!O$77)^-$B62)+(Belysningssystemer!O$78*Belysningssystemer!O$13*(1+Belysningssystemer!O$77)^-$B62) -> 0 | Q62: =(IF($B62<=Belysningssystemer!Q$59,Belysningssystemer!Q$35,0)*Belysningssystemer!Q$13*Belysningssystemer!Q$14*(1+Belysningssystemer!Q$77)^-$B62)+(Belysningssystemer!Q$78*Belysningssystemer!Q$13*(1+Belysningssystemer!Q$77)^-$B62) -> 0 | S62: =(IF($B62<=Belysningssystemer!S$59,Belysningssystemer!S$35,0)*Belysningssystemer!S$13*Belysningssystemer!S$14*(1+Belysningssystemer!S$77)^-$B62)+(Belysningssystemer!S$78*Belysningssystemer!S$13*(1+Belysningssystemer!S$77)^-$B62) -> 0
B63: 15 | C63: 15 | E63: =(IF($B63<=Belysningssystemer!E$59,Belysningssystemer!E$35,0)*Belysningssystemer!E$13*Belysningssystemer!E$14*(1+Belysningssystemer!E$77)^-$B63)+(Belysningssystemer!E$78*Belysningssystemer!E$13*(1+Belysningssystemer!E$77)^-$B63) -> 0 | G63: =(IF($B63<=Belysningssystemer!G$59,Belysningssystemer!G$35,0)*Belysningssystemer!G$13*Belysningssystemer!G$14*(1+Belysningssystemer!G$77)^-$B63)+(Belysningssystemer!G$78*Belysningssystemer!G$13*(1+Belysningssystemer!G$77)^-$B63) -> 0 | I63: =(IF($B63<=Belysningssystemer!I$59,Belysningssystemer!I$35,0)*Belysningssystemer!I$13*Belysningssystemer!I$14*(1+Belysningssystemer!I$77)^-$B63)+(Belysningssystemer!I$78*Belysningssystemer!I$13*(1+Belysningssystemer!I$77)^-$B63) -> 0 | K63: =(IF($B63<=Belysningssystemer!K$59,Belysningssystemer!K$35,0)*Belysningssystemer!K$13*Belysningssystemer!K$14*(1+Belysningssystemer!K$77)^-$B63)+(Belysningssystemer!K$78*Belysningssystemer!K$13*(1+Belysningssystemer!K$77)^-$B63) -> 0 | M63: =(IF($B63<=Belysningssystemer!M$59,Belysningssystemer!M$35,0)*Belysningssystemer!M$13*Belysningssystemer!M$14*(1+Belysningssystemer!M$77)^-$B63)+(Belysningssystemer!M$78*Belysningssystemer!M$13*(1+Belysningssystemer!M$77)^-$B63) -> 0 | O63: =(IF($B63<=Belysningssystemer!O$59,Belysningssystemer!O$35,0)*Belysningssystemer!O$13*Belysningssystemer!O$14*(1+Belysningssystemer!O$77)^-$B63)+(Belysningssystemer!O$78*Belysningssystemer!O$13*(1+Belysningssystemer!O$77)^-$B63) -> 0 | Q63: =(IF($B63<=Belysningssystemer!Q$59,Belysningssystemer!Q$35,0)*Belysningssystemer!Q$13*Belysningssystemer!Q$14*(1+Belysningssystemer!Q$77)^-$B63)+(Belysningssystemer!Q$78*Belysningssystemer!Q$13*(1+Belysningssystemer!Q$77)^-$B63) -> 0 | S63: =(IF($B63<=Belysningssystemer!S$59,Belysningssystemer!S$35,0)*Belysningssystemer!S$13*Belysningssystemer!S$14*(1+Belysningssystemer!S$77)^-$B63)+(Belysningssystemer!S$78*Belysningssystemer!S$13*(1+Belysningssystemer!S$77)^-$B63) -> 0
B64: 16 | C64: =B64 -> 16 | E64: =(IF($B64<=Belysningssystemer!E$59,Belysningssystemer!E$35,0)*Belysningssystemer!E$13*Belysningssystemer!E$14*(1+Belysningssystemer!E$77)^-$B64)+(Belysningssystemer!E$78*Belysningssystemer!E$13*(1+Belysningssystemer!E$77)^-$B64) -> 0 | G64: =(IF($B64<=Belysningssystemer!G$59,Belysningssystemer!G$35,0)*Belysningssystemer!G$13*Belysningssystemer!G$14*(1+Belysningssystemer!G$77)^-$B64)+(Belysningssystemer!G$78*Belysningssystemer!G$13*(1+Belysningssystemer!G$77)^-$B64) -> 0 | I64: =(IF($B64<=Belysningssystemer!I$59,Belysningssystemer!I$35,0)*Belysningssystemer!I$13*Belysningssystemer!I$14*(1+Belysningssystemer!I$77)^-$B64)+(Belysningssystemer!I$78*Belysningssystemer!I$13*(1+Belysningssystemer!I$77)^-$B64) -> 0 | K64: =(IF($B64<=Belysningssystemer!K$59,Belysningssystemer!K$35,0)*Belysningssystemer!K$13*Belysningssystemer!K$14*(1+Belysningssystemer!K$77)^-$B64)+(Belysningssystemer!K$78*Belysningssystemer!K$13*(1+Belysningssystemer!K$77)^-$B64) -> 0 | M64: =(IF($B64<=Belysningssystemer!M$59,Belysningssystemer!M$35,0)*Belysningssystemer!M$13*Belysningssystemer!M$14*(1+Belysningssystemer!M$77)^-$B64)+(Belysningssystemer!M$78*Belysningssystemer!M$13*(1+Belysningssystemer!M$77)^-$B64) -> 0 | O64: =(IF($B64<=Belysningssystemer!O$59,Belysningssystemer!O$35,0)*Belysningssystemer!O$13*Belysningssystemer!O$14*(1+Belysningssystemer!O$77)^-$B64)+(Belysningssystemer!O$78*Belysningssystemer!O$13*(1+Belysningssystemer!O$77)^-$B64) -> 0 | Q64: =(IF($B64<=Belysningssystemer!Q$59,Belysningssystemer!Q$35,0)*Belysningssystemer!Q$13*Belysningssystemer!Q$14*(1+Belysningssystemer!Q$77)^-$B64)+(Belysningssystemer!Q$78*Belysningssystemer!Q$13*(1+Belysningssystemer!Q$77)^-$B64) -> 0 | S64: =(IF($B64<=Belysningssystemer!S$59,Belysningssystemer!S$35,0)*Belysningssystemer!S$13*Belysningssystemer!S$14*(1+Belysningssystemer!S$77)^-$B64)+(Belysningssystemer!S$78*Belysningssystemer!S$13*(1+Belysningssystemer!S$77)^-$B64) -> 0
B65: 17 | C65: 17 | E65: =(IF($B65<=Belysningssystemer!E$59,Belysningssystemer!E$35,0)*Belysningssystemer!E$13*Belysningssystemer!E$14*(1+Belysningssystemer!E$77)^-$B65)+(Belysningssystemer!E$78*Belysningssystemer!E$13*(1+Belysningssystemer!E$77)^-$B65) -> 0 | G65: =(IF($B65<=Belysningssystemer!G$59,Belysningssystemer!G$35,0)*Belysningssystemer!G$13*Belysningssystemer!G$14*(1+Belysningssystemer!G$77)^-$B65)+(Belysningssystemer!G$78*Belysningssystemer!G$13*(1+Belysningssystemer!G$77)^-$B65) -> 0 | I65: =(IF($B65<=Belysningssystemer!I$59,Belysningssystemer!I$35,0)*Belysningssystemer!I$13*Belysningssystemer!I$14*(1+Belysningssystemer!I$77)^-$B65)+(Belysningssystemer!I$78*Belysningssystemer!I$13*(1+Belysningssystemer!I$77)^-$B65) -> 0 | K65: =(IF($B65<=Belysningssystemer!K$59,Belysningssystemer!K$35,0)*Belysningssystemer!K$13*Belysningssystemer!K$14*(1+Belysningssystemer!K$77)^-$B65)+(Belysningssystemer!K$78*Belysningssystemer!K$13*(1+Belysningssystemer!K$77)^-$B65) -> 0 | M65: =(IF($B65<=Belysningssystemer!M$59,Belysningssystemer!M$35,0)*Belysningssystemer!M$13*Belysningssystemer!M$14*(1+Belysningssystemer!M$77)^-$B65)+(Belysningssystemer!M$78*Belysningssystemer!M$13*(1+Belysningssystemer!M$77)^-$B65) -> 0 | O65: =(IF($B65<=Belysningssystemer!O$59,Belysningssystemer!O$35,0)*Belysningssystemer!O$13*Belysningssystemer!O$14*(1+Belysningssystemer!O$77)^-$B65)+(Belysningssystemer!O$78*Belysningssystemer!O$13*(1+Belysningssystemer!O$77)^-$B65) -> 0 | Q65: =(IF($B65<=Belysningssystemer!Q$59,Belysningssystemer!Q$35,0)*Belysningssystemer!Q$13*Belysningssystemer!Q$14*(1+Belysningssystemer!Q$77)^-$B65)+(Belysningssystemer!Q$78*Belysningssystemer!Q$13*(1+Belysningssystemer!Q$77)^-$B65) -> 0 | S65: =(IF($B65<=Belysningssystemer!S$59,Belysningssystemer!S$35,0)*Belysningssystemer!S$13*Belysningssystemer!S$14*(1+Belysningssystemer!S$77)^-$B65)+(Belysningssystemer!S$78*Belysningssystemer!S$13*(1+Belysningssystemer!S$77)^-$B65) -> 0
B66: 18 | C66: 18 | E66: =(IF($B66<=Belysningssystemer!E$59,Belysningssystemer!E$35,0)*Belysningssystemer!E$13*Belysningssystemer!E$14*(1+Belysningssystemer!E$77)^-$B66)+(Belysningssystemer!E$78*Belysningssystemer!E$13*(1+Belysningssystemer!E$77)^-$B66) -> 0 | G66: =(IF($B66<=Belysningssystemer!G$59,Belysningssystemer!G$35,0)*Belysningssystemer!G$13*Belysningssystemer!G$14*(1+Belysningssystemer!G$77)^-$B66)+(Belysningssystemer!G$78*Belysningssystemer!G$13*(1+Belysningssystemer!G$77)^-$B66) -> 0 | I66: =(IF($B66<=Belysningssystemer!I$59,Belysningssystemer!I$35,0)*Belysningssystemer!I$13*Belysningssystemer!I$14*(1+Belysningssystemer!I$77)^-$B66)+(Belysningssystemer!I$78*Belysningssystemer!I$13*(1+Belysningssystemer!I$77)^-$B66) -> 0 | K66: =(IF($B66<=Belysningssystemer!K$59,Belysningssystemer!K$35,0)*Belysningssystemer!K$13*Belysningssystemer!K$14*(1+Belysningssystemer!K$77)^-$B66)+(Belysningssystemer!K$78*Belysningssystemer!K$13*(1+Belysningssystemer!K$77)^-$B66) -> 0 | M66: =(IF($B66<=Belysningssystemer!M$59,Belysningssystemer!M$35,0)*Belysningssystemer!M$13*Belysningssystemer!M$14*(1+Belysningssystemer!M$77)^-$B66)+(Belysningssystemer!M$78*Belysningssystemer!M$13*(1+Belysningssystemer!M$77)^-$B66) -> 0 | O66: =(IF($B66<=Belysningssystemer!O$59,Belysningssystemer!O$35,0)*Belysningssystemer!O$13*Belysningssystemer!O$14*(1+Belysningssystemer!O$77)^-$B66)+(Belysningssystemer!O$78*Belysningssystemer!O$13*(1+Belysningssystemer!O$77)^-$B66) -> 0 | Q66: =(IF($B66<=Belysningssystemer!Q$59,Belysningssystemer!Q$35,0)*Belysningssystemer!Q$13*Belysningssystemer!Q$14*(1+Belysningssystemer!Q$77)^-$B66)+(Belysningssystemer!Q$78*Belysningssystemer!Q$13*(1+Belysningssystemer!Q$77)^-$B66) -> 0 | S66: =(IF($B66<=Belysningssystemer!S$59,Belysningssystemer!S$35,0)*Belysningssystemer!S$13*Belysningssystemer!S$14*(1+Belysningssystemer!S$77)^-$B66)+(Belysningssystemer!S$78*Belysningssystemer!S$13*(1+Belysningssystemer!S$77)^-$B66) -> 0
B67: 19 | C67: 19 | E67: =(IF($B67<=Belysningssystemer!E$59,Belysningssystemer!E$35,0)*Belysningssystemer!E$13*Belysningssystemer!E$14*(1+Belysningssystemer!E$77)^-$B67)+(Belysningssystemer!E$78*Belysningssystemer!E$13*(1+Belysningssystemer!E$77)^-$B67) -> 0 | G67: =(IF($B67<=Belysningssystemer!G$59,Belysningssystemer!G$35,0)*Belysningssystemer!G$13*Belysningssystemer!G$14*(1+Belysningssystemer!G$77)^-$B67)+(Belysningssystemer!G$78*Belysningssystemer!G$13*(1+Belysningssystemer!G$77)^-$B67) -> 0 | I67: =(IF($B67<=Belysningssystemer!I$59,Belysningssystemer!I$35,0)*Belysningssystemer!I$13*Belysningssystemer!I$14*(1+Belysningssystemer!I$77)^-$B67)+(Belysningssystemer!I$78*Belysningssystemer!I$13*(1+Belysningssystemer!I$77)^-$B67) -> 0 | K67: =(IF($B67<=Belysningssystemer!K$59,Belysningssystemer!K$35,0)*Belysningssystemer!K$13*Belysningssystemer!K$14*(1+Belysningssystemer!K$77)^-$B67)+(Belysningssystemer!K$78*Belysningssystemer!K$13*(1+Belysningssystemer!K$77)^-$B67) -> 0 | M67: =(IF($B67<=Belysningssystemer!M$59,Belysningssystemer!M$35,0)*Belysningssystemer!M$13*Belysningssystemer!M$14*(1+Belysningssystemer!M$77)^-$B67)+(Belysningssystemer!M$78*Belysningssystemer!M$13*(1+Belysningssystemer!M$77)^-$B67) -> 0 | O67: =(IF($B67<=Belysningssystemer!O$59,Belysningssystemer!O$35,0)*Belysningssystemer!O$13*Belysningssystemer!O$14*(1+Belysningssystemer!O$77)^-$B67)+(Belysningssystemer!O$78*Belysningssystemer!O$13*(1+Belysningssystemer!O$77)^-$B67) -> 0 | Q67: =(IF($B67<=Belysningssystemer!Q$59,Belysningssystemer!Q$35,0)*Belysningssystemer!Q$13*Belysningssystemer!Q$14*(1+Belysningssystemer!Q$77)^-$B67)+(Belysningssystemer!Q$78*Belysningssystemer!Q$13*(1+Belysningssystemer!Q$77)^-$B67) -> 0 | S67: =(IF($B67<=Belysningssystemer!S$59,Belysningssystemer!S$35,0)*Belysningssystemer!S$13*Belysningssystemer!S$14*(1+Belysningssystemer!S$77)^-$B67)+(Belysningssystemer!S$78*Belysningssystemer!S$13*(1+Belysningssystemer!S$77)^-$B67) -> 0
B68: 20 | C68: 20 | E68: =(IF($B68<=Belysningssystemer!E$59,Belysningssystemer!E$35,0)*Belysningssystemer!E$13*Belysningssystemer!E$14*(1+Belysningssystemer!E$77)^-$B68)+(Belysningssystemer!E$78*Belysningssystemer!E$13*(1+Belysningssystemer!E$77)^-$B68) -> 0 | G68: =(IF($B68<=Belysningssystemer!G$59,Belysningssystemer!G$35,0)*Belysningssystemer!G$13*Belysningssystemer!G$14*(1+Belysningssystemer!G$77)^-$B68)+(Belysningssystemer!G$78*Belysningssystemer!G$13*(1+Belysningssystemer!G$77)^-$B68) -> 0 | I68: =(IF($B68<=Belysningssystemer!I$59,Belysningssystemer!I$35,0)*Belysningssystemer!I$13*Belysningssystemer!I$14*(1+Belysningssystemer!I$77)^-$B68)+(Belysningssystemer!I$78*Belysningssystemer!I$13*(1+Belysningssystemer!I$77)^-$B68) -> 0 | K68: =(IF($B68<=Belysningssystemer!K$59,Belysningssystemer!K$35,0)*Belysningssystemer!K$13*Belysningssystemer!K$14*(1+Belysningssystemer!K$77)^-$B68)+(Belysningssystemer!K$78*Belysningssystemer!K$13*(1+Belysningssystemer!K$77)^-$B68) -> 0 | M68: =(IF($B68<=Belysningssystemer!M$59,Belysningssystemer!M$35,0)*Belysningssystemer!M$13*Belysningssystemer!M$14*(1+Belysningssystemer!M$77)^-$B68)+(Belysningssystemer!M$78*Belysningssystemer!M$13*(1+Belysningssystemer!M$77)^-$B68) -> 0 | O68: =(IF($B68<=Belysningssystemer!O$59,Belysningssystemer!O$35,0)*Belysningssystemer!O$13*Belysningssystemer!O$14*(1+Belysningssystemer!O$77)^-$B68)+(Belysningssystemer!O$78*Belysningssystemer!O$13*(1+Belysningssystemer!O$77)^-$B68) -> 0 | Q68: =(IF($B68<=Belysningssystemer!Q$59,Belysningssystemer!Q$35,0)*Belysningssystemer!Q$13*Belysningssystemer!Q$14*(1+Belysningssystemer!Q$77)^-$B68)+(Belysningssystemer!Q$78*Belysningssystemer!Q$13*(1+Belysningssystemer!Q$77)^-$B68) -> 0 | S68: =(IF($B68<=Belysningssystemer!S$59,Belysningssystemer!S$35,0)*Belysningssystemer!S$13*Belysningssystemer!S$14*(1+Belysningssystemer!S$77)^-$B68)+(Belysningssystemer!S$78*Belysningssystemer!S$13*(1+Belysningssystemer!S$77)^-$B68) -> 0
A71: Efterbrugsindtægter/omkostninger i det enkelte år.
B72: År indeks | E72: PRODUKT 1 | G72: PRODUKT 2 | I72: PRODUKT 3 | K72: PRODUKT 4 | M72: PRODUKT 5 | O72: PRODUKT 6 | Q72: PRODUKT 7 | S72: PRODUKT 8
B73: 1 | C73: =B73 -> 1 | E73: =IF(Belysningssystemer!E$39="nej",-IF(100-(100+Belysningssystemer!E$86)*$B73/Belysningssystemer!E$69<0,0,(100-(100+Belysningssystemer!E$86)*$B73/Belysningssystemer!E$69)/100*Belysningssystemer!E$12)+Belysningssystemer!E$87,0)*Belysningssystemer!E$13*Belysningssystemer!E$14*(1+Belysningssystemer!E$77/100)^-$B73 -> 0 | G73: =IF(Belysningssystemer!G$39="nej",-IF(100-(100+Belysningssystemer!G$86)*$B73/Belysningssystemer!G$69<0,0,(100-(100+Belysningssystemer!G$86)*$B73/Belysningssystemer!G$69)/100*Belysningssystemer!G$12)+Belysningssystemer!G$87,0)*Belysningssystemer!G$13*Belysningssystemer!G$14*(1+Belysningssystemer!G$77/100)^-$B73 -> 0 | I73: =IF(Belysningssystemer!I$39="nej",-IF(100-(100+Belysningssystemer!I$86)*$B73/Belysningssystemer!I$69<0,0,(100-(100+Belysningssystemer!I$86)*$B73/Belysningssystemer!I$69)/100*Belysningssystemer!I$12)+Belysningssystemer!I$87,0)*Belysningssystemer!I$13*Belysningssystemer!I$14*(1+Belysningssystemer!I$77/100)^-$B73 -> 0 | K73: =IF(Belysningssystemer!K$39="nej",-IF(100-(100+Belysningssystemer!K$86)*$B73/Belysningssystemer!K$69<0,0,(100-(100+Belysningssystemer!K$86)*$B73/Belysningssystemer!K$69)/100*Belysningssystemer!K$12)+Belysningssystemer!K$87,0)*Belysningssystemer!K$13*Belysningssystemer!K$14*(1+Belysningssystemer!K$77/100)^-$B73 -> 0 | M73: =IF(Belysningssystemer!M$39="nej",-IF(100-(100+Belysningssystemer!M$86)*$B73/Belysningssystemer!M$69<0,0,(100-(100+Belysningssystemer!M$86)*$B73/Belysningssystemer!M$69)/100*Belysningssystemer!M$12)+Belysningssystemer!M$87,0)*Belysningssystemer!M$13*Belysningssystemer!M$14*(1+Belysningssystemer!M$77/100)^-$B73 -> 0 | O73: =IF(Belysningssystemer!O$39="nej",-IF(100-(100+Belysningssystemer!O$86)*$B73/Belysningssystemer!O$69<0,0,(100-(100+Belysningssystemer!O$86)*$B73/Belysningssystemer!O$69)/100*Belysningssystemer!O$12)+Belysningssystemer!O$87,0)*Belysningssystemer!O$13*Belysningssystemer!O$14*(1+Belysningssystemer!O$77/100)^-$B73 -> 0 | Q73: =IF(Belysningssystemer!Q$39="nej",-IF(100-(100+Belysningssystemer!Q$86)*$B73/Belysningssystemer!Q$69<0,0,(100-(100+Belysningssystemer!Q$86)*$B73/Belysningssystemer!Q$69)/100*Belysningssystemer!Q$12)+Belysningssystemer!Q$87,0)*Belysningssystemer!Q$13*Belysningssystemer!Q$14*(1+Belysningssystemer!Q$77/100)^-$B73 -> 0 | S73: =IF(Belysningssystemer!S$39="nej",-IF(100-(100+Belysningssystemer!S$86)*$B73/Belysningssystemer!S$69<0,0,(100-(100+Belysningssystemer!S$86)*$B73/Belysningssystemer!S$69)/100*Belysningssystemer!S$12)+Belysningssystemer!S$87,0)*Belysningssystemer!S$13*Belysningssystemer!S$14*(1+Belysningssystemer!S$77/100)^-$B73 -> 0
B74: 2 | C74: =B74 -> 2 | E74: =IF(Belysningssystemer!E$39="nej",-IF(100-(100+Belysningssystemer!E$86)*$B74/Belysningssystemer!E$69<0,0,(100-(100+Belysningssystemer!E$86)*$B74/Belysningssystemer!E$69)/100*Belysningssystemer!E$12)+Belysningssystemer!E$87,0)*Belysningssystemer!E$13*Belysningssystemer!E$14*(1+Belysningssystemer!E$77/100)^-$B74 -> 0 | G74: =IF(Belysningssystemer!G$39="nej",-IF(100-(100+Belysningssystemer!G$86)*$B74/Belysningssystemer!G$69<0,0,(100-(100+Belysningssystemer!G$86)*$B74/Belysningssystemer!G$69)/100*Belysningssystemer!G$12)+Belysningssystemer!G$87,0)*Belysningssystemer!G$13*Belysningssystemer!G$14*(1+Belysningssystemer!G$77/100)^-$B74 -> 0 | I74: =IF(Belysningssystemer!I$39="nej",-IF(100-(100+Belysningssystemer!I$86)*$B74/Belysningssystemer!I$69<0,0,(100-(100+Belysningssystemer!I$86)*$B74/Belysningssystemer!I$69)/100*Belysningssystemer!I$12)+Belysningssystemer!I$87,0)*Belysningssystemer!I$13*Belysningssystemer!I$14*(1+Belysningssystemer!I$77/100)^-$B74 -> 0 | K74: =IF(Belysningssystemer!K$39="nej",-IF(100-(100+Belysningssystemer!K$86)*$B74/Belysningssystemer!K$69<0,0,(100-(100+Belysningssystemer!K$86)*$B74/Belysningssystemer!K$69)/100*Belysningssystemer!K$12)+Belysningssystemer!K$87,0)*Belysningssystemer!K$13*Belysningssystemer!K$14*(1+Belysningssystemer!K$77/100)^-$B74 -> 0 | M74: =IF(Belysningssystemer!M$39="nej",-IF(100-(100+Belysningssystemer!M$86)*$B74/Belysningssystemer!M$69<0,0,(100-(100+Belysningssystemer!M$86)*$B74/Belysningssystemer!M$69)/100*Belysningssystemer!M$12)+Belysningssystemer!M$87,0)*Belysningssystemer!M$13*Belysningssystemer!M$14*(1+Belysningssystemer!M$77/100)^-$B74 -> 0 | O74: =IF(Belysningssystemer!O$39="nej",-IF(100-(100+Belysningssystemer!O$86)*$B74/Belysningssystemer!O$69<0,0,(100-(100+Belysningssystemer!O$86)*$B74/Belysningssystemer!O$69)/100*Belysningssystemer!O$12)+Belysningssystemer!O$87,0)*Belysningssystemer!O$13*Belysningssystemer!O$14*(1+Belysningssystemer!O$77/100)^-$B74 -> 0 | Q74: =IF(Belysningssystemer!Q$39="nej",-IF(100-(100+Belysningssystemer!Q$86)*$B74/Belysningssystemer!Q$69<0,0,(100-(100+Belysningssystemer!Q$86)*$B74/Belysningssystemer!Q$69)/100*Belysningssystemer!Q$12)+Belysningssystemer!Q$87,0)*Belysningssystemer!Q$13*Belysningssystemer!Q$14*(1+Belysningssystemer!Q$77/100)^-$B74 -> 0 | S74: =IF(Belysningssystemer!S$39="nej",-IF(100-(100+Belysningssystemer!S$86)*$B74/Belysningssystemer!S$69<0,0,(100-(100+Belysningssystemer!S$86)*$B74/Belysningssystemer!S$69)/100*Belysningssystemer!S$12)+Belysningssystemer!S$87,0)*Belysningssystemer!S$13*Belysningssystemer!S$14*(1+Belysningssystemer!S$77/100)^-$B74 -> 0
B75: 3 | C75: 3 | E75: =IF(Belysningssystemer!E$39="nej",-IF(100-(100+Belysningssystemer!E$86)*$B75/Belysningssystemer!E$69<0,0,(100-(100+Belysningssystemer!E$86)*$B75/Belysningssystemer!E$69)/100*Belysningssystemer!E$12)+Belysningssystemer!E$87,0)*Belysningssystemer!E$13*Belysningssystemer!E$14*(1+Belysningssystemer!E$77/100)^-$B75 -> 0 | G75: =IF(Belysningssystemer!G$39="nej",-IF(100-(100+Belysningssystemer!G$86)*$B75/Belysningssystemer!G$69<0,0,(100-(100+Belysningssystemer!G$86)*$B75/Belysningssystemer!G$69)/100*Belysningssystemer!G$12)+Belysningssystemer!G$87,0)*Belysningssystemer!G$13*Belysningssystemer!G$14*(1+Belysningssystemer!G$77/100)^-$B75 -> 0 | I75: =IF(Belysningssystemer!I$39="nej",-IF(100-(100+Belysningssystemer!I$86)*$B75/Belysningssystemer!I$69<0,0,(100-(100+Belysningssystemer!I$86)*$B75/Belysningssystemer!I$69)/100*Belysningssystemer!I$12)+Belysningssystemer!I$87,0)*Belysningssystemer!I$13*Belysningssystemer!I$14*(1+Belysningssystemer!I$77/100)^-$B75 -> 0 | K75: =IF(Belysningssystemer!K$39="nej",-IF(100-(100+Belysningssystemer!K$86)*$B75/Belysningssystemer!K$69<0,0,(100-(100+Belysningssystemer!K$86)*$B75/Belysningssystemer!K$69)/100*Belysningssystemer!K$12)+Belysningssystemer!K$87,0)*Belysningssystemer!K$13*Belysningssystemer!K$14*(1+Belysningssystemer!K$77/100)^-$B75 -> 0 | M75: =IF(Belysningssystemer!M$39="nej",-IF(100-(100+Belysningssystemer!M$86)*$B75/Belysningssystemer!M$69<0,0,(100-(100+Belysningssystemer!M$86)*$B75/Belysningssystemer!M$69)/100*Belysningssystemer!M$12)+Belysningssystemer!M$87,0)*Belysningssystemer!M$13*Belysningssystemer!M$14*(1+Belysningssystemer!M$77/100)^-$B75 -> 0 | O75: =IF(Belysningssystemer!O$39="nej",-IF(100-(100+Belysningssystemer!O$86)*$B75/Belysningssystemer!O$69<0,0,(100-(100+Belysningssystemer!O$86)*$B75/Belysningssystemer!O$69)/100*Belysningssystemer!O$12)+Belysningssystemer!O$87,0)*Belysningssystemer!O$13*Belysningssystemer!O$14*(1+Belysningssystemer!O$77/100)^-$B75 -> 0 | Q75: =IF(Belysningssystemer!Q$39="nej",-IF(100-(100+Belysningssystemer!Q$86)*$B75/Belysningssystemer!Q$69<0,0,(100-(100+Belysningssystemer!Q$86)*$B75/Belysningssystemer!Q$69)/100*Belysningssystemer!Q$12)+Belysningssystemer!Q$87,0)*Belysningssystemer!Q$13*Belysningssystemer!Q$14*(1+Belysningssystemer!Q$77/100)^-$B75 -> 0 | S75: =IF(Belysningssystemer!S$39="nej",-IF(100-(100+Belysningssystemer!S$86)*$B75/Belysningssystemer!S$69<0,0,(100-(100+Belysningssystemer!S$86)*$B75/Belysningssystemer!S$69)/100*Belysningssystemer!S$12)+Belysningssystemer!S$87,0)*Belysningssystemer!S$13*Belysningssystemer!S$14*(1+Belysningssystemer!S$77/100)^-$B75 -> 0
B76: 4 | C76: 4 | E76: =IF(Belysningssystemer!E$39="nej",-IF(100-(100+Belysningssystemer!E$86)*$B76/Belysningssystemer!E$69<0,0,(100-(100+Belysningssystemer!E$86)*$B76/Belysningssystemer!E$69)/100*Belysningssystemer!E$12)+Belysningssystemer!E$87,0)*Belysningssystemer!E$13*Belysningssystemer!E$14*(1+Belysningssystemer!E$77/100)^-$B76 -> 0 | G76: =IF(Belysningssystemer!G$39="nej",-IF(100-(100+Belysningssystemer!G$86)*$B76/Belysningssystemer!G$69<0,0,(100-(100+Belysningssystemer!G$86)*$B76/Belysningssystemer!G$69)/100*Belysningssystemer!G$12)+Belysningssystemer!G$87,0)*Belysningssystemer!G$13*Belysningssystemer!G$14*(1+Belysningssystemer!G$77/100)^-$B76 -> 0 | I76: =IF(Belysningssystemer!I$39="nej",-IF(100-(100+Belysningssystemer!I$86)*$B76/Belysningssystemer!I$69<0,0,(100-(100+Belysningssystemer!I$86)*$B76/Belysningssystemer!I$69)/100*Belysningssystemer!I$12)+Belysningssystemer!I$87,0)*Belysningssystemer!I$13*Belysningssystemer!I$14*(1+Belysningssystemer!I$77/100)^-$B76 -> 0 | K76: =IF(Belysningssystemer!K$39="nej",-IF(100-(100+Belysningssystemer!K$86)*$B76/Belysningssystemer!K$69<0,0,(100-(100+Belysningssystemer!K$86)*$B76/Belysningssystemer!K$69)/100*Belysningssystemer!K$12)+Belysningssystemer!K$87,0)*Belysningssystemer!K$13*Belysningssystemer!K$14*(1+Belysningssystemer!K$77/100)^-$B76 -> 0 | M76: =IF(Belysningssystemer!M$39="nej",-IF(100-(100+Belysningssystemer!M$86)*$B76/Belysningssystemer!M$69<0,0,(100-(100+Belysningssystemer!M$86)*$B76/Belysningssystemer!M$69)/100*Belysningssystemer!M$12)+Belysningssystemer!M$87,0)*Belysningssystemer!M$13*Belysningssystemer!M$14*(1+Belysningssystemer!M$77/100)^-$B76 -> 0 | O76: =IF(Belysningssystemer!O$39="nej",-IF(100-(100+Belysningssystemer!O$86)*$B76/Belysningssystemer!O$69<0,0,(100-(100+Belysningssystemer!O$86)*$B76/Belysningssystemer!O$69)/100*Belysningssystemer!O$12)+Belysningssystemer!O$87,0)*Belysningssystemer!O$13*Belysningssystemer!O$14*(1+Belysningssystemer!O$77/100)^-$B76 -> 0 | Q76: =IF(Belysningssystemer!Q$39="nej",-IF(100-(100+Belysningssystemer!Q$86)*$B76/Belysningssystemer!Q$69<0,0,(100-(100+Belysningssystemer!Q$86)*$B76/Belysningssystemer!Q$69)/100*Belysningssystemer!Q$12)+Belysningssystemer!Q$87,0)*Belysningssystemer!Q$13*Belysningssystemer!Q$14*(1+Belysningssystemer!Q$77/100)^-$B76 -> 0 | S76: =IF(Belysningssystemer!S$39="nej",-IF(100-(100+Belysningssystemer!S$86)*$B76/Belysningssystemer!S$69<0,0,(100-(100+Belysningssystemer!S$86)*$B76/Belysningssystemer!S$69)/100*Belysningssystemer!S$12)+Belysningssystemer!S$87,0)*Belysningssystemer!S$13*Belysningssystemer!S$14*(1+Belysningssystemer!S$77/100)^-$B76 -> 0
B77: 5 | C77: 5 | E77: =IF(Belysningssystemer!E$39="nej",-IF(100-(100+Belysningssystemer!E$86)*$B77/Belysningssystemer!E$69<0,0,(100-(100+Belysningssystemer!E$86)*$B77/Belysningssystemer!E$69)/100*Belysningssystemer!E$12)+Belysningssystemer!E$87,0)*Belysningssystemer!E$13*Belysningssystemer!E$14*(1+Belysningssystemer!E$77/100)^-$B77 -> 0 | G77: =IF(Belysningssystemer!G$39="nej",-IF(100-(100+Belysningssystemer!G$86)*$B77/Belysningssystemer!G$69<0,0,(100-(100+Belysningssystemer!G$86)*$B77/Belysningssystemer!G$69)/100*Belysningssystemer!G$12)+Belysningssystemer!G$87,0)*Belysningssystemer!G$13*Belysningssystemer!G$14*(1+Belysningssystemer!G$77/100)^-$B77 -> 0 | I77: =IF(Belysningssystemer!I$39="nej",-IF(100-(100+Belysningssystemer!I$86)*$B77/Belysningssystemer!I$69<0,0,(100-(100+Belysningssystemer!I$86)*$B77/Belysningssystemer!I$69)/100*Belysningssystemer!I$12)+Belysningssystemer!I$87,0)*Belysningssystemer!I$13*Belysningssystemer!I$14*(1+Belysningssystemer!I$77/100)^-$B77 -> 0 | K77: =IF(Belysningssystemer!K$39="nej",-IF(100-(100+Belysningssystemer!K$86)*$B77/Belysningssystemer!K$69<0,0,(100-(100+Belysningssystemer!K$86)*$B77/Belysningssystemer!K$69)/100*Belysningssystemer!K$12)+Belysningssystemer!K$87,0)*Belysningssystemer!K$13*Belysningssystemer!K$14*(1+Belysningssystemer!K$77/100)^-$B77 -> 0 | M77: =IF(Belysningssystemer!M$39="nej",-IF(100-(100+Belysningssystemer!M$86)*$B77/Belysningssystemer!M$69<0,0,(100-(100+Belysningssystemer!M$86)*$B77/Belysningssystemer!M$69)/100*Belysningssystemer!M$12)+Belysningssystemer!M$87,0)*Belysningssystemer!M$13*Belysningssystemer!M$14*(1+Belysningssystemer!M$77/100)^-$B77 -> 0 | O77: =IF(Belysningssystemer!O$39="nej",-IF(100-(100+Belysningssystemer!O$86)*$B77/Belysningssystemer!O$69<0,0,(100-(100+Belysningssystemer!O$86)*$B77/Belysningssystemer!O$69)/100*Belysningssystemer!O$12)+Belysningssystemer!O$87,0)*Belysningssystemer!O$13*Belysningssystemer!O$14*(1+Belysningssystemer!O$77/100)^-$B77 -> 0 | Q77: =IF(Belysningssystemer!Q$39="nej",-IF(100-(100+Belysningssystemer!Q$86)*$B77/Belysningssystemer!Q$69<0,0,(100-(100+Belysningssystemer!Q$86)*$B77/Belysningssystemer!Q$69)/100*Belysningssystemer!Q$12)+Belysningssystemer!Q$87,0)*Belysningssystemer!Q$13*Belysningssystemer!Q$14*(1+Belysningssystemer!Q$77/100)^-$B77 -> 0 | S77: =IF(Belysningssystemer!S$39="nej",-IF(100-(100+Belysningssystemer!S$86)*$B77/Belysningssystemer!S$69<0,0,(100-(100+Belysningssystemer!S$86)*$B77/Belysningssystemer!S$69)/100*Belysningssystemer!S$12)+Belysningssystemer!S$87,0)*Belysningssystemer!S$13*Belysningssystemer!S$14*(1+Belysningssystemer!S$77/100)^-$B77 -> 0
B78: 6 | C78: 6 | E78: =IF(Belysningssystemer!E$39="nej",-IF(100-(100+Belysningssystemer!E$86)*$B78/Belysningssystemer!E$69<0,0,(100-(100+Belysningssystemer!E$86)*$B78/Belysningssystemer!E$69)/100*Belysningssystemer!E$12)+Belysningssystemer!E$87,0)*Belysningssystemer!E$13*Belysningssystemer!E$14*(1+Belysningssystemer!E$77/100)^-$B78 -> 0 | G78: =IF(Belysningssystemer!G$39="nej",-IF(100-(100+Belysningssystemer!G$86)*$B78/Belysningssystemer!G$69<0,0,(100-(100+Belysningssystemer!G$86)*$B78/Belysningssystemer!G$69)/100*Belysningssystemer!G$12)+Belysningssystemer!G$87,0)*Belysningssystemer!G$13*Belysningssystemer!G$14*(1+Belysningssystemer!G$77/100)^-$B78 -> 0 | I78: =IF(Belysningssystemer!I$39="nej",-IF(100-(100+Belysningssystemer!I$86)*$B78/Belysningssystemer!I$69<0,0,(100-(100+Belysningssystemer!I$86)*$B78/Belysningssystemer!I$69)/100*Belysningssystemer!I$12)+Belysningssystemer!I$87,0)*Belysningssystemer!I$13*Belysningssystemer!I$14*(1+Belysningssystemer!I$77/100)^-$B78 -> 0 | K78: =IF(Belysningssystemer!K$39="nej",-IF(100-(100+Belysningssystemer!K$86)*$B78/Belysningssystemer!K$69<0,0,(100-(100+Belysningssystemer!K$86)*$B78/Belysningssystemer!K$69)/100*Belysningssystemer!K$12)+Belysningssystemer!K$87,0)*Belysningssystemer!K$13*Belysningssystemer!K$14*(1+Belysningssystemer!K$77/100)^-$B78 -> 0 | M78: =IF(Belysningssystemer!M$39="nej",-IF(100-(100+Belysningssystemer!M$86)*$B78/Belysningssystemer!M$69<0,0,(100-(100+Belysningssystemer!M$86)*$B78/Belysningssystemer!M$69)/100*Belysningssystemer!M$12)+Belysningssystemer!M$87,0)*Belysningssystemer!M$13*Belysningssystemer!M$14*(1+Belysningssystemer!M$77/100)^-$B78 -> 0 | O78: =IF(Belysningssystemer!O$39="nej",-IF(100-(100+Belysningssystemer!O$86)*$B78/Belysningssystemer!O$69<0,0,(100-(100+Belysningssystemer!O$86)*$B78/Belysningssystemer!O$69)/100*Belysningssystemer!O$12)+Belysningssystemer!O$87,0)*Belysningssystemer!O$13*Belysningssystemer!O$14*(1+Belysningssystemer!O$77/100)^-$B78 -> 0 | Q78: =IF(Belysningssystemer!Q$39="nej",-IF(100-(100+Belysningssystemer!Q$86)*$B78/Belysningssystemer!Q$69<0,0,(100-(100+Belysningssystemer!Q$86)*$B78/Belysningssystemer!Q$69)/100*Belysningssystemer!Q$12)+Belysningssystemer!Q$87,0)*Belysningssystemer!Q$13*Belysningssystemer!Q$14*(1+Belysningssystemer!Q$77/100)^-$B78 -> 0 | S78: =IF(Belysningssystemer!S$39="nej",-IF(100-(100+Belysningssystemer!S$86)*$B78/Belysningssystemer!S$69<0,0,(100-(100+Belysningssystemer!S$86)*$B78/Belysningssystemer!S$69)/100*Belysningssystemer!S$12)+Belysningssystemer!S$87,0)*Belysningssystemer!S$13*Belysningssystemer!S$14*(1+Belysningssystemer!S$77/100)^-$B78 -> 0
B79: 7 | C79: 7 | E79: =IF(Belysningssystemer!E$39="nej",-IF(100-(100+Belysningssystemer!E$86)*$B79/Belysningssystemer!E$69<0,0,(100-(100+Belysningssystemer!E$86)*$B79/Belysningssystemer!E$69)/100*Belysningssystemer!E$12)+Belysningssystemer!E$87,0)*Belysningssystemer!E$13*Belysningssystemer!E$14*(1+Belysningssystemer!E$77/100)^-$B79 -> 0 | G79: =IF(Belysningssystemer!G$39="nej",-IF(100-(100+Belysningssystemer!G$86)*$B79/Belysningssystemer!G$69<0,0,(100-(100+Belysningssystemer!G$86)*$B79/Belysningssystemer!G$69)/100*Belysningssystemer!G$12)+Belysningssystemer!G$87,0)*Belysningssystemer!G$13*Belysningssystemer!G$14*(1+Belysningssystemer!G$77/100)^-$B79 -> 0 | I79: =IF(Belysningssystemer!I$39="nej",-IF(100-(100+Belysningssystemer!I$86)*$B79/Belysningssystemer!I$69<0,0,(100-(100+Belysningssystemer!I$86)*$B79/Belysningssystemer!I$69)/100*Belysningssystemer!I$12)+Belysningssystemer!I$87,0)*Belysningssystemer!I$13*Belysningssystemer!I$14*(1+Belysningssystemer!I$77/100)^-$B79 -> 0 | K79: =IF(Belysningssystemer!K$39="nej",-IF(100-(100+Belysningssystemer!K$86)*$B79/Belysningssystemer!K$69<0,0,(100-(100+Belysningssystemer!K$86)*$B79/Belysningssystemer!K$69)/100*Belysningssystemer!K$12)+Belysningssystemer!K$87,0)*Belysningssystemer!K$13*Belysningssystemer!K$14*(1+Belysningssystemer!K$77/100)^-$B79 -> 0 | M79: =IF(Belysningssystemer!M$39="nej",-IF(100-(100+Belysningssystemer!M$86)*$B79/Belysningssystemer!M$69<0,0,(100-(100+Belysningssystemer!M$86)*$B79/Belysningssystemer!M$69)/100*Belysningssystemer!M$12)+Belysningssystemer!M$87,0)*Belysningssystemer!M$13*Belysningssystemer!M$14*(1+Belysningssystemer!M$77/100)^-$B79 -> 0 | O79: =IF(Belysningssystemer!O$39="nej",-IF(100-(100+Belysningssystemer!O$86)*$B79/Belysningssystemer!O$69<0,0,(100-(100+Belysningssystemer!O$86)*$B79/Belysningssystemer!O$69)/100*Belysningssystemer!O$12)+Belysningssystemer!O$87,0)*Belysningssystemer!O$13*Belysningssystemer!O$14*(1+Belysningssystemer!O$77/100)^-$B79 -> 0 | Q79: =IF(Belysningssystemer!Q$39="nej",-IF(100-(100+Belysningssystemer!Q$86)*$B79/Belysningssystemer!Q$69<0,0,(100-(100+Belysningssystemer!Q$86)*$B79/Belysningssystemer!Q$69)/100*Belysningssystemer!Q$12)+Belysningssystemer!Q$87,0)*Belysningssystemer!Q$13*Belysningssystemer!Q$14*(1+Belysningssystemer!Q$77/100)^-$B79 -> 0 | S79: =IF(Belysningssystemer!S$39="nej",-IF(100-(100+Belysningssystemer!S$86)*$B79/Belysningssystemer!S$69<0,0,(100-(100+Belysningssystemer!S$86)*$B79/Belysningssystemer!S$69)/100*Belysningssystemer!S$12)+Belysningssystemer!S$87,0)*Belysningssystemer!S$13*Belysningssystemer!S$14*(1+Belysningssystemer!S$77/100)^-$B79 -> 0
B80: 8 | C80: 8 | E80: =IF(Belysningssystemer!E$39="nej",-IF(100-(100+Belysningssystemer!E$86)*$B80/Belysningssystemer!E$69<0,0,(100-(100+Belysningssystemer!E$86)*$B80/Belysningssystemer!E$69)/100*Belysningssystemer!E$12)+Belysningssystemer!E$87,0)*Belysningssystemer!E$13*Belysningssystemer!E$14*(1+Belysningssystemer!E$77/100)^-$B80 -> 0 | G80: =IF(Belysningssystemer!G$39="nej",-IF(100-(100+Belysningssystemer!G$86)*$B80/Belysningssystemer!G$69<0,0,(100-(100+Belysningssystemer!G$86)*$B80/Belysningssystemer!G$69)/100*Belysningssystemer!G$12)+Belysningssystemer!G$87,0)*Belysningssystemer!G$13*Belysningssystemer!G$14*(1+Belysningssystemer!G$77/100)^-$B80 -> 0 | I80: =IF(Belysningssystemer!I$39="nej",-IF(100-(100+Belysningssystemer!I$86)*$B80/Belysningssystemer!I$69<0,0,(100-(100+Belysningssystemer!I$86)*$B80/Belysningssystemer!I$69)/100*Belysningssystemer!I$12)+Belysningssystemer!I$87,0)*Belysningssystemer!I$13*Belysningssystemer!I$14*(1+Belysningssystemer!I$77/100)^-$B80 -> 0 | K80: =IF(Belysningssystemer!K$39="nej",-IF(100-(100+Belysningssystemer!K$86)*$B80/Belysningssystemer!K$69<0,0,(100-(100+Belysningssystemer!K$86)*$B80/Belysningssystemer!K$69)/100*Belysningssystemer!K$12)+Belysningssystemer!K$87,0)*Belysningssystemer!K$13*Belysningssystemer!K$14*(1+Belysningssystemer!K$77/100)^-$B80 -> 0 | M80: =IF(Belysningssystemer!M$39="nej",-IF(100-(100+Belysningssystemer!M$86)*$B80/Belysningssystemer!M$69<0,0,(100-(100+Belysningssystemer!M$86)*$B80/Belysningssystemer!M$69)/100*Belysningssystemer!M$12)+Belysningssystemer!M$87,0)*Belysningssystemer!M$13*Belysningssystemer!M$14*(1+Belysningssystemer!M$77/100)^-$B80 -> 0 | O80: =IF(Belysningssystemer!O$39="nej",-IF(100-(100+Belysningssystemer!O$86)*$B80/Belysningssystemer!O$69<0,0,(100-(100+Belysningssystemer!O$86)*$B80/Belysningssystemer!O$69)/100*Belysningssystemer!O$12)+Belysningssystemer!O$87,0)*Belysningssystemer!O$13*Belysningssystemer!O$14*(1+Belysningssystemer!O$77/100)^-$B80 -> 0 | Q80: =IF(Belysningssystemer!Q$39="nej",-IF(100-(100+Belysningssystemer!Q$86)*$B80/Belysningssystemer!Q$69<0,0,(100-(100+Belysningssystemer!Q$86)*$B80/Belysningssystemer!Q$69)/100*Belysningssystemer!Q$12)+Belysningssystemer!Q$87,0)*Belysningssystemer!Q$13*Belysningssystemer!Q$14*(1+Belysningssystemer!Q$77/100)^-$B80 -> 0 | S80: =IF(Belysningssystemer!S$39="nej",-IF(100-(100+Belysningssystemer!S$86)*$B80/Belysningssystemer!S$69<0,0,(100-(100+Belysningssystemer!S$86)*$B80/Belysningssystemer!S$69)/100*Belysningssystemer!S$12)+Belysningssystemer!S$87,0)*Belysningssystemer!S$13*Belysningssystemer!S$14*(1+Belysningssystemer!S$77/100)^-$B80 -> 0
B81: 9 | C81: 9 | E81: =IF(Belysningssystemer!E$39="nej",-IF(100-(100+Belysningssystemer!E$86)*$B81/Belysningssystemer!E$69<0,0,(100-(100+Belysningssystemer!E$86)*$B81/Belysningssystemer!E$69)/100*Belysningssystemer!E$12)+Belysningssystemer!E$87,0)*Belysningssystemer!E$13*Belysningssystemer!E$14*(1+Belysningssystemer!E$77/100)^-$B81 -> 0 | G81: =IF(Belysningssystemer!G$39="nej",-IF(100-(100+Belysningssystemer!G$86)*$B81/Belysningssystemer!G$69<0,0,(100-(100+Belysningssystemer!G$86)*$B81/Belysningssystemer!G$69)/100*Belysningssystemer!G$12)+Belysningssystemer!G$87,0)*Belysningssystemer!G$13*Belysningssystemer!G$14*(1+Belysningssystemer!G$77/100)^-$B81 -> 0 | I81: =IF(Belysningssystemer!I$39="nej",-IF(100-(100+Belysningssystemer!I$86)*$B81/Belysningssystemer!I$69<0,0,(100-(100+Belysningssystemer!I$86)*$B81/Belysningssystemer!I$69)/100*Belysningssystemer!I$12)+Belysningssystemer!I$87,0)*Belysningssystemer!I$13*Belysningssystemer!I$14*(1+Belysningssystemer!I$77/100)^-$B81 -> 0 | K81: =IF(Belysningssystemer!K$39="nej",-IF(100-(100+Belysningssystemer!K$86)*$B81/Belysningssystemer!K$69<0,0,(100-(100+Belysningssystemer!K$86)*$B81/Belysningssystemer!K$69)/100*Belysningssystemer!K$12)+Belysningssystemer!K$87,0)*Belysningssystemer!K$13*Belysningssystemer!K$14*(1+Belysningssystemer!K$77/100)^-$B81 -> 0 | M81: =IF(Belysningssystemer!M$39="nej",-IF(100-(100+Belysningssystemer!M$86)*$B81/Belysningssystemer!M$69<0,0,(100-(100+Belysningssystemer!M$86)*$B81/Belysningssystemer!M$69)/100*Belysningssystemer!M$12)+Belysningssystemer!M$87,0)*Belysningssystemer!M$13*Belysningssystemer!M$14*(1+Belysningssystemer!M$77/100)^-$B81 -> 0 | O81: =IF(Belysningssystemer!O$39="nej",-IF(100-(100+Belysningssystemer!O$86)*$B81/Belysningssystemer!O$69<0,0,(100-(100+Belysningssystemer!O$86)*$B81/Belysningssystemer!O$69)/100*Belysningssystemer!O$12)+Belysningssystemer!O$87,0)*Belysningssystemer!O$13*Belysningssystemer!O$14*(1+Belysningssystemer!O$77/100)^-$B81 -> 0 | Q81: =IF(Belysningssystemer!Q$39="nej",-IF(100-(100+Belysningssystemer!Q$86)*$B81/Belysningssystemer!Q$69<0,0,(100-(100+Belysningssystemer!Q$86)*$B81/Belysningssystemer!Q$69)/100*Belysningssystemer!Q$12)+Belysningssystemer!Q$87,0)*Belysningssystemer!Q$13*Belysningssystemer!Q$14*(1+Belysningssystemer!Q$77/100)^-$B81 -> 0 | S81: =IF(Belysningssystemer!S$39="nej",-IF(100-(100+Belysningssystemer!S$86)*$B81/Belysningssystemer!S$69<0,0,(100-(100+Belysningssystemer!S$86)*$B81/Belysningssystemer!S$69)/100*Belysningssystemer!S$12)+Belysningssystemer!S$87,0)*Belysningssystemer!S$13*Belysningssystemer!S$14*(1+Belysningssystemer!S$77/100)^-$B81 -> 0
B82: 10 | C82: 10 | E82: =IF(Belysningssystemer!E$39="nej",-IF(100-(100+Belysningssystemer!E$86)*$B82/Belysningssystemer!E$69<0,0,(100-(100+Belysningssystemer!E$86)*$B82/Belysningssystemer!E$69)/100*Belysningssystemer!E$12)+Belysningssystemer!E$87,0)*Belysningssystemer!E$13*Belysningssystemer!E$14*(1+Belysningssystemer!E$77/100)^-$B82 -> 0 | G82: =IF(Belysningssystemer!G$39="nej",-IF(100-(100+Belysningssystemer!G$86)*$B82/Belysningssystemer!G$69<0,0,(100-(100+Belysningssystemer!G$86)*$B82/Belysningssystemer!G$69)/100*Belysningssystemer!G$12)+Belysningssystemer!G$87,0)*Belysningssystemer!G$13*Belysningssystemer!G$14*(1+Belysningssystemer!G$77/100)^-$B82 -> 0 | I82: =IF(Belysningssystemer!I$39="nej",-IF(100-(100+Belysningssystemer!I$86)*$B82/Belysningssystemer!I$69<0,0,(100-(100+Belysningssystemer!I$86)*$B82/Belysningssystemer!I$69)/100*Belysningssystemer!I$12)+Belysningssystemer!I$87,0)*Belysningssystemer!I$13*Belysningssystemer!I$14*(1+Belysningssystemer!I$77/100)^-$B82 -> 0 | K82: =IF(Belysningssystemer!K$39="nej",-IF(100-(100+Belysningssystemer!K$86)*$B82/Belysningssystemer!K$69<0,0,(100-(100+Belysningssystemer!K$86)*$B82/Belysningssystemer!K$69)/100*Belysningssystemer!K$12)+Belysningssystemer!K$87,0)*Belysningssystemer!K$13*Belysningssystemer!K$14*(1+Belysningssystemer!K$77/100)^-$B82 -> 0 | M82: =IF(Belysningssystemer!M$39="nej",-IF(100-(100+Belysningssystemer!M$86)*$B82/Belysningssystemer!M$69<0,0,(100-(100+Belysningssystemer!M$86)*$B82/Belysningssystemer!M$69)/100*Belysningssystemer!M$12)+Belysningssystemer!M$87,0)*Belysningssystemer!M$13*Belysningssystemer!M$14*(1+Belysningssystemer!M$77/100)^-$B82 -> 0 | O82: =IF(Belysningssystemer!O$39="nej",-IF(100-(100+Belysningssystemer!O$86)*$B82/Belysningssystemer!O$69<0,0,(100-(100+Belysningssystemer!O$86)*$B82/Belysningssystemer!O$69)/100*Belysningssystemer!O$12)+Belysningssystemer!O$87,0)*Belysningssystemer!O$13*Belysningssystemer!O$14*(1+Belysningssystemer!O$77/100)^-$B82 -> 0 | Q82: =IF(Belysningssystemer!Q$39="nej",-IF(100-(100+Belysningssystemer!Q$86)*$B82/Belysningssystemer!Q$69<0,0,(100-(100+Belysningssystemer!Q$86)*$B82/Belysningssystemer!Q$69)/100*Belysningssystemer!Q$12)+Belysningssystemer!Q$87,0)*Belysningssystemer!Q$13*Belysningssystemer!Q$14*(1+Belysningssystemer!Q$77/100)^-$B82 -> 0 | S82: =IF(Belysningssystemer!S$39="nej",-IF(100-(100+Belysningssystemer!S$86)*$B82/Belysningssystemer!S$69<0,0,(100-(100+Belysningssystemer!S$86)*$B82/Belysningssystemer!S$69)/100*Belysningssystemer!S$12)+Belysningssystemer!S$87,0)*Belysningssystemer!S$13*Belysningssystemer!S$14*(1+Belysningssystemer!S$77/100)^-$B82 -> 0
B83: 11 | C83: 11 | E83: =IF(Belysningssystemer!E$39="nej",-IF(100-(100+Belysningssystemer!E$86)*$B83/Belysningssystemer!E$69<0,0,(100-(100+Belysningssystemer!E$86)*$B83/Belysningssystemer!E$69)/100*Belysningssystemer!E$12)+Belysningssystemer!E$87,0)*Belysningssystemer!E$13*Belysningssystemer!E$14*(1+Belysningssystemer!E$77/100)^-$B83 -> 0 | G83: =IF(Belysningssystemer!G$39="nej",-IF(100-(100+Belysningssystemer!G$86)*$B83/Belysningssystemer!G$69<0,0,(100-(100+Belysningssystemer!G$86)*$B83/Belysningssystemer!G$69)/100*Belysningssystemer!G$12)+Belysningssystemer!G$87,0)*Belysningssystemer!G$13*Belysningssystemer!G$14*(1+Belysningssystemer!G$77/100)^-$B83 -> 0 | I83: =IF(Belysningssystemer!I$39="nej",-IF(100-(100+Belysningssystemer!I$86)*$B83/Belysningssystemer!I$69<0,0,(100-(100+Belysningssystemer!I$86)*$B83/Belysningssystemer!I$69)/100*Belysningssystemer!I$12)+Belysningssystemer!I$87,0)*Belysningssystemer!I$13*Belysningssystemer!I$14*(1+Belysningssystemer!I$77/100)^-$B83 -> 0 | K83: =IF(Belysningssystemer!K$39="nej",-IF(100-(100+Belysningssystemer!K$86)*$B83/Belysningssystemer!K$69<0,0,(100-(100+Belysningssystemer!K$86)*$B83/Belysningssystemer!K$69)/100*Belysningssystemer!K$12)+Belysningssystemer!K$87,0)*Belysningssystemer!K$13*Belysningssystemer!K$14*(1+Belysningssystemer!K$77/100)^-$B83 -> 0 | M83: =IF(Belysningssystemer!M$39="nej",-IF(100-(100+Belysningssystemer!M$86)*$B83/Belysningssystemer!M$69<0,0,(100-(100+Belysningssystemer!M$86)*$B83/Belysningssystemer!M$69)/100*Belysningssystemer!M$12)+Belysningssystemer!M$87,0)*Belysningssystemer!M$13*Belysningssystemer!M$14*(1+Belysningssystemer!M$77/100)^-$B83 -> 0 | O83: =IF(Belysningssystemer!O$39="nej",-IF(100-(100+Belysningssystemer!O$86)*$B83/Belysningssystemer!O$69<0,0,(100-(100+Belysningssystemer!O$86)*$B83/Belysningssystemer!O$69)/100*Belysningssystemer!O$12)+Belysningssystemer!O$87,0)*Belysningssystemer!O$13*Belysningssystemer!O$14*(1+Belysningssystemer!O$77/100)^-$B83 -> 0 | Q83: =IF(Belysningssystemer!Q$39="nej",-IF(100-(100+Belysningssystemer!Q$86)*$B83/Belysningssystemer!Q$69<0,0,(100-(100+Belysningssystemer!Q$86)*$B83/Belysningssystemer!Q$69)/100*Belysningssystemer!Q$12)+Belysningssystemer!Q$87,0)*Belysningssystemer!Q$13*Belysningssystemer!Q$14*(1+Belysningssystemer!Q$77/100)^-$B83 -> 0 | S83: =IF(Belysningssystemer!S$39="nej",-IF(100-(100+Belysningssystemer!S$86)*$B83/Belysningssystemer!S$69<0,0,(100-(100+Belysningssystemer!S$86)*$B83/Belysningssystemer!S$69)/100*Belysningssystemer!S$12)+Belysningssystemer!S$87,0)*Belysningssystemer!S$13*Belysningssystemer!S$14*(1+Belysningssystemer!S$77/100)^-$B83 -> 0
B84: 12 | C84: 12 | E84: =IF(Belysningssystemer!E$39="nej",-IF(100-(100+Belysningssystemer!E$86)*$B84/Belysningssystemer!E$69<0,0,(100-(100+Belysningssystemer!E$86)*$B84/Belysningssystemer!E$69)/100*Belysningssystemer!E$12)+Belysningssystemer!E$87,0)*Belysningssystemer!E$13*Belysningssystemer!E$14*(1+Belysningssystemer!E$77/100)^-$B84 -> 0 | G84: =IF(Belysningssystemer!G$39="nej",-IF(100-(100+Belysningssystemer!G$86)*$B84/Belysningssystemer!G$69<0,0,(100-(100+Belysningssystemer!G$86)*$B84/Belysningssystemer!G$69)/100*Belysningssystemer!G$12)+Belysningssystemer!G$87,0)*Belysningssystemer!G$13*Belysningssystemer!G$14*(1+Belysningssystemer!G$77/100)^-$B84 -> 0 | I84: =IF(Belysningssystemer!I$39="nej",-IF(100-(100+Belysningssystemer!I$86)*$B84/Belysningssystemer!I$69<0,0,(100-(100+Belysningssystemer!I$86)*$B84/Belysningssystemer!I$69)/100*Belysningssystemer!I$12)+Belysningssystemer!I$87,0)*Belysningssystemer!I$13*Belysningssystemer!I$14*(1+Belysningssystemer!I$77/100)^-$B84 -> 0 | K84: =IF(Belysningssystemer!K$39="nej",-IF(100-(100+Belysningssystemer!K$86)*$B84/Belysningssystemer!K$69<0,0,(100-(100+Belysningssystemer!K$86)*$B84/Belysningssystemer!K$69)/100*Belysningssystemer!K$12)+Belysningssystemer!K$87,0)*Belysningssystemer!K$13*Belysningssystemer!K$14*(1+Belysningssystemer!K$77/100)^-$B84 -> 0 | M84: =IF(Belysningssystemer!M$39="nej",-IF(100-(100+Belysningssystemer!M$86)*$B84/Belysningssystemer!M$69<0,0,(100-(100+Belysningssystemer!M$86)*$B84/Belysningssystemer!M$69)/100*Belysningssystemer!M$12)+Belysningssystemer!M$87,0)*Belysningssystemer!M$13*Belysningssystemer!M$14*(1+Belysningssystemer!M$77/100)^-$B84 -> 0 | O84: =IF(Belysningssystemer!O$39="nej",-IF(100-(100+Belysningssystemer!O$86)*$B84/Belysningssystemer!O$69<0,0,(100-(100+Belysningssystemer!O$86)*$B84/Belysningssystemer!O$69)/100*Belysningssystemer!O$12)+Belysningssystemer!O$87,0)*Belysningssystemer!O$13*Belysningssystemer!O$14*(1+Belysningssystemer!O$77/100)^-$B84 -> 0 | Q84: =IF(Belysningssystemer!Q$39="nej",-IF(100-(100+Belysningssystemer!Q$86)*$B84/Belysningssystemer!Q$69<0,0,(100-(100+Belysningssystemer!Q$86)*$B84/Belysningssystemer!Q$69)/100*Belysningssystemer!Q$12)+Belysningssystemer!Q$87,0)*Belysningssystemer!Q$13*Belysningssystemer!Q$14*(1+Belysningssystemer!Q$77/100)^-$B84 -> 0 | S84: =IF(Belysningssystemer!S$39="nej",-IF(100-(100+Belysningssystemer!S$86)*$B84/Belysningssystemer!S$69<0,0,(100-(100+Belysningssystemer!S$86)*$B84/Belysningssystemer!S$69)/100*Belysningssystemer!S$12)+Belysningssystemer!S$87,0)*Belysningssystemer!S$13*Belysningssystemer!S$14*(1+Belysningssystemer!S$77/100)^-$B84 -> 0
B85: 13 | C85: 13 | E85: =IF(Belysningssystemer!E$39="nej",-IF(100-(100+Belysningssystemer!E$86)*$B85/Belysningssystemer!E$69<0,0,(100-(100+Belysningssystemer!E$86)*$B85/Belysningssystemer!E$69)/100*Belysningssystemer!E$12)+Belysningssystemer!E$87,0)*Belysningssystemer!E$13*Belysningssystemer!E$14*(1+Belysningssystemer!E$77/100)^-$B85 -> 0 | G85: =IF(Belysningssystemer!G$39="nej",-IF(100-(100+Belysningssystemer!G$86)*$B85/Belysningssystemer!G$69<0,0,(100-(100+Belysningssystemer!G$86)*$B85/Belysningssystemer!G$69)/100*Belysningssystemer!G$12)+Belysningssystemer!G$87,0)*Belysningssystemer!G$13*Belysningssystemer!G$14*(1+Belysningssystemer!G$77/100)^-$B85 -> 0 | I85: =IF(Belysningssystemer!I$39="nej",-IF(100-(100+Belysningssystemer!I$86)*$B85/Belysningssystemer!I$69<0,0,(100-(100+Belysningssystemer!I$86)*$B85/Belysningssystemer!I$69)/100*Belysningssystemer!I$12)+Belysningssystemer!I$87,0)*Belysningssystemer!I$13*Belysningssystemer!I$14*(1+Belysningssystemer!I$77/100)^-$B85 -> 0 | K85: =IF(Belysningssystemer!K$39="nej",-IF(100-(100+Belysningssystemer!K$86)*$B85/Belysningssystemer!K$69<0,0,(100-(100+Belysningssystemer!K$86)*$B85/Belysningssystemer!K$69)/100*Belysningssystemer!K$12)+Belysningssystemer!K$87,0)*Belysningssystemer!K$13*Belysningssystemer!K$14*(1+Belysningssystemer!K$77/100)^-$B85 -> 0 | M85: =IF(Belysningssystemer!M$39="nej",-IF(100-(100+Belysningssystemer!M$86)*$B85/Belysningssystemer!M$69<0,0,(100-(100+Belysningssystemer!M$86)*$B85/Belysningssystemer!M$69)/100*Belysningssystemer!M$12)+Belysningssystemer!M$87,0)*Belysningssystemer!M$13*Belysningssystemer!M$14*(1+Belysningssystemer!M$77/100)^-$B85 -> 0 | O85: =IF(Belysningssystemer!O$39="nej",-IF(100-(100+Belysningssystemer!O$86)*$B85/Belysningssystemer!O$69<0,0,(100-(100+Belysningssystemer!O$86)*$B85/Belysningssystemer!O$69)/100*Belysningssystemer!O$12)+Belysningssystemer!O$87,0)*Belysningssystemer!O$13*Belysningssystemer!O$14*(1+Belysningssystemer!O$77/100)^-$B85 -> 0 | Q85: =IF(Belysningssystemer!Q$39="nej",-IF(100-(100+Belysningssystemer!Q$86)*$B85/Belysningssystemer!Q$69<0,0,(100-(100+Belysningssystemer!Q$86)*$B85/Belysningssystemer!Q$69)/100*Belysningssystemer!Q$12)+Belysningssystemer!Q$87,0)*Belysningssystemer!Q$13*Belysningssystemer!Q$14*(1+Belysningssystemer!Q$77/100)^-$B85 -> 0 | S85: =IF(Belysningssystemer!S$39="nej",-IF(100-(100+Belysningssystemer!S$86)*$B85/Belysningssystemer!S$69<0,0,(100-(100+Belysningssystemer!S$86)*$B85/Belysningssystemer!S$69)/100*Belysningssystemer!S$12)+Belysningssystemer!S$87,0)*Belysningssystemer!S$13*Belysningssystemer!S$14*(1+Belysningssystemer!S$77/100)^-$B85 -> 0
B86: 14 | C86: 14 | E86: =IF(Belysningssystemer!E$39="nej",-IF(100-(100+Belysningssystemer!E$86)*$B86/Belysningssystemer!E$69<0,0,(100-(100+Belysningssystemer!E$86)*$B86/Belysningssystemer!E$69)/100*Belysningssystemer!E$12)+Belysningssystemer!E$87,0)*Belysningssystemer!E$13*Belysningssystemer!E$14*(1+Belysningssystemer!E$77/100)^-$B86 -> 0 | G86: =IF(Belysningssystemer!G$39="nej",-IF(100-(100+Belysningssystemer!G$86)*$B86/Belysningssystemer!G$69<0,0,(100-(100+Belysningssystemer!G$86)*$B86/Belysningssystemer!G$69)/100*Belysningssystemer!G$12)+Belysningssystemer!G$87,0)*Belysningssystemer!G$13*Belysningssystemer!G$14*(1+Belysningssystemer!G$77/100)^-$B86 -> 0 | I86: =IF(Belysningssystemer!I$39="nej",-IF(100-(100+Belysningssystemer!I$86)*$B86/Belysningssystemer!I$69<0,0,(100-(100+Belysningssystemer!I$86)*$B86/Belysningssystemer!I$69)/100*Belysningssystemer!I$12)+Belysningssystemer!I$87,0)*Belysningssystemer!I$13*Belysningssystemer!I$14*(1+Belysningssystemer!I$77/100)^-$B86 -> 0 | K86: =IF(Belysningssystemer!K$39="nej",-IF(100-(100+Belysningssystemer!K$86)*$B86/Belysningssystemer!K$69<0,0,(100-(100+Belysningssystemer!K$86)*$B86/Belysningssystemer!K$69)/100*Belysningssystemer!K$12)+Belysningssystemer!K$87,0)*Belysningssystemer!K$13*Belysningssystemer!K$14*(1+Belysningssystemer!K$77/100)^-$B86 -> 0 | M86: =IF(Belysningssystemer!M$39="nej",-IF(100-(100+Belysningssystemer!M$86)*$B86/Belysningssystemer!M$69<0,0,(100-(100+Belysningssystemer!M$86)*$B86/Belysningssystemer!M$69)/100*Belysningssystemer!M$12)+Belysningssystemer!M$87,0)*Belysningssystemer!M$13*Belysningssystemer!M$14*(1+Belysningssystemer!M$77/100)^-$B86 -> 0 | O86: =IF(Belysningssystemer!O$39="nej",-IF(100-(100+Belysningssystemer!O$86)*$B86/Belysningssystemer!O$69<0,0,(100-(100+Belysningssystemer!O$86)*$B86/Belysningssystemer!O$69)/100*Belysningssystemer!O$12)+Belysningssystemer!O$87,0)*Belysningssystemer!O$13*Belysningssystemer!O$14*(1+Belysningssystemer!O$77/100)^-$B86 -> 0 | Q86: =IF(Belysningssystemer!Q$39="nej",-IF(100-(100+Belysningssystemer!Q$86)*$B86/Belysningssystemer!Q$69<0,0,(100-(100+Belysningssystemer!Q$86)*$B86/Belysningssystemer!Q$69)/100*Belysningssystemer!Q$12)+Belysningssystemer!Q$87,0)*Belysningssystemer!Q$13*Belysningssystemer!Q$14*(1+Belysningssystemer!Q$77/100)^-$B86 -> 0 | S86: =IF(Belysningssystemer!S$39="nej",-IF(100-(100+Belysningssystemer!S$86)*$B86/Belysningssystemer!S$69<0,0,(100-(100+Belysningssystemer!S$86)*$B86/Belysningssystemer!S$69)/100*Belysningssystemer!S$12)+Belysningssystemer!S$87,0)*Belysningssystemer!S$13*Belysningssystemer!S$14*(1+Belysningssystemer!S$77/100)^-$B86 -> 0
B87: 15 | C87: 15 | E87: =IF(Belysningssystemer!E$39="nej",-IF(100-(100+Belysningssystemer!E$86)*$B87/Belysningssystemer!E$69<0,0,(100-(100+Belysningssystemer!E$86)*$B87/Belysningssystemer!E$69)/100*Belysningssystemer!E$12)+Belysningssystemer!E$87,0)*Belysningssystemer!E$13*Belysningssystemer!E$14*(1+Belysningssystemer!E$77/100)^-$B87 -> 0 | G87: =IF(Belysningssystemer!G$39="nej",-IF(100-(100+Belysningssystemer!G$86)*$B87/Belysningssystemer!G$69<0,0,(100-(100+Belysningssystemer!G$86)*$B87/Belysningssystemer!G$69)/100*Belysningssystemer!G$12)+Belysningssystemer!G$87,0)*Belysningssystemer!G$13*Belysningssystemer!G$14*(1+Belysningssystemer!G$77/100)^-$B87 -> 0 | I87: =IF(Belysningssystemer!I$39="nej",-IF(100-(100+Belysningssystemer!I$86)*$B87/Belysningssystemer!I$69<0,0,(100-(100+Belysningssystemer!I$86)*$B87/Belysningssystemer!I$69)/100*Belysningssystemer!I$12)+Belysningssystemer!I$87,0)*Belysningssystemer!I$13*Belysningssystemer!I$14*(1+Belysningssystemer!I$77/100)^-$B87 -> 0 | K87: =IF(Belysningssystemer!K$39="nej",-IF(100-(100+Belysningssystemer!K$86)*$B87/Belysningssystemer!K$69<0,0,(100-(100+Belysningssystemer!K$86)*$B87/Belysningssystemer!K$69)/100*Belysningssystemer!K$12)+Belysningssystemer!K$87,0)*Belysningssystemer!K$13*Belysningssystemer!K$14*(1+Belysningssystemer!K$77/100)^-$B87 -> 0 | M87: =IF(Belysningssystemer!M$39="nej",-IF(100-(100+Belysningssystemer!M$86)*$B87/Belysningssystemer!M$69<0,0,(100-(100+Belysningssystemer!M$86)*$B87/Belysningssystemer!M$69)/100*Belysningssystemer!M$12)+Belysningssystemer!M$87,0)*Belysningssystemer!M$13*Belysningssystemer!M$14*(1+Belysningssystemer!M$77/100)^-$B87 -> 0 | O87: =IF(Belysningssystemer!O$39="nej",-IF(100-(100+Belysningssystemer!O$86)*$B87/Belysningssystemer!O$69<0,0,(100-(100+Belysningssystemer!O$86)*$B87/Belysningssystemer!O$69)/100*Belysningssystemer!O$12)+Belysningssystemer!O$87,0)*Belysningssystemer!O$13*Belysningssystemer!O$14*(1+Belysningssystemer!O$77/100)^-$B87 -> 0 | Q87: =IF(Belysningssystemer!Q$39="nej",-IF(100-(100+Belysningssystemer!Q$86)*$B87/Belysningssystemer!Q$69<0,0,(100-(100+Belysningssystemer!Q$86)*$B87/Belysningssystemer!Q$69)/100*Belysningssystemer!Q$12)+Belysningssystemer!Q$87,0)*Belysningssystemer!Q$13*Belysningssystemer!Q$14*(1+Belysningssystemer!Q$77/100)^-$B87 -> 0 | S87: =IF(Belysningssystemer!S$39="nej",-IF(100-(100+Belysningssystemer!S$86)*$B87/Belysningssystemer!S$69<0,0,(100-(100+Belysningssystemer!S$86)*$B87/Belysningssystemer!S$69)/100*Belysningssystemer!S$12)+Belysningssystemer!S$87,0)*Belysningssystemer!S$13*Belysningssystemer!S$14*(1+Belysningssystemer!S$77/100)^-$B87 -> 0
B88: 16 | C88: =B88 -> 16 | E88: =IF(Belysningssystemer!E$39="nej",-IF(100-(100+Belysningssystemer!E$86)*$B88/Belysningssystemer!E$69<0,0,(100-(100+Belysningssystemer!E$86)*$B88/Belysningssystemer!E$69)/100*Belysningssystemer!E$12)+Belysningssystemer!E$87,0)*Belysningssystemer!E$13*Belysningssystemer!E$14*(1+Belysningssystemer!E$77/100)^-$B88 -> 0 | G88: =IF(Belysningssystemer!G$39="nej",-IF(100-(100+Belysningssystemer!G$86)*$B88/Belysningssystemer!G$69<0,0,(100-(100+Belysningssystemer!G$86)*$B88/Belysningssystemer!G$69)/100*Belysningssystemer!G$12)+Belysningssystemer!G$87,0)*Belysningssystemer!G$13*Belysningssystemer!G$14*(1+Belysningssystemer!G$77/100)^-$B88 -> 0 | I88: =IF(Belysningssystemer!I$39="nej",-IF(100-(100+Belysningssystemer!I$86)*$B88/Belysningssystemer!I$69<0,0,(100-(100+Belysningssystemer!I$86)*$B88/Belysningssystemer!I$69)/100*Belysningssystemer!I$12)+Belysningssystemer!I$87,0)*Belysningssystemer!I$13*Belysningssystemer!I$14*(1+Belysningssystemer!I$77/100)^-$B88 -> 0 | K88: =IF(Belysningssystemer!K$39="nej",-IF(100-(100+Belysningssystemer!K$86)*$B88/Belysningssystemer!K$69<0,0,(100-(100+Belysningssystemer!K$86)*$B88/Belysningssystemer!K$69)/100*Belysningssystemer!K$12)+Belysningssystemer!K$87,0)*Belysningssystemer!K$13*Belysningssystemer!K$14*(1+Belysningssystemer!K$77/100)^-$B88 -> 0 | M88: =IF(Belysningssystemer!M$39="nej",-IF(100-(100+Belysningssystemer!M$86)*$B88/Belysningssystemer!M$69<0,0,(100-(100+Belysningssystemer!M$86)*$B88/Belysningssystemer!M$69)/100*Belysningssystemer!M$12)+Belysningssystemer!M$87,0)*Belysningssystemer!M$13*Belysningssystemer!M$14*(1+Belysningssystemer!M$77/100)^-$B88 -> 0 | O88: =IF(Belysningssystemer!O$39="nej",-IF(100-(100+Belysningssystemer!O$86)*$B88/Belysningssystemer!O$69<0,0,(100-(100+Belysningssystemer!O$86)*$B88/Belysningssystemer!O$69)/100*Belysningssystemer!O$12)+Belysningssystemer!O$87,0)*Belysningssystemer!O$13*Belysningssystemer!O$14*(1+Belysningssystemer!O$77/100)^-$B88 -> 0 | Q88: =IF(Belysningssystemer!Q$39="nej",-IF(100-(100+Belysningssystemer!Q$86)*$B88/Belysningssystemer!Q$69<0,0,(100-(100+Belysningssystemer!Q$86)*$B88/Belysningssystemer!Q$69)/100*Belysningssystemer!Q$12)+Belysningssystemer!Q$87,0)*Belysningssystemer!Q$13*Belysningssystemer!Q$14*(1+Belysningssystemer!Q$77/100)^-$B88 -> 0 | S88: =IF(Belysningssystemer!S$39="nej",-IF(100-(100+Belysningssystemer!S$86)*$B88/Belysningssystemer!S$69<0,0,(100-(100+Belysningssystemer!S$86)*$B88/Belysningssystemer!S$69)/100*Belysningssystemer!S$12)+Belysningssystemer!S$87,0)*Belysningssystemer!S$13*Belysningssystemer!S$14*(1+Belysningssystemer!S$77/100)^-$B88 -> 0
B89: 17 | C89: 17 | E89: =IF(Belysningssystemer!E$39="nej",-IF(100-(100+Belysningssystemer!E$86)*$B89/Belysningssystemer!E$69<0,0,(100-(100+Belysningssystemer!E$86)*$B89/Belysningssystemer!E$69)/100*Belysningssystemer!E$12)+Belysningssystemer!E$87,0)*Belysningssystemer!E$13*Belysningssystemer!E$14*(1+Belysningssystemer!E$77/100)^-$B89 -> 0 | G89: =IF(Belysningssystemer!G$39="nej",-IF(100-(100+Belysningssystemer!G$86)*$B89/Belysningssystemer!G$69<0,0,(100-(100+Belysningssystemer!G$86)*$B89/Belysningssystemer!G$69)/100*Belysningssystemer!G$12)+Belysningssystemer!G$87,0)*Belysningssystemer!G$13*Belysningssystemer!G$14*(1+Belysningssystemer!G$77/100)^-$B89 -> 0 | I89: =IF(Belysningssystemer!I$39="nej",-IF(100-(100+Belysningssystemer!I$86)*$B89/Belysningssystemer!I$69<0,0,(100-(100+Belysningssystemer!I$86)*$B89/Belysningssystemer!I$69)/100*Belysningssystemer!I$12)+Belysningssystemer!I$87,0)*Belysningssystemer!I$13*Belysningssystemer!I$14*(1+Belysningssystemer!I$77/100)^-$B89 -> 0 | K89: =IF(Belysningssystemer!K$39="nej",-IF(100-(100+Belysningssystemer!K$86)*$B89/Belysningssystemer!K$69<0,0,(100-(100+Belysningssystemer!K$86)*$B89/Belysningssystemer!K$69)/100*Belysningssystemer!K$12)+Belysningssystemer!K$87,0)*Belysningssystemer!K$13*Belysningssystemer!K$14*(1+Belysningssystemer!K$77/100)^-$B89 -> 0 | M89: =IF(Belysningssystemer!M$39="nej",-IF(100-(100+Belysningssystemer!M$86)*$B89/Belysningssystemer!M$69<0,0,(100-(100+Belysningssystemer!M$86)*$B89/Belysningssystemer!M$69)/100*Belysningssystemer!M$12)+Belysningssystemer!M$87,0)*Belysningssystemer!M$13*Belysningssystemer!M$14*(1+Belysningssystemer!M$77/100)^-$B89 -> 0 | O89: =IF(Belysningssystemer!O$39="nej",-IF(100-(100+Belysningssystemer!O$86)*$B89/Belysningssystemer!O$69<0,0,(100-(100+Belysningssystemer!O$86)*$B89/Belysningssystemer!O$69)/100*Belysningssystemer!O$12)+Belysningssystemer!O$87,0)*Belysningssystemer!O$13*Belysningssystemer!O$14*(1+Belysningssystemer!O$77/100)^-$B89 -> 0 | Q89: =IF(Belysningssystemer!Q$39="nej",-IF(100-(100+Belysningssystemer!Q$86)*$B89/Belysningssystemer!Q$69<0,0,(100-(100+Belysningssystemer!Q$86)*$B89/Belysningssystemer!Q$69)/100*Belysningssystemer!Q$12)+Belysningssystemer!Q$87,0)*Belysningssystemer!Q$13*Belysningssystemer!Q$14*(1+Belysningssystemer!Q$77/100)^-$B89 -> 0 | S89: =IF(Belysningssystemer!S$39="nej",-IF(100-(100+Belysningssystemer!S$86)*$B89/Belysningssystemer!S$69<0,0,(100-(100+Belysningssystemer!S$86)*$B89/Belysningssystemer!S$69)/100*Belysningssystemer!S$12)+Belysningssystemer!S$87,0)*Belysningssystemer!S$13*Belysningssystemer!S$14*(1+Belysningssystemer!S$77/100)^-$B89 -> 0
B90: 18 | C90: 18 | E90: =IF(Belysningssystemer!E$39="nej",-IF(100-(100+Belysningssystemer!E$86)*$B90/Belysningssystemer!E$69<0,0,(100-(100+Belysningssystemer!E$86)*$B90/Belysningssystemer!E$69)/100*Belysningssystemer!E$12)+Belysningssystemer!E$87,0)*Belysningssystemer!E$13*Belysningssystemer!E$14*(1+Belysningssystemer!E$77/100)^-$B90 -> 0 | G90: =IF(Belysningssystemer!G$39="nej",-IF(100-(100+Belysningssystemer!G$86)*$B90/Belysningssystemer!G$69<0,0,(100-(100+Belysningssystemer!G$86)*$B90/Belysningssystemer!G$69)/100*Belysningssystemer!G$12)+Belysningssystemer!G$87,0)*Belysningssystemer!G$13*Belysningssystemer!G$14*(1+Belysningssystemer!G$77/100)^-$B90 -> 0 | I90: =IF(Belysningssystemer!I$39="nej",-IF(100-(100+Belysningssystemer!I$86)*$B90/Belysningssystemer!I$69<0,0,(100-(100+Belysningssystemer!I$86)*$B90/Belysningssystemer!I$69)/100*Belysningssystemer!I$12)+Belysningssystemer!I$87,0)*Belysningssystemer!I$13*Belysningssystemer!I$14*(1+Belysningssystemer!I$77/100)^-$B90 -> 0 | K90: =IF(Belysningssystemer!K$39="nej",-IF(100-(100+Belysningssystemer!K$86)*$B90/Belysningssystemer!K$69<0,0,(100-(100+Belysningssystemer!K$86)*$B90/Belysningssystemer!K$69)/100*Belysningssystemer!K$12)+Belysningssystemer!K$87,0)*Belysningssystemer!K$13*Belysningssystemer!K$14*(1+Belysningssystemer!K$77/100)^-$B90 -> 0 | M90: =IF(Belysningssystemer!M$39="nej",-IF(100-(100+Belysningssystemer!M$86)*$B90/Belysningssystemer!M$69<0,0,(100-(100+Belysningssystemer!M$86)*$B90/Belysningssystemer!M$69)/100*Belysningssystemer!M$12)+Belysningssystemer!M$87,0)*Belysningssystemer!M$13*Belysningssystemer!M$14*(1+Belysningssystemer!M$77/100)^-$B90 -> 0 | O90: =IF(Belysningssystemer!O$39="nej",-IF(100-(100+Belysningssystemer!O$86)*$B90/Belysningssystemer!O$69<0,0,(100-(100+Belysningssystemer!O$86)*$B90/Belysningssystemer!O$69)/100*Belysningssystemer!O$12)+Belysningssystemer!O$87,0)*Belysningssystemer!O$13*Belysningssystemer!O$14*(1+Belysningssystemer!O$77/100)^-$B90 -> 0 | Q90: =IF(Belysningssystemer!Q$39="nej",-IF(100-(100+Belysningssystemer!Q$86)*$B90/Belysningssystemer!Q$69<0,0,(100-(100+Belysningssystemer!Q$86)*$B90/Belysningssystemer!Q$69)/100*Belysningssystemer!Q$12)+Belysningssystemer!Q$87,0)*Belysningssystemer!Q$13*Belysningssystemer!Q$14*(1+Belysningssystemer!Q$77/100)^-$B90 -> 0 | S90: =IF(Belysningssystemer!S$39="nej",-IF(100-(100+Belysningssystemer!S$86)*$B90/Belysningssystemer!S$69<0,0,(100-(100+Belysningssystemer!S$86)*$B90/Belysningssystemer!S$69)/100*Belysningssystemer!S$12)+Belysningssystemer!S$87,0)*Belysningssystemer!S$13*Belysningssystemer!S$14*(1+Belysningssystemer!S$77/100)^-$B90 -> 0
B91: 19 | C91: 19 | E91: =IF(Belysningssystemer!E$39="nej",-IF(100-(100+Belysningssystemer!E$86)*$B91/Belysningssystemer!E$69<0,0,(100-(100+Belysningssystemer!E$86)*$B91/Belysningssystemer!E$69)/100*Belysningssystemer!E$12)+Belysningssystemer!E$87,0)*Belysningssystemer!E$13*Belysningssystemer!E$14*(1+Belysningssystemer!E$77/100)^-$B91 -> 0 | G91: =IF(Belysningssystemer!G$39="nej",-IF(100-(100+Belysningssystemer!G$86)*$B91/Belysningssystemer!G$69<0,0,(100-(100+Belysningssystemer!G$86)*$B91/Belysningssystemer!G$69)/100*Belysningssystemer!G$12)+Belysningssystemer!G$87,0)*Belysningssystemer!G$13*Belysningssystemer!G$14*(1+Belysningssystemer!G$77/100)^-$B91 -> 0 | I91: =IF(Belysningssystemer!I$39="nej",-IF(100-(100+Belysningssystemer!I$86)*$B91/Belysningssystemer!I$69<0,0,(100-(100+Belysningssystemer!I$86)*$B91/Belysningssystemer!I$69)/100*Belysningssystemer!I$12)+Belysningssystemer!I$87,0)*Belysningssystemer!I$13*Belysningssystemer!I$14*(1+Belysningssystemer!I$77/100)^-$B91 -> 0 | K91: =IF(Belysningssystemer!K$39="nej",-IF(100-(100+Belysningssystemer!K$86)*$B91/Belysningssystemer!K$69<0,0,(100-(100+Belysningssystemer!K$86)*$B91/Belysningssystemer!K$69)/100*Belysningssystemer!K$12)+Belysningssystemer!K$87,0)*Belysningssystemer!K$13*Belysningssystemer!K$14*(1+Belysningssystemer!K$77/100)^-$B91 -> 0 | M91: =IF(Belysningssystemer!M$39="nej",-IF(100-(100+Belysningssystemer!M$86)*$B91/Belysningssystemer!M$69<0,0,(100-(100+Belysningssystemer!M$86)*$B91/Belysningssystemer!M$69)/100*Belysningssystemer!M$12)+Belysningssystemer!M$87,0)*Belysningssystemer!M$13*Belysningssystemer!M$14*(1+Belysningssystemer!M$77/100)^-$B91 -> 0 | O91: =IF(Belysningssystemer!O$39="nej",-IF(100-(100+Belysningssystemer!O$86)*$B91/Belysningssystemer!O$69<0,0,(100-(100+Belysningssystemer!O$86)*$B91/Belysningssystemer!O$69)/100*Belysningssystemer!O$12)+Belysningssystemer!O$87,0)*Belysningssystemer!O$13*Belysningssystemer!O$14*(1+Belysningssystemer!O$77/100)^-$B91 -> 0 | Q91: =IF(Belysningssystemer!Q$39="nej",-IF(100-(100+Belysningssystemer!Q$86)*$B91/Belysningssystemer!Q$69<0,0,(100-(100+Belysningssystemer!Q$86)*$B91/Belysningssystemer!Q$69)/100*Belysningssystemer!Q$12)+Belysningssystemer!Q$87,0)*Belysningssystemer!Q$13*Belysningssystemer!Q$14*(1+Belysningssystemer!Q$77/100)^-$B91 -> 0 | S91: =IF(Belysningssystemer!S$39="nej",-IF(100-(100+Belysningssystemer!S$86)*$B91/Belysningssystemer!S$69<0,0,(100-(100+Belysningssystemer!S$86)*$B91/Belysningssystemer!S$69)/100*Belysningssystemer!S$12)+Belysningssystemer!S$87,0)*Belysningssystemer!S$13*Belysningssystemer!S$14*(1+Belysningssystemer!S$77/100)^-$B91 -> 0
B92: 20 | C92: 20 | E92: =IF(Belysningssystemer!E$39="nej",-IF(100-(100+Belysningssystemer!E$86)*$B92/Belysningssystemer!E$69<0,0,(100-(100+Belysningssystemer!E$86)*$B92/Belysningssystemer!E$69)/100*Belysningssystemer!E$12)+Belysningssystemer!E$87,0)*Belysningssystemer!E$13*Belysningssystemer!E$14*(1+Belysningssystemer!E$77/100)^-$B92 -> 0 | G92: =IF(Belysningssystemer!G$39="nej",-IF(100-(100+Belysningssystemer!G$86)*$B92/Belysningssystemer!G$69<0,0,(100-(100+Belysningssystemer!G$86)*$B92/Belysningssystemer!G$69)/100*Belysningssystemer!G$12)+Belysningssystemer!G$87,0)*Belysningssystemer!G$13*Belysningssystemer!G$14*(1+Belysningssystemer!G$77/100)^-$B92 -> 0 | I92: =IF(Belysningssystemer!I$39="nej",-IF(100-(100+Belysningssystemer!I$86)*$B92/Belysningssystemer!I$69<0,0,(100-(100+Belysningssystemer!I$86)*$B92/Belysningssystemer!I$69)/100*Belysningssystemer!I$12)+Belysningssystemer!I$87,0)*Belysningssystemer!I$13*Belysningssystemer!I$14*(1+Belysningssystemer!I$77/100)^-$B92 -> 0 | K92: =IF(Belysningssystemer!K$39="nej",-IF(100-(100+Belysningssystemer!K$86)*$B92/Belysningssystemer!K$69<0,0,(100-(100+Belysningssystemer!K$86)*$B92/Belysningssystemer!K$69)/100*Belysningssystemer!K$12)+Belysningssystemer!K$87,0)*Belysningssystemer!K$13*Belysningssystemer!K$14*(1+Belysningssystemer!K$77/100)^-$B92 -> 0 | M92: =IF(Belysningssystemer!M$39="nej",-IF(100-(100+Belysningssystemer!M$86)*$B92/Belysningssystemer!M$69<0,0,(100-(100+Belysningssystemer!M$86)*$B92/Belysningssystemer!M$69)/100*Belysningssystemer!M$12)+Belysningssystemer!M$87,0)*Belysningssystemer!M$13*Belysningssystemer!M$14*(1+Belysningssystemer!M$77/100)^-$B92 -> 0 | O92: =IF(Belysningssystemer!O$39="nej",-IF(100-(100+Belysningssystemer!O$86)*$B92/Belysningssystemer!O$69<0,0,(100-(100+Belysningssystemer!O$86)*$B92/Belysningssystemer!O$69)/100*Belysningssystemer!O$12)+Belysningssystemer!O$87,0)*Belysningssystemer!O$13*Belysningssystemer!O$14*(1+Belysningssystemer!O$77/100)^-$B92 -> 0 | Q92: =IF(Belysningssystemer!Q$39="nej",-IF(100-(100+Belysningssystemer!Q$86)*$B92/Belysningssystemer!Q$69<0,0,(100-(100+Belysningssystemer!Q$86)*$B92/Belysningssystemer!Q$69)/100*Belysningssystemer!Q$12)+Belysningssystemer!Q$87,0)*Belysningssystemer!Q$13*Belysningssystemer!Q$14*(1+Belysningssystemer!Q$77/100)^-$B92 -> 0 | S92: =IF(Belysningssystemer!S$39="nej",-IF(100-(100+Belysningssystemer!S$86)*$B92/Belysningssystemer!S$69<0,0,(100-(100+Belysningssystemer!S$86)*$B92/Belysningssystemer!S$69)/100*Belysningssystemer!S$12)+Belysningssystemer!S$87,0)*Belysningssystemer!S$13*Belysningssystemer!S$14*(1+Belysningssystemer!S$77/100)^-$B92 -> 0
A95: Gennemsnitlige årlige omkostninger
B96: År indeks | D96: TCO-evalueringsperiode | E96: PRODUKT 1 | G96: PRODUKT 2 | I96: PRODUKT 3 | K96: PRODUKT 4 | M96: PRODUKT 5 | O96: PRODUKT 6 | Q96: PRODUKT 7 | S96: PRODUKT 8
B97: 1 | C97: =B97 -> 1 | E97: =PMT(Belysningssystemer!E$77,$B97,IF($B97=Belysningssystemer!E$69,-E27,-(E27+Belysningssystemer!E$96))) -> 0 | G97: =PMT(Belysningssystemer!G$77,$B97,IF($B97=Belysningssystemer!G$69,-G27,-(G27+Belysningssystemer!G$96))) -> 0 | I97: =PMT(Belysningssystemer!I$77,$B97,IF($B97=Belysningssystemer!I$69,-I27,-(I27+Belysningssystemer!I$96))) -> 0 | K97: =PMT(Belysningssystemer!K$77,$B97,IF($B97=Belysningssystemer!K$69,-K27,-(K27+Belysningssystemer!K$96))) -> 0 | M97: =PMT(Belysningssystemer!M$77,$B97,IF($B97=Belysningssystemer!M$69,-M27,-(M27+Belysningssystemer!M$96))) -> 0 | O97: =PMT(Belysningssystemer!O$77,$B97,IF($B97=Belysningssystemer!O$69,-O27,-(O27+Belysningssystemer!O$96))) -> 0 | Q97: =PMT(Belysningssystemer!Q$77,$B97,IF($B97=Belysningssystemer!Q$69,-Q27,-(Q27+Belysningssystemer!Q$96))) -> 0 | S97: =PMT(Belysningssystemer!S$77,$B97,IF($B97=Belysningssystemer!S$69,-S27,-(S27+Belysningssystemer!S$96))) -> 0
B98: 2 | C98: =B98 -> 2 | E98: =PMT(Belysningssystemer!E$77,$B98,IF($B98=Belysningssystemer!E$69,-E28,-(E28+Belysningssystemer!E$96))) -> 0 | G98: =PMT(Belysningssystemer!G$77,$B98,IF($B98=Belysningssystemer!G$69,-G28,-(G28+Belysningssystemer!G$96))) -> 0 | I98: =PMT(Belysningssystemer!I$77,$B98,IF($B98=Belysningssystemer!I$69,-I28,-(I28+Belysningssystemer!I$96))) -> 0 | K98: =PMT(Belysningssystemer!K$77,$B98,IF($B98=Belysningssystemer!K$69,-K28,-(K28+Belysningssystemer!K$96))) -> 0 | M98: =PMT(Belysningssystemer!M$77,$B98,IF($B98=Belysningssystemer!M$69,-M28,-(M28+Belysningssystemer!M$96))) -> 0 | O98: =PMT(Belysningssystemer!O$77,$B98,IF($B98=Belysningssystemer!O$69,-O28,-(O28+Belysningssystemer!O$96))) -> 0 | Q98: =PMT(Belysningssystemer!Q$77,$B98,IF($B98=Belysningssystemer!Q$69,-Q28,-(Q28+Belysningssystemer!Q$96))) -> 0 | S98: =PMT(Belysningssystemer!S$77,$B98,IF($B98=Belysningssystemer!S$69,-S28,-(S28+Belysningssystemer!S$96))) -> 0
B99: 3 | C99: 3 | E99: =PMT(Belysningssystemer!E$77,$B99,IF($B99=Belysningssystemer!E$69,-E29,-(E29+Belysningssystemer!E$96))) -> 0 | G99: =PMT(Belysningssystemer!G$77,$B99,IF($B99=Belysningssystemer!G$69,-G29,-(G29+Belysningssystemer!G$96))) -> 0 | I99: =PMT(Belysningssystemer!I$77,$B99,IF($B99=Belysningssystemer!I$69,-I29,-(I29+Belysningssystemer!I$96))) -> 0 | K99: =PMT(Belysningssystemer!K$77,$B99,IF($B99=Belysningssystemer!K$69,-K29,-(K29+Belysningssystemer!K$96))) -> 0 | M99: =PMT(Belysningssystemer!M$77,$B99,IF($B99=Belysningssystemer!M$69,-M29,-(M29+Belysningssystemer!M$96))) -> 0 | O99: =PMT(Belysningssystemer!O$77,$B99,IF($B99=Belysningssystemer!O$69,-O29,-(O29+Belysningssystemer!O$96))) -> 0 | Q99: =PMT(Belysningssystemer!Q$77,$B99,IF($B99=Belysningssystemer!Q$69,-Q29,-(Q29+Belysningssystemer!Q$96))) -> 0 | S99: =PMT(Belysningssystemer!S$77,$B99,IF($B99=Belysningssystemer!S$69,-S29,-(S29+Belysningssystemer!S$96))) -> 0
B100: 4 | C100: 4 | E100: =PMT(Belysningssystemer!E$77,$B100,IF($B100=Belysningssystemer!E$69,-E30,-(E30+Belysningssystemer!E$96))) -> 0 | G100: =PMT(Belysningssystemer!G$77,$B100,IF($B100=Belysningssystemer!G$69,-G30,-(G30+Belysningssystemer!G$96))) -> 0 | I100: =PMT(Belysningssystemer!I$77,$B100,IF($B100=Belysningssystemer!I$69,-I30,-(I30+Belysningssystemer!I$96))) -> 0 | K100: =PMT(Belysningssystemer!K$77,$B100,IF($B100=Belysningssystemer!K$69,-K30,-(K30+Belysningssystemer!K$96))) -> 0 | M100: =PMT(Belysningssystemer!M$77,$B100,IF($B100=Belysningssystemer!M$69,-M30,-(M30+Belysningssystemer!M$96))) -> 0 | O100: =PMT(Belysningssystemer!O$77,$B100,IF($B100=Belysningssystemer!O$69,-O30,-(O30+Belysningssystemer!O$96))) -> 0 | Q100: =PMT(Belysningssystemer!Q$77,$B100,IF($B100=Belysningssystemer!Q$69,-Q30,-(Q30+Belysningssystemer!Q$96))) -> 0 | S100: =PMT(Belysningssystemer!S$77,$B100,IF($B100=Belysningssystemer!S$69,-S30,-(S30+Belysningssystemer!S$96))) -> 0
B101: 5 | C101: 5 | E101: =PMT(Belysningssystemer!E$77,$B101,IF($B101=Belysningssystemer!E$69,-E31,-(E31+Belysningssystemer!E$96))) -> 0 | G101: =PMT(Belysningssystemer!G$77,$B101,IF($B101=Belysningssystemer!G$69,-G31,-(G31+Belysningssystemer!G$96))) -> 0 | I101: =PMT(Belysningssystemer!I$77,$B101,IF($B101=Belysningssystemer!I$69,-I31,-(I31+Belysningssystemer!I$96))) -> 0 | K101: =PMT(Belysningssystemer!K$77,$B101,IF($B101=Belysningssystemer!K$69,-K31,-(K31+Belysningssystemer!K$96))) -> 0 | M101: =PMT(Belysningssystemer!M$77,$B101,IF($B101=Belysningssystemer!M$69,-M31,-(M31+Belysningssystemer!M$96))) -> 0 | O101: =PMT(Belysningssystemer!O$77,$B101,IF($B101=Belysningssystemer!O$69,-O31,-(O31+Belysningssystemer!O$96))) -> 0 | Q101: =PMT(Belysningssystemer!Q$77,$B101,IF($B101=Belysningssystemer!Q$69,-Q31,-(Q31+Belysningssystemer!Q$96))) -> 0 | S101: =PMT(Belysningssystemer!S$77,$B101,IF($B101=Belysningssystemer!S$69,-S31,-(S31+Belysningssystemer!S$96))) -> 0
B102: 6 | C102: 6 | E102: =PMT(Belysningssystemer!E$77,$B102,IF($B102=Belysningssystemer!E$69,-E32,-(E32+Belysningssystemer!E$96))) -> 0 | G102: =PMT(Belysningssystemer!G$77,$B102,IF($B102=Belysningssystemer!G$69,-G32,-(G32+Belysningssystemer!G$96))) -> 0 | I102: =PMT(Belysningssystemer!I$77,$B102,IF($B102=Belysningssystemer!I$69,-I32,-(I32+Belysningssystemer!I$96))) -> 0 | K102: =PMT(Belysningssystemer!K$77,$B102,IF($B102=Belysningssystemer!K$69,-K32,-(K32+Belysningssystemer!K$96))) -> 0 | M102: =PMT(Belysningssystemer!M$77,$B102,IF($B102=Belysningssystemer!M$69,-M32,-(M32+Belysningssystemer!M$96))) -> 0 | O102: =PMT(Belysningssystemer!O$77,$B102,IF($B102=Belysningssystemer!O$69,-O32,-(O32+Belysningssystemer!O$96))) -> 0 | Q102: =PMT(Belysningssystemer!Q$77,$B102,IF($B102=Belysningssystemer!Q$69,-Q32,-(Q32+Belysningssystemer!Q$96))) -> 0 | S102: =PMT(Belysningssystemer!S$77,$B102,IF($B102=Belysningssystemer!S$69,-S32,-(S32+Belysningssystemer!S$96))) -> 0
